{"text_format":"1","workbook":"xlsx","n_sheets":6,"sheets":["Start","TERYT","G","U","B","L"],"not_rendered":{"charts":0,"images":0,"macros":1,"external_links":0,"defined_names":5,"comments":1,"pivot_tables":2},"unopened":[],"bounds":{"document_bytes":16777216,"sheet_cells":100000,"rows_first":2000,"rows_last":500,"rows_between":2000,"halvings":0,"cell_chars":16384,"cell_head_chars":4096},"cells_cut":0,"cells_raw":0,"read":"whole","date_system":"1900"}

{"sheet":"Start","index":0,"n_rows":20,"n_cols":7,"rows_kept":20,"cut":false,"hidden":false,"merged":[[1,1,2,4],[4,1,5,4],[12,1,12,4],[14,0,16,0],[14,1,14,9],[10,1,11,4],[7,1,8,4]]}
[null,1,null,null,null,"*"]
[null,null,null,null,null,null,"PODAJ TERYT POWIATU"]
[null,null,null,null,null,null,"0201"]
[]
[null,null,null,null,null,null,"PODAJ TERYT WOJEWÓDZTWA"]
[null,null,null,null,null,null,"02"]
[]
[null,null,null,null,null,null,"PODAJ ROK AKTUALNOŚCI"]
[null,null,null,null,null,null,"2026"]
[]
[null,"* pliki powiatowe lub wojewódzkie\n  muszą znajdować się w tym samym \n  katalogu co niniejszy skoroszyt"]
[]
[]
[]
["O P C J A","WYPEŁNIANIE PÓŁAUTOMATYCZNE. Kopiuj - Wklej. Pomijaj komórki zablokowane.\nFunkcja umożliwiająca wklejenie wartości numecznych do wskazanego miejsca wybrango arkusza.\nDane są kopiowane z zakresu B20:AL220 a wartości komórek wklejane do niezablokowanych komórek arkusza docelowego."]
[null,null,null,null,"Wiersz","Kolumna","Nazwa zakadki docelowej"]
[null,null,null,null,14,6,"222222_G"]
[]
[]
[null,"Tu wklej dane"]

{"sheet":"TERYT","index":1,"n_rows":3390,"n_cols":15,"rows_kept":3390,"cut":false,"hidden":true,"merged":[[0,0,0,7]]}
["Poniżej znajduje się wykaz kodów teryt. Wykaz w kolumnach A:F można aktualizować."]
[]
["pl_kod","pl_nazwa","woj_kod","woj_nazwa","pow_kod","pow_nazwa","gmi_kod","gmi_nazwa",null,"woj_kod","woj_nazwa","pow_kod","pow_nazwa","woj_kod","woj_nazwa"]
["PL","Polska","02","DOLNOŚLĄSKIE","0201","bolesławiecki","0201011","Bolesławiec - gmina miejska",null,"02","DOLNOŚLĄSKIE","0201","bolesławiecki","02","DOLNOŚLĄSKIE"]
["PL","Polska","02","DOLNOŚLĄSKIE","0201","bolesławiecki","0201022","Bolesławiec - gmina wiejska",null,"02","DOLNOŚLĄSKIE","0202","dzierżoniowski","04","KUJAWSKO-POMORSKIE"]
["PL","Polska","02","DOLNOŚLĄSKIE","0201","bolesławiecki","0201032","Gromadka - gmina wiejska",null,"02","DOLNOŚLĄSKIE","0203","głogowski","06","LUBELSKIE"]
["PL","Polska","02","DOLNOŚLĄSKIE","0201","bolesławiecki","0201044","Nowogrodziec - miasto",null,"02","DOLNOŚLĄSKIE","0204","górowski","08","LUBUSKIE"]
["PL","Polska","02","DOLNOŚLĄSKIE","0201","bolesławiecki","0201045","Nowogrodziec - obszar wiejski",null,"02","DOLNOŚLĄSKIE","0205","jaworski","10","ŁÓDZKIE"]
["PL","Polska","02","DOLNOŚLĄSKIE","0201","bolesławiecki","0201052","Osiecznica - gmina wiejska",null,"02","DOLNOŚLĄSKIE","0206","karkonoski2","12","MAŁOPOLSKIE"]
["PL","Polska","02","DOLNOŚLĄSKIE","0201","bolesławiecki","0201062","Warta Bolesławiecka - gmina wiejska",null,"02","DOLNOŚLĄSKIE","0207","kamiennogórski","14","MAZOWIECKIE"]
["PL","Polska","02","DOLNOŚLĄSKIE","0202","dzierżoniowski","0202011","Bielawa - gmina miejska",null,"02","DOLNOŚLĄSKIE","0208","kłodzki","16","OPOLSKIE"]
["PL","Polska","02","DOLNOŚLĄSKIE","0202","dzierżoniowski","0202021","Dzierżoniów - gmina miejska",null,"02","DOLNOŚLĄSKIE","0209","legnicki","18","PODKARPACKIE"]
["PL","Polska","02","DOLNOŚLĄSKIE","0202","dzierżoniowski","0202034","Pieszyce - miasto",null,"02","DOLNOŚLĄSKIE","0210","lubański","20","PODLASKIE"]
["PL","Polska","02","DOLNOŚLĄSKIE","0202","dzierżoniowski","0202035","Pieszyce - obszar wiejski",null,"02","DOLNOŚLĄSKIE","0211","lubiński","22","POMORSKIE"]
["PL","Polska","02","DOLNOŚLĄSKIE","0202","dzierżoniowski","0202041","Piława Górna - gmina miejska",null,"02","DOLNOŚLĄSKIE","0212","lwówecki","24","ŚLĄSKIE"]
["PL","Polska","02","DOLNOŚLĄSKIE","0202","dzierżoniowski","0202052","Dzierżoniów - gmina wiejska",null,"02","DOLNOŚLĄSKIE","0213","milicki","26","ŚWIĘTOKRZYSKIE"]
["PL","Polska","02","DOLNOŚLĄSKIE","0202","dzierżoniowski","0202062","Łagiewniki - gmina wiejska",null,"02","DOLNOŚLĄSKIE","0214","oleśnicki","28","WARMIŃSKO-MAZURSKIE"]
["PL","Polska","02","DOLNOŚLĄSKIE","0202","dzierżoniowski","0202074","Niemcza - miasto",null,"02","DOLNOŚLĄSKIE","0215","oławski","30","WIELKOPOLSKIE"]
["PL","Polska","02","DOLNOŚLĄSKIE","0202","dzierżoniowski","0202075","Niemcza - obszar wiejski",null,"02","DOLNOŚLĄSKIE","0216","polkowicki","32","ZACHODNIOPOMORSKIE"]
["PL","Polska","02","DOLNOŚLĄSKIE","0203","głogowski","0203011","Głogów - gmina miejska",null,"02","DOLNOŚLĄSKIE","0217","strzeliński"]
["PL","Polska","02","DOLNOŚLĄSKIE","0203","głogowski","0203022","Głogów - gmina wiejska",null,"02","DOLNOŚLĄSKIE","0218","średzki"]
["PL","Polska","02","DOLNOŚLĄSKIE","0203","głogowski","0203032","Jerzmanowa - gmina wiejska",null,"02","DOLNOŚLĄSKIE","0219","świdnicki"]
["PL","Polska","02","DOLNOŚLĄSKIE","0203","głogowski","0203042","Kotla - gmina wiejska",null,"02","DOLNOŚLĄSKIE","0220","trzebnicki"]
["PL","Polska","02","DOLNOŚLĄSKIE","0203","głogowski","0203052","Pęcław - gmina wiejska",null,"02","DOLNOŚLĄSKIE","0221","wałbrzyski"]
["PL","Polska","02","DOLNOŚLĄSKIE","0203","głogowski","0203062","Żukowice - gmina wiejska",null,"02","DOLNOŚLĄSKIE","0222","wołowski"]
["PL","Polska","02","DOLNOŚLĄSKIE","0204","górowski","0204014","Góra - miasto",null,"02","DOLNOŚLĄSKIE","0223","wrocławski"]
["PL","Polska","02","DOLNOŚLĄSKIE","0204","górowski","0204015","Góra - obszar wiejski",null,"02","DOLNOŚLĄSKIE","0224","ząbkowicki"]
["PL","Polska","02","DOLNOŚLĄSKIE","0204","górowski","0204022","Jemielno - gmina wiejska",null,"02","DOLNOŚLĄSKIE","0225","zgorzelecki"]
["PL","Polska","02","DOLNOŚLĄSKIE","0204","górowski","0204032","Niechlów - gmina wiejska",null,"02","DOLNOŚLĄSKIE","0226","złotoryjski"]
["PL","Polska","02","DOLNOŚLĄSKIE","0204","górowski","0204044","Wąsosz - miasto",null,"02","DOLNOŚLĄSKIE","0261","Jelenia Góra"]
["PL","Polska","02","DOLNOŚLĄSKIE","0204","górowski","0204045","Wąsosz - obszar wiejski",null,"02","DOLNOŚLĄSKIE","0262","Legnica"]
["PL","Polska","02","DOLNOŚLĄSKIE","0205","jaworski","0205011","Jawor - gmina miejska",null,"02","DOLNOŚLĄSKIE","0264","Wrocław"]
["PL","Polska","02","DOLNOŚLĄSKIE","0205","jaworski","0205024","Bolków - miasto",null,"02","DOLNOŚLĄSKIE","0265","Wałbrzych"]
["PL","Polska","02","DOLNOŚLĄSKIE","0205","jaworski","0205025","Bolków - obszar wiejski",null,"04","KUJAWSKO-POMORSKIE","0401","aleksandrowski"]
["PL","Polska","02","DOLNOŚLĄSKIE","0205","jaworski","0205032","Męcinka - gmina wiejska",null,"04","KUJAWSKO-POMORSKIE","0402","brodnicki"]
["PL","Polska","02","DOLNOŚLĄSKIE","0205","jaworski","0205042","Mściwojów - gmina wiejska",null,"04","KUJAWSKO-POMORSKIE","0403","bydgoski"]
["PL","Polska","02","DOLNOŚLĄSKIE","0205","jaworski","0205052","Paszowice - gmina wiejska",null,"04","KUJAWSKO-POMORSKIE","0404","chełmiński"]
["PL","Polska","02","DOLNOŚLĄSKIE","0205","jaworski","0205062","Wądroże Wielkie - gmina wiejska",null,"04","KUJAWSKO-POMORSKIE","0405","golubsko-dobrzyński"]
["PL","Polska","02","DOLNOŚLĄSKIE","0206","karkonoski","0206011","Karpacz - gmina miejska",null,"04","KUJAWSKO-POMORSKIE","0406","grudziądzki"]
["PL","Polska","02","DOLNOŚLĄSKIE","0206","karkonoski","0206021","Kowary - gmina miejska",null,"04","KUJAWSKO-POMORSKIE","0407","inowrocławski"]
["PL","Polska","02","DOLNOŚLĄSKIE","0206","karkonoski","0206031","Piechowice - gmina miejska",null,"04","KUJAWSKO-POMORSKIE","0408","lipnowski"]
["PL","Polska","02","DOLNOŚLĄSKIE","0206","karkonoski","0206041","Szklarska Poręba - gmina miejska",null,"04","KUJAWSKO-POMORSKIE","0409","mogileński"]
["PL","Polska","02","DOLNOŚLĄSKIE","0206","karkonoski","0206052","Janowice Wielkie - gmina wiejska",null,"04","KUJAWSKO-POMORSKIE","0410","nakielski"]
["PL","Polska","02","DOLNOŚLĄSKIE","0206","karkonoski","0206062","Jeżów Sudecki - gmina wiejska",null,"04","KUJAWSKO-POMORSKIE","0411","radziejowski"]
["PL","Polska","02","DOLNOŚLĄSKIE","0206","karkonoski","0206072","Mysłakowice - gmina wiejska",null,"04","KUJAWSKO-POMORSKIE","0412","rypiński"]
["PL","Polska","02","DOLNOŚLĄSKIE","0206","karkonoski","0206082","Podgórzyn - gmina wiejska",null,"04","KUJAWSKO-POMORSKIE","0413","sępoleński"]
["PL","Polska","02","DOLNOŚLĄSKIE","0206","karkonoski","0206092","Stara Kamienica - gmina wiejska",null,"04","KUJAWSKO-POMORSKIE","0414","świecki"]
["PL","Polska","02","DOLNOŚLĄSKIE","0207","kamiennogórski","0207011","Kamienna Góra - gmina miejska",null,"04","KUJAWSKO-POMORSKIE","0415","toruński"]
["PL","Polska","02","DOLNOŚLĄSKIE","0207","kamiennogórski","0207022","Kamienna Góra - gmina wiejska",null,"04","KUJAWSKO-POMORSKIE","0416","tucholski"]
["PL","Polska","02","DOLNOŚLĄSKIE","0207","kamiennogórski","0207034","Lubawka - miasto",null,"04","KUJAWSKO-POMORSKIE","0417","wąbrzeski"]
["PL","Polska","02","DOLNOŚLĄSKIE","0207","kamiennogórski","0207035","Lubawka - obszar wiejski",null,"04","KUJAWSKO-POMORSKIE","0418","włocławski"]
["PL","Polska","02","DOLNOŚLĄSKIE","0207","kamiennogórski","0207042","Marciszów - gmina wiejska",null,"04","KUJAWSKO-POMORSKIE","0419","żniński"]
["PL","Polska","02","DOLNOŚLĄSKIE","0208","kłodzki","0208011","Duszniki-Zdrój - gmina miejska",null,"04","KUJAWSKO-POMORSKIE","0461","Bydgoszcz"]
["PL","Polska","02","DOLNOŚLĄSKIE","0208","kłodzki","0208021","Kłodzko - gmina miejska",null,"04","KUJAWSKO-POMORSKIE","0462","Grudziądz"]
["PL","Polska","02","DOLNOŚLĄSKIE","0208","kłodzki","0208031","Kudowa-Zdrój - gmina miejska",null,"04","KUJAWSKO-POMORSKIE","0463","Toruń"]
["PL","Polska","02","DOLNOŚLĄSKIE","0208","kłodzki","0208041","Nowa Ruda - gmina miejska",null,"04","KUJAWSKO-POMORSKIE","0464","Włocławek"]
["PL","Polska","02","DOLNOŚLĄSKIE","0208","kłodzki","0208051","Polanica-Zdrój - gmina miejska",null,"06","LUBELSKIE","0601","bialski"]
["PL","Polska","02","DOLNOŚLĄSKIE","0208","kłodzki","0208064","Bystrzyca Kłodzka - miasto",null,"06","LUBELSKIE","0602","biłgorajski"]
["PL","Polska","02","DOLNOŚLĄSKIE","0208","kłodzki","0208065","Bystrzyca Kłodzka - obszar wiejski",null,"06","LUBELSKIE","0603","chełmski"]
["PL","Polska","02","DOLNOŚLĄSKIE","0208","kłodzki","0208072","Kłodzko - gmina wiejska",null,"06","LUBELSKIE","0604","hrubieszowski"]
["PL","Polska","02","DOLNOŚLĄSKIE","0208","kłodzki","0208084","Lądek-Zdrój - miasto",null,"06","LUBELSKIE","0605","janowski"]
["PL","Polska","02","DOLNOŚLĄSKIE","0208","kłodzki","0208085","Lądek-Zdrój - obszar wiejski",null,"06","LUBELSKIE","0606","krasnostawski"]
["PL","Polska","02","DOLNOŚLĄSKIE","0208","kłodzki","0208092","Lewin Kłodzki - gmina wiejska",null,"06","LUBELSKIE","0607","kraśnicki"]
["PL","Polska","02","DOLNOŚLĄSKIE","0208","kłodzki","0208104","Międzylesie - miasto",null,"06","LUBELSKIE","0608","lubartowski"]
["PL","Polska","02","DOLNOŚLĄSKIE","0208","kłodzki","0208105","Międzylesie - obszar wiejski",null,"06","LUBELSKIE","0609","lubelski"]
["PL","Polska","02","DOLNOŚLĄSKIE","0208","kłodzki","0208112","Nowa Ruda - gmina wiejska",null,"06","LUBELSKIE","0610","łęczyński"]
["PL","Polska","02","DOLNOŚLĄSKIE","0208","kłodzki","0208124","Radków - miasto",null,"06","LUBELSKIE","0611","łukowski"]
["PL","Polska","02","DOLNOŚLĄSKIE","0208","kłodzki","0208125","Radków - obszar wiejski",null,"06","LUBELSKIE","0612","opolski"]
["PL","Polska","02","DOLNOŚLĄSKIE","0208","kłodzki","0208134","Stronie Śląskie - miasto",null,"06","LUBELSKIE","0613","parczewski"]
["PL","Polska","02","DOLNOŚLĄSKIE","0208","kłodzki","0208135","Stronie Śląskie - obszar wiejski",null,"06","LUBELSKIE","0614","puławski"]
["PL","Polska","02","DOLNOŚLĄSKIE","0208","kłodzki","0208144","Szczytna - miasto",null,"06","LUBELSKIE","0615","radzyński"]
["PL","Polska","02","DOLNOŚLĄSKIE","0208","kłodzki","0208145","Szczytna - obszar wiejski",null,"06","LUBELSKIE","0616","rycki"]
["PL","Polska","02","DOLNOŚLĄSKIE","0209","legnicki","0209011","Chojnów - gmina miejska",null,"06","LUBELSKIE","0617","świdnicki"]
["PL","Polska","02","DOLNOŚLĄSKIE","0209","legnicki","0209022","Chojnów - gmina wiejska",null,"06","LUBELSKIE","0618","tomaszowski"]
["PL","Polska","02","DOLNOŚLĄSKIE","0209","legnicki","0209032","Krotoszyce - gmina wiejska",null,"06","LUBELSKIE","0619","włodawski"]
["PL","Polska","02","DOLNOŚLĄSKIE","0209","legnicki","0209042","Kunice - gmina wiejska",null,"06","LUBELSKIE","0620","zamojski"]
["PL","Polska","02","DOLNOŚLĄSKIE","0209","legnicki","0209052","Legnickie Pole - gmina wiejska",null,"06","LUBELSKIE","0661","Biała Podlaska"]
["PL","Polska","02","DOLNOŚLĄSKIE","0209","legnicki","0209062","Miłkowice - gmina wiejska",null,"06","LUBELSKIE","0662","Chełm"]
["PL","Polska","02","DOLNOŚLĄSKIE","0209","legnicki","0209074","Prochowice - miasto",null,"06","LUBELSKIE","0663","Lublin"]
["PL","Polska","02","DOLNOŚLĄSKIE","0209","legnicki","0209075","Prochowice - obszar wiejski",null,"06","LUBELSKIE","0664","Zamość"]
["PL","Polska","02","DOLNOŚLĄSKIE","0209","legnicki","0209082","Ruja - gmina wiejska",null,"08","LUBUSKIE","0801","gorzowski"]
["PL","Polska","02","DOLNOŚLĄSKIE","0210","lubański","0210011","Lubań - gmina miejska",null,"08","LUBUSKIE","0802","krośnieński"]
["PL","Polska","02","DOLNOŚLĄSKIE","0210","lubański","0210021","Świeradów-Zdrój - gmina miejska",null,"08","LUBUSKIE","0803","międzyrzecki"]
["PL","Polska","02","DOLNOŚLĄSKIE","0210","lubański","0210034","Leśna - miasto",null,"08","LUBUSKIE","0804","nowosolski"]
["PL","Polska","02","DOLNOŚLĄSKIE","0210","lubański","0210035","Leśna - obszar wiejski",null,"08","LUBUSKIE","0805","słubicki"]
["PL","Polska","02","DOLNOŚLĄSKIE","0210","lubański","0210042","Lubań - gmina wiejska",null,"08","LUBUSKIE","0806","strzelecko-drezdenecki"]
["PL","Polska","02","DOLNOŚLĄSKIE","0210","lubański","0210054","Olszyna - miasto",null,"08","LUBUSKIE","0807","sulęciński"]
["PL","Polska","02","DOLNOŚLĄSKIE","0210","lubański","0210055","Olszyna - obszar wiejski",null,"08","LUBUSKIE","0808","świebodziński"]
["PL","Polska","02","DOLNOŚLĄSKIE","0210","lubański","0210062","Platerówka - gmina wiejska",null,"08","LUBUSKIE","0809","zielonogórski"]
["PL","Polska","02","DOLNOŚLĄSKIE","0210","lubański","0210072","Siekierczyn - gmina wiejska",null,"08","LUBUSKIE","0810","żagański"]
["PL","Polska","02","DOLNOŚLĄSKIE","0211","lubiński","0211011","Lubin - gmina miejska",null,"08","LUBUSKIE","0811","żarski"]
["PL","Polska","02","DOLNOŚLĄSKIE","0211","lubiński","0211022","Lubin - gmina wiejska",null,"08","LUBUSKIE","0812","wschowski"]
["PL","Polska","02","DOLNOŚLĄSKIE","0211","lubiński","0211032","Rudna - gmina wiejska",null,"08","LUBUSKIE","0861","Gorzów Wielkopolski"]
["PL","Polska","02","DOLNOŚLĄSKIE","0211","lubiński","0211044","Ścinawa - miasto",null,"08","LUBUSKIE","0862","Zielona Góra"]
["PL","Polska","02","DOLNOŚLĄSKIE","0211","lubiński","0211045","Ścinawa - obszar wiejski",null,"10","ŁÓDZKIE","1001","bełchatowski"]
["PL","Polska","02","DOLNOŚLĄSKIE","0212","lwówecki","0212014","Gryfów Śląski - miasto",null,"10","ŁÓDZKIE","1002","kutnowski"]
["PL","Polska","02","DOLNOŚLĄSKIE","0212","lwówecki","0212015","Gryfów Śląski - obszar wiejski",null,"10","ŁÓDZKIE","1003","łaski"]
["PL","Polska","02","DOLNOŚLĄSKIE","0212","lwówecki","0212024","Lubomierz - miasto",null,"10","ŁÓDZKIE","1004","łęczycki"]
["PL","Polska","02","DOLNOŚLĄSKIE","0212","lwówecki","0212025","Lubomierz - obszar wiejski",null,"10","ŁÓDZKIE","1005","łowicki"]
["PL","Polska","02","DOLNOŚLĄSKIE","0212","lwówecki","0212034","Lwówek Śląski - miasto",null,"10","ŁÓDZKIE","1006","łódzki wschodni"]
["PL","Polska","02","DOLNOŚLĄSKIE","0212","lwówecki","0212035","Lwówek Śląski - obszar wiejski",null,"10","ŁÓDZKIE","1007","opoczyński"]
["PL","Polska","02","DOLNOŚLĄSKIE","0212","lwówecki","0212044","Mirsk - miasto",null,"10","ŁÓDZKIE","1008","pabianicki"]
["PL","Polska","02","DOLNOŚLĄSKIE","0212","lwówecki","0212045","Mirsk - obszar wiejski",null,"10","ŁÓDZKIE","1009","pajęczański"]
["PL","Polska","02","DOLNOŚLĄSKIE","0212","lwówecki","0212054","Wleń - miasto",null,"10","ŁÓDZKIE","1010","piotrkowski"]
["PL","Polska","02","DOLNOŚLĄSKIE","0212","lwówecki","0212055","Wleń - obszar wiejski",null,"10","ŁÓDZKIE","1011","poddębicki"]
["PL","Polska","02","DOLNOŚLĄSKIE","0213","milicki","0213012","Cieszków - gmina wiejska",null,"10","ŁÓDZKIE","1012","radomszczański"]
["PL","Polska","02","DOLNOŚLĄSKIE","0213","milicki","0213022","Krośnice - gmina wiejska",null,"10","ŁÓDZKIE","1013","rawski"]
["PL","Polska","02","DOLNOŚLĄSKIE","0213","milicki","0213034","Milicz - miasto",null,"10","ŁÓDZKIE","1014","sieradzki"]
["PL","Polska","02","DOLNOŚLĄSKIE","0213","milicki","0213035","Milicz - obszar wiejski",null,"10","ŁÓDZKIE","1015","skierniewicki"]
["PL","Polska","02","DOLNOŚLĄSKIE","0214","oleśnicki","0214011","Oleśnica - gmina miejska",null,"10","ŁÓDZKIE","1016","tomaszowski"]
["PL","Polska","02","DOLNOŚLĄSKIE","0214","oleśnicki","0214024","Bierutów - miasto",null,"10","ŁÓDZKIE","1017","wieluński"]
["PL","Polska","02","DOLNOŚLĄSKIE","0214","oleśnicki","0214025","Bierutów - obszar wiejski",null,"10","ŁÓDZKIE","1018","wieruszowski"]
["PL","Polska","02","DOLNOŚLĄSKIE","0214","oleśnicki","0214032","Dobroszyce - gmina wiejska",null,"10","ŁÓDZKIE","1019","zduńskowolski"]
["PL","Polska","02","DOLNOŚLĄSKIE","0214","oleśnicki","0214042","Dziadowa Kłoda - gmina wiejska",null,"10","ŁÓDZKIE","1020","zgierski"]
["PL","Polska","02","DOLNOŚLĄSKIE","0214","oleśnicki","0214054","Międzybórz - miasto",null,"10","ŁÓDZKIE","1021","brzeziński"]
["PL","Polska","02","DOLNOŚLĄSKIE","0214","oleśnicki","0214055","Międzybórz - obszar wiejski",null,"10","ŁÓDZKIE","1061","Łódź"]
["PL","Polska","02","DOLNOŚLĄSKIE","0214","oleśnicki","0214062","Oleśnica - gmina wiejska",null,"10","ŁÓDZKIE","1062","Piotrków Trybunalski"]
["PL","Polska","02","DOLNOŚLĄSKIE","0214","oleśnicki","0214074","Syców - miasto",null,"10","ŁÓDZKIE","1063","Skierniewice"]
["PL","Polska","02","DOLNOŚLĄSKIE","0214","oleśnicki","0214075","Syców - obszar wiejski",null,"12","MAŁOPOLSKIE","1201","bocheński"]
["PL","Polska","02","DOLNOŚLĄSKIE","0214","oleśnicki","0214084","Twardogóra - miasto",null,"12","MAŁOPOLSKIE","1202","brzeski"]
["PL","Polska","02","DOLNOŚLĄSKIE","0214","oleśnicki","0214085","Twardogóra - obszar wiejski",null,"12","MAŁOPOLSKIE","1203","chrzanowski"]
["PL","Polska","02","DOLNOŚLĄSKIE","0215","oławski","0215011","Oława - gmina miejska",null,"12","MAŁOPOLSKIE","1204","dąbrowski"]
["PL","Polska","02","DOLNOŚLĄSKIE","0215","oławski","0215022","Domaniów - gmina wiejska",null,"12","MAŁOPOLSKIE","1205","gorlicki"]
["PL","Polska","02","DOLNOŚLĄSKIE","0215","oławski","0215034","Jelcz-Laskowice - miasto",null,"12","MAŁOPOLSKIE","1206","krakowski"]
["PL","Polska","02","DOLNOŚLĄSKIE","0215","oławski","0215035","Jelcz-Laskowice - obszar wiejski",null,"12","MAŁOPOLSKIE","1207","limanowski"]
["PL","Polska","02","DOLNOŚLĄSKIE","0215","oławski","0215042","Oława - gmina wiejska",null,"12","MAŁOPOLSKIE","1208","miechowski"]
["PL","Polska","02","DOLNOŚLĄSKIE","0216","polkowicki","0216014","Chocianów - miasto",null,"12","MAŁOPOLSKIE","1209","myślenicki"]
["PL","Polska","02","DOLNOŚLĄSKIE","0216","polkowicki","0216015","Chocianów - obszar wiejski",null,"12","MAŁOPOLSKIE","1210","nowosądecki"]
["PL","Polska","02","DOLNOŚLĄSKIE","0216","polkowicki","0216022","Gaworzyce - gmina wiejska",null,"12","MAŁOPOLSKIE","1211","nowotarski"]
["PL","Polska","02","DOLNOŚLĄSKIE","0216","polkowicki","0216032","Grębocice - gmina wiejska",null,"12","MAŁOPOLSKIE","1212","olkuski"]
["PL","Polska","02","DOLNOŚLĄSKIE","0216","polkowicki","0216044","Polkowice - miasto",null,"12","MAŁOPOLSKIE","1213","oświęcimski"]
["PL","Polska","02","DOLNOŚLĄSKIE","0216","polkowicki","0216045","Polkowice - obszar wiejski",null,"12","MAŁOPOLSKIE","1214","proszowicki"]
["PL","Polska","02","DOLNOŚLĄSKIE","0216","polkowicki","0216054","Przemków - miasto",null,"12","MAŁOPOLSKIE","1215","suski"]
["PL","Polska","02","DOLNOŚLĄSKIE","0216","polkowicki","0216055","Przemków - obszar wiejski",null,"12","MAŁOPOLSKIE","1216","tarnowski"]
["PL","Polska","02","DOLNOŚLĄSKIE","0216","polkowicki","0216062","Radwanice - gmina wiejska",null,"12","MAŁOPOLSKIE","1217","tatrzański"]
["PL","Polska","02","DOLNOŚLĄSKIE","0217","strzeliński","0217012","Borów - gmina wiejska",null,"12","MAŁOPOLSKIE","1218","wadowicki"]
["PL","Polska","02","DOLNOŚLĄSKIE","0217","strzeliński","0217022","Kondratowice - gmina wiejska",null,"12","MAŁOPOLSKIE","1219","wielicki"]
["PL","Polska","02","DOLNOŚLĄSKIE","0217","strzeliński","0217032","Przeworno - gmina wiejska",null,"12","MAŁOPOLSKIE","1261","Kraków"]
["PL","Polska","02","DOLNOŚLĄSKIE","0217","strzeliński","0217044","Strzelin - miasto",null,"12","MAŁOPOLSKIE","1262","Nowy Sącz"]
["PL","Polska","02","DOLNOŚLĄSKIE","0217","strzeliński","0217045","Strzelin - obszar wiejski",null,"12","MAŁOPOLSKIE","1263","Tarnów"]
["PL","Polska","02","DOLNOŚLĄSKIE","0217","strzeliński","0217054","Wiązów - miasto",null,"14","MAZOWIECKIE","1401","białobrzeski"]
["PL","Polska","02","DOLNOŚLĄSKIE","0217","strzeliński","0217055","Wiązów - obszar wiejski",null,"14","MAZOWIECKIE","1402","ciechanowski"]
["PL","Polska","02","DOLNOŚLĄSKIE","0218","średzki","0218012","Kostomłoty - gmina wiejska",null,"14","MAZOWIECKIE","1403","garwoliński"]
["PL","Polska","02","DOLNOŚLĄSKIE","0218","średzki","0218022","Malczyce - gmina wiejska",null,"14","MAZOWIECKIE","1404","gostyniński"]
["PL","Polska","02","DOLNOŚLĄSKIE","0218","średzki","0218034","Miękinia - miasto",null,"14","MAZOWIECKIE","1405","grodziski"]
["PL","Polska","02","DOLNOŚLĄSKIE","0218","średzki","0218035","Miękinia - obszar wiejski",null,"14","MAZOWIECKIE","1406","grójecki"]
["PL","Polska","02","DOLNOŚLĄSKIE","0218","średzki","0218044","Środa Śląska - miasto",null,"14","MAZOWIECKIE","1407","kozienicki"]
["PL","Polska","02","DOLNOŚLĄSKIE","0218","średzki","0218045","Środa Śląska - obszar wiejski",null,"14","MAZOWIECKIE","1408","legionowski"]
["PL","Polska","02","DOLNOŚLĄSKIE","0218","średzki","0218052","Udanin - gmina wiejska",null,"14","MAZOWIECKIE","1409","lipski"]
["PL","Polska","02","DOLNOŚLĄSKIE","0219","świdnicki","0219011","Świdnica - gmina miejska",null,"14","MAZOWIECKIE","1410","łosicki"]
["PL","Polska","02","DOLNOŚLĄSKIE","0219","świdnicki","0219021","Świebodzice - gmina miejska",null,"14","MAZOWIECKIE","1411","makowski"]
["PL","Polska","02","DOLNOŚLĄSKIE","0219","świdnicki","0219032","Dobromierz - gmina wiejska",null,"14","MAZOWIECKIE","1412","miński"]
["PL","Polska","02","DOLNOŚLĄSKIE","0219","świdnicki","0219044","Jaworzyna Śląska - miasto",null,"14","MAZOWIECKIE","1413","mławski"]
["PL","Polska","02","DOLNOŚLĄSKIE","0219","świdnicki","0219045","Jaworzyna Śląska - obszar wiejski",null,"14","MAZOWIECKIE","1414","nowodworski"]
["PL","Polska","02","DOLNOŚLĄSKIE","0219","świdnicki","0219052","Marcinowice - gmina wiejska",null,"14","MAZOWIECKIE","1415","ostrołęcki"]
["PL","Polska","02","DOLNOŚLĄSKIE","0219","świdnicki","0219064","Strzegom - miasto",null,"14","MAZOWIECKIE","1416","ostrowski"]
["PL","Polska","02","DOLNOŚLĄSKIE","0219","świdnicki","0219065","Strzegom - obszar wiejski",null,"14","MAZOWIECKIE","1417","otwocki"]
["PL","Polska","02","DOLNOŚLĄSKIE","0219","świdnicki","0219072","Świdnica - gmina wiejska",null,"14","MAZOWIECKIE","1418","piaseczyński"]
["PL","Polska","02","DOLNOŚLĄSKIE","0219","świdnicki","0219084","Żarów - miasto",null,"14","MAZOWIECKIE","1419","płocki"]
["PL","Polska","02","DOLNOŚLĄSKIE","0219","świdnicki","0219085","Żarów - obszar wiejski",null,"14","MAZOWIECKIE","1420","płoński"]
["PL","Polska","02","DOLNOŚLĄSKIE","0220","trzebnicki","0220014","Oborniki Śląskie - miasto",null,"14","MAZOWIECKIE","1421","pruszkowski"]
["PL","Polska","02","DOLNOŚLĄSKIE","0220","trzebnicki","0220015","Oborniki Śląskie - obszar wiejski",null,"14","MAZOWIECKIE","1422","przasnyski"]
["PL","Polska","02","DOLNOŚLĄSKIE","0220","trzebnicki","0220024","Prusice - miasto",null,"14","MAZOWIECKIE","1423","przysuski"]
["PL","Polska","02","DOLNOŚLĄSKIE","0220","trzebnicki","0220025","Prusice - obszar wiejski",null,"14","MAZOWIECKIE","1424","pułtuski"]
["PL","Polska","02","DOLNOŚLĄSKIE","0220","trzebnicki","0220034","Trzebnica - miasto",null,"14","MAZOWIECKIE","1425","radomski"]
["PL","Polska","02","DOLNOŚLĄSKIE","0220","trzebnicki","0220035","Trzebnica - obszar wiejski",null,"14","MAZOWIECKIE","1426","siedlecki"]
["PL","Polska","02","DOLNOŚLĄSKIE","0220","trzebnicki","0220042","Wisznia Mała - gmina wiejska",null,"14","MAZOWIECKIE","1427","sierpecki"]
["PL","Polska","02","DOLNOŚLĄSKIE","0220","trzebnicki","0220052","Zawonia - gmina wiejska",null,"14","MAZOWIECKIE","1428","sochaczewski"]
["PL","Polska","02","DOLNOŚLĄSKIE","0220","trzebnicki","0220064","Żmigród - miasto",null,"14","MAZOWIECKIE","1429","sokołowski"]
["PL","Polska","02","DOLNOŚLĄSKIE","0220","trzebnicki","0220065","Żmigród - obszar wiejski",null,"14","MAZOWIECKIE","1430","szydłowiecki"]
["PL","Polska","02","DOLNOŚLĄSKIE","0221","wałbrzyski","0221011","Boguszów-Gorce - gmina miejska",null,"14","MAZOWIECKIE","1432","warszawski zachodni"]
["PL","Polska","02","DOLNOŚLĄSKIE","0221","wałbrzyski","0221021","Jedlina-Zdrój - gmina miejska",null,"14","MAZOWIECKIE","1433","węgrowski"]
["PL","Polska","02","DOLNOŚLĄSKIE","0221","wałbrzyski","0221031","Szczawno-Zdrój - gmina miejska",null,"14","MAZOWIECKIE","1434","wołomiński"]
["PL","Polska","02","DOLNOŚLĄSKIE","0221","wałbrzyski","0221042","Czarny Bór - gmina wiejska",null,"14","MAZOWIECKIE","1435","wyszkowski"]
["PL","Polska","02","DOLNOŚLĄSKIE","0221","wałbrzyski","0221054","Głuszyca - miasto",null,"14","MAZOWIECKIE","1436","zwoleński"]
["PL","Polska","02","DOLNOŚLĄSKIE","0221","wałbrzyski","0221055","Głuszyca - obszar wiejski",null,"14","MAZOWIECKIE","1437","żuromiński"]
["PL","Polska","02","DOLNOŚLĄSKIE","0221","wałbrzyski","0221064","Mieroszów - miasto",null,"14","MAZOWIECKIE","1438","żyrardowski"]
["PL","Polska","02","DOLNOŚLĄSKIE","0221","wałbrzyski","0221065","Mieroszów - obszar wiejski",null,"14","MAZOWIECKIE","1461","Ostrołęka"]
["PL","Polska","02","DOLNOŚLĄSKIE","0221","wałbrzyski","0221072","Stare Bogaczowice - gmina wiejska",null,"14","MAZOWIECKIE","1462","Płock"]
["PL","Polska","02","DOLNOŚLĄSKIE","0221","wałbrzyski","0221082","Walim - gmina wiejska",null,"14","MAZOWIECKIE","1463","Radom"]
["PL","Polska","02","DOLNOŚLĄSKIE","0222","wołowski","0222014","Brzeg Dolny - miasto",null,"14","MAZOWIECKIE","1464","Siedlce"]
["PL","Polska","02","DOLNOŚLĄSKIE","0222","wołowski","0222015","Brzeg Dolny - obszar wiejski",null,"14","MAZOWIECKIE","1465","Warszawa"]
["PL","Polska","02","DOLNOŚLĄSKIE","0222","wołowski","0222022","Wińsko - gmina wiejska",null,"16","OPOLSKIE","1601","brzeski"]
["PL","Polska","02","DOLNOŚLĄSKIE","0222","wołowski","0222034","Wołów - miasto",null,"16","OPOLSKIE","1602","głubczycki"]
["PL","Polska","02","DOLNOŚLĄSKIE","0222","wołowski","0222035","Wołów - obszar wiejski",null,"16","OPOLSKIE","1603","kędzierzyńsko-kozielski"]
["PL","Polska","02","DOLNOŚLĄSKIE","0223","wrocławski","0223012","Czernica - gmina wiejska",null,"16","OPOLSKIE","1604","kluczborski"]
["PL","Polska","02","DOLNOŚLĄSKIE","0223","wrocławski","0223022","Długołęka - gmina wiejska",null,"16","OPOLSKIE","1605","krapkowicki"]
["PL","Polska","02","DOLNOŚLĄSKIE","0223","wrocławski","0223032","Jordanów Śląski - gmina wiejska",null,"16","OPOLSKIE","1606","namysłowski"]
["PL","Polska","02","DOLNOŚLĄSKIE","0223","wrocławski","0223044","Kąty Wrocławskie - miasto",null,"16","OPOLSKIE","1607","nyski"]
["PL","Polska","02","DOLNOŚLĄSKIE","0223","wrocławski","0223045","Kąty Wrocławskie - obszar wiejski",null,"16","OPOLSKIE","1608","oleski"]
["PL","Polska","02","DOLNOŚLĄSKIE","0223","wrocławski","0223052","Kobierzyce - gmina wiejska",null,"16","OPOLSKIE","1609","opolski"]
["PL","Polska","02","DOLNOŚLĄSKIE","0223","wrocławski","0223062","Mietków - gmina wiejska",null,"16","OPOLSKIE","1610","prudnicki"]
["PL","Polska","02","DOLNOŚLĄSKIE","0223","wrocławski","0223074","Sobótka - miasto",null,"16","OPOLSKIE","1611","strzelecki"]
["PL","Polska","02","DOLNOŚLĄSKIE","0223","wrocławski","0223075","Sobótka - obszar wiejski",null,"16","OPOLSKIE","1661","Opole"]
["PL","Polska","02","DOLNOŚLĄSKIE","0223","wrocławski","0223084","Siechnice - miasto",null,"18","PODKARPACKIE","1801","bieszczadzki"]
["PL","Polska","02","DOLNOŚLĄSKIE","0223","wrocławski","0223085","Siechnice - obszar wiejski",null,"18","PODKARPACKIE","1802","brzozowski"]
["PL","Polska","02","DOLNOŚLĄSKIE","0223","wrocławski","0223092","Żórawina - gmina wiejska",null,"18","PODKARPACKIE","1803","dębicki"]
["PL","Polska","02","DOLNOŚLĄSKIE","0224","ząbkowicki","0224014","Bardo - miasto",null,"18","PODKARPACKIE","1804","jarosławski"]
["PL","Polska","02","DOLNOŚLĄSKIE","0224","ząbkowicki","0224015","Bardo - obszar wiejski",null,"18","PODKARPACKIE","1805","jasielski"]
["PL","Polska","02","DOLNOŚLĄSKIE","0224","ząbkowicki","0224022","Ciepłowody - gmina wiejska",null,"18","PODKARPACKIE","1806","kolbuszowski"]
["PL","Polska","02","DOLNOŚLĄSKIE","0224","ząbkowicki","0224034","Kamieniec Ząbkowicki - miasto",null,"18","PODKARPACKIE","1807","krośnieński"]
["PL","Polska","02","DOLNOŚLĄSKIE","0224","ząbkowicki","0224035","Kamieniec Ząbkowicki - obszar wiejski",null,"18","PODKARPACKIE","1808","leżajski"]
["PL","Polska","02","DOLNOŚLĄSKIE","0224","ząbkowicki","0224042","Stoszowice - gmina wiejska",null,"18","PODKARPACKIE","1809","lubaczowski"]
["PL","Polska","02","DOLNOŚLĄSKIE","0224","ząbkowicki","0224054","Ząbkowice Śląskie - miasto",null,"18","PODKARPACKIE","1810","łańcucki"]
["PL","Polska","02","DOLNOŚLĄSKIE","0224","ząbkowicki","0224055","Ząbkowice Śląskie - obszar wiejski",null,"18","PODKARPACKIE","1811","mielecki"]
["PL","Polska","02","DOLNOŚLĄSKIE","0224","ząbkowicki","0224064","Ziębice - miasto",null,"18","PODKARPACKIE","1812","niżański"]
["PL","Polska","02","DOLNOŚLĄSKIE","0224","ząbkowicki","0224065","Ziębice - obszar wiejski",null,"18","PODKARPACKIE","1813","przemyski"]
["PL","Polska","02","DOLNOŚLĄSKIE","0224","ząbkowicki","0224074","Złoty Stok - miasto",null,"18","PODKARPACKIE","1814","przeworski"]
["PL","Polska","02","DOLNOŚLĄSKIE","0224","ząbkowicki","0224075","Złoty Stok - obszar wiejski",null,"18","PODKARPACKIE","1815","ropczycko-sędziszowski"]
["PL","Polska","02","DOLNOŚLĄSKIE","0225","zgorzelecki","0225011","Zawidów - gmina miejska",null,"18","PODKARPACKIE","1816","rzeszowski"]
["PL","Polska","02","DOLNOŚLĄSKIE","0225","zgorzelecki","0225021","Zgorzelec - gmina miejska",null,"18","PODKARPACKIE","1817","sanocki"]
["PL","Polska","02","DOLNOŚLĄSKIE","0225","zgorzelecki","0225034","Bogatynia - miasto",null,"18","PODKARPACKIE","1818","stalowowolski"]
["PL","Polska","02","DOLNOŚLĄSKIE","0225","zgorzelecki","0225035","Bogatynia - obszar wiejski",null,"18","PODKARPACKIE","1819","strzyżowski"]
["PL","Polska","02","DOLNOŚLĄSKIE","0225","zgorzelecki","0225044","Pieńsk - miasto",null,"18","PODKARPACKIE","1820","tarnobrzeski"]
["PL","Polska","02","DOLNOŚLĄSKIE","0225","zgorzelecki","0225045","Pieńsk - obszar wiejski",null,"18","PODKARPACKIE","1821","leski"]
["PL","Polska","02","DOLNOŚLĄSKIE","0225","zgorzelecki","0225052","Sulików - gmina wiejska",null,"18","PODKARPACKIE","1861","Krosno"]
["PL","Polska","02","DOLNOŚLĄSKIE","0225","zgorzelecki","0225064","Węgliniec - miasto",null,"18","PODKARPACKIE","1862","Przemyśl"]
["PL","Polska","02","DOLNOŚLĄSKIE","0225","zgorzelecki","0225065","Węgliniec - obszar wiejski",null,"18","PODKARPACKIE","1863","Rzeszów"]
["PL","Polska","02","DOLNOŚLĄSKIE","0225","zgorzelecki","0225072","Zgorzelec - gmina wiejska",null,"18","PODKARPACKIE","1864","Tarnobrzeg"]
["PL","Polska","02","DOLNOŚLĄSKIE","0226","złotoryjski","0226011","Wojcieszów - gmina miejska",null,"20","PODLASKIE","2001","augustowski"]
["PL","Polska","02","DOLNOŚLĄSKIE","0226","złotoryjski","0226021","Złotoryja - gmina miejska",null,"20","PODLASKIE","2002","białostocki"]
["PL","Polska","02","DOLNOŚLĄSKIE","0226","złotoryjski","0226032","Pielgrzymka - gmina wiejska",null,"20","PODLASKIE","2003","bielski"]
["PL","Polska","02","DOLNOŚLĄSKIE","0226","złotoryjski","0226044","Świerzawa - miasto",null,"20","PODLASKIE","2004","grajewski"]
["PL","Polska","02","DOLNOŚLĄSKIE","0226","złotoryjski","0226045","Świerzawa - obszar wiejski",null,"20","PODLASKIE","2005","hajnowski"]
["PL","Polska","02","DOLNOŚLĄSKIE","0226","złotoryjski","0226052","Zagrodno - gmina wiejska",null,"20","PODLASKIE","2006","kolneński"]
["PL","Polska","02","DOLNOŚLĄSKIE","0226","złotoryjski","0226062","Złotoryja - gmina wiejska",null,"20","PODLASKIE","2007","łomżyński"]
["PL","Polska","02","DOLNOŚLĄSKIE","0261","Jelenia Góra","0261011","Jelenia Góra - gmina miejska",null,"20","PODLASKIE","2008","moniecki"]
["PL","Polska","02","DOLNOŚLĄSKIE","0262","Legnica","0262011","Legnica - gmina miejska",null,"20","PODLASKIE","2009","sejneński"]
["PL","Polska","02","DOLNOŚLĄSKIE","0264","Wrocław","0264011","Wrocław - gmina miejska",null,"20","PODLASKIE","2010","siemiatycki"]
["PL","Polska","02","DOLNOŚLĄSKIE","0265","Wałbrzych","0265011","Wałbrzych - gmina miejska",null,"20","PODLASKIE","2011","sokólski"]
["PL","Polska","04","KUJAWSKO-POMORSKIE","0401","aleksandrowski","0401011","Aleksandrów Kujawski - gmina miejska",null,"20","PODLASKIE","2012","suwalski"]
["PL","Polska","04","KUJAWSKO-POMORSKIE","0401","aleksandrowski","0401021","Ciechocinek - gmina miejska",null,"20","PODLASKIE","2013","wysokomazowiecki"]
["PL","Polska","04","KUJAWSKO-POMORSKIE","0401","aleksandrowski","0401031","Nieszawa - gmina miejska",null,"20","PODLASKIE","2014","zambrowski"]
["PL","Polska","04","KUJAWSKO-POMORSKIE","0401","aleksandrowski","0401042","Aleksandrów Kujawski - gmina wiejska",null,"20","PODLASKIE","2061","Białystok"]
["PL","Polska","04","KUJAWSKO-POMORSKIE","0401","aleksandrowski","0401052","Bądkowo - gmina wiejska",null,"20","PODLASKIE","2062","Łomża"]
["PL","Polska","04","KUJAWSKO-POMORSKIE","0401","aleksandrowski","0401062","Koneck - gmina wiejska",null,"20","PODLASKIE","2063","Suwałki"]
["PL","Polska","04","KUJAWSKO-POMORSKIE","0401","aleksandrowski","0401072","Raciążek - gmina wiejska",null,"22","POMORSKIE","2201","bytowski"]
["PL","Polska","04","KUJAWSKO-POMORSKIE","0401","aleksandrowski","0401082","Waganiec - gmina wiejska",null,"22","POMORSKIE","2202","chojnicki"]
["PL","Polska","04","KUJAWSKO-POMORSKIE","0401","aleksandrowski","0401092","Zakrzewo - gmina wiejska",null,"22","POMORSKIE","2203","człuchowski"]
["PL","Polska","04","KUJAWSKO-POMORSKIE","0402","brodnicki","0402011","Brodnica - gmina miejska",null,"22","POMORSKIE","2204","gdański"]
["PL","Polska","04","KUJAWSKO-POMORSKIE","0402","brodnicki","0402022","Bobrowo - gmina wiejska",null,"22","POMORSKIE","2205","kartuski"]
["PL","Polska","04","KUJAWSKO-POMORSKIE","0402","brodnicki","0402032","Brodnica - gmina wiejska",null,"22","POMORSKIE","2206","kościerski"]
["PL","Polska","04","KUJAWSKO-POMORSKIE","0402","brodnicki","0402042","Brzozie - gmina wiejska",null,"22","POMORSKIE","2207","kwidzyński"]
["PL","Polska","04","KUJAWSKO-POMORSKIE","0402","brodnicki","0402054","Górzno - miasto",null,"22","POMORSKIE","2208","lęborski"]
["PL","Polska","04","KUJAWSKO-POMORSKIE","0402","brodnicki","0402055","Górzno - obszar wiejski",null,"22","POMORSKIE","2209","malborski"]
["PL","Polska","04","KUJAWSKO-POMORSKIE","0402","brodnicki","0402062","Bartniczka - gmina wiejska",null,"22","POMORSKIE","2210","nowodworski"]
["PL","Polska","04","KUJAWSKO-POMORSKIE","0402","brodnicki","0402074","Jabłonowo Pomorskie - miasto",null,"22","POMORSKIE","2211","pucki"]
["PL","Polska","04","KUJAWSKO-POMORSKIE","0402","brodnicki","0402075","Jabłonowo Pomorskie - obszar wiejski",null,"22","POMORSKIE","2212","słupski"]
["PL","Polska","04","KUJAWSKO-POMORSKIE","0402","brodnicki","0402082","Osiek - gmina wiejska",null,"22","POMORSKIE","2213","starogardzki"]
["PL","Polska","04","KUJAWSKO-POMORSKIE","0402","brodnicki","0402092","Świedziebnia - gmina wiejska",null,"22","POMORSKIE","2214","tczewski"]
["PL","Polska","04","KUJAWSKO-POMORSKIE","0402","brodnicki","0402102","Zbiczno - gmina wiejska",null,"22","POMORSKIE","2215","wejherowski"]
["PL","Polska","04","KUJAWSKO-POMORSKIE","0403","bydgoski","0403012","Białe Błota - gmina wiejska",null,"22","POMORSKIE","2216","sztumski"]
["PL","Polska","04","KUJAWSKO-POMORSKIE","0403","bydgoski","0403022","Dąbrowa Chełmińska - gmina wiejska",null,"22","POMORSKIE","2261","Gdańsk"]
["PL","Polska","04","KUJAWSKO-POMORSKIE","0403","bydgoski","0403032","Dobrcz - gmina wiejska",null,"22","POMORSKIE","2262","Gdynia"]
["PL","Polska","04","KUJAWSKO-POMORSKIE","0403","bydgoski","0403044","Koronowo - miasto",null,"22","POMORSKIE","2263","Słupsk"]
["PL","Polska","04","KUJAWSKO-POMORSKIE","0403","bydgoski","0403045","Koronowo - obszar wiejski",null,"22","POMORSKIE","2264","Sopot"]
["PL","Polska","04","KUJAWSKO-POMORSKIE","0403","bydgoski","0403052","Nowa Wieś Wielka - gmina wiejska",null,"24","ŚLĄSKIE","2401","będziński"]
["PL","Polska","04","KUJAWSKO-POMORSKIE","0403","bydgoski","0403062","Osielsko - gmina wiejska",null,"24","ŚLĄSKIE","2402","bielski"]
["PL","Polska","04","KUJAWSKO-POMORSKIE","0403","bydgoski","0403072","Sicienko - gmina wiejska",null,"24","ŚLĄSKIE","2403","cieszyński"]
["PL","Polska","04","KUJAWSKO-POMORSKIE","0403","bydgoski","0403084","Solec Kujawski - miasto",null,"24","ŚLĄSKIE","2404","częstochowski"]
["PL","Polska","04","KUJAWSKO-POMORSKIE","0403","bydgoski","0403085","Solec Kujawski - obszar wiejski",null,"24","ŚLĄSKIE","2405","gliwicki"]
["PL","Polska","04","KUJAWSKO-POMORSKIE","0404","chełmiński","0404011","Chełmno - gmina miejska",null,"24","ŚLĄSKIE","2406","kłobucki"]
["PL","Polska","04","KUJAWSKO-POMORSKIE","0404","chełmiński","0404022","Chełmno - gmina wiejska",null,"24","ŚLĄSKIE","2407","lubliniecki"]
["PL","Polska","04","KUJAWSKO-POMORSKIE","0404","chełmiński","0404032","Kijewo Królewskie - gmina wiejska",null,"24","ŚLĄSKIE","2408","mikołowski"]
["PL","Polska","04","KUJAWSKO-POMORSKIE","0404","chełmiński","0404042","Lisewo - gmina wiejska",null,"24","ŚLĄSKIE","2409","myszkowski"]
["PL","Polska","04","KUJAWSKO-POMORSKIE","0404","chełmiński","0404052","Papowo Biskupie - gmina wiejska",null,"24","ŚLĄSKIE","2410","pszczyński"]
["PL","Polska","04","KUJAWSKO-POMORSKIE","0404","chełmiński","0404062","Stolno - gmina wiejska",null,"24","ŚLĄSKIE","2411","raciborski"]
["PL","Polska","04","KUJAWSKO-POMORSKIE","0404","chełmiński","0404072","Unisław - gmina wiejska",null,"24","ŚLĄSKIE","2412","rybnicki"]
["PL","Polska","04","KUJAWSKO-POMORSKIE","0405","golubsko-dobrzyński","0405011","Golub-Dobrzyń - gmina miejska",null,"24","ŚLĄSKIE","2413","tarnogórski"]
["PL","Polska","04","KUJAWSKO-POMORSKIE","0405","golubsko-dobrzyński","0405022","Ciechocin - gmina wiejska",null,"24","ŚLĄSKIE","2414","bieruńsko-lędziński"]
["PL","Polska","04","KUJAWSKO-POMORSKIE","0405","golubsko-dobrzyński","0405032","Golub-Dobrzyń - gmina wiejska",null,"24","ŚLĄSKIE","2415","wodzisławski"]
["PL","Polska","04","KUJAWSKO-POMORSKIE","0405","golubsko-dobrzyński","0405044","Kowalewo Pomorskie - miasto",null,"24","ŚLĄSKIE","2416","zawierciański"]
["PL","Polska","04","KUJAWSKO-POMORSKIE","0405","golubsko-dobrzyński","0405045","Kowalewo Pomorskie - obszar wiejski",null,"24","ŚLĄSKIE","2417","żywiecki"]
["PL","Polska","04","KUJAWSKO-POMORSKIE","0405","golubsko-dobrzyński","0405052","Radomin - gmina wiejska",null,"24","ŚLĄSKIE","2461","Bielsko-Biała"]
["PL","Polska","04","KUJAWSKO-POMORSKIE","0405","golubsko-dobrzyński","0405062","Zbójno - gmina wiejska",null,"24","ŚLĄSKIE","2462","Bytom"]
["PL","Polska","04","KUJAWSKO-POMORSKIE","0406","grudziądzki","0406012","Grudziądz - gmina wiejska",null,"24","ŚLĄSKIE","2463","Chorzów"]
["PL","Polska","04","KUJAWSKO-POMORSKIE","0406","grudziądzki","0406022","Gruta - gmina wiejska",null,"24","ŚLĄSKIE","2464","Częstochowa"]
["PL","Polska","04","KUJAWSKO-POMORSKIE","0406","grudziądzki","0406034","Łasin - miasto",null,"24","ŚLĄSKIE","2465","Dąbrowa Górnicza"]
["PL","Polska","04","KUJAWSKO-POMORSKIE","0406","grudziądzki","0406035","Łasin - obszar wiejski",null,"24","ŚLĄSKIE","2466","Gliwice"]
["PL","Polska","04","KUJAWSKO-POMORSKIE","0406","grudziądzki","0406044","Radzyń Chełmiński - miasto",null,"24","ŚLĄSKIE","2467","Jastrzębie-Zdrój"]
["PL","Polska","04","KUJAWSKO-POMORSKIE","0406","grudziądzki","0406045","Radzyń Chełmiński - obszar wiejski",null,"24","ŚLĄSKIE","2468","Jaworzno"]
["PL","Polska","04","KUJAWSKO-POMORSKIE","0406","grudziądzki","0406052","Rogóźno - gmina wiejska",null,"24","ŚLĄSKIE","2469","Katowice"]
["PL","Polska","04","KUJAWSKO-POMORSKIE","0406","grudziądzki","0406062","Świecie nad Osą - gmina wiejska",null,"24","ŚLĄSKIE","2470","Mysłowice"]
["PL","Polska","04","KUJAWSKO-POMORSKIE","0407","inowrocławski","0407011","Inowrocław - gmina miejska",null,"24","ŚLĄSKIE","2471","Piekary Śląskie"]
["PL","Polska","04","KUJAWSKO-POMORSKIE","0407","inowrocławski","0407022","Dąbrowa Biskupia - gmina wiejska",null,"24","ŚLĄSKIE","2472","Ruda Śląska"]
["PL","Polska","04","KUJAWSKO-POMORSKIE","0407","inowrocławski","0407034","Gniewkowo - miasto",null,"24","ŚLĄSKIE","2473","Rybnik"]
["PL","Polska","04","KUJAWSKO-POMORSKIE","0407","inowrocławski","0407035","Gniewkowo - obszar wiejski",null,"24","ŚLĄSKIE","2474","Siemianowice Śląskie"]
["PL","Polska","04","KUJAWSKO-POMORSKIE","0407","inowrocławski","0407042","Inowrocław - gmina wiejska",null,"24","ŚLĄSKIE","2475","Sosnowiec"]
["PL","Polska","04","KUJAWSKO-POMORSKIE","0407","inowrocławski","0407054","Janikowo - miasto",null,"24","ŚLĄSKIE","2476","Świętochłowice"]
["PL","Polska","04","KUJAWSKO-POMORSKIE","0407","inowrocławski","0407055","Janikowo - obszar wiejski",null,"24","ŚLĄSKIE","2477","Tychy"]
["PL","Polska","04","KUJAWSKO-POMORSKIE","0407","inowrocławski","0407064","Kruszwica - miasto",null,"24","ŚLĄSKIE","2478","Zabrze"]
["PL","Polska","04","KUJAWSKO-POMORSKIE","0407","inowrocławski","0407065","Kruszwica - obszar wiejski",null,"24","ŚLĄSKIE","2479","Żory"]
["PL","Polska","04","KUJAWSKO-POMORSKIE","0407","inowrocławski","0407074","Pakość - miasto",null,"26","ŚWIĘTOKRZYSKIE","2601","buski"]
["PL","Polska","04","KUJAWSKO-POMORSKIE","0407","inowrocławski","0407075","Pakość - obszar wiejski",null,"26","ŚWIĘTOKRZYSKIE","2602","jędrzejowski"]
["PL","Polska","04","KUJAWSKO-POMORSKIE","0407","inowrocławski","0407082","Rojewo - gmina wiejska",null,"26","ŚWIĘTOKRZYSKIE","2603","kazimierski"]
["PL","Polska","04","KUJAWSKO-POMORSKIE","0407","inowrocławski","0407092","Złotniki Kujawskie - gmina wiejska",null,"26","ŚWIĘTOKRZYSKIE","2604","kielecki"]
["PL","Polska","04","KUJAWSKO-POMORSKIE","0408","lipnowski","0408011","Lipno - gmina miejska",null,"26","ŚWIĘTOKRZYSKIE","2605","konecki"]
["PL","Polska","04","KUJAWSKO-POMORSKIE","0408","lipnowski","0408024","Bobrowniki - miasto",null,"26","ŚWIĘTOKRZYSKIE","2606","opatowski"]
["PL","Polska","04","KUJAWSKO-POMORSKIE","0408","lipnowski","0408025","Bobrowniki - obszar wiejski",null,"26","ŚWIĘTOKRZYSKIE","2607","ostrowiecki"]
["PL","Polska","04","KUJAWSKO-POMORSKIE","0408","lipnowski","0408032","Chrostkowo - gmina wiejska",null,"26","ŚWIĘTOKRZYSKIE","2608","pińczowski"]
["PL","Polska","04","KUJAWSKO-POMORSKIE","0408","lipnowski","0408044","Dobrzyń nad Wisłą - miasto",null,"26","ŚWIĘTOKRZYSKIE","2609","sandomierski"]
["PL","Polska","04","KUJAWSKO-POMORSKIE","0408","lipnowski","0408045","Dobrzyń nad Wisłą - obszar wiejski",null,"26","ŚWIĘTOKRZYSKIE","2610","skarżyski"]
["PL","Polska","04","KUJAWSKO-POMORSKIE","0408","lipnowski","0408054","Kikół - miasto",null,"26","ŚWIĘTOKRZYSKIE","2611","starachowicki"]
["PL","Polska","04","KUJAWSKO-POMORSKIE","0408","lipnowski","0408055","Kikół - obszar wiejski",null,"26","ŚWIĘTOKRZYSKIE","2612","staszowski"]
["PL","Polska","04","KUJAWSKO-POMORSKIE","0408","lipnowski","0408062","Lipno - gmina wiejska",null,"26","ŚWIĘTOKRZYSKIE","2613","włoszczowski"]
["PL","Polska","04","KUJAWSKO-POMORSKIE","0408","lipnowski","0408074","Skępe - miasto",null,"26","ŚWIĘTOKRZYSKIE","2661","Kielce"]
["PL","Polska","04","KUJAWSKO-POMORSKIE","0408","lipnowski","0408075","Skępe - obszar wiejski",null,"28","WARMIŃSKO-MAZURSKIE","2801","bartoszycki"]
["PL","Polska","04","KUJAWSKO-POMORSKIE","0408","lipnowski","0408082","Tłuchowo - gmina wiejska",null,"28","WARMIŃSKO-MAZURSKIE","2802","braniewski"]
["PL","Polska","04","KUJAWSKO-POMORSKIE","0408","lipnowski","0408092","Wielgie - gmina wiejska",null,"28","WARMIŃSKO-MAZURSKIE","2803","działdowski"]
["PL","Polska","04","KUJAWSKO-POMORSKIE","0409","mogileński","0409012","Dąbrowa - gmina wiejska",null,"28","WARMIŃSKO-MAZURSKIE","2804","elbląski"]
["PL","Polska","04","KUJAWSKO-POMORSKIE","0409","mogileński","0409022","Jeziora Wielkie - gmina wiejska",null,"28","WARMIŃSKO-MAZURSKIE","2805","ełcki"]
["PL","Polska","04","KUJAWSKO-POMORSKIE","0409","mogileński","0409034","Mogilno - miasto",null,"28","WARMIŃSKO-MAZURSKIE","2806","giżycki"]
["PL","Polska","04","KUJAWSKO-POMORSKIE","0409","mogileński","0409035","Mogilno - obszar wiejski",null,"28","WARMIŃSKO-MAZURSKIE","2807","iławski"]
["PL","Polska","04","KUJAWSKO-POMORSKIE","0409","mogileński","0409044","Strzelno - miasto",null,"28","WARMIŃSKO-MAZURSKIE","2808","kętrzyński"]
["PL","Polska","04","KUJAWSKO-POMORSKIE","0409","mogileński","0409045","Strzelno - obszar wiejski",null,"28","WARMIŃSKO-MAZURSKIE","2809","lidzbarski"]
["PL","Polska","04","KUJAWSKO-POMORSKIE","0410","nakielski","0410014","Kcynia - miasto",null,"28","WARMIŃSKO-MAZURSKIE","2810","mrągowski"]
["PL","Polska","04","KUJAWSKO-POMORSKIE","0410","nakielski","0410015","Kcynia - obszar wiejski",null,"28","WARMIŃSKO-MAZURSKIE","2811","nidzicki"]
["PL","Polska","04","KUJAWSKO-POMORSKIE","0410","nakielski","0410024","Mrocza - miasto",null,"28","WARMIŃSKO-MAZURSKIE","2812","nowomiejski"]
["PL","Polska","04","KUJAWSKO-POMORSKIE","0410","nakielski","0410025","Mrocza - obszar wiejski",null,"28","WARMIŃSKO-MAZURSKIE","2813","olecki"]
["PL","Polska","04","KUJAWSKO-POMORSKIE","0410","nakielski","0410034","Nakło nad Notecią - miasto",null,"28","WARMIŃSKO-MAZURSKIE","2814","olsztyński"]
["PL","Polska","04","KUJAWSKO-POMORSKIE","0410","nakielski","0410035","Nakło nad Notecią - obszar wiejski",null,"28","WARMIŃSKO-MAZURSKIE","2815","ostródzki"]
["PL","Polska","04","KUJAWSKO-POMORSKIE","0410","nakielski","0410042","Sadki - gmina wiejska",null,"28","WARMIŃSKO-MAZURSKIE","2816","piski"]
["PL","Polska","04","KUJAWSKO-POMORSKIE","0410","nakielski","0410054","Szubin - miasto",null,"28","WARMIŃSKO-MAZURSKIE","2817","szczycieński"]
["PL","Polska","04","KUJAWSKO-POMORSKIE","0410","nakielski","0410055","Szubin - obszar wiejski",null,"28","WARMIŃSKO-MAZURSKIE","2818","gołdapski"]
["PL","Polska","04","KUJAWSKO-POMORSKIE","0411","radziejowski","0411011","Radziejów - gmina miejska",null,"28","WARMIŃSKO-MAZURSKIE","2819","węgorzewski"]
["PL","Polska","04","KUJAWSKO-POMORSKIE","0411","radziejowski","0411022","Bytoń - gmina wiejska",null,"28","WARMIŃSKO-MAZURSKIE","2861","Elbląg"]
["PL","Polska","04","KUJAWSKO-POMORSKIE","0411","radziejowski","0411032","Dobre - gmina wiejska",null,"28","WARMIŃSKO-MAZURSKIE","2862","Olsztyn"]
["PL","Polska","04","KUJAWSKO-POMORSKIE","0411","radziejowski","0411042","Osięciny - gmina wiejska",null,"30","WIELKOPOLSKIE","3001","chodzieski"]
["PL","Polska","04","KUJAWSKO-POMORSKIE","0411","radziejowski","0411054","Piotrków Kujawski - miasto",null,"30","WIELKOPOLSKIE","3002","czarnkowsko-trzcianecki"]
["PL","Polska","04","KUJAWSKO-POMORSKIE","0411","radziejowski","0411055","Piotrków Kujawski - obszar wiejski",null,"30","WIELKOPOLSKIE","3003","gnieźnieński"]
["PL","Polska","04","KUJAWSKO-POMORSKIE","0411","radziejowski","0411062","Radziejów - gmina wiejska",null,"30","WIELKOPOLSKIE","3004","gostyński"]
["PL","Polska","04","KUJAWSKO-POMORSKIE","0411","radziejowski","0411072","Topólka - gmina wiejska",null,"30","WIELKOPOLSKIE","3005","grodziski"]
["PL","Polska","04","KUJAWSKO-POMORSKIE","0412","rypiński","0412011","Rypin - gmina miejska",null,"30","WIELKOPOLSKIE","3006","jarociński"]
["PL","Polska","04","KUJAWSKO-POMORSKIE","0412","rypiński","0412022","Brzuze - gmina wiejska",null,"30","WIELKOPOLSKIE","3007","kaliski"]
["PL","Polska","04","KUJAWSKO-POMORSKIE","0412","rypiński","0412032","Rogowo - gmina wiejska",null,"30","WIELKOPOLSKIE","3008","kępiński"]
["PL","Polska","04","KUJAWSKO-POMORSKIE","0412","rypiński","0412042","Rypin - gmina wiejska",null,"30","WIELKOPOLSKIE","3009","kolski"]
["PL","Polska","04","KUJAWSKO-POMORSKIE","0412","rypiński","0412052","Skrwilno - gmina wiejska",null,"30","WIELKOPOLSKIE","3010","koniński"]
["PL","Polska","04","KUJAWSKO-POMORSKIE","0412","rypiński","0412062","Wąpielsk - gmina wiejska",null,"30","WIELKOPOLSKIE","3011","kościański"]
["PL","Polska","04","KUJAWSKO-POMORSKIE","0413","sępoleński","0413014","Kamień Krajeński - miasto",null,"30","WIELKOPOLSKIE","3012","krotoszyński"]
["PL","Polska","04","KUJAWSKO-POMORSKIE","0413","sępoleński","0413015","Kamień Krajeński - obszar wiejski",null,"30","WIELKOPOLSKIE","3013","leszczyński"]
["PL","Polska","04","KUJAWSKO-POMORSKIE","0413","sępoleński","0413024","Sępólno Krajeńskie - miasto",null,"30","WIELKOPOLSKIE","3014","międzychodzki"]
["PL","Polska","04","KUJAWSKO-POMORSKIE","0413","sępoleński","0413025","Sępólno Krajeńskie - obszar wiejski",null,"30","WIELKOPOLSKIE","3015","nowotomyski"]
["PL","Polska","04","KUJAWSKO-POMORSKIE","0413","sępoleński","0413032","Sośno - gmina wiejska",null,"30","WIELKOPOLSKIE","3016","obornicki"]
["PL","Polska","04","KUJAWSKO-POMORSKIE","0413","sępoleński","0413044","Więcbork - miasto",null,"30","WIELKOPOLSKIE","3017","ostrowski"]
["PL","Polska","04","KUJAWSKO-POMORSKIE","0413","sępoleński","0413045","Więcbork - obszar wiejski",null,"30","WIELKOPOLSKIE","3018","ostrzeszowski"]
["PL","Polska","04","KUJAWSKO-POMORSKIE","0414","świecki","0414012","Bukowiec - gmina wiejska",null,"30","WIELKOPOLSKIE","3019","pilski"]
["PL","Polska","04","KUJAWSKO-POMORSKIE","0414","świecki","0414022","Dragacz - gmina wiejska",null,"30","WIELKOPOLSKIE","3020","pleszewski"]
["PL","Polska","04","KUJAWSKO-POMORSKIE","0414","świecki","0414032","Drzycim - gmina wiejska",null,"30","WIELKOPOLSKIE","3021","poznański"]
["PL","Polska","04","KUJAWSKO-POMORSKIE","0414","świecki","0414042","Jeżewo - gmina wiejska",null,"30","WIELKOPOLSKIE","3022","rawicki"]
["PL","Polska","04","KUJAWSKO-POMORSKIE","0414","świecki","0414052","Lniano - gmina wiejska",null,"30","WIELKOPOLSKIE","3023","słupecki"]
["PL","Polska","04","KUJAWSKO-POMORSKIE","0414","świecki","0414064","Nowe - miasto",null,"30","WIELKOPOLSKIE","3024","szamotulski"]
["PL","Polska","04","KUJAWSKO-POMORSKIE","0414","świecki","0414065","Nowe - obszar wiejski",null,"30","WIELKOPOLSKIE","3025","średzki"]
["PL","Polska","04","KUJAWSKO-POMORSKIE","0414","świecki","0414072","Osie - gmina wiejska",null,"30","WIELKOPOLSKIE","3026","śremski"]
["PL","Polska","04","KUJAWSKO-POMORSKIE","0414","świecki","0414084","Pruszcz - miasto",null,"30","WIELKOPOLSKIE","3027","turecki"]
["PL","Polska","04","KUJAWSKO-POMORSKIE","0414","świecki","0414085","Pruszcz - obszar wiejski",null,"30","WIELKOPOLSKIE","3028","wągrowiecki"]
["PL","Polska","04","KUJAWSKO-POMORSKIE","0414","świecki","0414094","Świecie - miasto",null,"30","WIELKOPOLSKIE","3029","wolsztyński"]
["PL","Polska","04","KUJAWSKO-POMORSKIE","0414","świecki","0414095","Świecie - obszar wiejski",null,"30","WIELKOPOLSKIE","3030","wrzesiński"]
["PL","Polska","04","KUJAWSKO-POMORSKIE","0414","świecki","0414102","Świekatowo - gmina wiejska",null,"30","WIELKOPOLSKIE","3031","złotowski"]
["PL","Polska","04","KUJAWSKO-POMORSKIE","0414","świecki","0414112","Warlubie - gmina wiejska",null,"30","WIELKOPOLSKIE","3061","Kalisz"]
["PL","Polska","04","KUJAWSKO-POMORSKIE","0415","toruński","0415011","Chełmża - gmina miejska",null,"30","WIELKOPOLSKIE","3062","Konin"]
["PL","Polska","04","KUJAWSKO-POMORSKIE","0415","toruński","0415022","Chełmża - gmina wiejska",null,"30","WIELKOPOLSKIE","3063","Leszno"]
["PL","Polska","04","KUJAWSKO-POMORSKIE","0415","toruński","0415032","Czernikowo - gmina wiejska",null,"30","WIELKOPOLSKIE","3064","Poznań"]
["PL","Polska","04","KUJAWSKO-POMORSKIE","0415","toruński","0415042","Lubicz - gmina wiejska",null,"32","ZACHODNIOPOMORSKIE","3201","białogardzki"]
["PL","Polska","04","KUJAWSKO-POMORSKIE","0415","toruński","0415052","Łubianka - gmina wiejska",null,"32","ZACHODNIOPOMORSKIE","3202","choszczeński"]
["PL","Polska","04","KUJAWSKO-POMORSKIE","0415","toruński","0415062","Łysomice - gmina wiejska",null,"32","ZACHODNIOPOMORSKIE","3203","drawski"]
["PL","Polska","04","KUJAWSKO-POMORSKIE","0415","toruński","0415072","Obrowo - gmina wiejska",null,"32","ZACHODNIOPOMORSKIE","3204","goleniowski"]
["PL","Polska","04","KUJAWSKO-POMORSKIE","0415","toruński","0415082","Wielka Nieszawka - gmina wiejska",null,"32","ZACHODNIOPOMORSKIE","3205","gryficki"]
["PL","Polska","04","KUJAWSKO-POMORSKIE","0415","toruński","0415092","Zławieś Wielka - gmina wiejska",null,"32","ZACHODNIOPOMORSKIE","3206","gryfiński"]
["PL","Polska","04","KUJAWSKO-POMORSKIE","0416","tucholski","0416012","Cekcyn - gmina wiejska",null,"32","ZACHODNIOPOMORSKIE","3207","kamieński"]
["PL","Polska","04","KUJAWSKO-POMORSKIE","0416","tucholski","0416022","Gostycyn - gmina wiejska",null,"32","ZACHODNIOPOMORSKIE","3208","kołobrzeski"]
["PL","Polska","04","KUJAWSKO-POMORSKIE","0416","tucholski","0416032","Kęsowo - gmina wiejska",null,"32","ZACHODNIOPOMORSKIE","3209","koszaliński"]
["PL","Polska","04","KUJAWSKO-POMORSKIE","0416","tucholski","0416042","Lubiewo - gmina wiejska",null,"32","ZACHODNIOPOMORSKIE","3210","myśliborski"]
["PL","Polska","04","KUJAWSKO-POMORSKIE","0416","tucholski","0416052","Śliwice - gmina wiejska",null,"32","ZACHODNIOPOMORSKIE","3211","policki"]
["PL","Polska","04","KUJAWSKO-POMORSKIE","0416","tucholski","0416064","Tuchola - miasto",null,"32","ZACHODNIOPOMORSKIE","3212","pyrzycki"]
["PL","Polska","04","KUJAWSKO-POMORSKIE","0416","tucholski","0416065","Tuchola - obszar wiejski",null,"32","ZACHODNIOPOMORSKIE","3213","sławieński"]
["PL","Polska","04","KUJAWSKO-POMORSKIE","0417","wąbrzeski","0417011","Wąbrzeźno - gmina miejska",null,"32","ZACHODNIOPOMORSKIE","3214","stargardzki"]
["PL","Polska","04","KUJAWSKO-POMORSKIE","0417","wąbrzeski","0417022","Dębowa Łąka - gmina wiejska",null,"32","ZACHODNIOPOMORSKIE","3215","szczecinecki"]
["PL","Polska","04","KUJAWSKO-POMORSKIE","0417","wąbrzeski","0417032","Książki - gmina wiejska",null,"32","ZACHODNIOPOMORSKIE","3216","świdwiński"]
["PL","Polska","04","KUJAWSKO-POMORSKIE","0417","wąbrzeski","0417042","Płużnica - gmina wiejska",null,"32","ZACHODNIOPOMORSKIE","3217","wałecki"]
["PL","Polska","04","KUJAWSKO-POMORSKIE","0417","wąbrzeski","0417052","Ryńsk - gmina wiejska",null,"32","ZACHODNIOPOMORSKIE","3218","łobeski"]
["PL","Polska","04","KUJAWSKO-POMORSKIE","0418","włocławski","0418011","Kowal - gmina miejska",null,"32","ZACHODNIOPOMORSKIE","3261","Koszalin"]
["PL","Polska","04","KUJAWSKO-POMORSKIE","0418","włocławski","0418022","Baruchowo - gmina wiejska",null,"32","ZACHODNIOPOMORSKIE","3262","Szczecin"]
["PL","Polska","04","KUJAWSKO-POMORSKIE","0418","włocławski","0418032","Boniewo - gmina wiejska",null,"32","ZACHODNIOPOMORSKIE","3263","Świnoujście"]
["PL","Polska","04","KUJAWSKO-POMORSKIE","0418","włocławski","0418044","Brześć Kujawski - miasto",null,"(puste)","(puste)","(puste)","(puste)"]
["PL","Polska","04","KUJAWSKO-POMORSKIE","0418","włocławski","0418045","Brześć Kujawski - obszar wiejski",null,12,"MAŁOPOLSKIE",1214,"proszowicki"]
["PL","Polska","04","KUJAWSKO-POMORSKIE","0418","włocławski","0418052","Choceń - gmina wiejska"]
["PL","Polska","04","KUJAWSKO-POMORSKIE","0418","włocławski","0418064","Chodecz - miasto"]
["PL","Polska","04","KUJAWSKO-POMORSKIE","0418","włocławski","0418065","Chodecz - obszar wiejski"]
["PL","Polska","04","KUJAWSKO-POMORSKIE","0418","włocławski","0418072","Fabianki - gmina wiejska"]
["PL","Polska","04","KUJAWSKO-POMORSKIE","0418","włocławski","0418084","Izbica Kujawska - miasto"]
["PL","Polska","04","KUJAWSKO-POMORSKIE","0418","włocławski","0418085","Izbica Kujawska - obszar wiejski"]
["PL","Polska","04","KUJAWSKO-POMORSKIE","0418","włocławski","0418092","Kowal - gmina wiejska"]
["PL","Polska","04","KUJAWSKO-POMORSKIE","0418","włocławski","0418102","Lubanie - gmina wiejska"]
["PL","Polska","04","KUJAWSKO-POMORSKIE","0418","włocławski","0418114","Lubień Kujawski - miasto"]
["PL","Polska","04","KUJAWSKO-POMORSKIE","0418","włocławski","0418115","Lubień Kujawski - obszar wiejski"]
["PL","Polska","04","KUJAWSKO-POMORSKIE","0418","włocławski","0418124","Lubraniec - miasto"]
["PL","Polska","04","KUJAWSKO-POMORSKIE","0418","włocławski","0418125","Lubraniec - obszar wiejski"]
["PL","Polska","04","KUJAWSKO-POMORSKIE","0418","włocławski","0418132","Włocławek - gmina wiejska"]
["PL","Polska","04","KUJAWSKO-POMORSKIE","0419","żniński","0419014","Barcin - miasto"]
["PL","Polska","04","KUJAWSKO-POMORSKIE","0419","żniński","0419015","Barcin - obszar wiejski"]
["PL","Polska","04","KUJAWSKO-POMORSKIE","0419","żniński","0419024","Gąsawa - miasto"]
["PL","Polska","04","KUJAWSKO-POMORSKIE","0419","żniński","0419025","Gąsawa - obszar wiejski"]
["PL","Polska","04","KUJAWSKO-POMORSKIE","0419","żniński","0419034","Janowiec Wielkopolski - miasto"]
["PL","Polska","04","KUJAWSKO-POMORSKIE","0419","żniński","0419035","Janowiec Wielkopolski - obszar wiejski"]
["PL","Polska","04","KUJAWSKO-POMORSKIE","0419","żniński","0419044","Łabiszyn - miasto"]
["PL","Polska","04","KUJAWSKO-POMORSKIE","0419","żniński","0419045","Łabiszyn - obszar wiejski"]
["PL","Polska","04","KUJAWSKO-POMORSKIE","0419","żniński","0419052","Rogowo - gmina wiejska"]
["PL","Polska","04","KUJAWSKO-POMORSKIE","0419","żniński","0419064","Żnin - miasto"]
["PL","Polska","04","KUJAWSKO-POMORSKIE","0419","żniński","0419065","Żnin - obszar wiejski"]
["PL","Polska","04","KUJAWSKO-POMORSKIE","0461","Bydgoszcz","0461011","Bydgoszcz - gmina miejska"]
["PL","Polska","04","KUJAWSKO-POMORSKIE","0462","Grudziądz","0462011","Grudziądz - gmina miejska"]
["PL","Polska","04","KUJAWSKO-POMORSKIE","0463","Toruń","0463011","Toruń - gmina miejska"]
["PL","Polska","04","KUJAWSKO-POMORSKIE","0464","Włocławek","0464011","Włocławek - gmina miejska"]
["PL","Polska","06","LUBELSKIE","0601","bialski","0601011","Międzyrzec Podlaski - gmina miejska"]
["PL","Polska","06","LUBELSKIE","0601","bialski","0601021","Terespol - gmina miejska"]
["PL","Polska","06","LUBELSKIE","0601","bialski","0601032","Biała Podlaska - gmina wiejska"]
["PL","Polska","06","LUBELSKIE","0601","bialski","0601042","Drelów - gmina wiejska"]
["PL","Polska","06","LUBELSKIE","0601","bialski","0601054","Janów Podlaski - miasto"]
["PL","Polska","06","LUBELSKIE","0601","bialski","0601055","Janów Podlaski - obszar wiejski"]
["PL","Polska","06","LUBELSKIE","0601","bialski","0601062","Kodeń - gmina wiejska"]
["PL","Polska","06","LUBELSKIE","0601","bialski","0601072","Konstantynów - gmina wiejska"]
["PL","Polska","06","LUBELSKIE","0601","bialski","0601082","Leśna Podlaska - gmina wiejska"]
["PL","Polska","06","LUBELSKIE","0601","bialski","0601092","Łomazy - gmina wiejska"]
["PL","Polska","06","LUBELSKIE","0601","bialski","0601102","Międzyrzec Podlaski - gmina wiejska"]
["PL","Polska","06","LUBELSKIE","0601","bialski","0601114","Piszczac - miasto"]
["PL","Polska","06","LUBELSKIE","0601","bialski","0601115","Piszczac - obszar wiejski"]
["PL","Polska","06","LUBELSKIE","0601","bialski","0601122","Rokitno - gmina wiejska"]
["PL","Polska","06","LUBELSKIE","0601","bialski","0601132","Rossosz - gmina wiejska"]
["PL","Polska","06","LUBELSKIE","0601","bialski","0601142","Sławatycze - gmina wiejska"]
["PL","Polska","06","LUBELSKIE","0601","bialski","0601152","Sosnówka - gmina wiejska"]
["PL","Polska","06","LUBELSKIE","0601","bialski","0601162","Terespol - gmina wiejska"]
["PL","Polska","06","LUBELSKIE","0601","bialski","0601172","Tuczna - gmina wiejska"]
["PL","Polska","06","LUBELSKIE","0601","bialski","0601182","Wisznice - gmina wiejska"]
["PL","Polska","06","LUBELSKIE","0601","bialski","0601192","Zalesie - gmina wiejska"]
["PL","Polska","06","LUBELSKIE","0602","biłgorajski","0602011","Biłgoraj - gmina miejska"]
["PL","Polska","06","LUBELSKIE","0602","biłgorajski","0602022","Aleksandrów - gmina wiejska"]
["PL","Polska","06","LUBELSKIE","0602","biłgorajski","0602032","Biłgoraj - gmina wiejska"]
["PL","Polska","06","LUBELSKIE","0602","biłgorajski","0602042","Biszcza - gmina wiejska"]
["PL","Polska","06","LUBELSKIE","0602","biłgorajski","0602054","Frampol - miasto"]
["PL","Polska","06","LUBELSKIE","0602","biłgorajski","0602055","Frampol - obszar wiejski"]
["PL","Polska","06","LUBELSKIE","0602","biłgorajski","0602064","Goraj - miasto"]
["PL","Polska","06","LUBELSKIE","0602","biłgorajski","0602065","Goraj - obszar wiejski"]
["PL","Polska","06","LUBELSKIE","0602","biłgorajski","0602074","Józefów - miasto"]
["PL","Polska","06","LUBELSKIE","0602","biłgorajski","0602075","Józefów - obszar wiejski"]
["PL","Polska","06","LUBELSKIE","0602","biłgorajski","0602082","Księżpol - gmina wiejska"]
["PL","Polska","06","LUBELSKIE","0602","biłgorajski","0602092","Łukowa - gmina wiejska"]
["PL","Polska","06","LUBELSKIE","0602","biłgorajski","0602102","Obsza - gmina wiejska"]
["PL","Polska","06","LUBELSKIE","0602","biłgorajski","0602112","Potok Górny - gmina wiejska"]
["PL","Polska","06","LUBELSKIE","0602","biłgorajski","0602124","Tarnogród - miasto"]
["PL","Polska","06","LUBELSKIE","0602","biłgorajski","0602125","Tarnogród - obszar wiejski"]
["PL","Polska","06","LUBELSKIE","0602","biłgorajski","0602132","Tereszpol - gmina wiejska"]
["PL","Polska","06","LUBELSKIE","0602","biłgorajski","0602144","Turobin - miasto"]
["PL","Polska","06","LUBELSKIE","0602","biłgorajski","0602145","Turobin - obszar wiejski"]
["PL","Polska","06","LUBELSKIE","0603","chełmski","0603011","Rejowiec Fabryczny - gmina miejska"]
["PL","Polska","06","LUBELSKIE","0603","chełmski","0603022","Białopole - gmina wiejska"]
["PL","Polska","06","LUBELSKIE","0603","chełmski","0603032","Chełm - gmina wiejska"]
["PL","Polska","06","LUBELSKIE","0603","chełmski","0603042","Dorohusk - gmina wiejska"]
["PL","Polska","06","LUBELSKIE","0603","chełmski","0603052","Dubienka - gmina wiejska"]
["PL","Polska","06","LUBELSKIE","0603","chełmski","0603062","Kamień - gmina wiejska"]
["PL","Polska","06","LUBELSKIE","0603","chełmski","0603072","Leśniowice - gmina wiejska"]
["PL","Polska","06","LUBELSKIE","0603","chełmski","0603082","Rejowiec Fabryczny - gmina wiejska"]
["PL","Polska","06","LUBELSKIE","0603","chełmski","0603092","Ruda-Huta - gmina wiejska"]
["PL","Polska","06","LUBELSKIE","0603","chełmski","0603102","Sawin - gmina wiejska"]
["PL","Polska","06","LUBELSKIE","0603","chełmski","0603114","Siedliszcze - miasto"]
["PL","Polska","06","LUBELSKIE","0603","chełmski","0603115","Siedliszcze - obszar wiejski"]
["PL","Polska","06","LUBELSKIE","0603","chełmski","0603122","Wierzbica - gmina wiejska"]
["PL","Polska","06","LUBELSKIE","0603","chełmski","0603132","Wojsławice - gmina wiejska"]
["PL","Polska","06","LUBELSKIE","0603","chełmski","0603142","Żmudź - gmina wiejska"]
["PL","Polska","06","LUBELSKIE","0603","chełmski","0603154","Rejowiec - miasto"]
["PL","Polska","06","LUBELSKIE","0603","chełmski","0603155","Rejowiec - obszar wiejski"]
["PL","Polska","06","LUBELSKIE","0604","hrubieszowski","0604011","Hrubieszów - gmina miejska"]
["PL","Polska","06","LUBELSKIE","0604","hrubieszowski","0604022","Dołhobyczów - gmina wiejska"]
["PL","Polska","06","LUBELSKIE","0604","hrubieszowski","0604032","Horodło - gmina wiejska"]
["PL","Polska","06","LUBELSKIE","0604","hrubieszowski","0604042","Hrubieszów - gmina wiejska"]
["PL","Polska","06","LUBELSKIE","0604","hrubieszowski","0604052","Mircze - gmina wiejska"]
["PL","Polska","06","LUBELSKIE","0604","hrubieszowski","0604062","Trzeszczany - gmina wiejska"]
["PL","Polska","06","LUBELSKIE","0604","hrubieszowski","0604072","Uchanie - gmina wiejska"]
["PL","Polska","06","LUBELSKIE","0604","hrubieszowski","0604082","Werbkowice - gmina wiejska"]
["PL","Polska","06","LUBELSKIE","0605","janowski","0605012","Batorz - gmina wiejska"]
["PL","Polska","06","LUBELSKIE","0605","janowski","0605022","Chrzanów - gmina wiejska"]
["PL","Polska","06","LUBELSKIE","0605","janowski","0605032","Dzwola - gmina wiejska"]
["PL","Polska","06","LUBELSKIE","0605","janowski","0605042","Godziszów - gmina wiejska"]
["PL","Polska","06","LUBELSKIE","0605","janowski","0605054","Janów Lubelski - miasto"]
["PL","Polska","06","LUBELSKIE","0605","janowski","0605055","Janów Lubelski - obszar wiejski"]
["PL","Polska","06","LUBELSKIE","0605","janowski","0605064","Modliborzyce - miasto"]
["PL","Polska","06","LUBELSKIE","0605","janowski","0605065","Modliborzyce - obszar wiejski"]
["PL","Polska","06","LUBELSKIE","0605","janowski","0605072","Potok Wielki - gmina wiejska"]
["PL","Polska","06","LUBELSKIE","0606","krasnostawski","0606011","Krasnystaw - gmina miejska"]
["PL","Polska","06","LUBELSKIE","0606","krasnostawski","0606022","Fajsławice - gmina wiejska"]
["PL","Polska","06","LUBELSKIE","0606","krasnostawski","0606032","Gorzków - gmina wiejska"]
["PL","Polska","06","LUBELSKIE","0606","krasnostawski","0606044","Izbica - miasto"]
["PL","Polska","06","LUBELSKIE","0606","krasnostawski","0606045","Izbica - obszar wiejska"]
["PL","Polska","06","LUBELSKIE","0606","krasnostawski","0606052","Krasnystaw - gmina wiejska"]
["PL","Polska","06","LUBELSKIE","0606","krasnostawski","0606062","Kraśniczyn - gmina wiejska"]
["PL","Polska","06","LUBELSKIE","0606","krasnostawski","0606072","Łopiennik Górny - gmina wiejska"]
["PL","Polska","06","LUBELSKIE","0606","krasnostawski","0606092","Rudnik - gmina wiejska"]
["PL","Polska","06","LUBELSKIE","0606","krasnostawski","0606102","Siennica Różana - gmina wiejska"]
["PL","Polska","06","LUBELSKIE","0606","krasnostawski","0606112","Żółkiewka - gmina wiejska"]
["PL","Polska","06","LUBELSKIE","0607","kraśnicki","0607011","Kraśnik - gmina miejska"]
["PL","Polska","06","LUBELSKIE","0607","kraśnicki","0607024","Annopol - miasto"]
["PL","Polska","06","LUBELSKIE","0607","kraśnicki","0607025","Annopol - obszar wiejski"]
["PL","Polska","06","LUBELSKIE","0607","kraśnicki","0607032","Dzierzkowice - gmina wiejska"]
["PL","Polska","06","LUBELSKIE","0607","kraśnicki","0607042","Gościeradów - gmina wiejska"]
["PL","Polska","06","LUBELSKIE","0607","kraśnicki","0607052","Kraśnik - gmina wiejska"]
["PL","Polska","06","LUBELSKIE","0607","kraśnicki","0607062","Szastarka - gmina wiejska"]
["PL","Polska","06","LUBELSKIE","0607","kraśnicki","0607072","Trzydnik Duży - gmina wiejska"]
["PL","Polska","06","LUBELSKIE","0607","kraśnicki","0607084","Urzędów - miasto"]
["PL","Polska","06","LUBELSKIE","0607","kraśnicki","0607085","Urzędów - obszar wiejski"]
["PL","Polska","06","LUBELSKIE","0607","kraśnicki","0607092","Wilkołaz - gmina wiejska"]
["PL","Polska","06","LUBELSKIE","0607","kraśnicki","0607102","Zakrzówek - gmina wiejska"]
["PL","Polska","06","LUBELSKIE","0608","lubartowski","0608011","Lubartów - gmina miejska"]
["PL","Polska","06","LUBELSKIE","0608","lubartowski","0608022","Abramów - gmina wiejska"]
["PL","Polska","06","LUBELSKIE","0608","lubartowski","0608032","Firlej - gmina wiejska"]
["PL","Polska","06","LUBELSKIE","0608","lubartowski","0608042","Jeziorzany - gmina wiejska"]
["PL","Polska","06","LUBELSKIE","0608","lubartowski","0608054","Kamionka - miasto"]
["PL","Polska","06","LUBELSKIE","0608","lubartowski","0608055","Kamionka - obszar wiejski"]
["PL","Polska","06","LUBELSKIE","0608","lubartowski","0608064","Kock - miasto"]
["PL","Polska","06","LUBELSKIE","0608","lubartowski","0608065","Kock - obszar wiejski"]
["PL","Polska","06","LUBELSKIE","0608","lubartowski","0608072","Lubartów - gmina wiejska"]
["PL","Polska","06","LUBELSKIE","0608","lubartowski","0608082","Michów - gmina wiejska"]
["PL","Polska","06","LUBELSKIE","0608","lubartowski","0608092","Niedźwiada - gmina wiejska"]
["PL","Polska","06","LUBELSKIE","0608","lubartowski","0608104","Ostrów Lubelski - miasto"]
["PL","Polska","06","LUBELSKIE","0608","lubartowski","0608105","Ostrów Lubelski - obszar wiejski"]
["PL","Polska","06","LUBELSKIE","0608","lubartowski","0608112","Ostrówek - gmina wiejska"]
["PL","Polska","06","LUBELSKIE","0608","lubartowski","0608122","Serniki - gmina wiejska"]
["PL","Polska","06","LUBELSKIE","0608","lubartowski","0608132","Uścimów - gmina wiejska"]
["PL","Polska","06","LUBELSKIE","0609","lubelski","0609014","Bełżyce - miasto"]
["PL","Polska","06","LUBELSKIE","0609","lubelski","0609015","Bełżyce - obszar wiejski"]
["PL","Polska","06","LUBELSKIE","0609","lubelski","0609022","Borzechów - gmina wiejska"]
["PL","Polska","06","LUBELSKIE","0609","lubelski","0609034","Bychawa - miasto"]
["PL","Polska","06","LUBELSKIE","0609","lubelski","0609035","Bychawa - obszar wiejski"]
["PL","Polska","06","LUBELSKIE","0609","lubelski","0609042","Garbów - gmina wiejska"]
["PL","Polska","06","LUBELSKIE","0609","lubelski","0609052","Głusk - gmina wiejska"]
["PL","Polska","06","LUBELSKIE","0609","lubelski","0609062","Jabłonna - gmina wiejska"]
["PL","Polska","06","LUBELSKIE","0609","lubelski","0609072","Jastków - gmina wiejska"]
["PL","Polska","06","LUBELSKIE","0609","lubelski","0609082","Konopnica - gmina wiejska"]
["PL","Polska","06","LUBELSKIE","0609","lubelski","0609092","Krzczonów - gmina wiejska"]
["PL","Polska","06","LUBELSKIE","0609","lubelski","0609102","Niedrzwica Duża - gmina wiejska"]
["PL","Polska","06","LUBELSKIE","0609","lubelski","0609112","Niemce - gmina wiejska"]
["PL","Polska","06","LUBELSKIE","0609","lubelski","0609122","Strzyżewice - gmina wiejska"]
["PL","Polska","06","LUBELSKIE","0609","lubelski","0609132","Wojciechów - gmina wiejska"]
["PL","Polska","06","LUBELSKIE","0609","lubelski","0609142","Wólka - gmina wiejska"]
["PL","Polska","06","LUBELSKIE","0609","lubelski","0609152","Wysokie - gmina wiejska"]
["PL","Polska","06","LUBELSKIE","0609","lubelski","0609162","Zakrzew - gmina wiejska"]
["PL","Polska","06","LUBELSKIE","0610","łęczyński","0610012","Cyców - gmina wiejska"]
["PL","Polska","06","LUBELSKIE","0610","łęczyński","0610022","Ludwin - gmina wiejska"]
["PL","Polska","06","LUBELSKIE","0610","łęczyński","0610034","Łęczna - miasto"]
["PL","Polska","06","LUBELSKIE","0610","łęczyński","0610035","Łęczna - obszar wiejski"]
["PL","Polska","06","LUBELSKIE","0610","łęczyński","0610042","Milejów - gmina wiejska"]
["PL","Polska","06","LUBELSKIE","0610","łęczyński","0610052","Puchaczów - gmina wiejska"]
["PL","Polska","06","LUBELSKIE","0610","łęczyński","0610062","Spiczyn - gmina wiejska"]
["PL","Polska","06","LUBELSKIE","0611","łukowski","0611011","Łuków - gmina miejska"]
["PL","Polska","06","LUBELSKIE","0611","łukowski","0611021","Stoczek Łukowski - gmina miejska"]
["PL","Polska","06","LUBELSKIE","0611","łukowski","0611032","Adamów - gmina wiejska"]
["PL","Polska","06","LUBELSKIE","0611","łukowski","0611042","Krzywda - gmina wiejska"]
["PL","Polska","06","LUBELSKIE","0611","łukowski","0611052","Łuków - gmina wiejska"]
["PL","Polska","06","LUBELSKIE","0611","łukowski","0611062","Serokomla - gmina wiejska"]
["PL","Polska","06","LUBELSKIE","0611","łukowski","0611072","Stanin - gmina wiejska"]
["PL","Polska","06","LUBELSKIE","0611","łukowski","0611082","Stoczek Łukowski - gmina wiejska"]
["PL","Polska","06","LUBELSKIE","0611","łukowski","0611092","Trzebieszów - gmina wiejska"]
["PL","Polska","06","LUBELSKIE","0611","łukowski","0611102","Wojcieszków - gmina wiejska"]
["PL","Polska","06","LUBELSKIE","0611","łukowski","0611112","Wola Mysłowska - gmina wiejska"]
["PL","Polska","06","LUBELSKIE","0612","opolski","0612012","Chodel - gmina wiejska"]
["PL","Polska","06","LUBELSKIE","0612","opolski","0612024","Józefów nad Wisłą - miasto"]
["PL","Polska","06","LUBELSKIE","0612","opolski","0612025","Józefów nad Wisłą - obszar wiejski"]
["PL","Polska","06","LUBELSKIE","0612","opolski","0612032","Karczmiska - gmina wiejska"]
["PL","Polska","06","LUBELSKIE","0612","opolski","0612042","Łaziska - gmina wiejska"]
["PL","Polska","06","LUBELSKIE","0612","opolski","0612054","Opole Lubelskie - miasto"]
["PL","Polska","06","LUBELSKIE","0612","opolski","0612055","Opole Lubelskie - obszar wiejski"]
["PL","Polska","06","LUBELSKIE","0612","opolski","0612064","Poniatowa - miasto"]
["PL","Polska","06","LUBELSKIE","0612","opolski","0612065","Poniatowa - obszar wiejski"]
["PL","Polska","06","LUBELSKIE","0612","opolski","0612072","Wilków - gmina wiejska"]
["PL","Polska","06","LUBELSKIE","0613","parczewski","0613012","Dębowa Kłoda - gmina wiejska"]
["PL","Polska","06","LUBELSKIE","0613","parczewski","0613022","Jabłoń - gmina wiejska"]
["PL","Polska","06","LUBELSKIE","0613","parczewski","0613032","Milanów - gmina wiejska"]
["PL","Polska","06","LUBELSKIE","0613","parczewski","0613044","Parczew - miasto"]
["PL","Polska","06","LUBELSKIE","0613","parczewski","0613045","Parczew - obszar wiejski"]
["PL","Polska","06","LUBELSKIE","0613","parczewski","0613052","Podedwórze - gmina wiejska"]
["PL","Polska","06","LUBELSKIE","0613","parczewski","0613062","Siemień - gmina wiejska"]
["PL","Polska","06","LUBELSKIE","0613","parczewski","0613072","Sosnowica - gmina wiejska"]
["PL","Polska","06","LUBELSKIE","0614","puławski","0614011","Puławy - gmina miejska"]
["PL","Polska","06","LUBELSKIE","0614","puławski","0614022","Baranów - gmina wiejska"]
["PL","Polska","06","LUBELSKIE","0614","puławski","0614032","Janowiec - gmina wiejska"]
["PL","Polska","06","LUBELSKIE","0614","puławski","0614044","Kazimierz Dolny - miasto"]
["PL","Polska","06","LUBELSKIE","0614","puławski","0614045","Kazimierz Dolny - obszar wiejski"]
["PL","Polska","06","LUBELSKIE","0614","puławski","0614054","Końskowola - miasto"]
["PL","Polska","06","LUBELSKIE","0614","puławski","0614055","Końskowola - obszar wiejski"]
["PL","Polska","06","LUBELSKIE","0614","puławski","0614064","Kurów - miasto"]
["PL","Polska","06","LUBELSKIE","0614","puławski","0614065","Kurów - obszar wiejski"]
["PL","Polska","06","LUBELSKIE","0614","puławski","0614072","Markuszów - gmina wiejska"]
["PL","Polska","06","LUBELSKIE","0614","puławski","0614084","Nałęczów - miasto"]
["PL","Polska","06","LUBELSKIE","0614","puławski","0614085","Nałęczów - obszar wiejski"]
["PL","Polska","06","LUBELSKIE","0614","puławski","0614092","Puławy - gmina wiejska"]
["PL","Polska","06","LUBELSKIE","0614","puławski","0614104","Wąwolnica - miasto"]
["PL","Polska","06","LUBELSKIE","0614","puławski","0614105","Wąwolnica - obszar wiejski"]
["PL","Polska","06","LUBELSKIE","0614","puławski","0614112","Żyrzyn - gmina wiejska"]
["PL","Polska","06","LUBELSKIE","0615","radzyński","0615011","Radzyń Podlaski - gmina miejska"]
["PL","Polska","06","LUBELSKIE","0615","radzyński","0615022","Borki - gmina wiejska"]
["PL","Polska","06","LUBELSKIE","0615","radzyński","0615034","Czemierniki - miasto"]
["PL","Polska","06","LUBELSKIE","0615","radzyński","0615035","Czemierniki - obszar wiejski"]
["PL","Polska","06","LUBELSKIE","0615","radzyński","0615042","Kąkolewnica - gmina wiejska"]
["PL","Polska","06","LUBELSKIE","0615","radzyński","0615052","Komarówka Podlaska - gmina wiejska"]
["PL","Polska","06","LUBELSKIE","0615","radzyński","0615062","Radzyń Podlaski - gmina wiejska"]
["PL","Polska","06","LUBELSKIE","0615","radzyński","0615072","Ulan-Majorat - gmina wiejska"]
["PL","Polska","06","LUBELSKIE","0615","radzyński","0615082","Wohyń - gmina wiejska"]
["PL","Polska","06","LUBELSKIE","0616","rycki","0616011","Dęblin - gmina miejska"]
["PL","Polska","06","LUBELSKIE","0616","rycki","0616022","Kłoczew - gmina wiejska"]
["PL","Polska","06","LUBELSKIE","0616","rycki","0616032","Nowodwór - gmina wiejska"]
["PL","Polska","06","LUBELSKIE","0616","rycki","0616044","Ryki - miasto"]
["PL","Polska","06","LUBELSKIE","0616","rycki","0616045","Ryki - obszar wiejski"]
["PL","Polska","06","LUBELSKIE","0616","rycki","0616052","Stężyca - gmina wiejska"]
["PL","Polska","06","LUBELSKIE","0616","rycki","0616062","Ułęż - gmina wiejska"]
["PL","Polska","06","LUBELSKIE","0617","świdnicki","0617011","Świdnik - gmina miejska"]
["PL","Polska","06","LUBELSKIE","0617","świdnicki","0617022","Mełgiew - gmina wiejska"]
["PL","Polska","06","LUBELSKIE","0617","świdnicki","0617034","Piaski - miasto"]
["PL","Polska","06","LUBELSKIE","0617","świdnicki","0617035","Piaski - obszar wiejski"]
["PL","Polska","06","LUBELSKIE","0617","świdnicki","0617042","Rybczewice - gmina wiejska"]
["PL","Polska","06","LUBELSKIE","0617","świdnicki","0617052","Trawniki - gmina wiejska"]
["PL","Polska","06","LUBELSKIE","0618","tomaszowski","0618011","Tomaszów Lubelski - gmina miejska"]
["PL","Polska","06","LUBELSKIE","0618","tomaszowski","0618022","Bełżec - gmina wiejska"]
["PL","Polska","06","LUBELSKIE","0618","tomaszowski","0618032","Jarczów - gmina wiejska"]
["PL","Polska","06","LUBELSKIE","0618","tomaszowski","0618042","Krynice - gmina wiejska"]
["PL","Polska","06","LUBELSKIE","0618","tomaszowski","0618054","Lubycza Królewska - miasto"]
["PL","Polska","06","LUBELSKIE","0618","tomaszowski","0618055","Lubycza Królewska - obszar wiejski"]
["PL","Polska","06","LUBELSKIE","0618","tomaszowski","0618064","Łaszczów - miasto"]
["PL","Polska","06","LUBELSKIE","0618","tomaszowski","0618065","Łaszczów - obszar wiejski"]
["PL","Polska","06","LUBELSKIE","0618","tomaszowski","0618072","Rachanie - gmina wiejska"]
["PL","Polska","06","LUBELSKIE","0618","tomaszowski","0618082","Susiec - gmina wiejska"]
["PL","Polska","06","LUBELSKIE","0618","tomaszowski","0618092","Tarnawatka - gmina wiejska"]
["PL","Polska","06","LUBELSKIE","0618","tomaszowski","0618102","Telatyn - gmina wiejska"]
["PL","Polska","06","LUBELSKIE","0618","tomaszowski","0618112","Tomaszów Lubelski - gmina wiejska"]
["PL","Polska","06","LUBELSKIE","0618","tomaszowski","0618124","Tyszowce - miasto"]
["PL","Polska","06","LUBELSKIE","0618","tomaszowski","0618125","Tyszowce - obszar wiejski"]
["PL","Polska","06","LUBELSKIE","0618","tomaszowski","0618132","Ulhówek - gmina wiejska"]
["PL","Polska","06","LUBELSKIE","0619","włodawski","0619011","Włodawa - gmina miejska"]
["PL","Polska","06","LUBELSKIE","0619","włodawski","0619022","Hanna - gmina wiejska"]
["PL","Polska","06","LUBELSKIE","0619","włodawski","0619032","Hańsk - gmina wiejska"]
["PL","Polska","06","LUBELSKIE","0619","włodawski","0619042","Stary Brus - gmina wiejska"]
["PL","Polska","06","LUBELSKIE","0619","włodawski","0619052","Urszulin - gmina wiejska"]
["PL","Polska","06","LUBELSKIE","0619","włodawski","0619062","Włodawa - gmina wiejska"]
["PL","Polska","06","LUBELSKIE","0619","włodawski","0619072","Wola Uhruska - gmina wiejska"]
["PL","Polska","06","LUBELSKIE","0619","włodawski","0619082","Wyryki - gmina wiejska"]
["PL","Polska","06","LUBELSKIE","0620","zamojski","0620012","Adamów - gmina wiejska"]
["PL","Polska","06","LUBELSKIE","0620","zamojski","0620022","Grabowiec - gmina wiejska"]
["PL","Polska","06","LUBELSKIE","0620","zamojski","0620032","Komarów-Osada - gmina wiejska"]
["PL","Polska","06","LUBELSKIE","0620","zamojski","0620044","Krasnobród - miasto"]
["PL","Polska","06","LUBELSKIE","0620","zamojski","0620045","Krasnobród - obszar wiejski"]
["PL","Polska","06","LUBELSKIE","0620","zamojski","0620052","Łabunie - gmina wiejska"]
["PL","Polska","06","LUBELSKIE","0620","zamojski","0620062","Miączyn - gmina wiejska"]
["PL","Polska","06","LUBELSKIE","0620","zamojski","0620072","Nielisz - gmina wiejska"]
["PL","Polska","06","LUBELSKIE","0620","zamojski","0620082","Radecznica - gmina wiejska"]
["PL","Polska","06","LUBELSKIE","0620","zamojski","0620092","Sitno - gmina wiejska"]
["PL","Polska","06","LUBELSKIE","0620","zamojski","0620102","Skierbieszów - gmina wiejska"]
["PL","Polska","06","LUBELSKIE","0620","zamojski","0620112","Stary Zamość - gmina wiejska"]
["PL","Polska","06","LUBELSKIE","0620","zamojski","0620122","Sułów - gmina wiejska"]
["PL","Polska","06","LUBELSKIE","0620","zamojski","0620134","Szczebrzeszyn - miasto"]
["PL","Polska","06","LUBELSKIE","0620","zamojski","0620135","Szczebrzeszyn - obszar wiejski"]
["PL","Polska","06","LUBELSKIE","0620","zamojski","0620142","Zamość - gmina wiejska"]
["PL","Polska","06","LUBELSKIE","0620","zamojski","0620154","Zwierzyniec - miasto"]
["PL","Polska","06","LUBELSKIE","0620","zamojski","0620155","Zwierzyniec - obszar wiejski"]
["PL","Polska","06","LUBELSKIE","0661","Biała Podlaska","0661011","Biała Podlaska - gmina miejska"]
["PL","Polska","06","LUBELSKIE","0662","Chełm","0662011","Chełm - gmina miejska"]
["PL","Polska","06","LUBELSKIE","0663","Lublin","0663011","Lublin - gmina miejska"]
["PL","Polska","06","LUBELSKIE","0664","Zamość","0664011","Zamość - gmina miejska"]
["PL","Polska","08","LUBUSKIE","0801","gorzowski","0801011","Kostrzyn nad Odrą - gmina miejska"]
["PL","Polska","08","LUBUSKIE","0801","gorzowski","0801022","Bogdaniec - gmina wiejska"]
["PL","Polska","08","LUBUSKIE","0801","gorzowski","0801032","Deszczno - gmina wiejska"]
["PL","Polska","08","LUBUSKIE","0801","gorzowski","0801042","Kłodawa - gmina wiejska"]
["PL","Polska","08","LUBUSKIE","0801","gorzowski","0801052","Lubiszyn - gmina wiejska"]
["PL","Polska","08","LUBUSKIE","0801","gorzowski","0801062","Santok - gmina wiejska"]
["PL","Polska","08","LUBUSKIE","0801","gorzowski","0801074","Witnica - miasto"]
["PL","Polska","08","LUBUSKIE","0801","gorzowski","0801075","Witnica - obszar wiejski"]
["PL","Polska","08","LUBUSKIE","0802","krośnieński","0802011","Gubin - gmina miejska"]
["PL","Polska","08","LUBUSKIE","0802","krośnieński","0802022","Bobrowice - gmina wiejska"]
["PL","Polska","08","LUBUSKIE","0802","krośnieński","0802032","Bytnica - gmina wiejska"]
["PL","Polska","08","LUBUSKIE","0802","krośnieński","0802042","Dąbie - gmina wiejska"]
["PL","Polska","08","LUBUSKIE","0802","krośnieński","0802052","Gubin - gmina wiejska"]
["PL","Polska","08","LUBUSKIE","0802","krośnieński","0802064","Krosno Odrzańskie - miasto"]
["PL","Polska","08","LUBUSKIE","0802","krośnieński","0802065","Krosno Odrzańskie - obszar wiejski"]
["PL","Polska","08","LUBUSKIE","0802","krośnieński","0802072","Maszewo - gmina wiejska"]
["PL","Polska","08","LUBUSKIE","0803","międzyrzecki","0803012","Bledzew - gmina wiejska"]
["PL","Polska","08","LUBUSKIE","0803","międzyrzecki","0803024","Międzyrzecz - miasto"]
["PL","Polska","08","LUBUSKIE","0803","międzyrzecki","0803025","Międzyrzecz - obszar wiejski"]
["PL","Polska","08","LUBUSKIE","0803","międzyrzecki","0803032","Przytoczna - gmina wiejska"]
["PL","Polska","08","LUBUSKIE","0803","międzyrzecki","0803042","Pszczew - gmina wiejska"]
["PL","Polska","08","LUBUSKIE","0803","międzyrzecki","0803054","Skwierzyna - miasto"]
["PL","Polska","08","LUBUSKIE","0803","międzyrzecki","0803055","Skwierzyna - obszar wiejski"]
["PL","Polska","08","LUBUSKIE","0803","międzyrzecki","0803064","Trzciel - miasto"]
["PL","Polska","08","LUBUSKIE","0803","międzyrzecki","0803065","Trzciel - obszar wiejski"]
["PL","Polska","08","LUBUSKIE","0804","nowosolski","0804011","Nowa Sól - gmina miejska"]
["PL","Polska","08","LUBUSKIE","0804","nowosolski","0804024","Bytom Odrzański - miasto"]
["PL","Polska","08","LUBUSKIE","0804","nowosolski","0804025","Bytom Odrzański - obszar wiejski"]
["PL","Polska","08","LUBUSKIE","0804","nowosolski","0804032","Kolsko - gmina wiejska"]
["PL","Polska","08","LUBUSKIE","0804","nowosolski","0804044","Kożuchów - miasto"]
["PL","Polska","08","LUBUSKIE","0804","nowosolski","0804045","Kożuchów - obszar wiejski"]
["PL","Polska","08","LUBUSKIE","0804","nowosolski","0804052","Nowa Sól - gmina wiejska"]
["PL","Polska","08","LUBUSKIE","0804","nowosolski","0804064","Nowe Miasteczko - miasto"]
["PL","Polska","08","LUBUSKIE","0804","nowosolski","0804065","Nowe Miasteczko - obszar wiejski"]
["PL","Polska","08","LUBUSKIE","0804","nowosolski","0804074","Otyń - miasto"]
["PL","Polska","08","LUBUSKIE","0804","nowosolski","0804075","Otyń - obszar wiejski"]
["PL","Polska","08","LUBUSKIE","0804","nowosolski","0804082","Siedlisko - gmina wiejska"]
["PL","Polska","08","LUBUSKIE","0805","słubicki","0805014","Cybinka - miasto"]
["PL","Polska","08","LUBUSKIE","0805","słubicki","0805015","Cybinka - obszar wiejski"]
["PL","Polska","08","LUBUSKIE","0805","słubicki","0805022","Górzyca - gmina wiejska"]
["PL","Polska","08","LUBUSKIE","0805","słubicki","0805034","Ośno Lubuskie - miasto"]
["PL","Polska","08","LUBUSKIE","0805","słubicki","0805035","Ośno Lubuskie - obszar wiejski"]
["PL","Polska","08","LUBUSKIE","0805","słubicki","0805044","Rzepin - miasto"]
["PL","Polska","08","LUBUSKIE","0805","słubicki","0805045","Rzepin - obszar wiejski"]
["PL","Polska","08","LUBUSKIE","0805","słubicki","0805054","Słubice - miasto"]
["PL","Polska","08","LUBUSKIE","0805","słubicki","0805055","Słubice - obszar wiejski"]
["PL","Polska","08","LUBUSKIE","0806","strzelecko-drezdenecki","0806014","Dobiegniew - miasto"]
["PL","Polska","08","LUBUSKIE","0806","strzelecko-drezdenecki","0806015","Dobiegniew - obszar wiejski"]
["PL","Polska","08","LUBUSKIE","0806","strzelecko-drezdenecki","0806024","Drezdenko - miasto"]
["PL","Polska","08","LUBUSKIE","0806","strzelecko-drezdenecki","0806025","Drezdenko - obszar wiejski"]
["PL","Polska","08","LUBUSKIE","0806","strzelecko-drezdenecki","0806032","Stare Kurowo - gmina wiejska"]
["PL","Polska","08","LUBUSKIE","0806","strzelecko-drezdenecki","0806044","Strzelce Krajeńskie - miasto"]
["PL","Polska","08","LUBUSKIE","0806","strzelecko-drezdenecki","0806045","Strzelce Krajeńskie - obszar wiejski"]
["PL","Polska","08","LUBUSKIE","0806","strzelecko-drezdenecki","0806052","Zwierzyn - gmina wiejska"]
["PL","Polska","08","LUBUSKIE","0807","sulęciński","0807012","Krzeszyce - gmina wiejska"]
["PL","Polska","08","LUBUSKIE","0807","sulęciński","0807024","Lubniewice - miasto"]
["PL","Polska","08","LUBUSKIE","0807","sulęciński","0807025","Lubniewice - obszar wiejski"]
["PL","Polska","08","LUBUSKIE","0807","sulęciński","0807032","Słońsk - gmina wiejska"]
["PL","Polska","08","LUBUSKIE","0807","sulęciński","0807044","Sulęcin - miasto"]
["PL","Polska","08","LUBUSKIE","0807","sulęciński","0807045","Sulęcin - obszar wiejski"]
["PL","Polska","08","LUBUSKIE","0807","sulęciński","0807054","Torzym - miasto"]
["PL","Polska","08","LUBUSKIE","0807","sulęciński","0807055","Torzym - obszar wiejski"]
["PL","Polska","08","LUBUSKIE","0808","świebodziński","0808012","Lubrza - gmina wiejska"]
["PL","Polska","08","LUBUSKIE","0808","świebodziński","0808022","Łagów - gmina wiejska"]
["PL","Polska","08","LUBUSKIE","0808","świebodziński","0808032","Skąpe - gmina wiejska"]
["PL","Polska","08","LUBUSKIE","0808","świebodziński","0808042","Szczaniec - gmina wiejska"]
["PL","Polska","08","LUBUSKIE","0808","świebodziński","0808054","Świebodzin - miasto"]
["PL","Polska","08","LUBUSKIE","0808","świebodziński","0808055","Świebodzin - obszar wiejski"]
["PL","Polska","08","LUBUSKIE","0808","świebodziński","0808064","Zbąszynek - miasto"]
["PL","Polska","08","LUBUSKIE","0808","świebodziński","0808065","Zbąszynek - obszar wiejski"]
["PL","Polska","08","LUBUSKIE","0809","zielonogórski","0809014","Babimost - miasto"]
["PL","Polska","08","LUBUSKIE","0809","zielonogórski","0809015","Babimost - obszar wiejski"]
["PL","Polska","08","LUBUSKIE","0809","zielonogórski","0809022","Bojadła - gmina wiejska"]
["PL","Polska","08","LUBUSKIE","0809","zielonogórski","0809034","Czerwieńsk - miasto"]
["PL","Polska","08","LUBUSKIE","0809","zielonogórski","0809035","Czerwieńsk - obszar wiejski"]
["PL","Polska","08","LUBUSKIE","0809","zielonogórski","0809044","Kargowa - miasto"]
["PL","Polska","08","LUBUSKIE","0809","zielonogórski","0809045","Kargowa - obszar wiejski"]
["PL","Polska","08","LUBUSKIE","0809","zielonogórski","0809054","Nowogród Bobrzański - miasto"]
["PL","Polska","08","LUBUSKIE","0809","zielonogórski","0809055","Nowogród Bobrzański - obszar wiejski"]
["PL","Polska","08","LUBUSKIE","0809","zielonogórski","0809064","Sulechów - miasto"]
["PL","Polska","08","LUBUSKIE","0809","zielonogórski","0809065","Sulechów - obszar wiejski"]
["PL","Polska","08","LUBUSKIE","0809","zielonogórski","0809072","Świdnica - gmina wiejska"]
["PL","Polska","08","LUBUSKIE","0809","zielonogórski","0809082","Trzebiechów - gmina wiejska"]
["PL","Polska","08","LUBUSKIE","0809","zielonogórski","0809092","Zabór - gmina wiejska"]
["PL","Polska","08","LUBUSKIE","0810","żagański","0810011","Gozdnica - gmina miejska"]
["PL","Polska","08","LUBUSKIE","0810","żagański","0810021","Żagań - gmina miejska"]
["PL","Polska","08","LUBUSKIE","0810","żagański","0810032","Brzeźnica - gmina wiejska"]
["PL","Polska","08","LUBUSKIE","0810","żagański","0810044","Iłowa - miasto"]
["PL","Polska","08","LUBUSKIE","0810","żagański","0810045","Iłowa - obszar wiejski"]
["PL","Polska","08","LUBUSKIE","0810","żagański","0810054","Małomice - miasto"]
["PL","Polska","08","LUBUSKIE","0810","żagański","0810055","Małomice - obszar wiejski"]
["PL","Polska","08","LUBUSKIE","0810","żagański","0810062","Niegosławice - gmina wiejska"]
["PL","Polska","08","LUBUSKIE","0810","żagański","0810074","Szprotawa - miasto"]
["PL","Polska","08","LUBUSKIE","0810","żagański","0810075","Szprotawa - obszar wiejski"]
["PL","Polska","08","LUBUSKIE","0810","żagański","0810082","Wymiarki - gmina wiejska"]
["PL","Polska","08","LUBUSKIE","0810","żagański","0810092","Żagań - gmina wiejska"]
["PL","Polska","08","LUBUSKIE","0811","żarski","0811011","Łęknica - gmina miejska"]
["PL","Polska","08","LUBUSKIE","0811","żarski","0811021","Żary - gmina miejska"]
["PL","Polska","08","LUBUSKIE","0811","żarski","0811034","Brody - miasto"]
["PL","Polska","08","LUBUSKIE","0811","żarski","0811035","Brody - obszar wiejski"]
["PL","Polska","08","LUBUSKIE","0811","żarski","0811044","Jasień - miasto"]
["PL","Polska","08","LUBUSKIE","0811","żarski","0811045","Jasień - obszar wiejski"]
["PL","Polska","08","LUBUSKIE","0811","żarski","0811052","Lipinki Łużyckie - gmina wiejska"]
["PL","Polska","08","LUBUSKIE","0811","żarski","0811064","Lubsko - miasto"]
["PL","Polska","08","LUBUSKIE","0811","żarski","0811065","Lubsko - obszar wiejski"]
["PL","Polska","08","LUBUSKIE","0811","żarski","0811072","Przewóz - gmina wiejska"]
["PL","Polska","08","LUBUSKIE","0811","żarski","0811082","Trzebiel - gmina wiejska"]
["PL","Polska","08","LUBUSKIE","0811","żarski","0811092","Tuplice - gmina wiejska"]
["PL","Polska","08","LUBUSKIE","0811","żarski","0811102","Żary - gmina wiejska"]
["PL","Polska","08","LUBUSKIE","0812","wschowski","0812014","Sława - miasto"]
["PL","Polska","08","LUBUSKIE","0812","wschowski","0812015","Sława - obszar wiejski"]
["PL","Polska","08","LUBUSKIE","0812","wschowski","0812024","Szlichtyngowa - miasto"]
["PL","Polska","08","LUBUSKIE","0812","wschowski","0812025","Szlichtyngowa - obszar wiejski"]
["PL","Polska","08","LUBUSKIE","0812","wschowski","0812034","Wschowa - miasto"]
["PL","Polska","08","LUBUSKIE","0812","wschowski","0812035","Wschowa - obszar wiejski"]
["PL","Polska","08","LUBUSKIE","0861","Gorzów Wielkopolski","0861011","Gorzów Wielkopolski - gmina miejska"]
["PL","Polska","08","LUBUSKIE","0862","Zielona Góra","0862011","Zielona Góra - gmina miejska"]
["PL","Polska","10","ŁÓDZKIE","1001","bełchatowski","1001011","Bełchatów - gmina miejska"]
["PL","Polska","10","ŁÓDZKIE","1001","bełchatowski","1001022","Bełchatów - gmina wiejska"]
["PL","Polska","10","ŁÓDZKIE","1001","bełchatowski","1001032","Drużbice - gmina wiejska"]
["PL","Polska","10","ŁÓDZKIE","1001","bełchatowski","1001042","Kleszczów - gmina wiejska"]
["PL","Polska","10","ŁÓDZKIE","1001","bełchatowski","1001052","Kluki - gmina wiejska"]
["PL","Polska","10","ŁÓDZKIE","1001","bełchatowski","1001062","Rusiec - gmina wiejska"]
["PL","Polska","10","ŁÓDZKIE","1001","bełchatowski","1001072","Szczerców - gmina wiejska"]
["PL","Polska","10","ŁÓDZKIE","1001","bełchatowski","1001084","Zelów - miasto"]
["PL","Polska","10","ŁÓDZKIE","1001","bełchatowski","1001085","Zelów - obszar wiejski"]
["PL","Polska","10","ŁÓDZKIE","1002","kutnowski","1002011","Kutno - gmina miejska"]
["PL","Polska","10","ŁÓDZKIE","1002","kutnowski","1002022","Bedlno - gmina wiejska"]
["PL","Polska","10","ŁÓDZKIE","1002","kutnowski",1002034,"Dąbrowice - miasto"]
["PL","Polska","10","ŁÓDZKIE","1002","kutnowski",1002035,"Dąbrowice - obszar wiejski"]
["PL","Polska","10","ŁÓDZKIE","1002","kutnowski","1002044","Krośniewice - miasto"]
["PL","Polska","10","ŁÓDZKIE","1002","kutnowski","1002045","Krośniewice - obszar wiejski"]
["PL","Polska","10","ŁÓDZKIE","1002","kutnowski","1002052","Krzyżanów - gmina wiejska"]
["PL","Polska","10","ŁÓDZKIE","1002","kutnowski","1002062","Kutno - gmina wiejska"]
["PL","Polska","10","ŁÓDZKIE","1002","kutnowski","1002072","Łanięta - gmina wiejska"]
["PL","Polska","10","ŁÓDZKIE","1002","kutnowski","1002082","Nowe Ostrowy - gmina wiejska"]
["PL","Polska","10","ŁÓDZKIE","1002","kutnowski","1002092","Oporów - gmina wiejska"]
["PL","Polska","10","ŁÓDZKIE","1002","kutnowski","1002102","Strzelce - gmina wiejska"]
["PL","Polska","10","ŁÓDZKIE","1002","kutnowski","1002114","Żychlin - miasto"]
["PL","Polska","10","ŁÓDZKIE","1002","kutnowski","1002115","Żychlin - obszar wiejski"]
["PL","Polska","10","ŁÓDZKIE","1003","łaski","1003012","Buczek - gmina wiejska"]
["PL","Polska","10","ŁÓDZKIE","1003","łaski","1003024","Łask - miasto"]
["PL","Polska","10","ŁÓDZKIE","1003","łaski","1003025","Łask - obszar wiejski"]
["PL","Polska","10","ŁÓDZKIE","1003","łaski","1003032","Sędziejowice - gmina wiejska"]
["PL","Polska","10","ŁÓDZKIE","1003","łaski","1003042","Widawa - gmina wiejska"]
["PL","Polska","10","ŁÓDZKIE","1003","łaski","1003052","Wodzierady - gmina wiejska"]
["PL","Polska","10","ŁÓDZKIE","1004","łęczycki","1004011","Łęczyca - gmina miejska"]
["PL","Polska","10","ŁÓDZKIE","1004","łęczycki","1004022","Daszyna - gmina wiejska"]
["PL","Polska","10","ŁÓDZKIE","1004","łęczycki","1004032","Góra Świętej Małgorzaty - gmina wiejska"]
["PL","Polska","10","ŁÓDZKIE","1004","łęczycki","1004044","Grabów - miasto"]
["PL","Polska","10","ŁÓDZKIE","1004","łęczycki","1004045","Grabów - obszar wiejski"]
["PL","Polska","10","ŁÓDZKIE","1004","łęczycki","1004052","Łęczyca - gmina wiejska"]
["PL","Polska","10","ŁÓDZKIE","1004","łęczycki",1004064,"Piątek - miasto"]
["PL","Polska","10","ŁÓDZKIE","1004","łęczycki",1004065,"Piątek - obszar wiejski"]
["PL","Polska","10","ŁÓDZKIE","1004","łęczycki","1004072","Świnice Warckie - gmina wiejska"]
["PL","Polska","10","ŁÓDZKIE","1004","łęczycki","1004082","Witonia - gmina wiejska"]
["PL","Polska","10","ŁÓDZKIE","1005","łowicki","1005011","Łowicz - gmina miejska"]
["PL","Polska","10","ŁÓDZKIE","1005","łowicki","1005022","Bielawy - gmina wiejska"]
["PL","Polska","10","ŁÓDZKIE","1005","łowicki","1005032","Chąśno - gmina wiejska"]
["PL","Polska","10","ŁÓDZKIE","1005","łowicki","1005042","Domaniewice - gmina wiejska"]
["PL","Polska","10","ŁÓDZKIE","1005","łowicki","1005054","Kiernozia - miasto"]
["PL","Polska","10","ŁÓDZKIE","1005","łowicki","1005055","Kiernozia - obszar wiejski"]
["PL","Polska","10","ŁÓDZKIE","1005","łowicki","1005062","Kocierzew Południowy - gmina wiejska"]
["PL","Polska","10","ŁÓDZKIE","1005","łowicki","1005072","Łowicz - gmina wiejska"]
["PL","Polska","10","ŁÓDZKIE","1005","łowicki","1005082","Łyszkowice - gmina wiejska"]
["PL","Polska","10","ŁÓDZKIE","1005","łowicki","1005092","Nieborów - gmina wiejska"]
["PL","Polska","10","ŁÓDZKIE","1005","łowicki","1005102","Zduny - gmina wiejska"]
["PL","Polska","10","ŁÓDZKIE","1006","łódzki wschodni","1006022","Andrespol - gmina wiejska"]
["PL","Polska","10","ŁÓDZKIE","1006","łódzki wschodni","1006032","Brójce - gmina wiejska"]
["PL","Polska","10","ŁÓDZKIE","1006","łódzki wschodni","1006074","Koluszki - miasto"]
["PL","Polska","10","ŁÓDZKIE","1006","łódzki wschodni","1006075","Koluszki - obszar wiejski"]
["PL","Polska","10","ŁÓDZKIE","1006","łódzki wschodni","1006082","Nowosolna - gmina wiejska"]
["PL","Polska","10","ŁÓDZKIE","1006","łódzki wschodni","1006104","Rzgów - miasto"]
["PL","Polska","10","ŁÓDZKIE","1006","łódzki wschodni","1006105","Rzgów - obszar wiejski"]
["PL","Polska","10","ŁÓDZKIE","1006","łódzki wschodni","1006114","Tuszyn - miasto"]
["PL","Polska","10","ŁÓDZKIE","1006","łódzki wschodni","1006115","Tuszyn - obszar wiejski"]
["PL","Polska","10","ŁÓDZKIE","1007","opoczyński","1007014","Białaczów - miasto"]
["PL","Polska","10","ŁÓDZKIE","1007","opoczyński","1007015","Białaczów - obszar wiejski"]
["PL","Polska","10","ŁÓDZKIE","1007","opoczyński","1007024","Drzewica - miasto"]
["PL","Polska","10","ŁÓDZKIE","1007","opoczyński","1007025","Drzewica - obszar wiejski"]
["PL","Polska","10","ŁÓDZKIE","1007","opoczyński","1007032","Mniszków - gmina wiejska"]
["PL","Polska","10","ŁÓDZKIE","1007","opoczyński","1007044","Opoczno - miasto"]
["PL","Polska","10","ŁÓDZKIE","1007","opoczyński","1007045","Opoczno - obszar wiejski"]
["PL","Polska","10","ŁÓDZKIE","1007","opoczyński","1007052","Paradyż - gmina wiejska"]
["PL","Polska","10","ŁÓDZKIE","1007","opoczyński","1007062","Poświętne - gmina wiejska"]
["PL","Polska","10","ŁÓDZKIE","1007","opoczyński","1007072","Sławno - gmina wiejska"]
["PL","Polska","10","ŁÓDZKIE","1007","opoczyński","1007084","Żarnów - miasto"]
["PL","Polska","10","ŁÓDZKIE","1007","opoczyński","1007085","Żarnów - obszar wiejski"]
["PL","Polska","10","ŁÓDZKIE","1008","pabianicki","1008011","Konstantynów Łódzki - gmina miejska"]
["PL","Polska","10","ŁÓDZKIE","1008","pabianicki","1008021","Pabianice - gmina miejska"]
["PL","Polska","10","ŁÓDZKIE","1008","pabianicki","1008032","Dłutów - gmina wiejska"]
["PL","Polska","10","ŁÓDZKIE","1008","pabianicki","1008042","Dobroń - gmina wiejska"]
["PL","Polska","10","ŁÓDZKIE","1008","pabianicki","1008052","Ksawerów - gmina wiejska"]
["PL","Polska","10","ŁÓDZKIE","1008","pabianicki",1008064,"Lutomiersk - miasto"]
["PL","Polska","10","ŁÓDZKIE","1008","pabianicki",1008065,"Lutomiersk - obszar wiejski"]
["PL","Polska","10","ŁÓDZKIE","1008","pabianicki","1008072","Pabianice - gmina wiejska"]
["PL","Polska","10","ŁÓDZKIE","1009","pajęczański","1009014","Działoszyn - miasto"]
["PL","Polska","10","ŁÓDZKIE","1009","pajęczański","1009015","Działoszyn - obszar wiejski"]
["PL","Polska","10","ŁÓDZKIE","1009","pajęczański","1009022","Kiełczygłów - gmina wiejska"]
["PL","Polska","10","ŁÓDZKIE","1009","pajęczański","1009032","Nowa Brzeźnica - gmina wiejska"]
["PL","Polska","10","ŁÓDZKIE","1009","pajęczański","1009044","Pajęczno - miasto"]
["PL","Polska","10","ŁÓDZKIE","1009","pajęczański","1009045","Pajęczno - obszar wiejski"]
["PL","Polska","10","ŁÓDZKIE","1009","pajęczański","1009052","Rząśnia - gmina wiejska"]
["PL","Polska","10","ŁÓDZKIE","1009","pajęczański","1009062","Siemkowice - gmina wiejska"]
["PL","Polska","10","ŁÓDZKIE","1009","pajęczański","1009072","Strzelce Wielkie - gmina wiejska"]
["PL","Polska","10","ŁÓDZKIE","1009","pajęczański","1009082","Sulmierzyce - gmina wiejska"]
["PL","Polska","10","ŁÓDZKIE","1010","piotrkowski","1010012","Aleksandrów - gmina wiejska"]
["PL","Polska","10","ŁÓDZKIE","1010","piotrkowski","1010022","Czarnocin - gmina wiejska"]
["PL","Polska","10","ŁÓDZKIE","1010","piotrkowski","1010032","Gorzkowice - gmina wiejska"]
["PL","Polska","10","ŁÓDZKIE","1010","piotrkowski","1010042","Grabica - gmina wiejska"]
["PL","Polska","10","ŁÓDZKIE","1010","piotrkowski","1010052","Łęki Szlacheckie - gmina wiejska"]
["PL","Polska","10","ŁÓDZKIE","1010","piotrkowski","1010062","Moszczenica - gmina wiejska"]
["PL","Polska","10","ŁÓDZKIE","1010","piotrkowski","1010072","Ręczno - gmina wiejska"]
["PL","Polska","10","ŁÓDZKIE","1010","piotrkowski",1010084,"Rozprza - miasto"]
["PL","Polska","10","ŁÓDZKIE","1010","piotrkowski",1010085,"Rozprza - obszar wiejski"]
["PL","Polska","10","ŁÓDZKIE","1010","piotrkowski","1010094","Sulejów - miasto"]
["PL","Polska","10","ŁÓDZKIE","1010","piotrkowski","1010095","Sulejów - obszar wiejski"]
["PL","Polska","10","ŁÓDZKIE","1010","piotrkowski","1010102","Wola Krzysztoporska - gmina wiejska"]
["PL","Polska","10","ŁÓDZKIE","1010","piotrkowski","1010114","Wolbórz - miasto"]
["PL","Polska","10","ŁÓDZKIE","1010","piotrkowski","1010115","Wolbórz - obszar wiejski"]
["PL","Polska","10","ŁÓDZKIE","1011","poddębicki","1011012","Dalików - gmina wiejska"]
["PL","Polska","10","ŁÓDZKIE","1011","poddębicki","1011022","Pęczniew - gmina wiejska"]
["PL","Polska","10","ŁÓDZKIE","1011","poddębicki","1011034","Poddębice - miasto"]
["PL","Polska","10","ŁÓDZKIE","1011","poddębicki","1011035","Poddębice - obszar wiejski"]
["PL","Polska","10","ŁÓDZKIE","1011","poddębicki","1011044","Uniejów - miasto"]
["PL","Polska","10","ŁÓDZKIE","1011","poddębicki","1011045","Uniejów - obszar wiejski"]
["PL","Polska","10","ŁÓDZKIE","1011","poddębicki","1011052","Wartkowice - gmina wiejska"]
["PL","Polska","10","ŁÓDZKIE","1011","poddębicki","1011062","Zadzim - gmina wiejska"]
["PL","Polska","10","ŁÓDZKIE","1012","radomszczański","1012011","Radomsko - gmina miejska"]
["PL","Polska","10","ŁÓDZKIE","1012","radomszczański","1012022","Dobryszyce - gmina wiejska"]
["PL","Polska","10","ŁÓDZKIE","1012","radomszczański","1012032","Gidle - gmina wiejska"]
["PL","Polska","10","ŁÓDZKIE","1012","radomszczański","1012042","Gomunice - gmina wiejska"]
["PL","Polska","10","ŁÓDZKIE","1012","radomszczański","1012054","Kamieńsk - miasto"]
["PL","Polska","10","ŁÓDZKIE","1012","radomszczański","1012055","Kamieńsk - obszar wiejski"]
["PL","Polska","10","ŁÓDZKIE","1012","radomszczański","1012062","Kobiele Wielkie - gmina wiejska"]
["PL","Polska","10","ŁÓDZKIE","1012","radomszczański","1012072","Kodrąb - gmina wiejska"]
["PL","Polska","10","ŁÓDZKIE","1012","radomszczański","1012082","Lgota Wielka - gmina wiejska"]
["PL","Polska","10","ŁÓDZKIE","1012","radomszczański","1012092","Ładzice - gmina wiejska"]
["PL","Polska","10","ŁÓDZKIE","1012","radomszczański","1012102","Masłowice - gmina wiejska"]
["PL","Polska","10","ŁÓDZKIE","1012","radomszczański","1012114","Przedbórz - miasto"]
["PL","Polska","10","ŁÓDZKIE","1012","radomszczański","1012115","Przedbórz - obszar wiejski"]
["PL","Polska","10","ŁÓDZKIE","1012","radomszczański","1012122","Radomsko - gmina wiejska"]
["PL","Polska","10","ŁÓDZKIE","1012","radomszczański","1012132","Wielgomłyny - gmina wiejska"]
["PL","Polska","10","ŁÓDZKIE","1012","radomszczański","1012142","Żytno - gmina wiejska"]
["PL","Polska","10","ŁÓDZKIE","1013","rawski","1013011","Rawa Mazowiecka - gmina miejska"]
["PL","Polska","10","ŁÓDZKIE","1013","rawski","1013024","Biała Rawska - miasto"]
["PL","Polska","10","ŁÓDZKIE","1013","rawski","1013025","Biała Rawska - obszar wiejski"]
["PL","Polska","10","ŁÓDZKIE","1013","rawski","1013032","Cielądz - gmina wiejska"]
["PL","Polska","10","ŁÓDZKIE","1013","rawski","1013042","Rawa Mazowiecka - gmina wiejska"]
["PL","Polska","10","ŁÓDZKIE","1013","rawski","1013052","Regnów - gmina wiejska"]
["PL","Polska","10","ŁÓDZKIE","1013","rawski","1013062","Sadkowice - gmina wiejska"]
["PL","Polska","10","ŁÓDZKIE","1014","sieradzki","1014011","Sieradz - gmina miejska"]
["PL","Polska","10","ŁÓDZKIE","1014","sieradzki","1014024","Błaszki - miasto"]
["PL","Polska","10","ŁÓDZKIE","1014","sieradzki","1014025","Błaszki - obszar wiejski"]
["PL","Polska","10","ŁÓDZKIE","1014","sieradzki","1014032","Brąszewice - gmina wiejska"]
["PL","Polska","10","ŁÓDZKIE","1014","sieradzki","1014042","Brzeźnio - gmina wiejska"]
["PL","Polska","10","ŁÓDZKIE","1014","sieradzki","1014052","Burzenin - gmina wiejska"]
["PL","Polska","10","ŁÓDZKIE","1014","sieradzki","1014062","Goszczanów - gmina wiejska"]
["PL","Polska","10","ŁÓDZKIE","1014","sieradzki","1014072","Klonowa - gmina wiejska"]
["PL","Polska","10","ŁÓDZKIE","1014","sieradzki","1014082","Sieradz - gmina wiejska"]
["PL","Polska","10","ŁÓDZKIE","1014","sieradzki","1014094","Warta - miasto"]
["PL","Polska","10","ŁÓDZKIE","1014","sieradzki","1014095","Warta - obszar wiejski"]
["PL","Polska","10","ŁÓDZKIE","1014","sieradzki","1014102","Wróblew - gmina wiejska"]
["PL","Polska","10","ŁÓDZKIE","1014","sieradzki","1014114","Złoczew - miasto"]
["PL","Polska","10","ŁÓDZKIE","1014","sieradzki","1014115","Złoczew - obszar wiejski"]
["PL","Polska","10","ŁÓDZKIE","1015","skierniewicki",1015014,"Bolimów - miasto"]
["PL","Polska","10","ŁÓDZKIE","1015","skierniewicki",1015015,"Bolimów - obszar wiejski"]
["PL","Polska","10","ŁÓDZKIE","1015","skierniewicki","1015022","Głuchów - gmina wiejska"]
["PL","Polska","10","ŁÓDZKIE","1015","skierniewicki","1015032","Godzianów - gmina wiejska"]
["PL","Polska","10","ŁÓDZKIE","1015","skierniewicki","1015042","Kowiesy - gmina wiejska"]
["PL","Polska","10","ŁÓDZKIE","1015","skierniewicki","1015052","Lipce Reymontowskie - gmina wiejska"]
["PL","Polska","10","ŁÓDZKIE","1015","skierniewicki","1015062","Maków - gmina wiejska"]
["PL","Polska","10","ŁÓDZKIE","1015","skierniewicki","1015072","Nowy Kawęczyn - gmina wiejska"]
["PL","Polska","10","ŁÓDZKIE","1015","skierniewicki","1015082","Skierniewice - gmina wiejska"]
["PL","Polska","10","ŁÓDZKIE","1015","skierniewicki","1015092","Słupia - gmina wiejska"]
["PL","Polska","10","ŁÓDZKIE","1016","tomaszowski","1016011","Tomaszów Mazowiecki - gmina miejska"]
["PL","Polska","10","ŁÓDZKIE","1016","tomaszowski","1016022","Będków - gmina wiejska"]
["PL","Polska","10","ŁÓDZKIE","1016","tomaszowski","1016032","Budziszewice - gmina wiejska"]
["PL","Polska","10","ŁÓDZKIE","1016","tomaszowski","1016042","Czerniewice - gmina wiejska"]
["PL","Polska","10","ŁÓDZKIE","1016","tomaszowski","1016054","Inowłódz - miasto"]
["PL","Polska","10","ŁÓDZKIE","1016","tomaszowski","1016055","Inowłódz - obszar wiejski"]
["PL","Polska","10","ŁÓDZKIE","1016","tomaszowski","1016062","Lubochnia - gmina wiejska"]
["PL","Polska","10","ŁÓDZKIE","1016","tomaszowski","1016072","Rokiciny - gmina wiejska"]
["PL","Polska","10","ŁÓDZKIE","1016","tomaszowski","1016082","Rzeczyca - gmina wiejska"]
["PL","Polska","10","ŁÓDZKIE","1016","tomaszowski","1016092","Tomaszów Mazowiecki - gmina wiejska"]
["PL","Polska","10","ŁÓDZKIE","1016","tomaszowski",1016104,"Ujazd - miasto"]
["PL","Polska","10","ŁÓDZKIE","1016","tomaszowski",1016105,"Ujazd - obszar wiejski"]
["PL","Polska","10","ŁÓDZKIE","1016","tomaszowski","1016112","Żelechlinek - gmina wiejska"]
["PL","Polska","10","ŁÓDZKIE","1017","wieluński","1017012","Biała - gmina wiejska"]
["PL","Polska","10","ŁÓDZKIE","1017","wieluński","1017022","Czarnożyły - gmina wiejska"]
["PL","Polska","10","ŁÓDZKIE","1017","wieluński","1017032","Konopnica - gmina wiejska"]
["PL","Polska","10","ŁÓDZKIE","1017","wieluński","1017042","Mokrsko - gmina wiejska"]
["PL","Polska","10","ŁÓDZKIE","1017","wieluński","1017054","Osjaków - miasto"]
["PL","Polska","10","ŁÓDZKIE","1017","wieluński","1017055","Osjaków - obszar wiejski"]
["PL","Polska","10","ŁÓDZKIE","1017","wieluński","1017062","Ostrówek - gmina wiejska"]
["PL","Polska","10","ŁÓDZKIE","1017","wieluński","1017072","Pątnów - gmina wiejska"]
["PL","Polska","10","ŁÓDZKIE","1017","wieluński","1017082","Skomlin - gmina wiejska"]
["PL","Polska","10","ŁÓDZKIE","1017","wieluński","1017094","Wieluń - miasto"]
["PL","Polska","10","ŁÓDZKIE","1017","wieluński","1017095","Wieluń - obszar wiejski"]
["PL","Polska","10","ŁÓDZKIE","1017","wieluński","1017102","Wierzchlas - gmina wiejska"]
["PL","Polska","10","ŁÓDZKIE","1018","wieruszowski","1018014","Bolesławiec - miasto"]
["PL","Polska","10","ŁÓDZKIE","1018","wieruszowski","1018015","Bolesławiec - obszar wiejski"]
["PL","Polska","10","ŁÓDZKIE","1018","wieruszowski","1018022","Czastary - gmina wiejska"]
["PL","Polska","10","ŁÓDZKIE","1018","wieruszowski","1018032","Galewice - gmina wiejska"]
["PL","Polska","10","ŁÓDZKIE","1018","wieruszowski",1018044,"Lututów - miasto"]
["PL","Polska","10","ŁÓDZKIE","1018","wieruszowski",1018045,"Lututów - obszar wiejski"]
["PL","Polska","10","ŁÓDZKIE","1018","wieruszowski","1018052","Łubnice - gmina wiejska"]
["PL","Polska","10","ŁÓDZKIE","1018","wieruszowski","1018062","Sokolniki - gmina wiejska"]
["PL","Polska","10","ŁÓDZKIE","1018","wieruszowski","1018074","Wieruszów - miasto"]
["PL","Polska","10","ŁÓDZKIE","1018","wieruszowski","1018075","Wieruszów - obszar wiejski"]
["PL","Polska","10","ŁÓDZKIE","1019","zduńskowolski","1019011","Zduńska Wola - gmina miejska"]
["PL","Polska","10","ŁÓDZKIE","1019","zduńskowolski","1019024","Szadek - miasto"]
["PL","Polska","10","ŁÓDZKIE","1019","zduńskowolski","1019025","Szadek - obszar wiejski"]
["PL","Polska","10","ŁÓDZKIE","1019","zduńskowolski","1019032","Zapolice - gmina wiejska"]
["PL","Polska","10","ŁÓDZKIE","1019","zduńskowolski","1019042","Zduńska Wola - gmina wiejska"]
["PL","Polska","10","ŁÓDZKIE","1020","zgierski","1020011","Głowno - gmina miejska"]
["PL","Polska","10","ŁÓDZKIE","1020","zgierski","1020021","Ozorków - gmina miejska"]
["PL","Polska","10","ŁÓDZKIE","1020","zgierski","1020031","Zgierz - gmina miejska"]
["PL","Polska","10","ŁÓDZKIE","1020","zgierski","1020044","Aleksandrów Łódzki - miasto"]
["PL","Polska","10","ŁÓDZKIE","1020","zgierski","1020045","Aleksandrów Łódzki - obszar wiejski"]
["PL","Polska","10","ŁÓDZKIE","1020","zgierski","1020052","Głowno - gmina wiejska"]
["PL","Polska","10","ŁÓDZKIE","1020","zgierski","1020062","Ozorków - gmina wiejska"]
["PL","Polska","10","ŁÓDZKIE","1020","zgierski","1020074","Parzęczew - miasto"]
["PL","Polska","10","ŁÓDZKIE","1020","zgierski","1020075","Parzęczew - obszar wiejski"]
["PL","Polska","10","ŁÓDZKIE","1020","zgierski","1020084","Stryków - miasto"]
["PL","Polska","10","ŁÓDZKIE","1020","zgierski","1020085","Stryków - obszar wiejski"]
["PL","Polska","10","ŁÓDZKIE","1020","zgierski","1020092","Zgierz - gmina wiejska"]
["PL","Polska","10","ŁÓDZKIE","1021","brzeziński","1021011","Brzeziny - gmina miejska"]
["PL","Polska","10","ŁÓDZKIE","1021","brzeziński","1021022","Brzeziny - gmina wiejska"]
["PL","Polska","10","ŁÓDZKIE","1021","brzeziński","1021032","Dmosin - gmina wiejska"]
["PL","Polska","10","ŁÓDZKIE","1021","brzeziński",1021044,"Jeżów - miasto"]
["PL","Polska","10","ŁÓDZKIE","1021","brzeziński",1021045,"Jeżów - obszar wiejski"]
["PL","Polska","10","ŁÓDZKIE","1021","brzeziński","1021052","Rogów - gmina wiejska"]
["PL","Polska","10","ŁÓDZKIE","1061","Łódź",1061029,"Łódź-Bałuty - delegatura"]
["PL","Polska","10","ŁÓDZKIE","1061","Łódź",1061039,"Łódź-Górna - delegatura"]
["PL","Polska","10","ŁÓDZKIE","1061","Łódź",1061049,"Łódź-Polesie - delegatura"]
["PL","Polska","10","ŁÓDZKIE","1061","Łódź",1061059,"Łódź-Śródmieście - delegatura"]
["PL","Polska","10","ŁÓDZKIE","1061","Łódź",1061069,"Łódź-Widzew - delegatura"]
["PL","Polska","10","ŁÓDZKIE","1062","Piotrków Trybunalski","1062011","Piotrków Trybunalski - gmina miejska"]
["PL","Polska","10","ŁÓDZKIE","1063","Skierniewice","1063011","Skierniewice - gmina miejska"]
["PL","Polska","12","MAŁOPOLSKIE","1201","bocheński","1201011","Bochnia - gmina miejska"]
["PL","Polska","12","MAŁOPOLSKIE","1201","bocheński","1201022","Bochnia - gmina wiejska"]
["PL","Polska","12","MAŁOPOLSKIE","1201","bocheński","1201032","Drwinia - gmina wiejska"]
["PL","Polska","12","MAŁOPOLSKIE","1201","bocheński","1201042","Lipnica Murowana - gmina wiejska"]
["PL","Polska","12","MAŁOPOLSKIE","1201","bocheński","1201052","Łapanów - gmina wiejska"]
["PL","Polska","12","MAŁOPOLSKIE","1201","bocheński","1201064","Nowy Wiśnicz - miasto"]
["PL","Polska","12","MAŁOPOLSKIE","1201","bocheński","1201065","Nowy Wiśnicz - obszar wiejski"]
["PL","Polska","12","MAŁOPOLSKIE","1201","bocheński","1201072","Rzezawa - gmina wiejska"]
["PL","Polska","12","MAŁOPOLSKIE","1201","bocheński","1201082","Trzciana - gmina wiejska"]
["PL","Polska","12","MAŁOPOLSKIE","1201","bocheński","1201092","Żegocina - gmina wiejska"]
["PL","Polska","12","MAŁOPOLSKIE","1202","brzeski","1202012","Borzęcin - gmina wiejska"]
["PL","Polska","12","MAŁOPOLSKIE","1202","brzeski","1202024","Brzesko - miasto"]
["PL","Polska","12","MAŁOPOLSKIE","1202","brzeski","1202025","Brzesko - obszar wiejski"]
["PL","Polska","12","MAŁOPOLSKIE","1202","brzeski","1202034","Czchów - miasto"]
["PL","Polska","12","MAŁOPOLSKIE","1202","brzeski","1202035","Czchów - obszar wiejski"]
["PL","Polska","12","MAŁOPOLSKIE","1202","brzeski","1202042","Dębno - gmina wiejska"]
["PL","Polska","12","MAŁOPOLSKIE","1202","brzeski","1202052","Gnojnik - gmina wiejska"]
["PL","Polska","12","MAŁOPOLSKIE","1202","brzeski","1202062","Iwkowa - gmina wiejska"]
["PL","Polska","12","MAŁOPOLSKIE","1202","brzeski","1202072","Szczurowa - gmina wiejska"]
["PL","Polska","12","MAŁOPOLSKIE","1203","chrzanowski","1203014","Alwernia - miasto"]
["PL","Polska","12","MAŁOPOLSKIE","1203","chrzanowski","1203015","Alwernia - obszar wiejski"]
["PL","Polska","12","MAŁOPOLSKIE","1203","chrzanowski","1203022","Babice - gmina wiejska"]
["PL","Polska","12","MAŁOPOLSKIE","1203","chrzanowski","1203034","Chrzanów - miasto"]
["PL","Polska","12","MAŁOPOLSKIE","1203","chrzanowski","1203035","Chrzanów - obszar wiejski"]
["PL","Polska","12","MAŁOPOLSKIE","1203","chrzanowski","1203044","Libiąż - miasto"]
["PL","Polska","12","MAŁOPOLSKIE","1203","chrzanowski","1203045","Libiąż - obszar wiejski"]
["PL","Polska","12","MAŁOPOLSKIE","1203","chrzanowski","1203054","Trzebinia - miasto"]
["PL","Polska","12","MAŁOPOLSKIE","1203","chrzanowski","1203055","Trzebinia - obszar wiejski"]
["PL","Polska","12","MAŁOPOLSKIE","1204","dąbrowski","1204012","Bolesław - gmina wiejska"]
["PL","Polska","12","MAŁOPOLSKIE","1204","dąbrowski","1204024","Dąbrowa Tarnowska - miasto"]
["PL","Polska","12","MAŁOPOLSKIE","1204","dąbrowski","1204025","Dąbrowa Tarnowska - obszar wiejski"]
["PL","Polska","12","MAŁOPOLSKIE","1204","dąbrowski","1204032","Gręboszów - gmina wiejska"]
["PL","Polska","12","MAŁOPOLSKIE","1204","dąbrowski","1204042","Mędrzechów - gmina wiejska"]
["PL","Polska","12","MAŁOPOLSKIE","1204","dąbrowski","1204052","Olesno - gmina wiejska"]
["PL","Polska","12","MAŁOPOLSKIE","1204","dąbrowski","1204062","Radgoszcz - gmina wiejska"]
["PL","Polska","12","MAŁOPOLSKIE","1204","dąbrowski","1204074","Szczucin - miasto"]
["PL","Polska","12","MAŁOPOLSKIE","1204","dąbrowski","1204075","Szczucin - obszar wiejski"]
["PL","Polska","12","MAŁOPOLSKIE","1205","gorlicki","1205011","Gorlice - gmina miejska"]
["PL","Polska","12","MAŁOPOLSKIE","1205","gorlicki","1205024","Biecz - miasto"]
["PL","Polska","12","MAŁOPOLSKIE","1205","gorlicki","1205025","Biecz - obszar wiejski"]
["PL","Polska","12","MAŁOPOLSKIE","1205","gorlicki","1205034","Bobowa - miasto"]
["PL","Polska","12","MAŁOPOLSKIE","1205","gorlicki","1205035","Bobowa - obszar wiejski"]
["PL","Polska","12","MAŁOPOLSKIE","1205","gorlicki","1205042","Gorlice - gmina wiejska"]
["PL","Polska","12","MAŁOPOLSKIE","1205","gorlicki","1205052","Lipinki - gmina wiejska"]
["PL","Polska","12","MAŁOPOLSKIE","1205","gorlicki","1205062","Łużna - gmina wiejska"]
["PL","Polska","12","MAŁOPOLSKIE","1205","gorlicki","1205072","Moszczenica - gmina wiejska"]
["PL","Polska","12","MAŁOPOLSKIE","1205","gorlicki","1205082","Ropa - gmina wiejska"]
["PL","Polska","12","MAŁOPOLSKIE","1205","gorlicki","1205092","Sękowa - gmina wiejska"]
["PL","Polska","12","MAŁOPOLSKIE","1205","gorlicki","1205102","Uście Gorlickie - gmina wiejska"]
["PL","Polska","12","MAŁOPOLSKIE","1206","krakowski","1206012","Czernichów - gmina wiejska"]
["PL","Polska","12","MAŁOPOLSKIE","1206","krakowski","1206022","Igołomia-Wawrzeńczyce - gmina wiejska"]
["PL","Polska","12","MAŁOPOLSKIE","1206","krakowski","1206032","Iwanowice - gmina wiejska"]
["PL","Polska","12","MAŁOPOLSKIE","1206","krakowski","1206042","Jerzmanowice-Przeginia - gmina wiejska"]
["PL","Polska","12","MAŁOPOLSKIE","1206","krakowski","1206052","Kocmyrzów-Luborzyca - gmina wiejska"]
["PL","Polska","12","MAŁOPOLSKIE","1206","krakowski","1206064","Krzeszowice - miasto"]
["PL","Polska","12","MAŁOPOLSKIE","1206","krakowski","1206065","Krzeszowice - obszar wiejski"]
["PL","Polska","12","MAŁOPOLSKIE","1206","krakowski","1206072","Liszki - gmina wiejska"]
["PL","Polska","12","MAŁOPOLSKIE","1206","krakowski","1206082","Michałowice - gmina wiejska"]
["PL","Polska","12","MAŁOPOLSKIE","1206","krakowski","1206092","Mogilany - gmina wiejska"]
["PL","Polska","12","MAŁOPOLSKIE","1206","krakowski","1206104","Skała - miasto"]
["PL","Polska","12","MAŁOPOLSKIE","1206","krakowski","1206105","Skała - obszar wiejski"]
["PL","Polska","12","MAŁOPOLSKIE","1206","krakowski","1206114","Skawina - miasto"]
["PL","Polska","12","MAŁOPOLSKIE","1206","krakowski","1206115","Skawina - obszar wiejski"]
["PL","Polska","12","MAŁOPOLSKIE","1206","krakowski","1206124","Słomniki - miasto"]
["PL","Polska","12","MAŁOPOLSKIE","1206","krakowski","1206125","Słomniki - obszar wiejski"]
["PL","Polska","12","MAŁOPOLSKIE","1206","krakowski","1206132","Sułoszowa - gmina wiejska"]
["PL","Polska","12","MAŁOPOLSKIE","1206","krakowski","1206144","Świątniki Górne - miasto"]
["PL","Polska","12","MAŁOPOLSKIE","1206","krakowski","1206145","Świątniki Górne - obszar wiejski"]
["PL","Polska","12","MAŁOPOLSKIE","1206","krakowski","1206152","Wielka Wieś - gmina wiejska"]
["PL","Polska","12","MAŁOPOLSKIE","1206","krakowski","1206162","Zabierzów - gmina wiejska"]
["PL","Polska","12","MAŁOPOLSKIE","1206","krakowski","1206172","Zielonki - gmina wiejska"]
["PL","Polska","12","MAŁOPOLSKIE","1207","limanowski","1207011","Limanowa - gmina miejska"]
["PL","Polska","12","MAŁOPOLSKIE","1207","limanowski","1207021","Mszana Dolna - gmina miejska"]
["PL","Polska","12","MAŁOPOLSKIE","1207","limanowski","1207032","Dobra - gmina wiejska"]
["PL","Polska","12","MAŁOPOLSKIE","1207","limanowski","1207042","Jodłownik - gmina wiejska"]
["PL","Polska","12","MAŁOPOLSKIE","1207","limanowski","1207052","Kamienica - gmina wiejska"]
["PL","Polska","12","MAŁOPOLSKIE","1207","limanowski","1207062","Laskowa - gmina wiejska"]
["PL","Polska","12","MAŁOPOLSKIE","1207","limanowski","1207072","Limanowa - gmina wiejska"]
["PL","Polska","12","MAŁOPOLSKIE","1207","limanowski","1207082","Łukowica - gmina wiejska"]
["PL","Polska","12","MAŁOPOLSKIE","1207","limanowski","1207092","Mszana Dolna - gmina wiejska"]
["PL","Polska","12","MAŁOPOLSKIE","1207","limanowski","1207102","Niedźwiedź - gmina wiejska"]
["PL","Polska","12","MAŁOPOLSKIE","1207","limanowski","1207112","Słopnice - gmina wiejska"]
["PL","Polska","12","MAŁOPOLSKIE","1207","limanowski","1207122","Tymbark - gmina wiejska"]
["PL","Polska","12","MAŁOPOLSKIE","1207","limanowski",1207132,"Szczawa- gmina wiejska"]
["PL","Polska","12","MAŁOPOLSKIE","1208","miechowski","1208012","Charsznica - gmina wiejska"]
["PL","Polska","12","MAŁOPOLSKIE","1208","miechowski","1208022","Gołcza - gmina wiejska"]
["PL","Polska","12","MAŁOPOLSKIE","1208","miechowski","1208032","Kozłów - gmina wiejska"]
["PL","Polska","12","MAŁOPOLSKIE","1208","miechowski",1208044,"Książ Wielki - miasto"]
["PL","Polska","12","MAŁOPOLSKIE","1208","miechowski",1208045,"Książ Wielki - obszar wiejski"]
["PL","Polska","12","MAŁOPOLSKIE","1208","miechowski","1208054","Miechów - miasto"]
["PL","Polska","12","MAŁOPOLSKIE","1208","miechowski","1208055","Miechów - obszar wiejski"]
["PL","Polska","12","MAŁOPOLSKIE","1208","miechowski","1208062","Racławice - gmina wiejska"]
["PL","Polska","12","MAŁOPOLSKIE","1208","miechowski","1208072","Słaboszów - gmina wiejska"]
["PL","Polska","12","MAŁOPOLSKIE","1209","myślenicki","1209014","Dobczyce - miasto"]
["PL","Polska","12","MAŁOPOLSKIE","1209","myślenicki","1209015","Dobczyce - obszar wiejski"]
["PL","Polska","12","MAŁOPOLSKIE","1209","myślenicki","1209022","Lubień - gmina wiejska"]
["PL","Polska","12","MAŁOPOLSKIE","1209","myślenicki","1209034","Myślenice - miasto"]
["PL","Polska","12","MAŁOPOLSKIE","1209","myślenicki","1209035","Myślenice - obszar wiejski"]
["PL","Polska","12","MAŁOPOLSKIE","1209","myślenicki","1209042","Pcim - gmina wiejska"]
["PL","Polska","12","MAŁOPOLSKIE","1209","myślenicki","1209052","Raciechowice - gmina wiejska"]
["PL","Polska","12","MAŁOPOLSKIE","1209","myślenicki","1209062","Siepraw - gmina wiejska"]
["PL","Polska","12","MAŁOPOLSKIE","1209","myślenicki","1209074","Sułkowice - miasto"]
["PL","Polska","12","MAŁOPOLSKIE","1209","myślenicki","1209075","Sułkowice - obszar wiejski"]
["PL","Polska","12","MAŁOPOLSKIE","1209","myślenicki","1209082","Tokarnia - gmina wiejska"]
["PL","Polska","12","MAŁOPOLSKIE","1209","myślenicki","1209092","Wiśniowa - gmina wiejska"]
["PL","Polska","12","MAŁOPOLSKIE","1210","nowosądecki","1210011","Grybów - gmina miejska"]
["PL","Polska","12","MAŁOPOLSKIE","1210","nowosądecki",1210022,"Chełmiec - gmina wiejska"]
["PL","Polska","12","MAŁOPOLSKIE","1210","nowosądecki","1210032","Gródek nad Dunajcem - gmina wiejska"]
["PL","Polska","12","MAŁOPOLSKIE","1210","nowosądecki","1210042","Grybów - gmina wiejska"]
["PL","Polska","12","MAŁOPOLSKIE","1210","nowosądecki","1210052","Kamionka Wielka - gmina wiejska"]
["PL","Polska","12","MAŁOPOLSKIE","1210","nowosądecki","1210062","Korzenna - gmina wiejska"]
["PL","Polska","12","MAŁOPOLSKIE","1210","nowosądecki","1210074","Krynica-Zdrój - miasto"]
["PL","Polska","12","MAŁOPOLSKIE","1210","nowosądecki","1210075","Krynica-Zdrój - obszar wiejski"]
["PL","Polska","12","MAŁOPOLSKIE","1210","nowosądecki","1210082","Łabowa - gmina wiejska"]
["PL","Polska","12","MAŁOPOLSKIE","1210","nowosądecki","1210092","Łącko - gmina wiejska"]
["PL","Polska","12","MAŁOPOLSKIE","1210","nowosądecki","1210102","Łososina Dolna - gmina wiejska"]
["PL","Polska","12","MAŁOPOLSKIE","1210","nowosądecki","1210114","Muszyna - miasto"]
["PL","Polska","12","MAŁOPOLSKIE","1210","nowosądecki","1210115","Muszyna - obszar wiejski"]
["PL","Polska","12","MAŁOPOLSKIE","1210","nowosądecki","1210122","Nawojowa - gmina wiejska"]
["PL","Polska","12","MAŁOPOLSKIE","1210","nowosądecki","1210134","Piwniczna-Zdrój - miasto"]
["PL","Polska","12","MAŁOPOLSKIE","1210","nowosądecki","1210135","Piwniczna-Zdrój - obszar wiejski"]
["PL","Polska","12","MAŁOPOLSKIE","1210","nowosądecki","1210142","Podegrodzie - gmina wiejska"]
["PL","Polska","12","MAŁOPOLSKIE","1210","nowosądecki","1210152","Rytro - gmina wiejska"]
["PL","Polska","12","MAŁOPOLSKIE","1210","nowosądecki","1210164","Stary Sącz - miasto"]
["PL","Polska","12","MAŁOPOLSKIE","1210","nowosądecki","1210165","Stary Sącz - obszar wiejski"]
["PL","Polska","12","MAŁOPOLSKIE","1211","nowotarski","1211011","Nowy Targ - gmina miejska"]
["PL","Polska","12","MAŁOPOLSKIE","1211","nowotarski","1211024","Szczawnica - miasto"]
["PL","Polska","12","MAŁOPOLSKIE","1211","nowotarski","1211025","Szczawnica - obszar wiejski"]
["PL","Polska","12","MAŁOPOLSKIE","1211","nowotarski",1211034,"Czarny Dunajec - miasto"]
["PL","Polska","12","MAŁOPOLSKIE","1211","nowotarski",1211035,"Czarny Dunajec - obszar wiejski"]
["PL","Polska","12","MAŁOPOLSKIE","1211","nowotarski","1211042","Czorsztyn - gmina wiejska"]
["PL","Polska","12","MAŁOPOLSKIE","1211","nowotarski","1211052","Jabłonka - gmina wiejska"]
["PL","Polska","12","MAŁOPOLSKIE","1211","nowotarski","1211062","Krościenko nad Dunajcem - gmina wiejska"]
["PL","Polska","12","MAŁOPOLSKIE","1211","nowotarski","1211072","Lipnica Wielka - gmina wiejska"]
["PL","Polska","12","MAŁOPOLSKIE","1211","nowotarski","1211082","Łapsze Niżne - gmina wiejska"]
["PL","Polska","12","MAŁOPOLSKIE","1211","nowotarski","1211092","Nowy Targ - gmina wiejska"]
["PL","Polska","12","MAŁOPOLSKIE","1211","nowotarski","1211102","Ochotnica Dolna - gmina wiejska"]
["PL","Polska","12","MAŁOPOLSKIE","1211","nowotarski","1211112","Raba Wyżna - gmina wiejska"]
["PL","Polska","12","MAŁOPOLSKIE","1211","nowotarski","1211124","Rabka-Zdrój - miasto"]
["PL","Polska","12","MAŁOPOLSKIE","1211","nowotarski","1211125","Rabka-Zdrój - obszar wiejski"]
["PL","Polska","12","MAŁOPOLSKIE","1211","nowotarski","1211132","Spytkowice - gmina wiejska"]
["PL","Polska","12","MAŁOPOLSKIE","1211","nowotarski","1211142","Szaflary - gmina wiejska"]
["PL","Polska","12","MAŁOPOLSKIE","1212","olkuski","1212011","Bukowno - gmina miejska"]
["PL","Polska","12","MAŁOPOLSKIE","1212","olkuski","1212032","Bolesław - gmina wiejska"]
["PL","Polska","12","MAŁOPOLSKIE","1212","olkuski","1212042","Klucze - gmina wiejska"]
["PL","Polska","12","MAŁOPOLSKIE","1212","olkuski","1212054","Olkusz - miasto"]
["PL","Polska","12","MAŁOPOLSKIE","1212","olkuski","1212055","Olkusz - obszar wiejski"]
["PL","Polska","12","MAŁOPOLSKIE","1212","olkuski","1212062","Trzyciąż - gmina wiejska"]
["PL","Polska","12","MAŁOPOLSKIE","1212","olkuski","1212074","Wolbrom - miasto"]
["PL","Polska","12","MAŁOPOLSKIE","1212","olkuski","1212075","Wolbrom - obszar wiejski"]
["PL","Polska","12","MAŁOPOLSKIE","1213","oświęcimski","1213011","Oświęcim - gmina miejska"]
["PL","Polska","12","MAŁOPOLSKIE","1213","oświęcimski","1213024","Brzeszcze - miasto"]
["PL","Polska","12","MAŁOPOLSKIE","1213","oświęcimski","1213025","Brzeszcze - obszar wiejski"]
["PL","Polska","12","MAŁOPOLSKIE","1213","oświęcimski","1213034","Chełmek - miasto"]
["PL","Polska","12","MAŁOPOLSKIE","1213","oświęcimski","1213035","Chełmek - obszar wiejski"]
["PL","Polska","12","MAŁOPOLSKIE","1213","oświęcimski","1213044","Kęty - miasto"]
["PL","Polska","12","MAŁOPOLSKIE","1213","oświęcimski","1213045","Kęty - obszar wiejski"]
["PL","Polska","12","MAŁOPOLSKIE","1213","oświęcimski","1213052","Osiek - gmina wiejska"]
["PL","Polska","12","MAŁOPOLSKIE","1213","oświęcimski","1213062","Oświęcim - gmina wiejska"]
["PL","Polska","12","MAŁOPOLSKIE","1213","oświęcimski","1213072","Polanka Wielka - gmina wiejska"]
["PL","Polska","12","MAŁOPOLSKIE","1213","oświęcimski","1213082","Przeciszów - gmina wiejska"]
["PL","Polska","12","MAŁOPOLSKIE","1213","oświęcimski","1213094","Zator - miasto"]
["PL","Polska","12","MAŁOPOLSKIE","1213","oświęcimski","1213095","Zator - obszar wiejski"]
["PL","Polska","12","MAŁOPOLSKIE","1214","proszowicki","1214012","Koniusza - gmina wiejska"]
["PL","Polska",12,"MAŁOPOLSKIE",1214,"proszowicki",1214024,"Koszyce - miasto"]
["PL","Polska","12","MAŁOPOLSKIE","1214","proszowicki",1214025,"Koszyce - obszar wiejski"]
["PL","Polska","12","MAŁOPOLSKIE","1214","proszowicki","1214034","Nowe Brzesko - miasto"]
["PL","Polska","12","MAŁOPOLSKIE","1214","proszowicki","1214035","Nowe Brzesko - obszar wiejski"]
["PL","Polska","12","MAŁOPOLSKIE","1214","proszowicki","1214042","Pałecznica - gmina wiejska"]
["PL","Polska","12","MAŁOPOLSKIE","1214","proszowicki","1214054","Proszowice - miasto"]
["PL","Polska","12","MAŁOPOLSKIE","1214","proszowicki","1214055","Proszowice - obszar wiejski"]
["PL","Polska","12","MAŁOPOLSKIE","1214","proszowicki","1214062","Radziemice - gmina wiejska"]
["PL","Polska","12","MAŁOPOLSKIE","1215","suski","1215011","Jordanów - gmina miejska"]
["PL","Polska","12","MAŁOPOLSKIE","1215","suski","1215021","Sucha Beskidzka - gmina miejska"]
["PL","Polska","12","MAŁOPOLSKIE","1215","suski","1215032","Budzów - gmina wiejska"]
["PL","Polska","12","MAŁOPOLSKIE","1215","suski","1215042","Bystra-Sidzina - gmina wiejska"]
["PL","Polska","12","MAŁOPOLSKIE","1215","suski","1215052","Jordanów - gmina wiejska"]
["PL","Polska","12","MAŁOPOLSKIE","1215","suski","1215064","Maków Podhalański - miasto"]
["PL","Polska","12","MAŁOPOLSKIE","1215","suski","1215065","Maków Podhalański - obszar wiejski"]
["PL","Polska","12","MAŁOPOLSKIE","1215","suski","1215072","Stryszawa - gmina wiejska"]
["PL","Polska","12","MAŁOPOLSKIE","1215","suski","1215082","Zawoja - gmina wiejska"]
["PL","Polska","12","MAŁOPOLSKIE","1215","suski","1215092","Zembrzyce - gmina wiejska"]
["PL","Polska","12","MAŁOPOLSKIE","1216","tarnowski","1216014","Ciężkowice - miasto"]
["PL","Polska","12","MAŁOPOLSKIE","1216","tarnowski","1216015","Ciężkowice - obszar wiejski"]
["PL","Polska","12","MAŁOPOLSKIE","1216","tarnowski","1216022","Gromnik - gmina wiejska"]
["PL","Polska","12","MAŁOPOLSKIE","1216","tarnowski","1216032","Lisia Góra - gmina wiejska"]
["PL","Polska","12","MAŁOPOLSKIE","1216","tarnowski","1216042","Pleśna - gmina wiejska"]
["PL","Polska","12","MAŁOPOLSKIE","1216","tarnowski","1216054","Radłów - miasto"]
["PL","Polska","12","MAŁOPOLSKIE","1216","tarnowski","1216055","Radłów - obszar wiejski"]
["PL","Polska","12","MAŁOPOLSKIE","1216","tarnowski","1216064","Ryglice - miasto"]
["PL","Polska","12","MAŁOPOLSKIE","1216","tarnowski","1216065","Ryglice - obszar wiejski"]
["PL","Polska","12","MAŁOPOLSKIE","1216","tarnowski","1216072","Rzepiennik Strzyżewski - gmina wiejska"]
["PL","Polska","12","MAŁOPOLSKIE","1216","tarnowski","1216082","Skrzyszów - gmina wiejska"]
["PL","Polska","12","MAŁOPOLSKIE","1216","tarnowski","1216092","Tarnów - gmina wiejska"]
["PL","Polska","12","MAŁOPOLSKIE","1216","tarnowski","1216104","Tuchów - miasto"]
["PL","Polska","12","MAŁOPOLSKIE","1216","tarnowski","1216105","Tuchów - obszar wiejski"]
["PL","Polska","12","MAŁOPOLSKIE","1216","tarnowski","1216112","Wierzchosławice - gmina wiejska"]
["PL","Polska","12","MAŁOPOLSKIE","1216","tarnowski","1216122","Wietrzychowice - gmina wiejska"]
["PL","Polska","12","MAŁOPOLSKIE","1216","tarnowski","1216134","Wojnicz - miasto"]
["PL","Polska","12","MAŁOPOLSKIE","1216","tarnowski","1216135","Wojnicz - obszar wiejski"]
["PL","Polska","12","MAŁOPOLSKIE","1216","tarnowski","1216144","Zakliczyn - miasto"]
["PL","Polska","12","MAŁOPOLSKIE","1216","tarnowski","1216145","Zakliczyn - obszar wiejski"]
["PL","Polska","12","MAŁOPOLSKIE","1216","tarnowski","1216154","Żabno - miasto"]
["PL","Polska","12","MAŁOPOLSKIE","1216","tarnowski","1216155","Żabno - obszar wiejski"]
["PL","Polska","12","MAŁOPOLSKIE","1216","tarnowski","1216162","Szerzyny - gmina wiejska"]
["PL","Polska","12","MAŁOPOLSKIE","1217","tatrzański","1217011","Zakopane - gmina miejska"]
["PL","Polska","12","MAŁOPOLSKIE","1217","tatrzański","1217022","Biały Dunajec - gmina wiejska"]
["PL","Polska","12","MAŁOPOLSKIE","1217","tatrzański","1217032","Bukowina Tatrzańska - gmina wiejska"]
["PL","Polska","12","MAŁOPOLSKIE","1217","tatrzański","1217042","Kościelisko - gmina wiejska"]
["PL","Polska","12","MAŁOPOLSKIE","1217","tatrzański","1217052","Poronin - gmina wiejska"]
["PL","Polska","12","MAŁOPOLSKIE","1218","wadowicki","1218014","Andrychów - miasto"]
["PL","Polska","12","MAŁOPOLSKIE","1218","wadowicki","1218015","Andrychów - obszar wiejski"]
["PL","Polska","12","MAŁOPOLSKIE","1218","wadowicki","1218022","Brzeźnica - gmina wiejska"]
["PL","Polska","12","MAŁOPOLSKIE","1218","wadowicki","1218034","Kalwaria Zebrzydowska - miasto"]
["PL","Polska","12","MAŁOPOLSKIE","1218","wadowicki","1218035","Kalwaria Zebrzydowska - obszar wiejski"]
["PL","Polska","12","MAŁOPOLSKIE","1218","wadowicki","1218042","Lanckorona - gmina wiejska"]
["PL","Polska","12","MAŁOPOLSKIE","1218","wadowicki","1218052","Mucharz - gmina wiejska"]
["PL","Polska","12","MAŁOPOLSKIE","1218","wadowicki","1218062","Spytkowice - gmina wiejska"]
["PL","Polska","12","MAŁOPOLSKIE","1218","wadowicki","1218072","Stryszów - gmina wiejska"]
["PL","Polska","12","MAŁOPOLSKIE","1218","wadowicki","1218082","Tomice - gmina wiejska"]
["PL","Polska","12","MAŁOPOLSKIE","1218","wadowicki","1218094","Wadowice - miasto"]
["PL","Polska","12","MAŁOPOLSKIE","1218","wadowicki","1218095","Wadowice - obszar wiejski"]
["PL","Polska","12","MAŁOPOLSKIE","1218","wadowicki","1218102","Wieprz - gmina wiejska"]
["PL","Polska","12","MAŁOPOLSKIE","1219","wielicki","1219012","Biskupice - gmina wiejska"]
["PL","Polska","12","MAŁOPOLSKIE","1219","wielicki","1219022","Gdów - gmina wiejska"]
["PL","Polska","12","MAŁOPOLSKIE","1219","wielicki","1219032","Kłaj - gmina wiejska"]
["PL","Polska","12","MAŁOPOLSKIE","1219","wielicki","1219044","Niepołomice - miasto"]
["PL","Polska","12","MAŁOPOLSKIE","1219","wielicki","1219045","Niepołomice - obszar wiejski"]
["PL","Polska","12","MAŁOPOLSKIE","1219","wielicki","1219054","Wieliczka - miasto"]
["PL","Polska","12","MAŁOPOLSKIE","1219","wielicki","1219055","Wieliczka - obszar wiejski"]
["PL","Polska","12","MAŁOPOLSKIE","1261","Kraków",1261011,"Kraków - gmina miejska"]
["PL","Polska","12","MAŁOPOLSKIE","1261","Kraków","1261029","Kraków-Krowodrza - delegatura"]
["PL","Polska","12","MAŁOPOLSKIE","1261","Kraków","1261039","Kraków-Nowa Huta - delegatura"]
["PL","Polska","12","MAŁOPOLSKIE","1261","Kraków","1261049","Kraków-Podgórze - delegatura"]
["PL","Polska","12","MAŁOPOLSKIE","1261","Kraków","1261059","Kraków-Śródmieście - delegatura"]
["PL","Polska","12","MAŁOPOLSKIE","1262","Nowy Sącz","1262011","Nowy Sącz - gmina miejska"]
["PL","Polska","12","MAŁOPOLSKIE","1263","Tarnów","1263011","Tarnów - gmina miejska"]
["PL","Polska","14","MAZOWIECKIE","1401","białobrzeski","1401014","Białobrzegi - miasto"]
["PL","Polska","14","MAZOWIECKIE","1401","białobrzeski","1401015","Białobrzegi - obszar wiejski"]
["PL","Polska","14","MAZOWIECKIE","1401","białobrzeski","1401022","Promna - gmina wiejska"]
["PL","Polska","14","MAZOWIECKIE","1401","białobrzeski","1401032","Radzanów - gmina wiejska"]
["PL","Polska","14","MAZOWIECKIE","1401","białobrzeski","1401042","Stara Błotnica - gmina wiejska"]
["PL","Polska","14","MAZOWIECKIE","1401","białobrzeski","1401052","Stromiec - gmina wiejska"]
["PL","Polska","14","MAZOWIECKIE","1401","białobrzeski","1401064","Wyśmierzyce - miasto"]
["PL","Polska","14","MAZOWIECKIE","1401","białobrzeski","1401065","Wyśmierzyce - obszar wiejski"]
["PL","Polska","14","MAZOWIECKIE","1402","ciechanowski","1402011","Ciechanów - gmina miejska"]
["PL","Polska","14","MAZOWIECKIE","1402","ciechanowski","1402022","Ciechanów - gmina wiejska"]
["PL","Polska","14","MAZOWIECKIE","1402","ciechanowski","1402034","Glinojeck - miasto"]
["PL","Polska","14","MAZOWIECKIE","1402","ciechanowski","1402035","Glinojeck - obszar wiejski"]
["PL","Polska","14","MAZOWIECKIE","1402","ciechanowski","1402042","Gołymin-Ośrodek - gmina wiejska"]
["PL","Polska","14","MAZOWIECKIE","1402","ciechanowski","1402052","Grudusk - gmina wiejska"]
["PL","Polska","14","MAZOWIECKIE","1402","ciechanowski","1402062","Ojrzeń - gmina wiejska"]
["PL","Polska","14","MAZOWIECKIE","1402","ciechanowski","1402072","Opinogóra Górna - gmina wiejska"]
["PL","Polska","14","MAZOWIECKIE","1402","ciechanowski","1402082","Regimin - gmina wiejska"]
["PL","Polska","14","MAZOWIECKIE","1402","ciechanowski","1402092","Sońsk - gmina wiejska"]
["PL","Polska","14","MAZOWIECKIE","1403","garwoliński","1403011","Garwolin - gmina miejska"]
["PL","Polska","14","MAZOWIECKIE","1403","garwoliński","1403021","Łaskarzew - gmina miejska"]
["PL","Polska","14","MAZOWIECKIE","1403","garwoliński","1403032","Borowie - gmina wiejska"]
["PL","Polska","14","MAZOWIECKIE","1403","garwoliński","1403042","Garwolin - gmina wiejska"]
["PL","Polska","14","MAZOWIECKIE","1403","garwoliński","1403052","Górzno - gmina wiejska"]
["PL","Polska","14","MAZOWIECKIE","1403","garwoliński","1403062","Łaskarzew - gmina wiejska"]
["PL","Polska","14","MAZOWIECKIE","1403","garwoliński","1403074","Maciejowice - miasto"]
["PL","Polska","14","MAZOWIECKIE","1403","garwoliński","1403075","Maciejowice - obszar wiejski"]
["PL","Polska","14","MAZOWIECKIE","1403","garwoliński","1403082","Miastków Kościelny - gmina wiejska"]
["PL","Polska","14","MAZOWIECKIE","1403","garwoliński","1403092","Parysów - gmina wiejska"]
["PL","Polska","14","MAZOWIECKIE","1403","garwoliński","1403104","Pilawa - miasto"]
["PL","Polska","14","MAZOWIECKIE","1403","garwoliński","1403105","Pilawa - obszar wiejski"]
["PL","Polska","14","MAZOWIECKIE","1403","garwoliński","1403112","Sobolew - gmina wiejska"]
["PL","Polska","14","MAZOWIECKIE","1403","garwoliński","1403122","Trojanów - gmina wiejska"]
["PL","Polska","14","MAZOWIECKIE","1403","garwoliński","1403132","Wilga - gmina wiejska"]
["PL","Polska","14","MAZOWIECKIE","1403","garwoliński","1403144","Żelechów - miasto"]
["PL","Polska","14","MAZOWIECKIE","1403","garwoliński","1403145","Żelechów - obszar wiejski"]
["PL","Polska","14","MAZOWIECKIE","1404","gostyniński","1404011","Gostynin - gmina miejska"]
["PL","Polska","14","MAZOWIECKIE","1404","gostyniński","1404022","Gostynin - gmina wiejska"]
["PL","Polska","14","MAZOWIECKIE","1404","gostyniński","1404032","Pacyna - gmina wiejska"]
["PL","Polska","14","MAZOWIECKIE","1404","gostyniński",1404044,"Sanniki - miasto"]
["PL","Polska","14","MAZOWIECKIE","1404","gostyniński",1404045,"Sanniki - obszar wiejski"]
["PL","Polska","14","MAZOWIECKIE","1404","gostyniński","1404052","Szczawin Kościelny - gmina wiejska"]
["PL","Polska","14","MAZOWIECKIE","1405","grodziski","1405011","Milanówek - gmina miejska"]
["PL","Polska","14","MAZOWIECKIE","1405","grodziski","1405021","Podkowa Leśna - gmina miejska"]
["PL","Polska","14","MAZOWIECKIE","1405","grodziski","1405032","Baranów - gmina wiejska"]
["PL","Polska","14","MAZOWIECKIE","1405","grodziski","1405044","Grodzisk Mazowiecki - miasto"]
["PL","Polska","14","MAZOWIECKIE","1405","grodziski","1405045","Grodzisk Mazowiecki - obszar wiejski"]
["PL","Polska","14","MAZOWIECKIE","1405","grodziski","1405052","Jaktorów - gmina wiejska"]
["PL","Polska","14","MAZOWIECKIE","1405","grodziski","1405062","Żabia Wola - gmina wiejska"]
["PL","Polska","14","MAZOWIECKIE","1406","grójecki","1406012","Belsk Duży - gmina wiejska"]
["PL","Polska","14","MAZOWIECKIE","1406","grójecki","1406022","Błędów - gmina wiejska"]
["PL","Polska","14","MAZOWIECKIE","1406","grójecki","1406032","Chynów - gmina wiejska"]
["PL","Polska","14","MAZOWIECKIE","1406","grójecki","1406042","Goszczyn - gmina wiejska"]
["PL","Polska","14","MAZOWIECKIE","1406","grójecki","1406054","Grójec - miasto"]
["PL","Polska","14","MAZOWIECKIE","1406","grójecki","1406055","Grójec - obszar wiejski"]
["PL","Polska","14","MAZOWIECKIE","1406","grójecki","1406062","Jasieniec - gmina wiejska"]
["PL","Polska","14","MAZOWIECKIE","1406","grójecki","1406074","Mogielnica - miasto"]
["PL","Polska","14","MAZOWIECKIE","1406","grójecki","1406075","Mogielnica - obszar wiejski"]
["PL","Polska","14","MAZOWIECKIE","1406","grójecki","1406084","Nowe Miasto nad Pilicą - miasto"]
["PL","Polska","14","MAZOWIECKIE","1406","grójecki","1406085","Nowe Miasto nad Pilicą - obszar wiejski"]
["PL","Polska","14","MAZOWIECKIE","1406","grójecki","1406092","Pniewy - gmina wiejska"]
["PL","Polska","14","MAZOWIECKIE","1406","grójecki","1406114","Warka - miasto"]
["PL","Polska","14","MAZOWIECKIE","1406","grójecki","1406115","Warka - obszar wiejski"]
["PL","Polska","14","MAZOWIECKIE","1407","kozienicki","1407012","Garbatka-Letnisko - gmina wiejska"]
["PL","Polska","14","MAZOWIECKIE","1407","kozienicki","1407024","Głowaczów - miasto"]
["PL","Polska","14","MAZOWIECKIE","1407","kozienicki","1407025","Głowaczów - obszar wiejski"]
["PL","Polska","14","MAZOWIECKIE","1407","kozienicki","1407032","Gniewoszów - gmina wiejska"]
["PL","Polska","14","MAZOWIECKIE","1407","kozienicki","1407042","Grabów nad Pilicą - gmina wiejska"]
["PL","Polska","14","MAZOWIECKIE","1407","kozienicki","1407054","Kozienice - miasto"]
["PL","Polska","14","MAZOWIECKIE","1407","kozienicki","1407055","Kozienice - obszar wiejski"]
["PL","Polska","14","MAZOWIECKIE","1407","kozienicki","1407064","Magnuszew - miasto"]
["PL","Polska","14","MAZOWIECKIE","1407","kozienicki","1407065","Magnuszew - obszar wiejski"]
["PL","Polska","14","MAZOWIECKIE","1407","kozienicki","1407072","Sieciechów - gmina wiejska"]
["PL","Polska","14","MAZOWIECKIE","1408","legionowski","1408011","Legionowo - gmina miejska"]
["PL","Polska","14","MAZOWIECKIE","1408","legionowski","1408022","Jabłonna - gmina wiejska"]
["PL","Polska","14","MAZOWIECKIE","1408","legionowski","1408032","Nieporęt - gmina wiejska"]
["PL","Polska","14","MAZOWIECKIE","1408","legionowski","1408044","Serock - miasto"]
["PL","Polska","14","MAZOWIECKIE","1408","legionowski","1408045","Serock - obszar wiejski"]
["PL","Polska","14","MAZOWIECKIE","1408","legionowski","1408052","Wieliszew - gmina wiejska"]
["PL","Polska","14","MAZOWIECKIE","1409","lipski","1409012","Chotcza - gmina wiejska"]
["PL","Polska","14","MAZOWIECKIE","1409","lipski","1409024","Ciepielów - miasto"]
["PL","Polska","14","MAZOWIECKIE","1409","lipski","1409025","Ciepielów - obszar wiejski"]
["PL","Polska","14","MAZOWIECKIE","1409","lipski","1409034","Lipsko - miasto"]
["PL","Polska","14","MAZOWIECKIE","1409","lipski","1409035","Lipsko - obszar wiejski"]
["PL","Polska","14","MAZOWIECKIE","1409","lipski","1409042","Rzeczniów - gmina wiejska"]
["PL","Polska","14","MAZOWIECKIE","1409","lipski","1409054","Sienno - miasto"]
["PL","Polska","14","MAZOWIECKIE","1409","lipski","1409055","Sienno - obszar wiejski"]
["PL","Polska","14","MAZOWIECKIE","1409","lipski",1409064,"Solec nad Wisłą - miasto"]
["PL","Polska","14","MAZOWIECKIE","1409","lipski",1409065,"Solec nad Wisłą - obszar wiejski"]
["PL","Polska","14","MAZOWIECKIE","1410","łosicki","1410012","Huszlew - gmina wiejska"]
["PL","Polska","14","MAZOWIECKIE","1410","łosicki","1410024","Łosice - miasto"]
["PL","Polska","14","MAZOWIECKIE","1410","łosicki","1410025","Łosice - obszar wiejski"]
["PL","Polska","14","MAZOWIECKIE","1410","łosicki","1410032","Olszanka - gmina wiejska"]
["PL","Polska","14","MAZOWIECKIE","1410","łosicki","1410042","Platerów - gmina wiejska"]
["PL","Polska","14","MAZOWIECKIE","1410","łosicki","1410052","Sarnaki - gmina wiejska"]
["PL","Polska","14","MAZOWIECKIE","1410","łosicki","1410062","Stara Kornica - gmina wiejska"]
["PL","Polska","14","MAZOWIECKIE","1411","makowski","1411011","Maków Mazowiecki - gmina miejska"]
["PL","Polska","14","MAZOWIECKIE","1411","makowski","1411022","Czerwonka - gmina wiejska"]
["PL","Polska","14","MAZOWIECKIE","1411","makowski","1411032","Karniewo - gmina wiejska"]
["PL","Polska","14","MAZOWIECKIE","1411","makowski","1411042","Krasnosielc - gmina wiejska"]
["PL","Polska","14","MAZOWIECKIE","1411","makowski","1411052","Młynarze - gmina wiejska"]
["PL","Polska","14","MAZOWIECKIE","1411","makowski","1411062","Płoniawy-Bramura - gmina wiejska"]
["PL","Polska","14","MAZOWIECKIE","1411","makowski","1411074","Różan - miasto"]
["PL","Polska","14","MAZOWIECKIE","1411","makowski","1411075","Różan - obszar wiejski"]
["PL","Polska","14","MAZOWIECKIE","1411","makowski","1411082","Rzewnie - gmina wiejska"]
["PL","Polska","14","MAZOWIECKIE","1411","makowski","1411092","Sypniewo - gmina wiejska"]
["PL","Polska","14","MAZOWIECKIE","1411","makowski","1411102","Szelków - gmina wiejska"]
["PL","Polska","14","MAZOWIECKIE","1412","miński","1412011","Mińsk Mazowiecki - gmina miejska"]
["PL","Polska","14","MAZOWIECKIE","1412","miński",1412044,"Cegłów - miasto"]
["PL","Polska","14","MAZOWIECKIE","1412","miński",1412045,"Cegłów - obszar wiejski"]
["PL","Polska","14","MAZOWIECKIE","1412","miński","1412052","Dębe Wielkie - gmina wiejska"]
["PL","Polska","14","MAZOWIECKIE","1412","miński","1412064","Dobre - miasto"]
["PL","Polska","14","MAZOWIECKIE","1412","miński","1412065","Dobre - obszar wiejski"]
["PL","Polska","14","MAZOWIECKIE","1412","miński","1412074","Halinów - miasto"]
["PL","Polska","14","MAZOWIECKIE","1412","miński","1412075","Halinów - obszar wiejski"]
["PL","Polska","14","MAZOWIECKIE","1412","miński","1412082","Jakubów - gmina wiejska"]
["PL","Polska","14","MAZOWIECKIE","1412","miński","1412094","Kałuszyn - miasto"]
["PL","Polska","14","MAZOWIECKIE","1412","miński","1412095","Kałuszyn - obszar wiejski"]
["PL","Polska","14","MAZOWIECKIE","1412","miński",1412104,"Latowicz - miasto"]
["PL","Polska","14","MAZOWIECKIE","1412","miński",1412105,"Latowicz - obszar wiejski"]
["PL","Polska","14","MAZOWIECKIE","1412","miński","1412112","Mińsk Mazowiecki - gmina wiejska"]
["PL","Polska","14","MAZOWIECKIE","1412","miński","1412124","Mrozy - miasto"]
["PL","Polska","14","MAZOWIECKIE","1412","miński","1412125","Mrozy - obszar wiejski"]
["PL","Polska","14","MAZOWIECKIE","1412","miński","1412134","Siennica - miasto"]
["PL","Polska","14","MAZOWIECKIE","1412","miński","1412135","Siennica - obszar wiejski"]
["PL","Polska","14","MAZOWIECKIE","1412","miński",1412144,"Stanisławów - miasto"]
["PL","Polska","14","MAZOWIECKIE","1412","miński",1412145,"Stanisławów -  obszar wiejski"]
["PL","Polska","14","MAZOWIECKIE","1412","miński","1412151","Sulejówek - gmina miejska"]
["PL","Polska","14","MAZOWIECKIE","1413","mławski","1413011","Mława - gmina miejska"]
["PL","Polska","14","MAZOWIECKIE","1413","mławski","1413022","Dzierzgowo - gmina wiejska"]
["PL","Polska","14","MAZOWIECKIE","1413","mławski","1413032","Lipowiec Kościelny - gmina wiejska"]
["PL","Polska","14","MAZOWIECKIE","1413","mławski","1413042","Radzanów - gmina wiejska"]
["PL","Polska","14","MAZOWIECKIE","1413","mławski","1413052","Strzegowo - gmina wiejska"]
["PL","Polska","14","MAZOWIECKIE","1413","mławski","1413062","Stupsk - gmina wiejska"]
["PL","Polska","14","MAZOWIECKIE","1413","mławski","1413072","Szreńsk - gmina wiejska"]
["PL","Polska","14","MAZOWIECKIE","1413","mławski","1413082","Szydłowo - gmina wiejska"]
["PL","Polska","14","MAZOWIECKIE","1413","mławski","1413092","Wieczfnia Kościelna - gmina wiejska"]
["PL","Polska","14","MAZOWIECKIE","1413","mławski","1413102","Wiśniewo - gmina wiejska"]
["PL","Polska","14","MAZOWIECKIE","1414","nowodworski","1414011","Nowy Dwór Mazowiecki - gmina miejska"]
["PL","Polska","14","MAZOWIECKIE","1414","nowodworski","1414022","Czosnów - gmina wiejska"]
["PL","Polska","14","MAZOWIECKIE","1414","nowodworski","1414032","Leoncin - gmina wiejska"]
["PL","Polska","14","MAZOWIECKIE","1414","nowodworski","1414044","Nasielsk - miasto"]
["PL","Polska","14","MAZOWIECKIE","1414","nowodworski","1414045","Nasielsk - obszar wiejski"]
["PL","Polska","14","MAZOWIECKIE","1414","nowodworski","1414052","Pomiechówek - gmina wiejska"]
["PL","Polska","14","MAZOWIECKIE","1414","nowodworski","1414064","Zakroczym - miasto"]
["PL","Polska","14","MAZOWIECKIE","1414","nowodworski","1414065","Zakroczym - obszar wiejski"]
["PL","Polska","14","MAZOWIECKIE","1415","ostrołęcki","1415012","Baranowo - gmina wiejska"]
["PL","Polska","14","MAZOWIECKIE","1415","ostrołęcki","1415022","Czarnia - gmina wiejska"]
["PL","Polska","14","MAZOWIECKIE","1415","ostrołęcki","1415032","Czerwin - gmina wiejska"]
["PL","Polska","14","MAZOWIECKIE","1415","ostrołęcki","1415042","Goworowo - gmina wiejska"]
["PL","Polska","14","MAZOWIECKIE","1415","ostrołęcki","1415052","Kadzidło - gmina wiejska"]
["PL","Polska","14","MAZOWIECKIE","1415","ostrołęcki","1415062","Lelis - gmina wiejska"]
["PL","Polska","14","MAZOWIECKIE","1415","ostrołęcki","1415072","Łyse - gmina wiejska"]
["PL","Polska","14","MAZOWIECKIE","1415","ostrołęcki","1415084","Myszyniec - miasto"]
["PL","Polska","14","MAZOWIECKIE","1415","ostrołęcki","1415085","Myszyniec - obszar wiejski"]
["PL","Polska","14","MAZOWIECKIE","1415","ostrołęcki","1415092","Olszewo-Borki - gmina wiejska"]
["PL","Polska","14","MAZOWIECKIE","1415","ostrołęcki","1415102","Rzekuń - gmina wiejska"]
["PL","Polska","14","MAZOWIECKIE","1415","ostrołęcki","1415112","Troszyn - gmina wiejska"]
["PL","Polska","14","MAZOWIECKIE","1416","ostrowski","1416011","Ostrów Mazowiecka - gmina miejska"]
["PL","Polska","14","MAZOWIECKIE","1416","ostrowski","1416022","Andrzejewo - gmina wiejska"]
["PL","Polska","14","MAZOWIECKIE","1416","ostrowski","1416032","Boguty-Pianki - gmina wiejska"]
["PL","Polska","14","MAZOWIECKIE","1416","ostrowski","1416044","Brok - miasto"]
["PL","Polska","14","MAZOWIECKIE","1416","ostrowski","1416045","Brok - obszar wiejski"]
["PL","Polska","14","MAZOWIECKIE","1416","ostrowski",1416054,"Małkinia Górna - miasto"]
["PL","Polska","14","MAZOWIECKIE","1416","ostrowski",1416055,"Małkinia Górna -  obszar wiejski"]
["PL","Polska","14","MAZOWIECKIE","1416","ostrowski","1416062","Nur - gmina wiejska"]
["PL","Polska","14","MAZOWIECKIE","1416","ostrowski","1416072","Ostrów Mazowiecka - gmina wiejska"]
["PL","Polska","14","MAZOWIECKIE","1416","ostrowski","1416082","Stary Lubotyń - gmina wiejska"]
["PL","Polska","14","MAZOWIECKIE","1416","ostrowski","1416092","Szulborze Wielkie - gmina wiejska"]
["PL","Polska","14","MAZOWIECKIE","1416","ostrowski","1416102","Wąsewo - gmina wiejska"]
["PL","Polska","14","MAZOWIECKIE","1416","ostrowski","1416112","Zaręby Kościelne - gmina wiejska"]
["PL","Polska","14","MAZOWIECKIE","1417","otwocki","1417011","Józefów - gmina miejska"]
["PL","Polska","14","MAZOWIECKIE","1417","otwocki","1417021","Otwock - gmina miejska"]
["PL","Polska","14","MAZOWIECKIE","1417","otwocki","1417032","Celestynów - gmina wiejska"]
["PL","Polska","14","MAZOWIECKIE","1417","otwocki","1417044","Karczew - miasto"]
["PL","Polska","14","MAZOWIECKIE","1417","otwocki","1417045","Karczew - obszar wiejski"]
["PL","Polska","14","MAZOWIECKIE","1417","otwocki","1417052","Kołbiel - gmina wiejska"]
["PL","Polska","14","MAZOWIECKIE","1417","otwocki","1417064","Osieck - miasto"]
["PL","Polska","14","MAZOWIECKIE","1417","otwocki","1417065","Osieck - obszar wiejski"]
["PL","Polska","14","MAZOWIECKIE","1417","otwocki","1417072","Sobienie-Jeziory - gmina wiejska"]
["PL","Polska","14","MAZOWIECKIE","1417","otwocki","1417082","Wiązowna - gmina wiejska"]
["PL","Polska","14","MAZOWIECKIE","1418","piaseczyński","1418014","Góra Kalwaria - miasto"]
["PL","Polska","14","MAZOWIECKIE","1418","piaseczyński","1418015","Góra Kalwaria - obszar wiejski"]
["PL","Polska","14","MAZOWIECKIE","1418","piaseczyński","1418024","Konstancin-Jeziorna - miasto"]
["PL","Polska","14","MAZOWIECKIE","1418","piaseczyński","1418025","Konstancin-Jeziorna - obszar wiejski"]
["PL","Polska","14","MAZOWIECKIE","1418","piaseczyński","1418032","Lesznowola - gmina wiejska"]
["PL","Polska","14","MAZOWIECKIE","1418","piaseczyński","1418044","Piaseczno - miasto"]
["PL","Polska","14","MAZOWIECKIE","1418","piaseczyński","1418045","Piaseczno - obszar wiejski"]
["PL","Polska","14","MAZOWIECKIE","1418","piaseczyński","1418052","Prażmów - gmina wiejska"]
["PL","Polska","14","MAZOWIECKIE","1418","piaseczyński","1418064","Tarczyn - miasto"]
["PL","Polska","14","MAZOWIECKIE","1418","piaseczyński","1418065","Tarczyn - obszar wiejski"]
["PL","Polska","14","MAZOWIECKIE","1419","płocki","1419012","Bielsk - gmina wiejska"]
["PL","Polska","14","MAZOWIECKIE","1419","płocki",1419024,"Bodzanów - miasto"]
["PL","Polska","14","MAZOWIECKIE","1419","płocki",1419025,"Bodzanów - obszar wiejski"]
["PL","Polska","14","MAZOWIECKIE","1419","płocki","1419032","Brudzeń Duży - gmina wiejska"]
["PL","Polska","14","MAZOWIECKIE","1419","płocki","1419042","Bulkowo - gmina wiejska"]
["PL","Polska","14","MAZOWIECKIE","1419","płocki","1419054","Drobin - miasto"]
["PL","Polska","14","MAZOWIECKIE","1419","płocki","1419055","Drobin - obszar wiejski"]
["PL","Polska","14","MAZOWIECKIE","1419","płocki","1419064","Gąbin - miasto"]
["PL","Polska","14","MAZOWIECKIE","1419","płocki","1419065","Gąbin - obszar wiejski"]
["PL","Polska","14","MAZOWIECKIE","1419","płocki","1419072","Łąck - gmina wiejska"]
["PL","Polska","14","MAZOWIECKIE","1419","płocki","1419082","Mała Wieś - gmina wiejska"]
["PL","Polska","14","MAZOWIECKIE","1419","płocki","1419092","Nowy Duninów - gmina wiejska"]
["PL","Polska","14","MAZOWIECKIE","1419","płocki","1419102","Radzanowo - gmina wiejska"]
["PL","Polska","14","MAZOWIECKIE","1419","płocki","1419112","Słubice - gmina wiejska"]
["PL","Polska","14","MAZOWIECKIE","1419","płocki","1419122","Słupno - gmina wiejska"]
["PL","Polska","14","MAZOWIECKIE","1419","płocki","1419132","Stara Biała - gmina wiejska"]
["PL","Polska","14","MAZOWIECKIE","1419","płocki",1419144,"Staroźreby - miasto"]
["PL","Polska","14","MAZOWIECKIE","1419","płocki",1419145,"Staroźreby -  obszar wiejski"]
["PL","Polska","14","MAZOWIECKIE","1419","płocki","1419154","Wyszogród - miasto"]
["PL","Polska","14","MAZOWIECKIE","1419","płocki","1419155","Wyszogród - obszar wiejski"]
["PL","Polska","14","MAZOWIECKIE","1420","płoński","1420011","Płońsk - gmina miejska"]
["PL","Polska","14","MAZOWIECKIE","1420","płoński","1420021","Raciąż - gmina miejska"]
["PL","Polska","14","MAZOWIECKIE","1420","płoński","1420032","Baboszewo - gmina wiejska"]
["PL","Polska","14","MAZOWIECKIE","1420","płoński",1420044,"Czerwińsk nad Wisłą - miasto"]
["PL","Polska","14","MAZOWIECKIE","1420","płoński",1420045,"Czerwińsk nad Wisłą - obszar wiejski"]
["PL","Polska","14","MAZOWIECKIE","1420","płoński","1420052","Dzierzążnia - gmina wiejska"]
["PL","Polska","14","MAZOWIECKIE","1420","płoński","1420062","Joniec - gmina wiejska"]
["PL","Polska","14","MAZOWIECKIE","1420","płoński","1420072","Naruszewo - gmina wiejska"]
["PL","Polska","14","MAZOWIECKIE","1420","płoński",1420084,"Nowe Miasto - miasto"]
["PL","Polska","14","MAZOWIECKIE","1420","płoński",1420085,"Nowe Miasto - obszar wiejski"]
["PL","Polska","14","MAZOWIECKIE","1420","płoński","1420092","Płońsk - gmina wiejska"]
["PL","Polska","14","MAZOWIECKIE","1420","płoński","1420102","Raciąż - gmina wiejska"]
["PL","Polska","14","MAZOWIECKIE","1420","płoński",1420114,"Sochocin - miasto"]
["PL","Polska","14","MAZOWIECKIE","1420","płoński",1420115,"Sochocin - obszar wiejski"]
["PL","Polska","14","MAZOWIECKIE","1420","płoński","1420122","Załuski - gmina wiejska"]
["PL","Polska","14","MAZOWIECKIE","1421","pruszkowski","1421011","Piastów - gmina miejska"]
["PL","Polska","14","MAZOWIECKIE","1421","pruszkowski","1421021","Pruszków - gmina miejska"]
["PL","Polska","14","MAZOWIECKIE","1421","pruszkowski","1421034","Brwinów - miasto"]
["PL","Polska","14","MAZOWIECKIE","1421","pruszkowski","1421035","Brwinów - obszar wiejski"]
["PL","Polska","14","MAZOWIECKIE","1421","pruszkowski","1421042","Michałowice - gmina wiejska"]
["PL","Polska","14","MAZOWIECKIE","1421","pruszkowski","1421052","Nadarzyn - gmina wiejska"]
["PL","Polska","14","MAZOWIECKIE","1421","pruszkowski","1421062","Raszyn - gmina wiejska"]
["PL","Polska","14","MAZOWIECKIE","1422","przasnyski","1422011","Przasnysz - gmina miejska"]
["PL","Polska","14","MAZOWIECKIE","1422","przasnyski","1422024","Chorzele - miasto"]
["PL","Polska","14","MAZOWIECKIE","1422","przasnyski","1422025","Chorzele - obszar wiejski"]
["PL","Polska","14","MAZOWIECKIE","1422","przasnyski","1422032","Czernice Borowe - gmina wiejska"]
["PL","Polska","14","MAZOWIECKIE","1422","przasnyski","1422042","Jednorożec - gmina wiejska"]
["PL","Polska","14","MAZOWIECKIE","1422","przasnyski","1422052","Krasne - gmina wiejska"]
["PL","Polska","14","MAZOWIECKIE","1422","przasnyski","1422062","Krzynowłoga Mała - gmina wiejska"]
["PL","Polska","14","MAZOWIECKIE","1422","przasnyski","1422072","Przasnysz - gmina wiejska"]
["PL","Polska","14","MAZOWIECKIE","1423","przysuski","1423012","Borkowice - gmina wiejska"]
["PL","Polska","14","MAZOWIECKIE","1423","przysuski","1423024","Gielniów - miasto"]
["PL","Polska","14","MAZOWIECKIE","1423","przysuski","1423025","Gielniów - obszar wiejski"]
["PL","Polska","14","MAZOWIECKIE","1423","przysuski","1423032","Klwów - gmina wiejska"]
["PL","Polska","14","MAZOWIECKIE","1423","przysuski","1423044","Odrzywół - miasto"]
["PL","Polska","14","MAZOWIECKIE","1423","przysuski","1423045","Odrzywół - obszar wiejski"]
["PL","Polska","14","MAZOWIECKIE","1423","przysuski","1423052","Potworów - gmina wiejska"]
["PL","Polska","14","MAZOWIECKIE","1423","przysuski","1423064","Przysucha - miasto"]
["PL","Polska","14","MAZOWIECKIE","1423","przysuski","1423065","Przysucha - obszar wiejski"]
["PL","Polska","14","MAZOWIECKIE","1423","przysuski","1423072","Rusinów - gmina wiejska"]
["PL","Polska","14","MAZOWIECKIE","1423","przysuski","1423082","Wieniawa - gmina wiejska"]
["PL","Polska","14","MAZOWIECKIE","1424","pułtuski","1424012","Gzy - gmina wiejska"]
["PL","Polska","14","MAZOWIECKIE","1424","pułtuski","1424022","Obryte - gmina wiejska"]
["PL","Polska","14","MAZOWIECKIE","1424","pułtuski","1424032","Pokrzywnica - gmina wiejska"]
["PL","Polska","14","MAZOWIECKIE","1424","pułtuski","1424044","Pułtusk - miasto"]
["PL","Polska","14","MAZOWIECKIE","1424","pułtuski","1424045","Pułtusk - obszar wiejski"]
["PL","Polska","14","MAZOWIECKIE","1424","pułtuski","1424052","Świercze - gmina wiejska"]
["PL","Polska","14","MAZOWIECKIE","1424","pułtuski","1424062","Winnica - gmina wiejska"]
["PL","Polska","14","MAZOWIECKIE","1424","pułtuski","1424072","Zatory - gmina wiejska"]
["PL","Polska","14","MAZOWIECKIE","1425","radomski","1425011","Pionki - gmina miejska"]
["PL","Polska","14","MAZOWIECKIE","1425","radomski","1425022","Gózd - gmina wiejska"]
["PL","Polska","14","MAZOWIECKIE","1425","radomski","1425034","Iłża - miasto"]
["PL","Polska","14","MAZOWIECKIE","1425","radomski","1425035","Iłża - obszar wiejski"]
["PL","Polska","14","MAZOWIECKIE","1425","radomski","1425042","Jastrzębia - gmina wiejska"]
["PL","Polska","14","MAZOWIECKIE","1425","radomski","1425052","Jedlińsk - gmina wiejska"]
["PL","Polska","14","MAZOWIECKIE","1425","radomski",1425064,"Jedlnia-Letnisko - miasto"]
["PL","Polska","14","MAZOWIECKIE","1425","radomski",1425065,"Jedlnia-Letnisko - obszar wiejski"]
["PL","Polska","14","MAZOWIECKIE","1425","radomski","1425072","Kowala - gmina wiejska"]
["PL","Polska","14","MAZOWIECKIE","1425","radomski","1425082","Pionki - gmina wiejska"]
["PL","Polska","14","MAZOWIECKIE","1425","radomski","1425094","Przytyk - miasto"]
["PL","Polska","14","MAZOWIECKIE","1425","radomski","1425095","Przytyk - obszar wiejski"]
["PL","Polska","14","MAZOWIECKIE","1425","radomski","1425104","Skaryszew - miasto"]
["PL","Polska","14","MAZOWIECKIE","1425","radomski","1425105","Skaryszew - obszar wiejski"]
["PL","Polska","14","MAZOWIECKIE","1425","radomski","1425112","Wierzbica - gmina wiejska"]
["PL","Polska","14","MAZOWIECKIE","1425","radomski","1425122","Wolanów - gmina wiejska"]
["PL","Polska","14","MAZOWIECKIE","1425","radomski","1425132","Zakrzew - gmina wiejska"]
["PL","Polska","14","MAZOWIECKIE","1426","siedlecki","1426012","Domanice - gmina wiejska"]
["PL","Polska","14","MAZOWIECKIE","1426","siedlecki","1426022","Korczew - gmina wiejska"]
["PL","Polska","14","MAZOWIECKIE","1426","siedlecki","1426032","Kotuń - gmina wiejska"]
["PL","Polska","14","MAZOWIECKIE","1426","siedlecki","1426042","Mokobody - gmina wiejska"]
["PL","Polska","14","MAZOWIECKIE","1426","siedlecki","1426054","Mordy - miasto"]
["PL","Polska","14","MAZOWIECKIE","1426","siedlecki","1426055","Mordy - obszar wiejski"]
["PL","Polska","14","MAZOWIECKIE","1426","siedlecki","1426062","Paprotnia - gmina wiejska"]
["PL","Polska","14","MAZOWIECKIE","1426","siedlecki","1426072","Przesmyki - gmina wiejska"]
["PL","Polska","14","MAZOWIECKIE","1426","siedlecki","1426082","Siedlce - gmina wiejska"]
["PL","Polska","14","MAZOWIECKIE","1426","siedlecki","1426092","Skórzec - gmina wiejska"]
["PL","Polska","14","MAZOWIECKIE","1426","siedlecki","1426102","Suchożebry - gmina wiejska"]
["PL","Polska","14","MAZOWIECKIE","1426","siedlecki","1426112","Wiśniew - gmina wiejska"]
["PL","Polska","14","MAZOWIECKIE","1426","siedlecki","1426122","Wodynie - gmina wiejska"]
["PL","Polska","14","MAZOWIECKIE","1426","siedlecki","1426132","Zbuczyn - gmina wiejska"]
["PL","Polska","14","MAZOWIECKIE","1427","sierpecki","1427011","Sierpc - gmina miejska"]
["PL","Polska","14","MAZOWIECKIE","1427","sierpecki","1427022","Gozdowo - gmina wiejska"]
["PL","Polska","14","MAZOWIECKIE","1427","sierpecki","1427032","Mochowo - gmina wiejska"]
["PL","Polska","14","MAZOWIECKIE","1427","sierpecki","1427042","Rościszewo - gmina wiejska"]
["PL","Polska","14","MAZOWIECKIE","1427","sierpecki","1427052","Sierpc - gmina wiejska"]
["PL","Polska","14","MAZOWIECKIE","1427","sierpecki","1427062","Szczutowo - gmina wiejska"]
["PL","Polska","14","MAZOWIECKIE","1427","sierpecki","1427072","Zawidz - gmina wiejska"]
["PL","Polska","14","MAZOWIECKIE","1428","sochaczewski","1428011","Sochaczew - gmina miejska"]
["PL","Polska","14","MAZOWIECKIE","1428","sochaczewski","1428022","Brochów - gmina wiejska"]
["PL","Polska","14","MAZOWIECKIE","1428","sochaczewski","1428032","Iłów - gmina wiejska"]
["PL","Polska","14","MAZOWIECKIE","1428","sochaczewski","1428042","Młodzieszyn - gmina wiejska"]
["PL","Polska","14","MAZOWIECKIE","1428","sochaczewski","1428052","Nowa Sucha - gmina wiejska"]
["PL","Polska","14","MAZOWIECKIE","1428","sochaczewski","1428062","Rybno - gmina wiejska"]
["PL","Polska","14","MAZOWIECKIE","1428","sochaczewski","1428072","Sochaczew - gmina wiejska"]
["PL","Polska","14","MAZOWIECKIE","1428","sochaczewski","1428082","Teresin - gmina wiejska"]
["PL","Polska","14","MAZOWIECKIE","1429","sokołowski","1429011","Sokołów Podlaski - gmina miejska"]
["PL","Polska","14","MAZOWIECKIE","1429","sokołowski","1429022","Bielany - gmina wiejska"]
["PL","Polska","14","MAZOWIECKIE","1429","sokołowski","1429032","Ceranów - gmina wiejska"]
["PL","Polska","14","MAZOWIECKIE","1429","sokołowski","1429042","Jabłonna Lacka - gmina wiejska"]
["PL","Polska","14","MAZOWIECKIE","1429","sokołowski","1429054","Kosów Lacki - miasto"]
["PL","Polska","14","MAZOWIECKIE","1429","sokołowski","1429055","Kosów Lacki - obszar wiejski"]
["PL","Polska","14","MAZOWIECKIE","1429","sokołowski","1429062","Repki - gmina wiejska"]
["PL","Polska","14","MAZOWIECKIE","1429","sokołowski","1429072","Sabnie - gmina wiejska"]
["PL","Polska","14","MAZOWIECKIE","1429","sokołowski","1429082","Sokołów Podlaski - gmina wiejska"]
["PL","Polska","14","MAZOWIECKIE","1429","sokołowski","1429092","Sterdyń - gmina wiejska"]
["PL","Polska","14","MAZOWIECKIE","1430","szydłowiecki","1430012","Chlewiska - gmina wiejska"]
["PL","Polska","14","MAZOWIECKIE","1430","szydłowiecki",1430024,"Jastrząb - miasto"]
["PL","Polska","14","MAZOWIECKIE","1430","szydłowiecki",1430025,"Jastrząb - obszar wiejski"]
["PL","Polska","14","MAZOWIECKIE","1430","szydłowiecki","1430032","Mirów - gmina wiejska"]
["PL","Polska","14","MAZOWIECKIE","1430","szydłowiecki","1430042","Orońsko - gmina wiejska"]
["PL","Polska","14","MAZOWIECKIE","1430","szydłowiecki","1430054","Szydłowiec - miasto"]
["PL","Polska","14","MAZOWIECKIE","1430","szydłowiecki","1430055","Szydłowiec - obszar wiejski"]
["PL","Polska","14","MAZOWIECKIE","1432","warszawski zachodni","1432014","Błonie - miasto"]
["PL","Polska","14","MAZOWIECKIE","1432","warszawski zachodni","1432015","Błonie - obszar wiejski"]
["PL","Polska","14","MAZOWIECKIE","1432","warszawski zachodni","1432022","Izabelin - gmina wiejska"]
["PL","Polska","14","MAZOWIECKIE","1432","warszawski zachodni","1432032","Kampinos - gmina wiejska"]
["PL","Polska","14","MAZOWIECKIE","1432","warszawski zachodni","1432042","Leszno - gmina wiejska"]
["PL","Polska","14","MAZOWIECKIE","1432","warszawski zachodni","1432054","Łomianki - miasto"]
["PL","Polska","14","MAZOWIECKIE","1432","warszawski zachodni","1432055","Łomianki - obszar wiejski"]
["PL","Polska","14","MAZOWIECKIE","1432","warszawski zachodni","1432064","Ożarów Mazowiecki - miasto"]
["PL","Polska","14","MAZOWIECKIE","1432","warszawski zachodni","1432065","Ożarów Mazowiecki - obszar wiejski"]
["PL","Polska","14","MAZOWIECKIE","1432","warszawski zachodni","1432072","Stare Babice - gmina wiejska"]
["PL","Polska","14","MAZOWIECKIE","1433","węgrowski","1433011","Węgrów - gmina miejska"]
["PL","Polska","14","MAZOWIECKIE","1433","węgrowski","1433022","Grębków - gmina wiejska"]
["PL","Polska","14","MAZOWIECKIE","1433","węgrowski","1433032","Korytnica - gmina wiejska"]
["PL","Polska","14","MAZOWIECKIE","1433","węgrowski","1433042","Liw - gmina wiejska"]
["PL","Polska","14","MAZOWIECKIE","1433","węgrowski","1433054","Łochów - miasto"]
["PL","Polska","14","MAZOWIECKIE","1433","węgrowski","1433055","Łochów - obszar wiejski"]
["PL","Polska","14","MAZOWIECKIE","1433","węgrowski","1433062","Miedzna - gmina wiejska"]
["PL","Polska","14","MAZOWIECKIE","1433","węgrowski","1433072","Sadowne - gmina wiejska"]
["PL","Polska","14","MAZOWIECKIE","1433","węgrowski","1433082","Stoczek - gmina wiejska"]
["PL","Polska","14","MAZOWIECKIE","1433","węgrowski","1433092","Wierzbno - gmina wiejska"]
["PL","Polska","14","MAZOWIECKIE","1434","wołomiński","1434011","Kobyłka - gmina miejska"]
["PL","Polska","14","MAZOWIECKIE","1434","wołomiński","1434021","Marki - gmina miejska"]
["PL","Polska","14","MAZOWIECKIE","1434","wołomiński","1434031","Ząbki - gmina miejska"]
["PL","Polska","14","MAZOWIECKIE","1434","wołomiński","1434041","Zielonka - gmina miejska"]
["PL","Polska","14","MAZOWIECKIE","1434","wołomiński","1434052","Dąbrówka - gmina wiejska"]
["PL","Polska","14","MAZOWIECKIE","1434","wołomiński",1434064,"Jadów - miasto"]
["PL","Polska","14","MAZOWIECKIE","1434","wołomiński",1434065,"Jadów - obszar wiejski"]
["PL","Polska","14","MAZOWIECKIE","1434","wołomiński","1434072","Klembów - gmina wiejska"]
["PL","Polska","14","MAZOWIECKIE","1434","wołomiński","1434082","Poświętne - gmina wiejska"]
["PL","Polska","14","MAZOWIECKIE","1434","wołomiński","1434094","Radzymin - miasto"]
["PL","Polska","14","MAZOWIECKIE","1434","wołomiński","1434095","Radzymin - obszar wiejski"]
["PL","Polska","14","MAZOWIECKIE","1434","wołomiński","1434102","Strachówka - gmina wiejska"]
["PL","Polska","14","MAZOWIECKIE","1434","wołomiński","1434114","Tłuszcz - miasto"]
["PL","Polska","14","MAZOWIECKIE","1434","wołomiński","1434115","Tłuszcz - obszar wiejski"]
["PL","Polska","14","MAZOWIECKIE","1434","wołomiński","1434124","Wołomin - miasto"]
["PL","Polska","14","MAZOWIECKIE","1434","wołomiński","1434125","Wołomin - obszar wiejski"]
["PL","Polska","14","MAZOWIECKIE","1435","wyszkowski","1435012","Brańszczyk - gmina wiejska"]
["PL","Polska","14","MAZOWIECKIE","1435","wyszkowski","1435022","Długosiodło - gmina wiejska"]
["PL","Polska","14","MAZOWIECKIE","1435","wyszkowski","1435032","Rząśnik - gmina wiejska"]
["PL","Polska","14","MAZOWIECKIE","1435","wyszkowski","1435042","Somianka - gmina wiejska"]
["PL","Polska","14","MAZOWIECKIE","1435","wyszkowski","1435054","Wyszków - miasto"]
["PL","Polska","14","MAZOWIECKIE","1435","wyszkowski","1435055","Wyszków - obszar wiejski"]
["PL","Polska","14","MAZOWIECKIE","1435","wyszkowski","1435062","Zabrodzie - gmina wiejska"]
["PL","Polska","14","MAZOWIECKIE","1436","zwoleński","1436014","Kazanów - miasto"]
["PL","Polska","14","MAZOWIECKIE","1436","zwoleński","1436015","Kazanów - obszar wiejski"]
["PL","Polska","14","MAZOWIECKIE","1436","zwoleński","1436022","Policzna - gmina wiejska"]
["PL","Polska","14","MAZOWIECKIE","1436","zwoleński","1436032","Przyłęk - gmina wiejska"]
["PL","Polska","14","MAZOWIECKIE","1436","zwoleński","1436042","Tczów - gmina wiejska"]
["PL","Polska","14","MAZOWIECKIE","1436","zwoleński","1436054","Zwoleń - miasto"]
["PL","Polska","14","MAZOWIECKIE","1436","zwoleński","1436055","Zwoleń - obszar wiejski"]
["PL","Polska","14","MAZOWIECKIE","1437","żuromiński","1437014","Bieżuń - miasto"]
["PL","Polska","14","MAZOWIECKIE","1437","żuromiński","1437015","Bieżuń - obszar wiejski"]
["PL","Polska","14","MAZOWIECKIE","1437","żuromiński","1437022","Kuczbork-Osada - gmina wiejska"]
["PL","Polska","14","MAZOWIECKIE","1437","żuromiński",1437034,"Lubowidz - miasto"]
["PL","Polska","14","MAZOWIECKIE","1437","żuromiński",1437035,"Lubowidz - obszar wiejski"]
["PL","Polska","14","MAZOWIECKIE","1437","żuromiński","1437042","Lutocin - gmina wiejska"]
["PL","Polska","14","MAZOWIECKIE","1437","żuromiński","1437052","Siemiątkowo - gmina wiejska"]
["PL","Polska","14","MAZOWIECKIE","1437","żuromiński","1437064","Żuromin - miasto"]
["PL","Polska","14","MAZOWIECKIE","1437","żuromiński","1437065","Żuromin - obszar wiejski"]
["PL","Polska","14","MAZOWIECKIE","1438","żyrardowski","1438011","Żyrardów - gmina miejska"]
["PL","Polska","14","MAZOWIECKIE","1438","żyrardowski","1438024","Mszczonów - miasto"]
["PL","Polska","14","MAZOWIECKIE","1438","żyrardowski","1438025","Mszczonów - obszar wiejski"]
["PL","Polska","14","MAZOWIECKIE","1438","żyrardowski","1438032","Puszcza Mariańska - gmina wiejska"]
["PL","Polska","14","MAZOWIECKIE","1438","żyrardowski","1438042","Radziejowice - gmina wiejska"]
["PL","Polska","14","MAZOWIECKIE","1438","żyrardowski",1438054,"Wiskitki - miasto"]
["PL","Polska","14","MAZOWIECKIE","1438","żyrardowski",1438055,"Wiskitki - obszar wiejski"]
["PL","Polska","14","MAZOWIECKIE","1461","Ostrołęka","1461011","Ostrołęka - gmina miejska"]
["PL","Polska","14","MAZOWIECKIE","1462","Płock","1462011","Płock - gmina miejska"]
["PL","Polska","14","MAZOWIECKIE","1463","Radom","1463011","Radom - gmina miejska"]
["PL","Polska","14","MAZOWIECKIE","1464","Siedlce","1464011","Siedlce - gmina miejska"]
["PL","Polska","14","MAZOWIECKIE","1465","Warszawa","1465011","Warszawa - gmina miejska, miasto stołeczne"]
["PL","Polska","14","MAZOWIECKIE","1465","Warszawa","1465028","Bemowo - dzielnica"]
["PL","Polska","14","MAZOWIECKIE","1465","Warszawa","1465038","Białołęka - dzielnica"]
["PL","Polska","14","MAZOWIECKIE","1465","Warszawa","1465048","Bielany - dzielnica"]
["PL","Polska","14","MAZOWIECKIE","1465","Warszawa","1465058","Mokotów - dzielnica"]
["PL","Polska","14","MAZOWIECKIE","1465","Warszawa","1465068","Ochota - dzielnica"]
["PL","Polska","14","MAZOWIECKIE","1465","Warszawa","1465078","Praga-Południe - dzielnica"]
["PL","Polska","14","MAZOWIECKIE","1465","Warszawa","1465088","Praga-Północ - dzielnica"]
["PL","Polska","14","MAZOWIECKIE","1465","Warszawa","1465098","Rembertów - dzielnica"]
["PL","Polska","14","MAZOWIECKIE","1465","Warszawa","1465108","Śródmieście - dzielnica"]
["PL","Polska","14","MAZOWIECKIE","1465","Warszawa","1465118","Targówek - dzielnica"]
["PL","Polska","14","MAZOWIECKIE","1465","Warszawa","1465128","Ursus - dzielnica"]
["PL","Polska","14","MAZOWIECKIE","1465","Warszawa","1465138","Ursynów - dzielnica"]
["PL","Polska","14","MAZOWIECKIE","1465","Warszawa","1465148","Wawer - dzielnica"]
["PL","Polska","14","MAZOWIECKIE","1465","Warszawa","1465158","Wesoła - dzielnica"]
["PL","Polska","14","MAZOWIECKIE","1465","Warszawa","1465168","Wilanów - dzielnica"]
["PL","Polska","14","MAZOWIECKIE","1465","Warszawa","1465178","Włochy - dzielnica"]
["PL","Polska","14","MAZOWIECKIE","1465","Warszawa","1465188","Wola - dzielnica"]
["PL","Polska","14","MAZOWIECKIE","1465","Warszawa","1465198","Żoliborz - dzielnica"]
["PL","Polska","16","OPOLSKIE","1601","brzeski","1601011","Brzeg - gmina miejska"]
["PL","Polska","16","OPOLSKIE","1601","brzeski","1601022","Skarbimierz - gmina wiejska"]
["PL","Polska","16","OPOLSKIE","1601","brzeski","1601034","Grodków - miasto"]
["PL","Polska","16","OPOLSKIE","1601","brzeski","1601035","Grodków - obszar wiejski"]
["PL","Polska","16","OPOLSKIE","1601","brzeski","1601044","Lewin Brzeski - miasto"]
["PL","Polska","16","OPOLSKIE","1601","brzeski","1601045","Lewin Brzeski - obszar wiejski"]
["PL","Polska","16","OPOLSKIE","1601","brzeski","1601052","Lubsza - gmina wiejska"]
["PL","Polska","16","OPOLSKIE","1601","brzeski","1601062","Olszanka - gmina wiejska"]
["PL","Polska","16","OPOLSKIE","1602","głubczycki","1602014","Baborów - miasto"]
["PL","Polska","16","OPOLSKIE","1602","głubczycki","1602015","Baborów - obszar wiejski"]
["PL","Polska","16","OPOLSKIE","1602","głubczycki",1602024,"Branice - miasto"]
["PL","Polska","16","OPOLSKIE","1602","głubczycki",1602025,"Branice -  obszar wiejski"]
["PL","Polska","16","OPOLSKIE","1602","głubczycki","1602034","Głubczyce - miasto"]
["PL","Polska","16","OPOLSKIE","1602","głubczycki","1602035","Głubczyce - obszar wiejski"]
["PL","Polska","16","OPOLSKIE","1602","głubczycki","1602044","Kietrz - miasto"]
["PL","Polska","16","OPOLSKIE","1602","głubczycki","1602045","Kietrz - obszar wiejski"]
["PL","Polska","16","OPOLSKIE","1603","kędzierzyńsko-kozielski","1603011","Kędzierzyn-Koźle - gmina miejska"]
["PL","Polska","16","OPOLSKIE","1603","kędzierzyńsko-kozielski","1603022","Bierawa - gmina wiejska"]
["PL","Polska","16","OPOLSKIE","1603","kędzierzyńsko-kozielski","1603032","Cisek - gmina wiejska"]
["PL","Polska","16","OPOLSKIE","1603","kędzierzyńsko-kozielski","1603042","Pawłowiczki - gmina wiejska"]
["PL","Polska","16","OPOLSKIE","1603","kędzierzyńsko-kozielski","1603052","Polska Cerekiew - gmina wiejska"]
["PL","Polska","16","OPOLSKIE","1603","kędzierzyńsko-kozielski","1603062","Reńska Wieś - gmina wiejska"]
["PL","Polska","16","OPOLSKIE","1604","kluczborski","1604014","Byczyna - miasto"]
["PL","Polska","16","OPOLSKIE","1604","kluczborski","1604015","Byczyna - obszar wiejski"]
["PL","Polska","16","OPOLSKIE","1604","kluczborski","1604024","Kluczbork - miasto"]
["PL","Polska","16","OPOLSKIE","1604","kluczborski","1604025","Kluczbork - obszar wiejski"]
["PL","Polska","16","OPOLSKIE","1604","kluczborski","1604032","Lasowice Wielkie - gmina wiejska"]
["PL","Polska","16","OPOLSKIE","1604","kluczborski","1604044","Wołczyn - miasto"]
["PL","Polska","16","OPOLSKIE","1604","kluczborski","1604045","Wołczyn - obszar wiejski"]
["PL","Polska","16","OPOLSKIE","1605","krapkowicki","1605014","Gogolin - miasto"]
["PL","Polska","16","OPOLSKIE","1605","krapkowicki","1605015","Gogolin - obszar wiejski"]
["PL","Polska","16","OPOLSKIE","1605","krapkowicki","1605024","Krapkowice - miasto"]
["PL","Polska","16","OPOLSKIE","1605","krapkowicki","1605025","Krapkowice - obszar wiejski"]
["PL","Polska","16","OPOLSKIE","1605","krapkowicki","1605034","Strzeleczki - miasto"]
["PL","Polska","16","OPOLSKIE","1605","krapkowicki","1605035","Strzeleczki - obszar wiejski"]
["PL","Polska","16","OPOLSKIE","1605","krapkowicki","1605042","Walce - gmina wiejska"]
["PL","Polska","16","OPOLSKIE","1605","krapkowicki","1605054","Zdzieszowice - miasto"]
["PL","Polska","16","OPOLSKIE","1605","krapkowicki","1605055","Zdzieszowice - obszar wiejski"]
["PL","Polska","16","OPOLSKIE","1606","namysłowski","1606012","Domaszowice - gmina wiejska"]
["PL","Polska","16","OPOLSKIE","1606","namysłowski","1606024","Namysłów - miasto"]
["PL","Polska","16","OPOLSKIE","1606","namysłowski","1606025","Namysłów - obszar wiejski"]
["PL","Polska","16","OPOLSKIE","1606","namysłowski","1606032","Pokój - gmina wiejska"]
["PL","Polska","16","OPOLSKIE","1606","namysłowski","1606042","Świerczów - gmina wiejska"]
["PL","Polska","16","OPOLSKIE","1606","namysłowski","1606052","Wilków - gmina wiejska"]
["PL","Polska","16","OPOLSKIE","1607","nyski","1607014","Głuchołazy - miasto"]
["PL","Polska","16","OPOLSKIE","1607","nyski","1607015","Głuchołazy - obszar wiejski"]
["PL","Polska","16","OPOLSKIE","1607","nyski","1607022","Kamiennik - gmina wiejska"]
["PL","Polska","16","OPOLSKIE","1607","nyski","1607034","Korfantów - miasto"]
["PL","Polska","16","OPOLSKIE","1607","nyski","1607035","Korfantów - obszar wiejski"]
["PL","Polska","16","OPOLSKIE","1607","nyski","1607042","Łambinowice - gmina wiejska"]
["PL","Polska","16","OPOLSKIE","1607","nyski","1607054","Nysa - miasto"]
["PL","Polska","16","OPOLSKIE","1607","nyski","1607055","Nysa - obszar wiejski"]
["PL","Polska","16","OPOLSKIE","1607","nyski","1607064","Otmuchów - miasto"]
["PL","Polska","16","OPOLSKIE","1607","nyski","1607065","Otmuchów - obszar wiejski"]
["PL","Polska","16","OPOLSKIE","1607","nyski","1607074","Paczków - miasto"]
["PL","Polska","16","OPOLSKIE","1607","nyski","1607075","Paczków - obszar wiejski"]
["PL","Polska","16","OPOLSKIE","1607","nyski","1607082","Pakosławice - gmina wiejska"]
["PL","Polska","16","OPOLSKIE","1607","nyski","1607092","Skoroszyce - gmina wiejska"]
["PL","Polska","16","OPOLSKIE","1608","oleski","1608014","Dobrodzień - miasto"]
["PL","Polska","16","OPOLSKIE","1608","oleski","1608015","Dobrodzień - obszar wiejski"]
["PL","Polska","16","OPOLSKIE","1608","oleski","1608024","Gorzów Śląski - miasto"]
["PL","Polska","16","OPOLSKIE","1608","oleski","1608025","Gorzów Śląski - obszar wiejski"]
["PL","Polska","16","OPOLSKIE","1608","oleski","1608034","Olesno - miasto"]
["PL","Polska","16","OPOLSKIE","1608","oleski","1608035","Olesno - obszar wiejski"]
["PL","Polska","16","OPOLSKIE","1608","oleski","1608044","Praszka - miasto"]
["PL","Polska","16","OPOLSKIE","1608","oleski","1608045","Praszka - obszar wiejski"]
["PL","Polska","16","OPOLSKIE","1608","oleski","1608052","Radłów - gmina wiejska"]
["PL","Polska","16","OPOLSKIE","1608","oleski","1608062","Rudniki - gmina wiejska"]
["PL","Polska","16","OPOLSKIE","1608","oleski","1608072","Zębowice - gmina wiejska"]
["PL","Polska","16","OPOLSKIE","1609","opolski","1609012","Chrząstowice - gmina wiejska"]
["PL","Polska","16","OPOLSKIE","1609","opolski","1609022","Dąbrowa - gmina wiejska"]
["PL","Polska","16","OPOLSKIE","1609","opolski","1609032","Dobrzeń Wielki - gmina wiejska"]
["PL","Polska","16","OPOLSKIE","1609","opolski","1609042","Komprachcice - gmina wiejska"]
["PL","Polska","16","OPOLSKIE","1609","opolski","1609052","Łubniany - gmina wiejska"]
["PL","Polska","16","OPOLSKIE","1609","opolski","1609062","Murów - gmina wiejska"]
["PL","Polska","16","OPOLSKIE","1609","opolski","1609074","Niemodlin - miasto"]
["PL","Polska","16","OPOLSKIE","1609","opolski","1609075","Niemodlin - obszar wiejski"]
["PL","Polska","16","OPOLSKIE","1609","opolski","1609084","Ozimek - miasto"]
["PL","Polska","16","OPOLSKIE","1609","opolski","1609085","Ozimek - obszar wiejski"]
["PL","Polska","16","OPOLSKIE","1609","opolski","1609092","Popielów - gmina wiejska"]
["PL","Polska","16","OPOLSKIE","1609","opolski","1609104","Prószków - miasto"]
["PL","Polska","16","OPOLSKIE","1609","opolski","1609105","Prószków - obszar wiejski"]
["PL","Polska","16","OPOLSKIE","1609","opolski","1609112","Tarnów Opolski - gmina wiejska"]
["PL","Polska","16","OPOLSKIE","1609","opolski",1609124,"Tułowice - miasto"]
["PL","Polska","16","OPOLSKIE","1609","opolski",1609125,"Tułowice - obszar wiejski"]
["PL","Polska","16","OPOLSKIE","1609","opolski","1609132","Turawa - gmina wiejska"]
["PL","Polska","16","OPOLSKIE","1610","prudnicki","1610014","Biała - miasto"]
["PL","Polska","16","OPOLSKIE","1610","prudnicki","1610015","Biała - obszar wiejski"]
["PL","Polska","16","OPOLSKIE","1610","prudnicki","1610024","Głogówek - miasto"]
["PL","Polska","16","OPOLSKIE","1610","prudnicki","1610025","Głogówek - obszar wiejski"]
["PL","Polska","16","OPOLSKIE","1610","prudnicki","1610032","Lubrza - gmina wiejska"]
["PL","Polska","16","OPOLSKIE","1610","prudnicki","1610044","Prudnik - miasto"]
["PL","Polska","16","OPOLSKIE","1610","prudnicki","1610045","Prudnik - obszar wiejski"]
["PL","Polska","16","OPOLSKIE","1611","strzelecki","1611012","Izbicko - gmina wiejska"]
["PL","Polska","16","OPOLSKIE","1611","strzelecki","1611022","Jemielnica - gmina wiejska"]
["PL","Polska","16","OPOLSKIE","1611","strzelecki","1611034","Kolonowskie - miasto"]
["PL","Polska","16","OPOLSKIE","1611","strzelecki","1611035","Kolonowskie - obszar wiejski"]
["PL","Polska","16","OPOLSKIE","1611","strzelecki","1611044","Leśnica - miasto"]
["PL","Polska","16","OPOLSKIE","1611","strzelecki","1611045","Leśnica - obszar wiejski"]
["PL","Polska","16","OPOLSKIE","1611","strzelecki","1611054","Strzelce Opolskie - miasto"]
["PL","Polska","16","OPOLSKIE","1611","strzelecki","1611055","Strzelce Opolskie - obszar wiejski"]
["PL","Polska","16","OPOLSKIE","1611","strzelecki","1611064","Ujazd - miasto"]
["PL","Polska","16","OPOLSKIE","1611","strzelecki","1611065","Ujazd - obszar wiejski"]
["PL","Polska","16","OPOLSKIE","1611","strzelecki","1611074","Zawadzkie - miasto"]
["PL","Polska","16","OPOLSKIE","1611","strzelecki","1611075","Zawadzkie - obszar wiejski"]
["PL","Polska","16","OPOLSKIE","1661","Opole","1661011","Opole - gmina miejska"]
["PL","Polska","18","PODKARPACKIE","1801","bieszczadzki","1801032","Czarna - gmina wiejska"]
["PL","Polska","18","PODKARPACKIE","1801","bieszczadzki","1801052","Lutowiska - gmina wiejska"]
["PL","Polska","18","PODKARPACKIE","1801","bieszczadzki","1801084","Ustrzyki Dolne - miasto"]
["PL","Polska","18","PODKARPACKIE","1801","bieszczadzki","1801085","Ustrzyki Dolne - obszar wiejski"]
["PL","Polska","18","PODKARPACKIE","1802","brzozowski","1802014","Brzozów - miasto"]
["PL","Polska","18","PODKARPACKIE","1802","brzozowski","1802015","Brzozów - obszar wiejski"]
["PL","Polska","18","PODKARPACKIE","1802","brzozowski","1802022","Domaradz - gmina wiejska"]
["PL","Polska","18","PODKARPACKIE","1802","brzozowski","1802032","Dydnia - gmina wiejska"]
["PL","Polska","18","PODKARPACKIE","1802","brzozowski","1802042","Haczów - gmina wiejska"]
["PL","Polska","18","PODKARPACKIE","1802","brzozowski","1802052","Jasienica Rosielna - gmina wiejska"]
["PL","Polska","18","PODKARPACKIE","1802","brzozowski","1802062","Nozdrzec - gmina wiejska"]
["PL","Polska","18","PODKARPACKIE","1803","dębicki","1803011","Dębica - gmina miejska"]
["PL","Polska","18","PODKARPACKIE","1803","dębicki","1803024","Brzostek - miasto"]
["PL","Polska","18","PODKARPACKIE","1803","dębicki","1803025","Brzostek - obszar wiejski"]
["PL","Polska","18","PODKARPACKIE","1803","dębicki","1803032","Czarna - gmina wiejska"]
["PL","Polska","18","PODKARPACKIE","1803","dębicki","1803042","Dębica - gmina wiejska"]
["PL","Polska","18","PODKARPACKIE","1803","dębicki","1803052","Jodłowa - gmina wiejska"]
["PL","Polska","18","PODKARPACKIE","1803","dębicki","1803064","Pilzno - miasto"]
["PL","Polska","18","PODKARPACKIE","1803","dębicki","1803065","Pilzno - obszar wiejski"]
["PL","Polska","18","PODKARPACKIE","1803","dębicki","1803072","Żyraków - gmina wiejska"]
["PL","Polska","18","PODKARPACKIE","1804","jarosławski","1804011","Jarosław - gmina miejska"]
["PL","Polska","18","PODKARPACKIE","1804","jarosławski","1804021","Radymno - gmina miejska"]
["PL","Polska","18","PODKARPACKIE","1804","jarosławski","1804032","Chłopice - gmina wiejska"]
["PL","Polska","18","PODKARPACKIE","1804","jarosławski","1804042","Jarosław - gmina wiejska"]
["PL","Polska","18","PODKARPACKIE","1804","jarosławski","1804052","Laszki - gmina wiejska"]
["PL","Polska","18","PODKARPACKIE","1804","jarosławski","1804062","Pawłosiów - gmina wiejska"]
["PL","Polska","18","PODKARPACKIE","1804","jarosławski","1804074","Pruchnik - miasto"]
["PL","Polska","18","PODKARPACKIE","1804","jarosławski","1804075","Pruchnik - obszar wiejski"]
["PL","Polska","18","PODKARPACKIE","1804","jarosławski","1804082","Radymno - gmina wiejska"]
["PL","Polska","18","PODKARPACKIE","1804","jarosławski","1804092","Rokietnica - gmina wiejska"]
["PL","Polska","18","PODKARPACKIE","1804","jarosławski","1804102","Roźwienica - gmina wiejska"]
["PL","Polska","18","PODKARPACKIE","1804","jarosławski","1804112","Wiązownica - gmina wiejska"]
["PL","Polska","18","PODKARPACKIE","1805","jasielski","1805011","Jasło - gmina miejska"]
["PL","Polska","18","PODKARPACKIE","1805","jasielski","1805022","Brzyska - gmina wiejska"]
["PL","Polska","18","PODKARPACKIE","1805","jasielski","1805032","Dębowiec - gmina wiejska"]
["PL","Polska","18","PODKARPACKIE","1805","jasielski","1805042","Jasło - gmina wiejska"]
["PL","Polska","18","PODKARPACKIE","1805","jasielski","1805054","Kołaczyce - miasto"]
["PL","Polska","18","PODKARPACKIE","1805","jasielski","1805055","Kołaczyce - obszar wiejski"]
["PL","Polska","18","PODKARPACKIE","1805","jasielski","1805062","Krempna - gmina wiejska"]
["PL","Polska","18","PODKARPACKIE","1805","jasielski","1805072","Nowy Żmigród - gmina wiejska"]
["PL","Polska","18","PODKARPACKIE","1805","jasielski","1805082","Osiek Jasielski - gmina wiejska"]
["PL","Polska","18","PODKARPACKIE","1805","jasielski","1805092","Skołyszyn - gmina wiejska"]
["PL","Polska","18","PODKARPACKIE","1805","jasielski","1805112","Tarnowiec - gmina wiejska"]
["PL","Polska","18","PODKARPACKIE","1806","kolbuszowski","1806012","Cmolas - gmina wiejska"]
["PL","Polska","18","PODKARPACKIE","1806","kolbuszowski","1806024","Kolbuszowa - miasto"]
["PL","Polska","18","PODKARPACKIE","1806","kolbuszowski","1806025","Kolbuszowa - obszar wiejski"]
["PL","Polska","18","PODKARPACKIE","1806","kolbuszowski","1806032","Majdan Królewski - gmina wiejska"]
["PL","Polska","18","PODKARPACKIE","1806","kolbuszowski","1806042","Niwiska - gmina wiejska"]
["PL","Polska","18","PODKARPACKIE","1806","kolbuszowski","1806052","Raniżów - gmina wiejska"]
["PL","Polska","18","PODKARPACKIE","1806","kolbuszowski","1806062","Dzikowiec - gmina wiejska"]
["PL","Polska","18","PODKARPACKIE","1807","krośnieński","1807012","Chorkówka - gmina wiejska"]
["PL","Polska","18","PODKARPACKIE","1807","krośnieński","1807024","Dukla - miasto"]
["PL","Polska","18","PODKARPACKIE","1807","krośnieński","1807025","Dukla - obszar wiejski"]
["PL","Polska","18","PODKARPACKIE","1807","krośnieński","1807034","Iwonicz-Zdrój - miasto"]
["PL","Polska","18","PODKARPACKIE","1807","krośnieński","1807035","Iwonicz-Zdrój - obszar wiejski"]
["PL","Polska","18","PODKARPACKIE","1807","krośnieński","1807044","Jedlicze - miasto"]
["PL","Polska","18","PODKARPACKIE","1807","krośnieński","1807045","Jedlicze - obszar wiejski"]
["PL","Polska","18","PODKARPACKIE","1807","krośnieński","1807052","Korczyna - gmina wiejska"]
["PL","Polska","18","PODKARPACKIE","1807","krośnieński","1807062","Krościenko Wyżne - gmina wiejska"]
["PL","Polska","18","PODKARPACKIE","1807","krośnieński","1807072","Miejsce Piastowe - gmina wiejska"]
["PL","Polska","18","PODKARPACKIE","1807","krośnieński","1807084","Rymanów - miasto"]
["PL","Polska","18","PODKARPACKIE","1807","krośnieński","1807085","Rymanów - obszar wiejski"]
["PL","Polska","18","PODKARPACKIE","1807","krośnieński","1807092","Wojaszówka - gmina wiejska"]
["PL","Polska","18","PODKARPACKIE","1807","krośnieński","1807102","Jaśliska - gmina wiejska"]
["PL","Polska","18","PODKARPACKIE","1808","leżajski","1808011","Leżajsk - gmina miejska"]
["PL","Polska","18","PODKARPACKIE","1808","leżajski","1808022","Grodzisko Dolne - gmina wiejska"]
["PL","Polska","18","PODKARPACKIE","1808","leżajski","1808032","Kuryłówka - gmina wiejska"]
["PL","Polska","18","PODKARPACKIE","1808","leżajski","1808042","Leżajsk - gmina wiejska"]
["PL","Polska","18","PODKARPACKIE","1808","leżajski","1808054","Nowa Sarzyna - miasto"]
["PL","Polska","18","PODKARPACKIE","1808","leżajski","1808055","Nowa Sarzyna - obszar wiejski"]
["PL","Polska","18","PODKARPACKIE","1809","lubaczowski","1809011","Lubaczów - gmina miejska"]
["PL","Polska","18","PODKARPACKIE","1809","lubaczowski","1809024","Cieszanów - miasto"]
["PL","Polska","18","PODKARPACKIE","1809","lubaczowski","1809025","Cieszanów - obszar wiejski"]
["PL","Polska","18","PODKARPACKIE","1809","lubaczowski","1809032","Horyniec-Zdrój - gmina wiejska"]
["PL","Polska","18","PODKARPACKIE","1809","lubaczowski","1809042","Lubaczów - gmina wiejska"]
["PL","Polska","18","PODKARPACKIE","1809","lubaczowski","1809054","Narol - miasto"]
["PL","Polska","18","PODKARPACKIE","1809","lubaczowski","1809055","Narol - obszar wiejski"]
["PL","Polska","18","PODKARPACKIE","1809","lubaczowski","1809064","Oleszyce - miasto"]
["PL","Polska","18","PODKARPACKIE","1809","lubaczowski","1809065","Oleszyce - obszar wiejski"]
["PL","Polska","18","PODKARPACKIE","1809","lubaczowski","1809072","Stary Dzików - gmina wiejska"]
["PL","Polska","18","PODKARPACKIE","1809","lubaczowski","1809082","Wielkie Oczy - gmina wiejska"]
["PL","Polska","18","PODKARPACKIE","1810","łańcucki","1810011","Łańcut - gmina miejska"]
["PL","Polska","18","PODKARPACKIE","1810","łańcucki","1810022","Białobrzegi - gmina wiejska"]
["PL","Polska","18","PODKARPACKIE","1810","łańcucki","1810032","Czarna - gmina wiejska"]
["PL","Polska","18","PODKARPACKIE","1810","łańcucki","1810042","Łańcut - gmina wiejska"]
["PL","Polska","18","PODKARPACKIE","1810","łańcucki","1810052","Markowa - gmina wiejska"]
["PL","Polska","18","PODKARPACKIE","1810","łańcucki","1810062","Rakszawa - gmina wiejska"]
["PL","Polska","18","PODKARPACKIE","1810","łańcucki","1810072","Żołynia - gmina wiejska"]
["PL","Polska","18","PODKARPACKIE","1811","mielecki","1811011","Mielec - gmina miejska"]
["PL","Polska","18","PODKARPACKIE","1811","mielecki","1811022","Borowa - gmina wiejska"]
["PL","Polska","18","PODKARPACKIE","1811","mielecki","1811032","Czermin - gmina wiejska"]
["PL","Polska","18","PODKARPACKIE","1811","mielecki","1811042","Gawłuszowice - gmina wiejska"]
["PL","Polska","18","PODKARPACKIE","1811","mielecki","1811052","Mielec - gmina wiejska"]
["PL","Polska","18","PODKARPACKIE","1811","mielecki","1811062","Padew Narodowa - gmina wiejska"]
["PL","Polska","18","PODKARPACKIE","1811","mielecki","1811074","Przecław - miasto"]
["PL","Polska","18","PODKARPACKIE","1811","mielecki","1811075","Przecław - obszar wiejski"]
["PL","Polska","18","PODKARPACKIE","1811","mielecki","1811084","Radomyśl Wielki - miasto"]
["PL","Polska","18","PODKARPACKIE","1811","mielecki","1811085","Radomyśl Wielki - obszar wiejski"]
["PL","Polska","18","PODKARPACKIE","1811","mielecki","1811092","Tuszów Narodowy - gmina wiejska"]
["PL","Polska","18","PODKARPACKIE","1811","mielecki","1811102","Wadowice Górne - gmina wiejska"]
["PL","Polska","18","PODKARPACKIE","1812","niżański","1812012","Harasiuki - gmina wiejska"]
["PL","Polska","18","PODKARPACKIE","1812","niżański","1812022","Jarocin - gmina wiejska"]
["PL","Polska","18","PODKARPACKIE","1812","niżański","1812032","Jeżowe - gmina wiejska"]
["PL","Polska","18","PODKARPACKIE","1812","niżański","1812042","Krzeszów - gmina wiejska"]
["PL","Polska","18","PODKARPACKIE","1812","niżański","1812054","Nisko - miasto"]
["PL","Polska","18","PODKARPACKIE","1812","niżański","1812055","Nisko - obszar wiejski"]
["PL","Polska","18","PODKARPACKIE","1812","niżański","1812064","Rudnik nad Sanem - miasto"]
["PL","Polska","18","PODKARPACKIE","1812","niżański","1812065","Rudnik nad Sanem - obszar wiejski"]
["PL","Polska","18","PODKARPACKIE","1812","niżański","1812074","Ulanów - miasto"]
["PL","Polska","18","PODKARPACKIE","1812","niżański","1812075","Ulanów - obszar wiejski"]
["PL","Polska","18","PODKARPACKIE","1813","przemyski","1813014","Bircza - miasto"]
["PL","Polska","18","PODKARPACKIE","1813","przemyski","1813015","Bircza - obszar wiejski"]
["PL","Polska","18","PODKARPACKIE","1813","przemyski",1813024,"Dubiecko - miasto"]
["PL","Polska","18","PODKARPACKIE","1813","przemyski",1813025,"Dubiecko - obszar wiejski"]
["PL","Polska","18","PODKARPACKIE","1813","przemyski","1813032","Fredropol - gmina wiejska"]
["PL","Polska","18","PODKARPACKIE","1813","przemyski","1813042","Krasiczyn - gmina wiejska"]
["PL","Polska","18","PODKARPACKIE","1813","przemyski","1813052","Krzywcza - gmina wiejska"]
["PL","Polska","18","PODKARPACKIE","1813","przemyski","1813062","Medyka - gmina wiejska"]
["PL","Polska","18","PODKARPACKIE","1813","przemyski","1813072","Orły - gmina wiejska"]
["PL","Polska","18","PODKARPACKIE","1813","przemyski","1813082","Przemyśl - gmina wiejska"]
["PL","Polska","18","PODKARPACKIE","1813","przemyski","1813092","Stubno - gmina wiejska"]
["PL","Polska","18","PODKARPACKIE","1813","przemyski","1813102","Żurawica - gmina wiejska"]
["PL","Polska","18","PODKARPACKIE","1814","przeworski","1814011","Przeworsk - gmina miejska"]
["PL","Polska","18","PODKARPACKIE","1814","przeworski","1814022","Adamówka - gmina wiejska"]
["PL","Polska","18","PODKARPACKIE","1814","przeworski","1814032","Gać - gmina wiejska"]
["PL","Polska","18","PODKARPACKIE","1814","przeworski","1814044","Jawornik Polski - miasto"]
["PL","Polska","18","PODKARPACKIE","1814","przeworski","1814045","Jawornik Polski - obszar wiejski"]
["PL","Polska","18","PODKARPACKIE","1814","przeworski","1814054","Kańczuga - miasto"]
["PL","Polska","18","PODKARPACKIE","1814","przeworski","1814055","Kańczuga - obszar wiejski"]
["PL","Polska","18","PODKARPACKIE","1814","przeworski","1814062","Przeworsk - gmina wiejska"]
["PL","Polska","18","PODKARPACKIE","1814","przeworski","1814074","Sieniawa - miasto"]
["PL","Polska","18","PODKARPACKIE","1814","przeworski","1814075","Sieniawa - obszar wiejski"]
["PL","Polska","18","PODKARPACKIE","1814","przeworski","1814082","Tryńcza - gmina wiejska"]
["PL","Polska","18","PODKARPACKIE","1814","przeworski","1814092","Zarzecze - gmina wiejska"]
["PL","Polska","18","PODKARPACKIE","1815","ropczycko-sędziszowski","1815012","Iwierzyce - gmina wiejska"]
["PL","Polska","18","PODKARPACKIE","1815","ropczycko-sędziszowski","1815022","Ostrów - gmina wiejska"]
["PL","Polska","18","PODKARPACKIE","1815","ropczycko-sędziszowski","1815034","Ropczyce - miasto"]
["PL","Polska","18","PODKARPACKIE","1815","ropczycko-sędziszowski","1815035","Ropczyce - obszar wiejski"]
["PL","Polska","18","PODKARPACKIE","1815","ropczycko-sędziszowski","1815044","Sędziszów Małopolski - miasto"]
["PL","Polska","18","PODKARPACKIE","1815","ropczycko-sędziszowski","1815045","Sędziszów Małopolski - obszar wiejski"]
["PL","Polska","18","PODKARPACKIE","1815","ropczycko-sędziszowski","1815052","Wielopole Skrzyńskie - gmina wiejska"]
["PL","Polska","18","PODKARPACKIE","1816","rzeszowski","1816011","Dynów - gmina miejska"]
["PL","Polska","18","PODKARPACKIE","1816","rzeszowski","1816024","Błażowa - miasto"]
["PL","Polska","18","PODKARPACKIE","1816","rzeszowski","1816025","Błażowa - obszar wiejski"]
["PL","Polska","18","PODKARPACKIE","1816","rzeszowski","1816034","Boguchwała - miasto"]
["PL","Polska","18","PODKARPACKIE","1816","rzeszowski","1816035","Boguchwała - obszar wiejski"]
["PL","Polska","18","PODKARPACKIE","1816","rzeszowski","1816042","Chmielnik - gmina wiejska"]
["PL","Polska","18","PODKARPACKIE","1816","rzeszowski","1816052","Dynów - gmina wiejska"]
["PL","Polska","18","PODKARPACKIE","1816","rzeszowski","1816064","Głogów Małopolski - miasto"]
["PL","Polska","18","PODKARPACKIE","1816","rzeszowski","1816065","Głogów Małopolski - obszar wiejski"]
["PL","Polska","18","PODKARPACKIE","1816","rzeszowski","1816072","Hyżne - gmina wiejska"]
["PL","Polska","18","PODKARPACKIE","1816","rzeszowski","1816082","Kamień - gmina wiejska"]
["PL","Polska","18","PODKARPACKIE","1816","rzeszowski","1816092","Krasne - gmina wiejska"]
["PL","Polska","18","PODKARPACKIE","1816","rzeszowski","1816102","Lubenia - gmina wiejska"]
["PL","Polska","18","PODKARPACKIE","1816","rzeszowski","1816114","Sokołów Małopolski - miasto"]
["PL","Polska","18","PODKARPACKIE","1816","rzeszowski","1816115","Sokołów Małopolski - obszar wiejski"]
["PL","Polska","18","PODKARPACKIE","1816","rzeszowski","1816122","Świlcza - gmina wiejska"]
["PL","Polska","18","PODKARPACKIE","1816","rzeszowski","1816132","Trzebownisko - gmina wiejska"]
["PL","Polska","18","PODKARPACKIE","1816","rzeszowski","1816144","Tyczyn - miasto"]
["PL","Polska","18","PODKARPACKIE","1816","rzeszowski","1816145","Tyczyn - obszar wiejski"]
["PL","Polska","18","PODKARPACKIE","1817","sanocki","1817011","Sanok - gmina miejska"]
["PL","Polska","18","PODKARPACKIE","1817","sanocki","1817022","Besko - gmina wiejska"]
["PL","Polska","18","PODKARPACKIE","1817","sanocki","1817032","Bukowsko - gmina wiejska"]
["PL","Polska","18","PODKARPACKIE","1817","sanocki","1817042","Komańcza - gmina wiejska"]
["PL","Polska","18","PODKARPACKIE","1817","sanocki","1817052","Sanok - gmina wiejska"]
["PL","Polska","18","PODKARPACKIE","1817","sanocki","1817062","Tyrawa Wołoska - gmina wiejska"]
["PL","Polska","18","PODKARPACKIE","1817","sanocki","1817074","Zagórz - miasto"]
["PL","Polska","18","PODKARPACKIE","1817","sanocki","1817075","Zagórz - obszar wiejski"]
["PL","Polska","18","PODKARPACKIE","1817","sanocki","1817082","Zarszyn - gmina wiejska"]
["PL","Polska","18","PODKARPACKIE","1818","stalowowolski","1818011","Stalowa Wola - gmina miejska"]
["PL","Polska","18","PODKARPACKIE","1818","stalowowolski","1818022","Bojanów - gmina wiejska"]
["PL","Polska","18","PODKARPACKIE","1818","stalowowolski","1818032","Pysznica - gmina wiejska"]
["PL","Polska","18","PODKARPACKIE","1818","stalowowolski","1818042","Radomyśl nad Sanem - gmina wiejska"]
["PL","Polska","18","PODKARPACKIE","1818","stalowowolski","1818054","Zaklików - miasto"]
["PL","Polska","18","PODKARPACKIE","1818","stalowowolski","1818055","Zaklików - obszar wiejski"]
["PL","Polska","18","PODKARPACKIE","1818","stalowowolski","1818062","Zaleszany - gmina wiejska"]
["PL","Polska","18","PODKARPACKIE","1819","strzyżowski","1819012","Czudec - gmina wiejska"]
["PL","Polska","18","PODKARPACKIE","1819","strzyżowski","1819022","Frysztak - gmina wiejska"]
["PL","Polska","18","PODKARPACKIE","1819","strzyżowski","1819032","Niebylec - gmina wiejska"]
["PL","Polska","18","PODKARPACKIE","1819","strzyżowski","1819044","Strzyżów - miasto"]
["PL","Polska","18","PODKARPACKIE","1819","strzyżowski","1819045","Strzyżów - obszar wiejski"]
["PL","Polska","18","PODKARPACKIE","1819","strzyżowski","1819052","Wiśniowa - gmina wiejska"]
["PL","Polska","18","PODKARPACKIE","1820","tarnobrzeski","1820014","Baranów Sandomierski - miasto"]
["PL","Polska","18","PODKARPACKIE","1820","tarnobrzeski","1820015","Baranów Sandomierski - obszar wiejski"]
["PL","Polska","18","PODKARPACKIE","1820","tarnobrzeski","1820022","Gorzyce - gmina wiejska"]
["PL","Polska","18","PODKARPACKIE","1820","tarnobrzeski","1820032","Grębów - gmina wiejska"]
["PL","Polska","18","PODKARPACKIE","1820","tarnobrzeski","1820044","Nowa Dęba - miasto"]
["PL","Polska","18","PODKARPACKIE","1820","tarnobrzeski","1820045","Nowa Dęba - obszar wiejski"]
["PL","Polska","18","PODKARPACKIE","1821","leski","1821012","Baligród - gmina wiejska"]
["PL","Polska","18","PODKARPACKIE","1821","leski","1821022","Cisna - gmina wiejska"]
["PL","Polska","18","PODKARPACKIE","1821","leski","1821034","Lesko - miasto"]
["PL","Polska","18","PODKARPACKIE","1821","leski","1821035","Lesko - obszar wiejski"]
["PL","Polska","18","PODKARPACKIE","1821","leski","1821042","Olszanica - gmina wiejska"]
["PL","Polska","18","PODKARPACKIE","1821","leski","1821052","Solina - gmina wiejska"]
["PL","Polska","18","PODKARPACKIE","1861","Krosno","1861011","Krosno - gmina miejska"]
["PL","Polska","18","PODKARPACKIE","1862","Przemyśl","1862011","Przemyśl - gmina miejska"]
["PL","Polska","18","PODKARPACKIE","1863","Rzeszów","1863011","Rzeszów - gmina miejska"]
["PL","Polska","18","PODKARPACKIE","1864","Tarnobrzeg","1864011","Tarnobrzeg - gmina miejska"]
["PL","Polska","20","PODLASKIE","2001","augustowski","2001011","Augustów - gmina miejska"]
["PL","Polska","20","PODLASKIE","2001","augustowski","2001022","Augustów - gmina wiejska"]
["PL","Polska","20","PODLASKIE","2001","augustowski","2001032","Bargłów Kościelny - gmina wiejska"]
["PL","Polska","20","PODLASKIE","2001","augustowski","2001044","Lipsk - miasto"]
["PL","Polska","20","PODLASKIE","2001","augustowski","2001045","Lipsk - obszar wiejski"]
["PL","Polska","20","PODLASKIE","2001","augustowski","2001052","Nowinka - gmina wiejska"]
["PL","Polska","20","PODLASKIE","2001","augustowski","2001062","Płaska - gmina wiejska"]
["PL","Polska","20","PODLASKIE","2001","augustowski","2001072","Sztabin - gmina wiejska"]
["PL","Polska","20","PODLASKIE","2002","białostocki","2002014","Choroszcz - miasto"]
["PL","Polska","20","PODLASKIE","2002","białostocki","2002015","Choroszcz - obszar wiejski"]
["PL","Polska","20","PODLASKIE","2002","białostocki","2002024","Czarna Białostocka - miasto"]
["PL","Polska","20","PODLASKIE","2002","białostocki","2002025","Czarna Białostocka - obszar wiejski"]
["PL","Polska","20","PODLASKIE","2002","białostocki","2002032","Dobrzyniewo Duże - gmina wiejska"]
["PL","Polska","20","PODLASKIE","2002","białostocki","2002042","Gródek - gmina wiejska"]
["PL","Polska","20","PODLASKIE","2002","białostocki","2002052","Juchnowiec Kościelny - gmina wiejska"]
["PL","Polska","20","PODLASKIE","2002","białostocki","2002064","Łapy - miasto"]
["PL","Polska","20","PODLASKIE","2002","białostocki","2002065","Łapy - obszar wiejski"]
["PL","Polska","20","PODLASKIE","2002","białostocki","2002074","Michałowo - miasto"]
["PL","Polska","20","PODLASKIE","2002","białostocki","2002075","Michałowo - obszar wiejski"]
["PL","Polska","20","PODLASKIE","2002","białostocki","2002082","Poświętne - gmina wiejska"]
["PL","Polska","20","PODLASKIE","2002","białostocki","2002094","Supraśl - miasto"]
["PL","Polska","20","PODLASKIE","2002","białostocki","2002095","Supraśl - obszar wiejski"]
["PL","Polska","20","PODLASKIE","2002","białostocki","2002104","Suraż - miasto"]
["PL","Polska","20","PODLASKIE","2002","białostocki","2002105","Suraż - obszar wiejski"]
["PL","Polska","20","PODLASKIE","2002","białostocki","2002112","Turośń Kościelna - gmina wiejska"]
["PL","Polska","20","PODLASKIE","2002","białostocki","2002124","Tykocin - miasto"]
["PL","Polska","20","PODLASKIE","2002","białostocki","2002125","Tykocin - obszar wiejski"]
["PL","Polska","20","PODLASKIE","2002","białostocki","2002134","Wasilków - miasto"]
["PL","Polska","20","PODLASKIE","2002","białostocki","2002135","Wasilków - obszar wiejski"]
["PL","Polska","20","PODLASKIE","2002","białostocki","2002144","Zabłudów - miasto"]
["PL","Polska","20","PODLASKIE","2002","białostocki","2002145","Zabłudów - obszar wiejski"]
["PL","Polska","20","PODLASKIE","2002","białostocki","2002152","Zawady - gmina wiejska"]
["PL","Polska","20","PODLASKIE","2002","białostocki",2002162,"Grabówka - gmina wiejska"]
["PL","Polska","20","PODLASKIE","2003","bielski","2003011","Bielsk Podlaski - gmina miejska"]
["PL","Polska","20","PODLASKIE","2003","bielski","2003021","Brańsk - gmina miejska"]
["PL","Polska","20","PODLASKIE","2003","bielski","2003032","Bielsk Podlaski - gmina wiejska"]
["PL","Polska","20","PODLASKIE","2003","bielski","2003042","Boćki - gmina wiejska"]
["PL","Polska","20","PODLASKIE","2003","bielski","2003052","Brańsk - gmina wiejska"]
["PL","Polska","20","PODLASKIE","2003","bielski","2003062","Orla - gmina wiejska"]
["PL","Polska","20","PODLASKIE","2003","bielski","2003072","Rudka - gmina wiejska"]
["PL","Polska","20","PODLASKIE","2003","bielski","2003082","Wyszki - gmina wiejska"]
["PL","Polska","20","PODLASKIE","2004","grajewski","2004011","Grajewo - gmina miejska"]
["PL","Polska","20","PODLASKIE","2004","grajewski","2004022","Grajewo - gmina wiejska"]
["PL","Polska","20","PODLASKIE","2004","grajewski","2004032","Radziłów - gmina wiejska"]
["PL","Polska","20","PODLASKIE","2004","grajewski","2004044","Rajgród - miasto"]
["PL","Polska","20","PODLASKIE","2004","grajewski","2004045","Rajgród - obszar wiejski"]
["PL","Polska","20","PODLASKIE","2004","grajewski","2004054","Szczuczyn - miasto"]
["PL","Polska","20","PODLASKIE","2004","grajewski","2004055","Szczuczyn - obszar wiejski"]
["PL","Polska","20","PODLASKIE","2004","grajewski","2004062","Wąsosz - gmina wiejska"]
["PL","Polska","20","PODLASKIE","2005","hajnowski","2005011","Hajnówka - gmina miejska"]
["PL","Polska","20","PODLASKIE","2005","hajnowski","2005022","Białowieża - gmina wiejska"]
["PL","Polska","20","PODLASKIE","2005","hajnowski","2005032","Czeremcha - gmina wiejska"]
["PL","Polska","20","PODLASKIE","2005","hajnowski","2005042","Czyże - gmina wiejska"]
["PL","Polska","20","PODLASKIE","2005","hajnowski","2005052","Dubicze Cerkiewne - gmina wiejska"]
["PL","Polska","20","PODLASKIE","2005","hajnowski","2005062","Hajnówka - gmina wiejska"]
["PL","Polska","20","PODLASKIE","2005","hajnowski","2005074","Kleszczele - miasto"]
["PL","Polska","20","PODLASKIE","2005","hajnowski","2005075","Kleszczele - obszar wiejski"]
["PL","Polska","20","PODLASKIE","2005","hajnowski","2005082","Narew - gmina wiejska"]
["PL","Polska","20","PODLASKIE","2005","hajnowski","2005092","Narewka - gmina wiejska"]
["PL","Polska","20","PODLASKIE","2006","kolneński","2006011","Kolno - gmina miejska"]
["PL","Polska","20","PODLASKIE","2006","kolneński","2006022","Grabowo - gmina wiejska"]
["PL","Polska","20","PODLASKIE","2006","kolneński","2006032","Kolno - gmina wiejska"]
["PL","Polska","20","PODLASKIE","2006","kolneński","2006042","Mały Płock - gmina wiejska"]
["PL","Polska","20","PODLASKIE","2006","kolneński","2006054","Stawiski - miasto"]
["PL","Polska","20","PODLASKIE","2006","kolneński","2006055","Stawiski - obszar wiejski"]
["PL","Polska","20","PODLASKIE","2006","kolneński","2006062","Turośl - gmina wiejska"]
["PL","Polska","20","PODLASKIE","2007","łomżyński","2007014","Jedwabne - miasto"]
["PL","Polska","20","PODLASKIE","2007","łomżyński","2007015","Jedwabne - obszar wiejski"]
["PL","Polska","20","PODLASKIE","2007","łomżyński","2007022","Łomża - gmina wiejska"]
["PL","Polska","20","PODLASKIE","2007","łomżyński","2007032","Miastkowo - gmina wiejska"]
["PL","Polska","20","PODLASKIE","2007","łomżyński","2007044","Nowogród - miasto"]
["PL","Polska","20","PODLASKIE","2007","łomżyński","2007045","Nowogród - obszar wiejski"]
["PL","Polska","20","PODLASKIE","2007","łomżyński","2007052","Piątnica - gmina wiejska"]
["PL","Polska","20","PODLASKIE","2007","łomżyński","2007062","Przytuły - gmina wiejska"]
["PL","Polska","20","PODLASKIE","2007","łomżyński","2007072","Śniadowo - gmina wiejska"]
["PL","Polska","20","PODLASKIE","2007","łomżyński","2007082","Wizna - gmina wiejska"]
["PL","Polska","20","PODLASKIE","2007","łomżyński","2007092","Zbójna - gmina wiejska"]
["PL","Polska","20","PODLASKIE","2008","moniecki","2008014","Goniądz - miasto"]
["PL","Polska","20","PODLASKIE","2008","moniecki","2008015","Goniądz - obszar wiejski"]
["PL","Polska","20","PODLASKIE","2008","moniecki","2008022","Jasionówka - gmina wiejska"]
["PL","Polska","20","PODLASKIE","2008","moniecki","2008032","Jaświły - gmina wiejska"]
["PL","Polska","20","PODLASKIE","2008","moniecki","2008044","Knyszyn - miasto"]
["PL","Polska","20","PODLASKIE","2008","moniecki","2008045","Knyszyn - obszar wiejski"]
["PL","Polska","20","PODLASKIE","2008","moniecki","2008052","Krypno - gmina wiejska"]
["PL","Polska","20","PODLASKIE","2008","moniecki","2008064","Mońki - miasto"]
["PL","Polska","20","PODLASKIE","2008","moniecki","2008065","Mońki - obszar wiejski"]
["PL","Polska","20","PODLASKIE","2008","moniecki","2008072","Trzcianne - gmina wiejska"]
["PL","Polska","20","PODLASKIE","2009","sejneński","2009011","Sejny - gmina miejska"]
["PL","Polska","20","PODLASKIE","2009","sejneński","2009022","Giby - gmina wiejska"]
["PL","Polska","20","PODLASKIE","2009","sejneński","2009032","Krasnopol - gmina wiejska"]
["PL","Polska","20","PODLASKIE","2009","sejneński","2009042","Puńsk - gmina wiejska"]
["PL","Polska","20","PODLASKIE","2009","sejneński","2009052","Sejny - gmina wiejska"]
["PL","Polska","20","PODLASKIE","2010","siemiatycki","2010011","Siemiatycze - gmina miejska"]
["PL","Polska","20","PODLASKIE","2010","siemiatycki","2010024","Drohiczyn - miasto"]
["PL","Polska","20","PODLASKIE","2010","siemiatycki","2010025","Drohiczyn - obszar wiejski"]
["PL","Polska","20","PODLASKIE","2010","siemiatycki","2010032","Dziadkowice - gmina wiejska"]
["PL","Polska","20","PODLASKIE","2010","siemiatycki","2010042","Grodzisk - gmina wiejska"]
["PL","Polska","20","PODLASKIE","2010","siemiatycki","2010052","Mielnik - gmina wiejska"]
["PL","Polska","20","PODLASKIE","2010","siemiatycki","2010062","Milejczyce - gmina wiejska"]
["PL","Polska","20","PODLASKIE","2010","siemiatycki","2010072","Nurzec-Stacja - gmina wiejska"]
["PL","Polska","20","PODLASKIE","2010","siemiatycki","2010082","Perlejewo - gmina wiejska"]
["PL","Polska","20","PODLASKIE","2010","siemiatycki","2010092","Siemiatycze - gmina wiejska"]
["PL","Polska","20","PODLASKIE","2011","sokólski","2011014","Dąbrowa Białostocka - miasto"]
["PL","Polska","20","PODLASKIE","2011","sokólski","2011015","Dąbrowa Białostocka - obszar wiejski"]
["PL","Polska","20","PODLASKIE","2011","sokólski","2011022","Janów - gmina wiejska"]
["PL","Polska","20","PODLASKIE","2011","sokólski","2011032","Korycin - gmina wiejska"]
["PL","Polska","20","PODLASKIE","2011","sokólski","2011044","Krynki - miasto"]
["PL","Polska","20","PODLASKIE","2011","sokólski","2011045","Krynki - obszar wiejski"]
["PL","Polska","20","PODLASKIE","2011","sokólski","2011052","Kuźnica - gmina wiejska"]
["PL","Polska","20","PODLASKIE","2011","sokólski","2011062","Nowy Dwór - gmina wiejska"]
["PL","Polska","20","PODLASKIE","2011","sokólski","2011072","Sidra - gmina wiejska"]
["PL","Polska","20","PODLASKIE","2011","sokólski","2011084","Sokółka - miasto"]
["PL","Polska","20","PODLASKIE","2011","sokólski","2011085","Sokółka - obszar wiejski"]
["PL","Polska","20","PODLASKIE","2011","sokólski","2011094","Suchowola - miasto"]
["PL","Polska","20","PODLASKIE","2011","sokólski","2011095","Suchowola - obszar wiejski"]
["PL","Polska","20","PODLASKIE","2011","sokólski","2011102","Szudziałowo - gmina wiejska"]
["PL","Polska","20","PODLASKIE","2012","suwalski","2012012","Bakałarzewo - gmina wiejska"]
["PL","Polska","20","PODLASKIE","2012","suwalski","2012022","Filipów - gmina wiejska"]
["PL","Polska","20","PODLASKIE","2012","suwalski","2012032","Jeleniewo - gmina wiejska"]
["PL","Polska","20","PODLASKIE","2012","suwalski","2012042","Przerośl - gmina wiejska"]
["PL","Polska","20","PODLASKIE","2012","suwalski","2012052","Raczki - gmina wiejska"]
["PL","Polska","20","PODLASKIE","2012","suwalski","2012062","Rutka-Tartak - gmina wiejska"]
["PL","Polska","20","PODLASKIE","2012","suwalski","2012072","Suwałki - gmina wiejska"]
["PL","Polska","20","PODLASKIE","2012","suwalski","2012082","Szypliszki - gmina wiejska"]
["PL","Polska","20","PODLASKIE","2012","suwalski","2012092","Wiżajny - gmina wiejska"]
["PL","Polska","20","PODLASKIE","2013","wysokomazowiecki","2013011","Wysokie Mazowieckie - gmina miejska"]
["PL","Polska","20","PODLASKIE","2013","wysokomazowiecki","2013024","Ciechanowiec - miasto"]
["PL","Polska","20","PODLASKIE","2013","wysokomazowiecki","2013025","Ciechanowiec - obszar wiejski"]
["PL","Polska","20","PODLASKIE","2013","wysokomazowiecki","2013034","Czyżew - miasto"]
["PL","Polska","20","PODLASKIE","2013","wysokomazowiecki","2013035","Czyżew - obszar wiejski"]
["PL","Polska","20","PODLASKIE","2013","wysokomazowiecki","2013042","Klukowo - gmina wiejska"]
["PL","Polska","20","PODLASKIE","2013","wysokomazowiecki","2013052","Kobylin-Borzymy - gmina wiejska"]
["PL","Polska","20","PODLASKIE","2013","wysokomazowiecki","2013062","Kulesze Kościelne - gmina wiejska"]
["PL","Polska","20","PODLASKIE","2013","wysokomazowiecki","2013072","Nowe Piekuty - gmina wiejska"]
["PL","Polska","20","PODLASKIE","2013","wysokomazowiecki","2013082","Sokoły - gmina wiejska"]
["PL","Polska","20","PODLASKIE","2013","wysokomazowiecki","2013094","Szepietowo - miasto"]
["PL","Polska","20","PODLASKIE","2013","wysokomazowiecki","2013095","Szepietowo - obszar wiejski"]
["PL","Polska","20","PODLASKIE","2013","wysokomazowiecki","2013102","Wysokie Mazowieckie - gmina wiejska"]
["PL","Polska","20","PODLASKIE","2014","zambrowski","2014011","Zambrów - gmina miejska"]
["PL","Polska","20","PODLASKIE","2014","zambrowski","2014022","Kołaki Kościelne - gmina wiejska"]
["PL","Polska","20","PODLASKIE","2014","zambrowski","2014032","Rutki - gmina wiejska"]
["PL","Polska","20","PODLASKIE","2014","zambrowski","2014042","Szumowo - gmina wiejska"]
["PL","Polska","20","PODLASKIE","2014","zambrowski","2014052","Zambrów - gmina wiejska"]
["PL","Polska","20","PODLASKIE","2061","Białystok","2061011","Białystok - gmina miejska"]
["PL","Polska","20","PODLASKIE","2062","Łomża","2062011","Łomża - gmina miejska"]
["PL","Polska","20","PODLASKIE","2063","Suwałki","2063011","Suwałki - gmina miejska"]
["PL","Polska","22","POMORSKIE","2201","bytowski","2201012","Borzytuchom - gmina wiejska"]
["PL","Polska","22","POMORSKIE","2201","bytowski","2201024","Bytów - miasto"]
["PL","Polska","22","POMORSKIE","2201","bytowski","2201025","Bytów - obszar wiejski"]
["PL","Polska","22","POMORSKIE","2201","bytowski","2201032","Czarna Dąbrówka - gmina wiejska"]
["PL","Polska","22","POMORSKIE","2201","bytowski","2201042","Kołczygłowy - gmina wiejska"]
["PL","Polska","22","POMORSKIE","2201","bytowski","2201052","Lipnica - gmina wiejska"]
["PL","Polska","22","POMORSKIE","2201","bytowski","2201064","Miastko - miasto"]
["PL","Polska","22","POMORSKIE","2201","bytowski","2201065","Miastko - obszar wiejski"]
["PL","Polska","22","POMORSKIE","2201","bytowski","2201072","Parchowo - gmina wiejska"]
["PL","Polska","22","POMORSKIE","2201","bytowski","2201082","Studzienice - gmina wiejska"]
["PL","Polska","22","POMORSKIE","2201","bytowski","2201092","Trzebielino - gmina wiejska"]
["PL","Polska","22","POMORSKIE","2201","bytowski","2201102","Tuchomie - gmina wiejska"]
["PL","Polska","22","POMORSKIE","2202","chojnicki","2202011","Chojnice - gmina miejska"]
["PL","Polska","22","POMORSKIE","2202","chojnicki","2202024","Brusy - miasto"]
["PL","Polska","22","POMORSKIE","2202","chojnicki","2202025","Brusy - obszar wiejski"]
["PL","Polska","22","POMORSKIE","2202","chojnicki","2202032","Chojnice - gmina wiejska"]
["PL","Polska","22","POMORSKIE","2202","chojnicki","2202044","Czersk - miasto"]
["PL","Polska","22","POMORSKIE","2202","chojnicki","2202045","Czersk - obszar wiejski"]
["PL","Polska","22","POMORSKIE","2202","chojnicki","2202052","Konarzyny - gmina wiejska"]
["PL","Polska","22","POMORSKIE","2203","człuchowski","2203011","Człuchów - gmina miejska"]
["PL","Polska","22","POMORSKIE","2203","człuchowski","2203024","Czarne - miasto"]
["PL","Polska","22","POMORSKIE","2203","człuchowski","2203025","Czarne - obszar wiejski"]
["PL","Polska","22","POMORSKIE","2203","człuchowski","2203032","Człuchów - gmina wiejska"]
["PL","Polska","22","POMORSKIE","2203","człuchowski","2203044","Debrzno - miasto"]
["PL","Polska","22","POMORSKIE","2203","człuchowski","2203045","Debrzno - obszar wiejski"]
["PL","Polska","22","POMORSKIE","2203","człuchowski","2203052","Koczała - gmina wiejska"]
["PL","Polska","22","POMORSKIE","2203","człuchowski","2203062","Przechlewo - gmina wiejska"]
["PL","Polska","22","POMORSKIE","2203","człuchowski","2203072","Rzeczenica - gmina wiejska"]
["PL","Polska","22","POMORSKIE","2204","gdański","2204011","Pruszcz Gdański - gmina miejska"]
["PL","Polska","22","POMORSKIE","2204","gdański","2204022","Cedry Wielkie - gmina wiejska"]
["PL","Polska","22","POMORSKIE","2204","gdański","2204032","Kolbudy - gmina wiejska"]
["PL","Polska","22","POMORSKIE","2204","gdański","2204042","Pruszcz Gdański - gmina wiejska"]
["PL","Polska","22","POMORSKIE","2204","gdański","2204052","Przywidz - gmina wiejska"]
["PL","Polska","22","POMORSKIE","2204","gdański","2204062","Pszczółki - gmina wiejska"]
["PL","Polska","22","POMORSKIE","2204","gdański","2204072","Suchy Dąb - gmina wiejska"]
["PL","Polska","22","POMORSKIE","2204","gdański","2204082","Trąbki Wielkie - gmina wiejska"]
["PL","Polska","22","POMORSKIE","2205","kartuski","2205012","Chmielno - gmina wiejska"]
["PL","Polska","22","POMORSKIE","2205","kartuski","2205024","Kartuzy - miasto"]
["PL","Polska","22","POMORSKIE","2205","kartuski","2205025","Kartuzy - obszar wiejski"]
["PL","Polska","22","POMORSKIE","2205","kartuski","2205032","Przodkowo - gmina wiejska"]
["PL","Polska","22","POMORSKIE","2205","kartuski","2205042","Sierakowice - gmina wiejska"]
["PL","Polska","22","POMORSKIE","2205","kartuski","2205052","Somonino - gmina wiejska"]
["PL","Polska","22","POMORSKIE","2205","kartuski","2205062","Stężyca - gmina wiejska"]
["PL","Polska","22","POMORSKIE","2205","kartuski","2205072","Sulęczyno - gmina wiejska"]
["PL","Polska","22","POMORSKIE","2205","kartuski","2205084","Żukowo - miasto"]
["PL","Polska","22","POMORSKIE","2205","kartuski","2205085","Żukowo - obszar wiejski"]
["PL","Polska","22","POMORSKIE","2206","kościerski","2206011","Kościerzyna - gmina miejska"]
["PL","Polska","22","POMORSKIE","2206","kościerski","2206022","Dziemiany - gmina wiejska"]
["PL","Polska","22","POMORSKIE","2206","kościerski","2206032","Karsin - gmina wiejska"]
["PL","Polska","22","POMORSKIE","2206","kościerski","2206042","Kościerzyna - gmina wiejska"]
["PL","Polska","22","POMORSKIE","2206","kościerski","2206052","Liniewo - gmina wiejska"]
["PL","Polska","22","POMORSKIE","2206","kościerski","2206062","Lipusz - gmina wiejska"]
["PL","Polska","22","POMORSKIE","2206","kościerski","2206072","Nowa Karczma - gmina wiejska"]
["PL","Polska","22","POMORSKIE","2206","kościerski","2206082","Stara Kiszewa - gmina wiejska"]
["PL","Polska","22","POMORSKIE","2207","kwidzyński","2207011","Kwidzyn - gmina miejska"]
["PL","Polska","22","POMORSKIE","2207","kwidzyński","2207022","Gardeja - gmina wiejska"]
["PL","Polska","22","POMORSKIE","2207","kwidzyński","2207032","Kwidzyn - gmina wiejska"]
["PL","Polska","22","POMORSKIE","2207","kwidzyński","2207044","Prabuty - miasto"]
["PL","Polska","22","POMORSKIE","2207","kwidzyński","2207045","Prabuty - obszar wiejski"]
["PL","Polska","22","POMORSKIE","2207","kwidzyński","2207052","Ryjewo - gmina wiejska"]
["PL","Polska","22","POMORSKIE","2207","kwidzyński","2207062","Sadlinki - gmina wiejska"]
["PL","Polska","22","POMORSKIE","2208","lęborski","2208011","Lębork - gmina miejska"]
["PL","Polska","22","POMORSKIE","2208","lęborski","2208021","Łeba - gmina miejska"]
["PL","Polska","22","POMORSKIE","2208","lęborski","2208032","Cewice - gmina wiejska"]
["PL","Polska","22","POMORSKIE","2208","lęborski","2208042","Nowa Wieś Lęborska - gmina wiejska"]
["PL","Polska","22","POMORSKIE","2208","lęborski","2208052","Wicko - gmina wiejska"]
["PL","Polska","22","POMORSKIE","2209","malborski","2209011","Malbork - gmina miejska"]
["PL","Polska","22","POMORSKIE","2209","malborski","2209032","Lichnowy - gmina wiejska"]
["PL","Polska","22","POMORSKIE","2209","malborski","2209042","Malbork - gmina wiejska"]
["PL","Polska","22","POMORSKIE","2209","malborski","2209062","Miłoradz - gmina wiejska"]
["PL","Polska","22","POMORSKIE","2209","malborski","2209074","Nowy Staw - miasto"]
["PL","Polska","22","POMORSKIE","2209","malborski","2209075","Nowy Staw - obszar wiejski"]
["PL","Polska","22","POMORSKIE","2209","malborski","2209082","Stare Pole - gmina wiejska"]
["PL","Polska","22","POMORSKIE","2210","nowodworski","2210011","Krynica Morska - gmina miejska"]
["PL","Polska","22","POMORSKIE","2210","nowodworski","2210024","Nowy Dwór Gdański - miasto"]
["PL","Polska","22","POMORSKIE","2210","nowodworski","2210025","Nowy Dwór Gdański - obszar wiejski"]
["PL","Polska","22","POMORSKIE","2210","nowodworski","2210032","Ostaszewo - gmina wiejska"]
["PL","Polska","22","POMORSKIE","2210","nowodworski","2210042","Stegna - gmina wiejska"]
["PL","Polska","22","POMORSKIE","2210","nowodworski","2210052","Sztutowo - gmina wiejska"]
["PL","Polska","22","POMORSKIE","2211","pucki","2211011","Hel - gmina miejska"]
["PL","Polska","22","POMORSKIE","2211","pucki","2211024","Jastarnia - miasto"]
["PL","Polska","22","POMORSKIE","2211","pucki","2211025","Jastarnia - obszar wiejski"]
["PL","Polska","22","POMORSKIE","2211","pucki","2211031","Puck - gmina miejska"]
["PL","Polska","22","POMORSKIE","2211","pucki","2211044","Władysławowo - miasto"]
["PL","Polska","22","POMORSKIE","2211","pucki","2211045","Władysławowo - obszar wiejski"]
["PL","Polska","22","POMORSKIE","2211","pucki","2211052","Kosakowo - gmina wiejska"]
["PL","Polska","22","POMORSKIE","2211","pucki","2211062","Krokowa - gmina wiejska"]
["PL","Polska","22","POMORSKIE","2211","pucki","2211072","Puck - gmina wiejska"]
["PL","Polska","22","POMORSKIE","2212","słupski","2212011","Ustka - gmina miejska"]
["PL","Polska","22","POMORSKIE","2212","słupski","2212022","Damnica - gmina wiejska"]
["PL","Polska","22","POMORSKIE","2212","słupski","2212032","Dębnica Kaszubska - gmina wiejska"]
["PL","Polska","22","POMORSKIE","2212","słupski","2212042","Główczyce - gmina wiejska"]
["PL","Polska","22","POMORSKIE","2212","słupski","2212054","Kępice - miasto"]
["PL","Polska","22","POMORSKIE","2212","słupski","2212055","Kępice - obszar wiejski"]
["PL","Polska","22","POMORSKIE","2212","słupski","2212064","Kobylnica - miasto"]
["PL","Polska","22","POMORSKIE","2212","słupski","2212065","Kobylnica - obszar wiejski"]
["PL","Polska","22","POMORSKIE","2212","słupski","2212072","Potęgowo - gmina wiejska"]
["PL","Polska","22","POMORSKIE","2212","słupski","2212082","Redzikowo - gmina wiejska"]
["PL","Polska","22","POMORSKIE","2212","słupski","2212092","Smołdzino - gmina wiejska"]
["PL","Polska","22","POMORSKIE","2212","słupski","2212102","Ustka - gmina wiejska"]
["PL","Polska","22","POMORSKIE","2213","starogardzki","2213014","Czarna Woda - miasto"]
["PL","Polska","22","POMORSKIE","2213","starogardzki","2213015","Czarna Woda - obszar wiejski"]
["PL","Polska","22","POMORSKIE","2213","starogardzki","2213021","Skórcz - gmina miejska"]
["PL","Polska","22","POMORSKIE","2213","starogardzki","2213031","Starogard Gdański - gmina miejska"]
["PL","Polska","22","POMORSKIE","2213","starogardzki","2213042","Bobowo - gmina wiejska"]
["PL","Polska","22","POMORSKIE","2213","starogardzki","2213052","Kaliska - gmina wiejska"]
["PL","Polska","22","POMORSKIE","2213","starogardzki","2213062","Lubichowo - gmina wiejska"]
["PL","Polska","22","POMORSKIE","2213","starogardzki","2213072","Osieczna - gmina wiejska"]
["PL","Polska","22","POMORSKIE","2213","starogardzki","2213082","Osiek - gmina wiejska"]
["PL","Polska","22","POMORSKIE","2213","starogardzki","2213094","Skarszewy - miasto"]
["PL","Polska","22","POMORSKIE","2213","starogardzki","2213095","Skarszewy - obszar wiejski"]
["PL","Polska","22","POMORSKIE","2213","starogardzki","2213102","Skórcz - gmina wiejska"]
["PL","Polska","22","POMORSKIE","2213","starogardzki","2213112","Smętowo Graniczne - gmina wiejska"]
["PL","Polska","22","POMORSKIE","2213","starogardzki","2213122","Starogard Gdański - gmina wiejska"]
["PL","Polska","22","POMORSKIE","2213","starogardzki","2213132","Zblewo - gmina wiejska"]
["PL","Polska","22","POMORSKIE","2214","tczewski","2214011","Tczew - gmina miejska"]
["PL","Polska","22","POMORSKIE","2214","tczewski","2214024","Gniew - miasto"]
["PL","Polska","22","POMORSKIE","2214","tczewski","2214025","Gniew - obszar wiejski"]
["PL","Polska","22","POMORSKIE","2214","tczewski","2214032","Morzeszczyn - gmina wiejska"]
["PL","Polska","22","POMORSKIE","2214","tczewski","2214044","Pelplin - miasto"]
["PL","Polska","22","POMORSKIE","2214","tczewski","2214045","Pelplin - obszar wiejski"]
["PL","Polska","22","POMORSKIE","2214","tczewski","2214052","Subkowy - gmina wiejska"]
["PL","Polska","22","POMORSKIE","2214","tczewski","2214062","Tczew - gmina wiejska"]
["PL","Polska","22","POMORSKIE","2215","wejherowski","2215011","Reda - gmina miejska"]
["PL","Polska","22","POMORSKIE","2215","wejherowski","2215021","Rumia - gmina miejska"]
["PL","Polska","22","POMORSKIE","2215","wejherowski","2215031","Wejherowo - gmina miejska"]
["PL","Polska","22","POMORSKIE","2215","wejherowski","2215042","Choczewo - gmina wiejska"]
["PL","Polska","22","POMORSKIE","2215","wejherowski","2215052","Gniewino - gmina wiejska"]
["PL","Polska","22","POMORSKIE","2215","wejherowski","2215062","Linia - gmina wiejska"]
["PL","Polska","22","POMORSKIE","2215","wejherowski","2215072","Luzino - gmina wiejska"]
["PL","Polska","22","POMORSKIE","2215","wejherowski","2215082","Łęczyce - gmina wiejska"]
["PL","Polska","22","POMORSKIE","2215","wejherowski","2215092","Szemud - gmina wiejska"]
["PL","Polska","22","POMORSKIE","2215","wejherowski","2215102","Wejherowo - gmina wiejska"]
["PL","Polska","22","POMORSKIE","2216","sztumski","2216014","Dzierzgoń - miasto"]
["PL","Polska","22","POMORSKIE","2216","sztumski","2216015","Dzierzgoń - obszar wiejski"]
["PL","Polska","22","POMORSKIE","2216","sztumski","2216022","Mikołajki Pomorskie - gmina wiejska"]
["PL","Polska","22","POMORSKIE","2216","sztumski","2216032","Stary Dzierzgoń - gmina wiejska"]
["PL","Polska","22","POMORSKIE","2216","sztumski","2216042","Stary Targ - gmina wiejska"]
["PL","Polska","22","POMORSKIE","2216","sztumski","2216054","Sztum - miasto"]
["PL","Polska","22","POMORSKIE","2216","sztumski","2216055","Sztum - obszar wiejski"]
["PL","Polska","22","POMORSKIE","2261","Gdańsk","2261011","Gdańsk - gmina miejska"]
["PL","Polska","22","POMORSKIE","2262","Gdynia","2262011","Gdynia - gmina miejska"]
["PL","Polska","22","POMORSKIE","2263","Słupsk","2263011","Słupsk - gmina miejska"]
["PL","Polska","22","POMORSKIE","2264","Sopot","2264011","Sopot - gmina miejska"]
["PL","Polska","24","ŚLĄSKIE","2401","będziński","2401011","Będzin - gmina miejska"]
["PL","Polska","24","ŚLĄSKIE","2401","będziński","2401021","Czeladź - gmina miejska"]
["PL","Polska","24","ŚLĄSKIE","2401","będziński","2401031","Wojkowice - gmina miejska"]
["PL","Polska","24","ŚLĄSKIE","2401","będziński","2401042","Bobrowniki - gmina wiejska"]
["PL","Polska","24","ŚLĄSKIE","2401","będziński","2401052","Mierzęcice - gmina wiejska"]
["PL","Polska","24","ŚLĄSKIE","2401","będziński","2401062","Psary - gmina wiejska"]
["PL","Polska","24","ŚLĄSKIE","2401","będziński","2401074","Siewierz - miasto"]
["PL","Polska","24","ŚLĄSKIE","2401","będziński","2401075","Siewierz - obszar wiejski"]
["PL","Polska","24","ŚLĄSKIE","2401","będziński","2401081","Sławków - gmina miejska"]
["PL","Polska","24","ŚLĄSKIE","2402","bielski","2402011","Szczyrk - gmina miejska"]
["PL","Polska","24","ŚLĄSKIE","2402","bielski","2402022","Bestwina - gmina wiejska"]
["PL","Polska","24","ŚLĄSKIE","2402","bielski","2402032","Buczkowice - gmina wiejska"]
["PL","Polska","24","ŚLĄSKIE","2402","bielski","2402044","Czechowice-Dziedzice - miasto"]
["PL","Polska","24","ŚLĄSKIE","2402","bielski","2402045","Czechowice-Dziedzice - obszar wiejski"]
["PL","Polska","24","ŚLĄSKIE","2402","bielski","2402052","Jasienica - gmina wiejska"]
["PL","Polska","24","ŚLĄSKIE","2402","bielski","2402062","Jaworze - gmina wiejska"]
["PL","Polska","24","ŚLĄSKIE","2402","bielski","2402072","Kozy - gmina wiejska"]
["PL","Polska","24","ŚLĄSKIE","2402","bielski","2402082","Porąbka - gmina wiejska"]
["PL","Polska","24","ŚLĄSKIE","2402","bielski","2402094","Wilamowice - miasto"]
["PL","Polska","24","ŚLĄSKIE","2402","bielski","2402095","Wilamowice - obszar wiejski"]
["PL","Polska","24","ŚLĄSKIE","2402","bielski","2402102","Wilkowice - gmina wiejska"]
["PL","Polska","24","ŚLĄSKIE","2403","cieszyński","2403011","Cieszyn - gmina miejska"]
["PL","Polska","24","ŚLĄSKIE","2403","cieszyński","2403021","Ustroń - gmina miejska"]
["PL","Polska","24","ŚLĄSKIE","2403","cieszyński","2403031","Wisła - gmina miejska"]
["PL","Polska","24","ŚLĄSKIE","2403","cieszyński","2403042","Brenna - gmina wiejska"]
["PL","Polska","24","ŚLĄSKIE","2403","cieszyński","2403052","Chybie - gmina wiejska"]
["PL","Polska","24","ŚLĄSKIE","2403","cieszyński","2403062","Dębowiec - gmina wiejska"]
["PL","Polska","24","ŚLĄSKIE","2403","cieszyński","2403072","Goleszów - gmina wiejska"]
["PL","Polska","24","ŚLĄSKIE","2403","cieszyński","2403082","Hażlach - gmina wiejska"]
["PL","Polska","24","ŚLĄSKIE","2403","cieszyński","2403092","Istebna - gmina wiejska"]
["PL","Polska","24","ŚLĄSKIE","2403","cieszyński","2403104","Skoczów - miasto"]
["PL","Polska","24","ŚLĄSKIE","2403","cieszyński","2403105","Skoczów - obszar wiejski"]
["PL","Polska","24","ŚLĄSKIE","2403","cieszyński","2403114","Strumień - miasto"]
["PL","Polska","24","ŚLĄSKIE","2403","cieszyński","2403115","Strumień - obszar wiejski"]
["PL","Polska","24","ŚLĄSKIE","2403","cieszyński","2403122","Zebrzydowice - gmina wiejska"]
["PL","Polska","24","ŚLĄSKIE","2404","częstochowski","2404014","Blachownia - miasto"]
["PL","Polska","24","ŚLĄSKIE","2404","częstochowski","2404015","Blachownia - obszar wiejski"]
["PL","Polska","24","ŚLĄSKIE","2404","częstochowski","2404022","Dąbrowa Zielona - gmina wiejska"]
["PL","Polska","24","ŚLĄSKIE","2404","częstochowski",2404034,"Janów - miasto"]
["PL","Polska","24","ŚLĄSKIE","2404","częstochowski",2404035,"Janów -  obszar wiejski"]
["PL","Polska","24","ŚLĄSKIE","2404","częstochowski","2404042","Kamienica Polska - gmina wiejska"]
["PL","Polska","24","ŚLĄSKIE","2404","częstochowski","2404052","Kłomnice - gmina wiejska"]
["PL","Polska","24","ŚLĄSKIE","2404","częstochowski","2404064","Koniecpol - miasto"]
["PL","Polska","24","ŚLĄSKIE","2404","częstochowski","2404065","Koniecpol - obszar wiejski"]
["PL","Polska","24","ŚLĄSKIE","2404","częstochowski","2404072","Konopiska - gmina wiejska"]
["PL","Polska","24","ŚLĄSKIE","2404","częstochowski","2404082","Kruszyna - gmina wiejska"]
["PL","Polska","24","ŚLĄSKIE","2404","częstochowski","2404092","Lelów - gmina wiejska"]
["PL","Polska","24","ŚLĄSKIE","2404","częstochowski","2404102","Mstów - gmina wiejska"]
["PL","Polska","24","ŚLĄSKIE","2404","częstochowski","2404112","Mykanów - gmina wiejska"]
["PL","Polska","24","ŚLĄSKIE","2404","częstochowski",2404124,"Olsztyn - miasto"]
["PL","Polska","24","ŚLĄSKIE","2404","częstochowski",2404125,"Olsztyn - obszar wiejski"]
["PL","Polska","24","ŚLĄSKIE","2404","częstochowski","2404132","Poczesna - gmina wiejska"]
["PL","Polska","24","ŚLĄSKIE","2404","częstochowski","2404144","Przyrów - miasto"]
["PL","Polska","24","ŚLĄSKIE","2404","częstochowski","2404145","Przyrów - obszar wiejski"]
["PL","Polska","24","ŚLĄSKIE","2404","częstochowski","2404152","Rędziny - gmina wiejska"]
["PL","Polska","24","ŚLĄSKIE","2404","częstochowski","2404162","Starcza - gmina wiejska"]
["PL","Polska","24","ŚLĄSKIE","2405","gliwicki","2405011","Knurów - gmina miejska"]
["PL","Polska","24","ŚLĄSKIE","2405","gliwicki","2405021","Pyskowice - gmina miejska"]
["PL","Polska","24","ŚLĄSKIE","2405","gliwicki","2405032","Gierałtowice - gmina wiejska"]
["PL","Polska","24","ŚLĄSKIE","2405","gliwicki","2405042","Pilchowice - gmina wiejska"]
["PL","Polska","24","ŚLĄSKIE","2405","gliwicki","2405052","Rudziniec - gmina wiejska"]
["PL","Polska","24","ŚLĄSKIE","2405","gliwicki","2405064","Sośnicowice - miasto"]
["PL","Polska","24","ŚLĄSKIE","2405","gliwicki","2405065","Sośnicowice - obszar wiejski"]
["PL","Polska","24","ŚLĄSKIE","2405","gliwicki","2405074","Toszek - miasto"]
["PL","Polska","24","ŚLĄSKIE","2405","gliwicki","2405075","Toszek - obszar wiejski"]
["PL","Polska","24","ŚLĄSKIE","2405","gliwicki","2405082","Wielowieś - gmina wiejska"]
["PL","Polska","24","ŚLĄSKIE","2406","kłobucki","2406014","Kłobuck - miasto"]
["PL","Polska","24","ŚLĄSKIE","2406","kłobucki","2406015","Kłobuck - obszar wiejski"]
["PL","Polska","24","ŚLĄSKIE","2406","kłobucki","2406024","Krzepice - miasto"]
["PL","Polska","24","ŚLĄSKIE","2406","kłobucki","2406025","Krzepice - obszar wiejski"]
["PL","Polska","24","ŚLĄSKIE","2406","kłobucki","2406032","Lipie - gmina wiejska"]
["PL","Polska","24","ŚLĄSKIE","2406","kłobucki","2406042","Miedźno - gmina wiejska"]
["PL","Polska","24","ŚLĄSKIE","2406","kłobucki","2406052","Opatów - gmina wiejska"]
["PL","Polska","24","ŚLĄSKIE","2406","kłobucki","2406062","Panki - gmina wiejska"]
["PL","Polska","24","ŚLĄSKIE","2406","kłobucki","2406072","Popów - gmina wiejska"]
["PL","Polska","24","ŚLĄSKIE","2406","kłobucki","2406082","Przystajń - gmina wiejska"]
["PL","Polska","24","ŚLĄSKIE","2406","kłobucki","2406092","Wręczyca Wielka - gmina wiejska"]
["PL","Polska","24","ŚLĄSKIE","2407","lubliniecki","2407011","Lubliniec - gmina miejska"]
["PL","Polska","24","ŚLĄSKIE","2407","lubliniecki","2407022","Boronów - gmina wiejska"]
["PL","Polska","24","ŚLĄSKIE","2407","lubliniecki","2407032","Ciasna - gmina wiejska"]
["PL","Polska","24","ŚLĄSKIE","2407","lubliniecki","2407042","Herby - gmina wiejska"]
["PL","Polska","24","ŚLĄSKIE","2407","lubliniecki","2407052","Kochanowice - gmina wiejska"]
["PL","Polska","24","ŚLĄSKIE","2407","lubliniecki","2407062","Koszęcin - gmina wiejska"]
["PL","Polska","24","ŚLĄSKIE","2407","lubliniecki","2407072","Pawonków - gmina wiejska"]
["PL","Polska","24","ŚLĄSKIE","2407","lubliniecki","2407084","Woźniki - miasto"]
["PL","Polska","24","ŚLĄSKIE","2407","lubliniecki","2407085","Woźniki - obszar wiejski"]
["PL","Polska","24","ŚLĄSKIE","2408","mikołowski","2408011","Łaziska Górne - gmina miejska"]
["PL","Polska","24","ŚLĄSKIE","2408","mikołowski","2408021","Mikołów - gmina miejska"]
["PL","Polska","24","ŚLĄSKIE","2408","mikołowski","2408031","Orzesze - gmina miejska"]
["PL","Polska","24","ŚLĄSKIE","2408","mikołowski","2408042","Ornontowice - gmina wiejska"]
["PL","Polska","24","ŚLĄSKIE","2408","mikołowski","2408052","Wyry - gmina wiejska"]
["PL","Polska","24","ŚLĄSKIE","2409","myszkowski","2409011","Myszków - gmina miejska"]
["PL","Polska","24","ŚLĄSKIE","2409","myszkowski","2409024","Koziegłowy - miasto"]
["PL","Polska","24","ŚLĄSKIE","2409","myszkowski","2409025","Koziegłowy - obszar wiejski"]
["PL","Polska","24","ŚLĄSKIE","2409","myszkowski","2409032","Niegowa - gmina wiejska"]
["PL","Polska","24","ŚLĄSKIE","2409","myszkowski","2409042","Poraj - gmina wiejska"]
["PL","Polska","24","ŚLĄSKIE","2409","myszkowski","2409054","Żarki - miasto"]
["PL","Polska","24","ŚLĄSKIE","2409","myszkowski","2409055","Żarki - obszar wiejski"]
["PL","Polska","24","ŚLĄSKIE","2410","pszczyński","2410012","Goczałkowice-Zdrój - gmina wiejska"]
["PL","Polska","24","ŚLĄSKIE","2410","pszczyński","2410022","Kobiór - gmina wiejska"]
["PL","Polska","24","ŚLĄSKIE","2410","pszczyński","2410032","Miedźna - gmina wiejska"]
["PL","Polska","24","ŚLĄSKIE","2410","pszczyński","2410042","Pawłowice - gmina wiejska"]
["PL","Polska","24","ŚLĄSKIE","2410","pszczyński","2410054","Pszczyna - miasto"]
["PL","Polska","24","ŚLĄSKIE","2410","pszczyński","2410055","Pszczyna - obszar wiejski"]
["PL","Polska","24","ŚLĄSKIE","2410","pszczyński","2410062","Suszec - gmina wiejska"]
["PL","Polska","24","ŚLĄSKIE","2411","raciborski","2411011","Racibórz - gmina miejska"]
["PL","Polska","24","ŚLĄSKIE","2411","raciborski","2411022","Kornowac - gmina wiejska"]
["PL","Polska","24","ŚLĄSKIE","2411","raciborski","2411034","Krzanowice - miasto"]
["PL","Polska","24","ŚLĄSKIE","2411","raciborski","2411035","Krzanowice - obszar wiejski"]
["PL","Polska","24","ŚLĄSKIE","2411","raciborski","2411042","Krzyżanowice - gmina wiejska"]
["PL","Polska","24","ŚLĄSKIE","2411","raciborski","2411054","Kuźnia Raciborska - miasto"]
["PL","Polska","24","ŚLĄSKIE","2411","raciborski","2411055","Kuźnia Raciborska - obszar wiejski"]
["PL","Polska","24","ŚLĄSKIE","2411","raciborski","2411062","Nędza - gmina wiejska"]
["PL","Polska","24","ŚLĄSKIE","2411","raciborski","2411072","Pietrowice Wielkie - gmina wiejska"]
["PL","Polska","24","ŚLĄSKIE","2411","raciborski","2411082","Rudnik - gmina wiejska"]
["PL","Polska","24","ŚLĄSKIE","2412","rybnicki","2412014","Czerwionka-Leszczyny - miasto"]
["PL","Polska","24","ŚLĄSKIE","2412","rybnicki","2412015","Czerwionka-Leszczyny - obszar wiejski"]
["PL","Polska","24","ŚLĄSKIE","2412","rybnicki","2412022","Gaszowice - gmina wiejska"]
["PL","Polska","24","ŚLĄSKIE","2412","rybnicki","2412032","Jejkowice - gmina wiejska"]
["PL","Polska","24","ŚLĄSKIE","2412","rybnicki","2412042","Lyski - gmina wiejska"]
["PL","Polska","24","ŚLĄSKIE","2412","rybnicki","2412052","Świerklany - gmina wiejska"]
["PL","Polska","24","ŚLĄSKIE","2413","tarnogórski","2413011","Kalety - gmina miejska"]
["PL","Polska","24","ŚLĄSKIE","2413","tarnogórski","2413021","Miasteczko Śląskie - gmina miejska"]
["PL","Polska","24","ŚLĄSKIE","2413","tarnogórski","2413031","Radzionków - gmina miejska"]
["PL","Polska","24","ŚLĄSKIE","2413","tarnogórski","2413041","Tarnowskie Góry - gmina miejska"]
["PL","Polska","24","ŚLĄSKIE","2413","tarnogórski","2413052","Krupski Młyn - gmina wiejska"]
["PL","Polska","24","ŚLĄSKIE","2413","tarnogórski","2413062","Ożarowice - gmina wiejska"]
["PL","Polska","24","ŚLĄSKIE","2413","tarnogórski","2413072","Świerklaniec - gmina wiejska"]
["PL","Polska","24","ŚLĄSKIE","2413","tarnogórski","2413082","Tworóg - gmina wiejska"]
["PL","Polska","24","ŚLĄSKIE","2413","tarnogórski","2413092","Zbrosławice - gmina wiejska"]
["PL","Polska","24","ŚLĄSKIE","2414","bieruńsko-lędziński","2414011","Bieruń - gmina miejska"]
["PL","Polska","24","ŚLĄSKIE","2414","bieruńsko-lędziński","2414021","Imielin - gmina miejska"]
["PL","Polska","24","ŚLĄSKIE","2414","bieruńsko-lędziński","2414031","Lędziny - gmina miejska"]
["PL","Polska","24","ŚLĄSKIE","2414","bieruńsko-lędziński","2414042","Bojszowy - gmina wiejska"]
["PL","Polska","24","ŚLĄSKIE","2414","bieruńsko-lędziński","2414052","Chełm Śląski - gmina wiejska"]
["PL","Polska","24","ŚLĄSKIE","2415","wodzisławski","2415011","Pszów - gmina miejska"]
["PL","Polska","24","ŚLĄSKIE","2415","wodzisławski","2415021","Radlin - gmina miejska"]
["PL","Polska","24","ŚLĄSKIE","2415","wodzisławski","2415031","Rydułtowy - gmina miejska"]
["PL","Polska","24","ŚLĄSKIE","2415","wodzisławski","2415041","Wodzisław Śląski - gmina miejska"]
["PL","Polska","24","ŚLĄSKIE","2415","wodzisławski","2415052","Godów - gmina wiejska"]
["PL","Polska","24","ŚLĄSKIE","2415","wodzisławski","2415062","Gorzyce - gmina wiejska"]
["PL","Polska","24","ŚLĄSKIE","2415","wodzisławski","2415072","Lubomia - gmina wiejska"]
["PL","Polska","24","ŚLĄSKIE","2415","wodzisławski","2415082","Marklowice - gmina wiejska"]
["PL","Polska","24","ŚLĄSKIE","2415","wodzisławski","2415092","Mszana - gmina wiejska"]
["PL","Polska","24","ŚLĄSKIE","2416","zawierciański","2416011","Poręba - gmina miejska"]
["PL","Polska","24","ŚLĄSKIE","2416","zawierciański","2416021","Zawiercie - gmina miejska"]
["PL","Polska","24","ŚLĄSKIE","2416","zawierciański","2416032","Irządze - gmina wiejska"]
["PL","Polska","24","ŚLĄSKIE","2416","zawierciański","2416042","Kroczyce - gmina wiejska"]
["PL","Polska","24","ŚLĄSKIE","2416","zawierciański","2416054","Łazy - miasto"]
["PL","Polska","24","ŚLĄSKIE","2416","zawierciański","2416055","Łazy - obszar wiejski"]
["PL","Polska","24","ŚLĄSKIE","2416","zawierciański","2416064","Ogrodzieniec - miasto"]
["PL","Polska","24","ŚLĄSKIE","2416","zawierciański","2416065","Ogrodzieniec - obszar wiejski"]
["PL","Polska","24","ŚLĄSKIE","2416","zawierciański","2416074","Pilica - miasto"]
["PL","Polska","24","ŚLĄSKIE","2416","zawierciański","2416075","Pilica - obszar wiejski"]
["PL","Polska","24","ŚLĄSKIE","2416","zawierciański","2416084","Szczekociny - miasto"]
["PL","Polska","24","ŚLĄSKIE","2416","zawierciański","2416085","Szczekociny - obszar wiejski"]
["PL","Polska","24","ŚLĄSKIE","2416","zawierciański",2416094,"Włodowice - miasto"]
["PL","Polska","24","ŚLĄSKIE","2416","zawierciański",2416095,"Włodowice - obszar wiejski"]
["PL","Polska","24","ŚLĄSKIE","2416","zawierciański","2416102","Żarnowiec - gmina wiejska"]
["PL","Polska","24","ŚLĄSKIE","2417","żywiecki","2417011","Żywiec - gmina miejska"]
["PL","Polska","24","ŚLĄSKIE","2417","żywiecki","2417022","Czernichów - gmina wiejska"]
["PL","Polska","24","ŚLĄSKIE","2417","żywiecki","2417032","Gilowice - gmina wiejska"]
["PL","Polska","24","ŚLĄSKIE","2417","żywiecki","2417042","Jeleśnia - gmina wiejska"]
["PL","Polska","24","ŚLĄSKIE","2417","żywiecki","2417052","Koszarawa - gmina wiejska"]
["PL","Polska","24","ŚLĄSKIE","2417","żywiecki","2417062","Lipowa - gmina wiejska"]
["PL","Polska","24","ŚLĄSKIE","2417","żywiecki","2417072","Łękawica - gmina wiejska"]
["PL","Polska","24","ŚLĄSKIE","2417","żywiecki","2417082","Łodygowice - gmina wiejska"]
["PL","Polska","24","ŚLĄSKIE","2417","żywiecki","2417092","Milówka - gmina wiejska"]
["PL","Polska","24","ŚLĄSKIE","2417","żywiecki","2417102","Radziechowy-Wieprz - gmina wiejska"]
["PL","Polska","24","ŚLĄSKIE","2417","żywiecki","2417112","Rajcza - gmina wiejska"]
["PL","Polska","24","ŚLĄSKIE","2417","żywiecki","2417122","Ślemień - gmina wiejska"]
["PL","Polska","24","ŚLĄSKIE","2417","żywiecki","2417132","Świnna - gmina wiejska"]
["PL","Polska","24","ŚLĄSKIE","2417","żywiecki","2417142","Ujsoły - gmina wiejska"]
["PL","Polska","24","ŚLĄSKIE","2417","żywiecki","2417152","Węgierska Górka - gmina wiejska"]
["PL","Polska","24","ŚLĄSKIE","2461","Bielsko-Biała","2461011","Bielsko-Biała - gmina miejska"]
["PL","Polska","24","ŚLĄSKIE","2462","Bytom","2462011","Bytom - gmina miejska"]
["PL","Polska","24","ŚLĄSKIE","2463","Chorzów","2463011","Chorzów - gmina miejska"]
["PL","Polska","24","ŚLĄSKIE","2464","Częstochowa","2464011","Częstochowa - gmina miejska"]
["PL","Polska","24","ŚLĄSKIE","2465","Dąbrowa Górnicza","2465011","Dąbrowa Górnicza - gmina miejska"]
["PL","Polska","24","ŚLĄSKIE","2466","Gliwice","2466011","Gliwice - gmina miejska"]
["PL","Polska","24","ŚLĄSKIE","2467","Jastrzębie-Zdrój","2467011","Jastrzębie-Zdrój - gmina miejska"]
["PL","Polska","24","ŚLĄSKIE","2468","Jaworzno","2468011","Jaworzno - gmina miejska"]
["PL","Polska","24","ŚLĄSKIE","2469","Katowice","2469011","Katowice - gmina miejska"]
["PL","Polska","24","ŚLĄSKIE","2470","Mysłowice","2470011","Mysłowice - gmina miejska"]
["PL","Polska","24","ŚLĄSKIE","2471","Piekary Śląskie","2471011","Piekary Śląskie - gmina miejska"]
["PL","Polska","24","ŚLĄSKIE","2472","Ruda Śląska","2472011","Ruda Śląska - gmina miejska"]
["PL","Polska","24","ŚLĄSKIE","2473","Rybnik","2473011","Rybnik - gmina miejska"]
["PL","Polska","24","ŚLĄSKIE","2474","Siemianowice Śląskie","2474011","Siemianowice Śląskie - gmina miejska"]
["PL","Polska","24","ŚLĄSKIE","2475","Sosnowiec","2475011","Sosnowiec - gmina miejska"]
["PL","Polska","24","ŚLĄSKIE","2476","Świętochłowice","2476011","Świętochłowice - gmina miejska"]
["PL","Polska","24","ŚLĄSKIE","2477","Tychy","2477011","Tychy - gmina miejska"]
["PL","Polska","24","ŚLĄSKIE","2478","Zabrze","2478011","Zabrze - gmina miejska"]
["PL","Polska","24","ŚLĄSKIE","2479","Żory","2479011","Żory - gmina miejska"]
["PL","Polska","26","ŚWIĘTOKRZYSKIE","2601","buski","2601014","Busko-Zdrój - miasto"]
["PL","Polska","26","ŚWIĘTOKRZYSKIE","2601","buski","2601015","Busko-Zdrój - obszar wiejski"]
["PL","Polska","26","ŚWIĘTOKRZYSKIE","2601","buski","2601022","Gnojno - gmina wiejska"]
["PL","Polska","26","ŚWIĘTOKRZYSKIE","2601","buski",2601034,"Nowy Korczyn - miasto"]
["PL","Polska","26","ŚWIĘTOKRZYSKIE","2601","buski",2601035,"Nowy Korczyn - obszar wiejski"]
["PL","Polska","26","ŚWIĘTOKRZYSKIE","2601","buski",2601044,"Pacanów - miasto"]
["PL","Polska","26","ŚWIĘTOKRZYSKIE","2601","buski",2601045,"Pacanów - obszar wiejski"]
["PL","Polska","26","ŚWIĘTOKRZYSKIE","2601","buski","2601052","Solec-Zdrój - gmina wiejska"]
["PL","Polska","26","ŚWIĘTOKRZYSKIE","2601","buski","2601064","Stopnica - miasto"]
["PL","Polska","26","ŚWIĘTOKRZYSKIE","2601","buski","2601065","Stopnica - obszar wiejski"]
["PL","Polska","26","ŚWIĘTOKRZYSKIE","2601","buski","2601072","Tuczępy - gmina wiejska"]
["PL","Polska","26","ŚWIĘTOKRZYSKIE","2601","buski",2601084,"Wiślica - miasto"]
["PL","Polska","26","ŚWIĘTOKRZYSKIE","2601","buski",2601085,"Wiślica - obszar wiejski"]
["PL","Polska","26","ŚWIĘTOKRZYSKIE","2602","jędrzejowski","2602012","Imielno - gmina wiejska"]
["PL","Polska","26","ŚWIĘTOKRZYSKIE","2602","jędrzejowski","2602024","Jędrzejów - miasto"]
["PL","Polska","26","ŚWIĘTOKRZYSKIE","2602","jędrzejowski","2602025","Jędrzejów - obszar wiejski"]
["PL","Polska","26","ŚWIĘTOKRZYSKIE","2602","jędrzejowski","2602034","Małogoszcz - miasto"]
["PL","Polska","26","ŚWIĘTOKRZYSKIE","2602","jędrzejowski","2602035","Małogoszcz - obszar wiejski"]
["PL","Polska","26","ŚWIĘTOKRZYSKIE","2602","jędrzejowski","2602042","Nagłowice - gmina wiejska"]
["PL","Polska","26","ŚWIĘTOKRZYSKIE","2602","jędrzejowski","2602052","Oksa - gmina wiejska"]
["PL","Polska","26","ŚWIĘTOKRZYSKIE","2602","jędrzejowski","2602064","Sędziszów - miasto"]
["PL","Polska","26","ŚWIĘTOKRZYSKIE","2602","jędrzejowski","2602065","Sędziszów - obszar wiejski"]
["PL","Polska","26","ŚWIĘTOKRZYSKIE","2602","jędrzejowski","2602072","Słupia - gmina wiejska"]
["PL","Polska","26","ŚWIĘTOKRZYSKIE","2602","jędrzejowski","2602084","Sobków - miasto"]
["PL","Polska","26","ŚWIĘTOKRZYSKIE","2602","jędrzejowski","2602085","Sobków - obszar wiejski"]
["PL","Polska","26","ŚWIĘTOKRZYSKIE","2602","jędrzejowski",2602094,"Wodzisław - miasto"]
["PL","Polska","26","ŚWIĘTOKRZYSKIE","2602","jędrzejowski",2602095,"Wodzisław - obszar wiejski"]
["PL","Polska","26","ŚWIĘTOKRZYSKIE","2603","kazimierski","2603012","Bejsce - gmina wiejska"]
["PL","Polska","26","ŚWIĘTOKRZYSKIE","2603","kazimierski","2603022","Czarnocin - gmina wiejska"]
["PL","Polska","26","ŚWIĘTOKRZYSKIE","2603","kazimierski","2603034","Kazimierza Wielka - miasto"]
["PL","Polska","26","ŚWIĘTOKRZYSKIE","2603","kazimierski","2603035","Kazimierza Wielka - obszar wiejski"]
["PL","Polska","26","ŚWIĘTOKRZYSKIE","2603","kazimierski",2603044,"Opatowiec - miasto"]
["PL","Polska","26","ŚWIĘTOKRZYSKIE","2603","kazimierski",2603045,"Opatowiec - obszar wiejski"]
["PL","Polska","26","ŚWIĘTOKRZYSKIE","2603","kazimierski","2603054","Skalbmierz - miasto"]
["PL","Polska","26","ŚWIĘTOKRZYSKIE","2603","kazimierski","2603055","Skalbmierz - obszar wiejski"]
["PL","Polska","26","ŚWIĘTOKRZYSKIE","2604","kielecki","2604012","Bieliny - gmina wiejska"]
["PL","Polska","26","ŚWIĘTOKRZYSKIE","2604","kielecki","2604024","Bodzentyn - miasto"]
["PL","Polska","26","ŚWIĘTOKRZYSKIE","2604","kielecki","2604025","Bodzentyn - obszar wiejski"]
["PL","Polska","26","ŚWIĘTOKRZYSKIE","2604","kielecki","2604034","Chęciny - miasto"]
["PL","Polska","26","ŚWIĘTOKRZYSKIE","2604","kielecki","2604035","Chęciny - obszar wiejski"]
["PL","Polska","26","ŚWIĘTOKRZYSKIE","2604","kielecki","2604044","Chmielnik - miasto"]
["PL","Polska","26","ŚWIĘTOKRZYSKIE","2604","kielecki","2604045","Chmielnik - obszar wiejski"]
["PL","Polska","26","ŚWIĘTOKRZYSKIE","2604","kielecki","2604054","Daleszyce - miasto"]
["PL","Polska","26","ŚWIĘTOKRZYSKIE","2604","kielecki","2604055","Daleszyce - obszar wiejski"]
["PL","Polska","26","ŚWIĘTOKRZYSKIE","2604","kielecki","2604062","Górno - gmina wiejska"]
["PL","Polska","26","ŚWIĘTOKRZYSKIE","2604","kielecki",2604074,"Łagów - miasto"]
["PL","Polska","26","ŚWIĘTOKRZYSKIE","2604","kielecki",2604075,"Łagów - obszar wiejski"]
["PL","Polska","26","ŚWIĘTOKRZYSKIE","2604","kielecki",2604084,"Łopuszno - miasto"]
["PL","Polska","26","ŚWIĘTOKRZYSKIE","2604","kielecki",2604085,"Łopuszno - obszar wiejski"]
["PL","Polska","26","ŚWIĘTOKRZYSKIE","2604","kielecki","2604092","Masłów - gmina wiejska"]
["PL","Polska","26","ŚWIĘTOKRZYSKIE","2604","kielecki","2604102","Miedziana Góra - gmina wiejska"]
["PL","Polska","26","ŚWIĘTOKRZYSKIE","2604","kielecki","2604112","Mniów - gmina wiejska"]
["PL","Polska","26","ŚWIĘTOKRZYSKIE","2604","kielecki","2604124","Morawica - miasto"]
["PL","Polska","26","ŚWIĘTOKRZYSKIE","2604","kielecki","2604125","Morawica - obszar wiejski"]
["PL","Polska","26","ŚWIĘTOKRZYSKIE","2604","kielecki",2604134,"Nowa Słupia - miasto"]
["PL","Polska","26","ŚWIĘTOKRZYSKIE","2604","kielecki",2604135,"Nowa Słupia - obszar wiejski"]
["PL","Polska","26","ŚWIĘTOKRZYSKIE","2604","kielecki",2604144,"Piekoszów - miasto"]
["PL","Polska","26","ŚWIĘTOKRZYSKIE","2604","kielecki",2604145,"Piekoszów - obszar wiejski"]
["PL","Polska","26","ŚWIĘTOKRZYSKIE","2604","kielecki",2604154,"Pierzchnica - miasto"]
["PL","Polska","26","ŚWIĘTOKRZYSKIE","2604","kielecki",2604155,"Pierzchnica - obszar wiejski"]
["PL","Polska","26","ŚWIĘTOKRZYSKIE","2604","kielecki","2604162","Raków - gmina wiejska"]
["PL","Polska","26","ŚWIĘTOKRZYSKIE","2604","kielecki","2604172","Sitkówka-Nowiny - gmina wiejska"]
["PL","Polska","26","ŚWIĘTOKRZYSKIE","2604","kielecki","2604182","Strawczyn - gmina wiejska"]
["PL","Polska","26","ŚWIĘTOKRZYSKIE","2604","kielecki","2604192","Zagnańsk - gmina wiejska"]
["PL","Polska","26","ŚWIĘTOKRZYSKIE","2605","konecki","2605012","Fałków - gmina wiejska"]
["PL","Polska","26","ŚWIĘTOKRZYSKIE","2605","konecki","2605024","Gowarczów - miasto"]
["PL","Polska","26","ŚWIĘTOKRZYSKIE","2605","konecki","2605025","Gowarczów - obszar wiejski"]
["PL","Polska","26","ŚWIĘTOKRZYSKIE","2605","konecki","2605034","Końskie - miasto"]
["PL","Polska","26","ŚWIĘTOKRZYSKIE","2605","konecki","2605035","Końskie - obszar wiejski"]
["PL","Polska","26","ŚWIĘTOKRZYSKIE","2605","konecki",2605044,"Radoszyce - miasto"]
["PL","Polska","26","ŚWIĘTOKRZYSKIE","2605","konecki",2605045,"Radoszyce - obszar wiejski"]
["PL","Polska","26","ŚWIĘTOKRZYSKIE","2605","konecki","2605052","Ruda Maleniecka - gmina wiejska"]
["PL","Polska","26","ŚWIĘTOKRZYSKIE","2605","konecki","2605062","Słupia Konecka - gmina wiejska"]
["PL","Polska","26","ŚWIĘTOKRZYSKIE","2605","konecki","2605072","Smyków - gmina wiejska"]
["PL","Polska","26","ŚWIĘTOKRZYSKIE","2605","konecki","2605084","Stąporków - miasto"]
["PL","Polska","26","ŚWIĘTOKRZYSKIE","2605","konecki","2605085","Stąporków - obszar wiejski"]
["PL","Polska","26","ŚWIĘTOKRZYSKIE","2606","opatowski","2606012","Baćkowice - gmina wiejska"]
["PL","Polska","26","ŚWIĘTOKRZYSKIE","2606","opatowski",2606024,"Iwaniska - miasto"]
["PL","Polska","26","ŚWIĘTOKRZYSKIE","2606","opatowski",2606025,"Iwaniska - obszar wiejski"]
["PL","Polska","26","ŚWIĘTOKRZYSKIE","2606","opatowski","2606032","Lipnik - gmina wiejska"]
["PL","Polska","26","ŚWIĘTOKRZYSKIE","2606","opatowski","2606044","Opatów - miasto"]
["PL","Polska","26","ŚWIĘTOKRZYSKIE","2606","opatowski","2606045","Opatów - obszar wiejski"]
["PL","Polska","26","ŚWIĘTOKRZYSKIE","2606","opatowski","2606054","Ożarów - miasto"]
["PL","Polska","26","ŚWIĘTOKRZYSKIE","2606","opatowski","2606055","Ożarów - obszar wiejski"]
["PL","Polska","26","ŚWIĘTOKRZYSKIE","2606","opatowski","2606062","Sadowie - gmina wiejska"]
["PL","Polska","26","ŚWIĘTOKRZYSKIE","2606","opatowski","2606072","Tarłów - gmina wiejska"]
["PL","Polska","26","ŚWIĘTOKRZYSKIE","2606","opatowski","2606082","Wojciechowice - gmina wiejska"]
["PL","Polska","26","ŚWIĘTOKRZYSKIE","2607","ostrowiecki","2607011","Ostrowiec Świętokrzyski - gmina miejska"]
["PL","Polska","26","ŚWIĘTOKRZYSKIE","2607","ostrowiecki","2607022","Bałtów - gmina wiejska"]
["PL","Polska","26","ŚWIĘTOKRZYSKIE","2607","ostrowiecki","2607032","Bodzechów - gmina wiejska"]
["PL","Polska","26","ŚWIĘTOKRZYSKIE","2607","ostrowiecki","2607044","Ćmielów - miasto"]
["PL","Polska","26","ŚWIĘTOKRZYSKIE","2607","ostrowiecki","2607045","Ćmielów - obszar wiejski"]
["PL","Polska","26","ŚWIĘTOKRZYSKIE","2607","ostrowiecki","2607054","Kunów - miasto"]
["PL","Polska","26","ŚWIĘTOKRZYSKIE","2607","ostrowiecki","2607055","Kunów - obszar wiejski"]
["PL","Polska","26","ŚWIĘTOKRZYSKIE","2607","ostrowiecki","2607062","Waśniów - gmina wiejska"]
["PL","Polska","26","ŚWIĘTOKRZYSKIE","2608","pińczowski","2608014","Działoszyce - miasto"]
["PL","Polska","26","ŚWIĘTOKRZYSKIE","2608","pińczowski","2608015","Działoszyce - obszar wiejski"]
["PL","Polska","26","ŚWIĘTOKRZYSKIE","2608","pińczowski","2608022","Kije - gmina wiejska"]
["PL","Polska","26","ŚWIĘTOKRZYSKIE","2608","pińczowski","2608032","Michałów - gmina wiejska"]
["PL","Polska","26","ŚWIĘTOKRZYSKIE","2608","pińczowski","2608044","Pińczów - miasto"]
["PL","Polska","26","ŚWIĘTOKRZYSKIE","2608","pińczowski","2608045","Pińczów - obszar wiejski"]
["PL","Polska","26","ŚWIĘTOKRZYSKIE","2608","pińczowski","2608052","Złota - gmina wiejska"]
["PL","Polska","26","ŚWIĘTOKRZYSKIE","2609","sandomierski","2609011","Sandomierz - gmina miejska"]
["PL","Polska","26","ŚWIĘTOKRZYSKIE","2609","sandomierski","2609022","Dwikozy - gmina wiejska"]
["PL","Polska","26","ŚWIĘTOKRZYSKIE","2609","sandomierski",2609034,"Klimontów - miasto"]
["PL","Polska","26","ŚWIĘTOKRZYSKIE","2609","sandomierski",2609035,"Klimontów - obszar wiejski"]
["PL","Polska","26","ŚWIĘTOKRZYSKIE","2609","sandomierski","2609044","Koprzywnica - miasto"]
["PL","Polska","26","ŚWIĘTOKRZYSKIE","2609","sandomierski","2609045","Koprzywnica - obszar wiejski"]
["PL","Polska","26","ŚWIĘTOKRZYSKIE","2609","sandomierski","2609052","Łoniów - gmina wiejska"]
["PL","Polska","26","ŚWIĘTOKRZYSKIE","2609","sandomierski","2609062","Obrazów - gmina wiejska"]
["PL","Polska","26","ŚWIĘTOKRZYSKIE","2609","sandomierski","2609072","Samborzec - gmina wiejska"]
["PL","Polska","26","ŚWIĘTOKRZYSKIE","2609","sandomierski","2609082","Wilczyce - gmina wiejska"]
["PL","Polska","26","ŚWIĘTOKRZYSKIE","2609","sandomierski","2609094","Zawichost - miasto"]
["PL","Polska","26","ŚWIĘTOKRZYSKIE","2609","sandomierski","2609095","Zawichost - obszar wiejski"]
["PL","Polska","26","ŚWIĘTOKRZYSKIE","2610","skarżyski","2610011","Skarżysko-Kamienna - gmina miejska"]
["PL","Polska","26","ŚWIĘTOKRZYSKIE","2610","skarżyski","2610022","Bliżyn - gmina wiejska"]
["PL","Polska","26","ŚWIĘTOKRZYSKIE","2610","skarżyski","2610032","Łączna - gmina wiejska"]
["PL","Polska","26","ŚWIĘTOKRZYSKIE","2610","skarżyski","2610042","Skarżysko Kościelne - gmina wiejska"]
["PL","Polska","26","ŚWIĘTOKRZYSKIE","2610","skarżyski","2610054","Suchedniów - miasto"]
["PL","Polska","26","ŚWIĘTOKRZYSKIE","2610","skarżyski","2610055","Suchedniów - obszar wiejski"]
["PL","Polska","26","ŚWIĘTOKRZYSKIE","2611","starachowicki","2611011","Starachowice - gmina miejska"]
["PL","Polska","26","ŚWIĘTOKRZYSKIE","2611","starachowicki","2611022","Brody - gmina wiejska"]
["PL","Polska","26","ŚWIĘTOKRZYSKIE","2611","starachowicki","2611032","Mirzec - gmina wiejska"]
["PL","Polska","26","ŚWIĘTOKRZYSKIE","2611","starachowicki","2611042","Pawłów - gmina wiejska"]
["PL","Polska","26","ŚWIĘTOKRZYSKIE","2611","starachowicki","2611054","Wąchock - miasto"]
["PL","Polska","26","ŚWIĘTOKRZYSKIE","2611","starachowicki","2611055","Wąchock - obszar wiejski"]
["PL","Polska","26","ŚWIĘTOKRZYSKIE","2612","staszowski","2612014","Bogoria - miasto"]
["PL","Polska","26","ŚWIĘTOKRZYSKIE","2612","staszowski","2612015","Bogoria - obszar wiejski"]
["PL","Polska","26","ŚWIĘTOKRZYSKIE","2612","staszowski","2612022","Łubnice - gmina wiejska"]
["PL","Polska","26","ŚWIĘTOKRZYSKIE","2612","staszowski",2612034,"Oleśnica - miasto"]
["PL","Polska","26","ŚWIĘTOKRZYSKIE","2612","staszowski",2612035,"Oleśnica - obszar wiejski"]
["PL","Polska","26","ŚWIĘTOKRZYSKIE","2612","staszowski","2612044","Osiek - miasto"]
["PL","Polska","26","ŚWIĘTOKRZYSKIE","2612","staszowski","2612045","Osiek - obszar wiejski"]
["PL","Polska","26","ŚWIĘTOKRZYSKIE","2612","staszowski","2612054","Połaniec - miasto"]
["PL","Polska","26","ŚWIĘTOKRZYSKIE","2612","staszowski","2612055","Połaniec - obszar wiejski"]
["PL","Polska","26","ŚWIĘTOKRZYSKIE","2612","staszowski","2612062","Rytwiany - gmina wiejska"]
["PL","Polska","26","ŚWIĘTOKRZYSKIE","2612","staszowski","2612074","Staszów - miasto"]
["PL","Polska","26","ŚWIĘTOKRZYSKIE","2612","staszowski","2612075","Staszów - obszar wiejski"]
["PL","Polska","26","ŚWIĘTOKRZYSKIE","2612","staszowski",2612084,"Szydłów - miasto"]
["PL","Polska","26","ŚWIĘTOKRZYSKIE","2612","staszowski",2612085,"Szydłów - obszar wiejski"]
["PL","Polska","26","ŚWIĘTOKRZYSKIE","2613","włoszczowski","2613012","Kluczewsko - gmina wiejska"]
["PL","Polska","26","ŚWIĘTOKRZYSKIE","2613","włoszczowski","2613022","Krasocin - gmina wiejska"]
["PL","Polska","26","ŚWIĘTOKRZYSKIE","2613","włoszczowski","2613032","Moskorzew - gmina wiejska"]
["PL","Polska","26","ŚWIĘTOKRZYSKIE","2613","włoszczowski","2613042","Radków - gmina wiejska"]
["PL","Polska","26","ŚWIĘTOKRZYSKIE","2613","włoszczowski","2613052","Secemin - gmina wiejska"]
["PL","Polska","26","ŚWIĘTOKRZYSKIE","2613","włoszczowski","2613064","Włoszczowa - miasto"]
["PL","Polska","26","ŚWIĘTOKRZYSKIE","2613","włoszczowski","2613065","Włoszczowa - obszar wiejski"]
["PL","Polska","26","ŚWIĘTOKRZYSKIE","2661","Kielce","2661011","Kielce - gmina miejska"]
["PL","Polska","28","WARMIŃSKO-MAZURSKIE","2801","bartoszycki","2801011","Bartoszyce - gmina miejska"]
["PL","Polska","28","WARMIŃSKO-MAZURSKIE","2801","bartoszycki","2801021","Górowo Iławeckie - gmina miejska"]
["PL","Polska","28","WARMIŃSKO-MAZURSKIE","2801","bartoszycki","2801032","Bartoszyce - gmina wiejska"]
["PL","Polska","28","WARMIŃSKO-MAZURSKIE","2801","bartoszycki","2801044","Bisztynek - miasto"]
["PL","Polska","28","WARMIŃSKO-MAZURSKIE","2801","bartoszycki","2801045","Bisztynek - obszar wiejski"]
["PL","Polska","28","WARMIŃSKO-MAZURSKIE","2801","bartoszycki","2801052","Górowo Iławeckie - gmina wiejska"]
["PL","Polska","28","WARMIŃSKO-MAZURSKIE","2801","bartoszycki","2801064","Sępopol - miasto"]
["PL","Polska","28","WARMIŃSKO-MAZURSKIE","2801","bartoszycki","2801065","Sępopol - obszar wiejski"]
["PL","Polska","28","WARMIŃSKO-MAZURSKIE","2802","braniewski","2802011","Braniewo - gmina miejska"]
["PL","Polska","28","WARMIŃSKO-MAZURSKIE","2802","braniewski","2802022","Braniewo - gmina wiejska"]
["PL","Polska","28","WARMIŃSKO-MAZURSKIE","2802","braniewski","2802034","Frombork - miasto"]
["PL","Polska","28","WARMIŃSKO-MAZURSKIE","2802","braniewski","2802035","Frombork - obszar wiejski"]
["PL","Polska","28","WARMIŃSKO-MAZURSKIE","2802","braniewski","2802042","Lelkowo - gmina wiejska"]
["PL","Polska","28","WARMIŃSKO-MAZURSKIE","2802","braniewski","2802054","Pieniężno - miasto"]
["PL","Polska","28","WARMIŃSKO-MAZURSKIE","2802","braniewski","2802055","Pieniężno - obszar wiejski"]
["PL","Polska","28","WARMIŃSKO-MAZURSKIE","2802","braniewski","2802062","Płoskinia - gmina wiejska"]
["PL","Polska","28","WARMIŃSKO-MAZURSKIE","2802","braniewski","2802072","Wilczęta - gmina wiejska"]
["PL","Polska","28","WARMIŃSKO-MAZURSKIE","2803","działdowski","2803011","Działdowo - gmina miejska"]
["PL","Polska","28","WARMIŃSKO-MAZURSKIE","2803","działdowski","2803022","Działdowo - gmina wiejska"]
["PL","Polska","28","WARMIŃSKO-MAZURSKIE","2803","działdowski","2803032","Iłowo-Osada - gmina wiejska"]
["PL","Polska","28","WARMIŃSKO-MAZURSKIE","2803","działdowski","2803044","Lidzbark - miasto"]
["PL","Polska","28","WARMIŃSKO-MAZURSKIE","2803","działdowski","2803045","Lidzbark - obszar wiejski"]
["PL","Polska","28","WARMIŃSKO-MAZURSKIE","2803","działdowski","2803052","Płośnica - gmina wiejska"]
["PL","Polska","28","WARMIŃSKO-MAZURSKIE","2803","działdowski","2803062","Rybno - gmina wiejska"]
["PL","Polska","28","WARMIŃSKO-MAZURSKIE","2804","elbląski","2804012","Elbląg - gmina wiejska"]
["PL","Polska","28","WARMIŃSKO-MAZURSKIE","2804","elbląski","2804022","Godkowo - gmina wiejska"]
["PL","Polska","28","WARMIŃSKO-MAZURSKIE","2804","elbląski","2804032","Gronowo Elbląskie - gmina wiejska"]
["PL","Polska","28","WARMIŃSKO-MAZURSKIE","2804","elbląski","2804042","Markusy - gmina wiejska"]
["PL","Polska","28","WARMIŃSKO-MAZURSKIE","2804","elbląski","2804052","Milejewo - gmina wiejska"]
["PL","Polska","28","WARMIŃSKO-MAZURSKIE","2804","elbląski","2804064","Młynary - miasto"]
["PL","Polska","28","WARMIŃSKO-MAZURSKIE","2804","elbląski","2804065","Młynary - obszar wiejski"]
["PL","Polska","28","WARMIŃSKO-MAZURSKIE","2804","elbląski","2804074","Pasłęk - miasto"]
["PL","Polska","28","WARMIŃSKO-MAZURSKIE","2804","elbląski","2804075","Pasłęk - obszar wiejski"]
["PL","Polska","28","WARMIŃSKO-MAZURSKIE","2804","elbląski","2804082","Rychliki - gmina wiejska"]
["PL","Polska","28","WARMIŃSKO-MAZURSKIE","2804","elbląski","2804094","Tolkmicko - miasto"]
["PL","Polska","28","WARMIŃSKO-MAZURSKIE","2804","elbląski","2804095","Tolkmicko - obszar wiejski"]
["PL","Polska","28","WARMIŃSKO-MAZURSKIE","2805","ełcki","2805011","Ełk - gmina miejska"]
["PL","Polska","28","WARMIŃSKO-MAZURSKIE","2805","ełcki","2805022","Ełk - gmina wiejska"]
["PL","Polska","28","WARMIŃSKO-MAZURSKIE","2805","ełcki","2805032","Kalinowo - gmina wiejska"]
["PL","Polska","28","WARMIŃSKO-MAZURSKIE","2805","ełcki","2805042","Prostki - gmina wiejska"]
["PL","Polska","28","WARMIŃSKO-MAZURSKIE","2805","ełcki","2805052","Stare Juchy - gmina wiejska"]
["PL","Polska","28","WARMIŃSKO-MAZURSKIE","2806","giżycki","2806011","Giżycko - gmina miejska"]
["PL","Polska","28","WARMIŃSKO-MAZURSKIE","2806","giżycki","2806042","Giżycko - gmina wiejska"]
["PL","Polska","28","WARMIŃSKO-MAZURSKIE","2806","giżycki","2806052","Kruklanki - gmina wiejska"]
["PL","Polska","28","WARMIŃSKO-MAZURSKIE","2806","giżycki","2806062","Miłki - gmina wiejska"]
["PL","Polska","28","WARMIŃSKO-MAZURSKIE","2806","giżycki","2806084","Ryn - miasto"]
["PL","Polska","28","WARMIŃSKO-MAZURSKIE","2806","giżycki","2806085","Ryn - obszar wiejski"]
["PL","Polska","28","WARMIŃSKO-MAZURSKIE","2806","giżycki","2806102","Wydminy - gmina wiejska"]
["PL","Polska","28","WARMIŃSKO-MAZURSKIE","2807","iławski","2807011","Iława - gmina miejska"]
["PL","Polska","28","WARMIŃSKO-MAZURSKIE","2807","iławski","2807021","Lubawa - gmina miejska"]
["PL","Polska","28","WARMIŃSKO-MAZURSKIE","2807","iławski","2807032","Iława - gmina wiejska"]
["PL","Polska","28","WARMIŃSKO-MAZURSKIE","2807","iławski","2807044","Kisielice - miasto"]
["PL","Polska","28","WARMIŃSKO-MAZURSKIE","2807","iławski","2807045","Kisielice - obszar wiejski"]
["PL","Polska","28","WARMIŃSKO-MAZURSKIE","2807","iławski","2807052","Lubawa - gmina wiejska"]
["PL","Polska","28","WARMIŃSKO-MAZURSKIE","2807","iławski","2807064","Susz - miasto"]
["PL","Polska","28","WARMIŃSKO-MAZURSKIE","2807","iławski","2807065","Susz - obszar wiejski"]
["PL","Polska","28","WARMIŃSKO-MAZURSKIE","2807","iławski","2807074","Zalewo - miasto"]
["PL","Polska","28","WARMIŃSKO-MAZURSKIE","2807","iławski","2807075","Zalewo - obszar wiejski"]
["PL","Polska","28","WARMIŃSKO-MAZURSKIE","2808","kętrzyński","2808011","Kętrzyn - gmina miejska"]
["PL","Polska","28","WARMIŃSKO-MAZURSKIE","2808","kętrzyński","2808022","Barciany - gmina wiejska"]
["PL","Polska","28","WARMIŃSKO-MAZURSKIE","2808","kętrzyński","2808032","Kętrzyn - gmina wiejska"]
["PL","Polska","28","WARMIŃSKO-MAZURSKIE","2808","kętrzyński","2808044","Korsze - miasto"]
["PL","Polska","28","WARMIŃSKO-MAZURSKIE","2808","kętrzyński","2808045","Korsze - obszar wiejski"]
["PL","Polska","28","WARMIŃSKO-MAZURSKIE","2808","kętrzyński","2808054","Reszel - miasto"]
["PL","Polska","28","WARMIŃSKO-MAZURSKIE","2808","kętrzyński","2808055","Reszel - obszar wiejski"]
["PL","Polska","28","WARMIŃSKO-MAZURSKIE","2808","kętrzyński","2808062","Srokowo - gmina wiejska"]
["PL","Polska","28","WARMIŃSKO-MAZURSKIE","2809","lidzbarski","2809011","Lidzbark Warmiński - gmina miejska"]
["PL","Polska","28","WARMIŃSKO-MAZURSKIE","2809","lidzbarski","2809022","Kiwity - gmina wiejska"]
["PL","Polska","28","WARMIŃSKO-MAZURSKIE","2809","lidzbarski","2809032","Lidzbark Warmiński - gmina wiejska"]
["PL","Polska","28","WARMIŃSKO-MAZURSKIE","2809","lidzbarski","2809042","Lubomino - gmina wiejska"]
["PL","Polska","28","WARMIŃSKO-MAZURSKIE","2809","lidzbarski","2809054","Orneta - miasto"]
["PL","Polska","28","WARMIŃSKO-MAZURSKIE","2809","lidzbarski","2809055","Orneta - obszar wiejski"]
["PL","Polska","28","WARMIŃSKO-MAZURSKIE","2810","mrągowski","2810011","Mrągowo - gmina miejska"]
["PL","Polska","28","WARMIŃSKO-MAZURSKIE","2810","mrągowski","2810024","Mikołajki - miasto"]
["PL","Polska","28","WARMIŃSKO-MAZURSKIE","2810","mrągowski","2810025","Mikołajki - obszar wiejski"]
["PL","Polska","28","WARMIŃSKO-MAZURSKIE","2810","mrągowski","2810032","Mrągowo - gmina wiejska"]
["PL","Polska","28","WARMIŃSKO-MAZURSKIE","2810","mrągowski","2810042","Piecki - gmina wiejska"]
["PL","Polska","28","WARMIŃSKO-MAZURSKIE","2810","mrągowski","2810052","Sorkwity - gmina wiejska"]
["PL","Polska","28","WARMIŃSKO-MAZURSKIE","2811","nidzicki","2811012","Janowiec Kościelny - gmina wiejska"]
["PL","Polska","28","WARMIŃSKO-MAZURSKIE","2811","nidzicki","2811022","Janowo - gmina wiejska"]
["PL","Polska","28","WARMIŃSKO-MAZURSKIE","2811","nidzicki","2811032","Kozłowo - gmina wiejska"]
["PL","Polska","28","WARMIŃSKO-MAZURSKIE","2811","nidzicki","2811044","Nidzica - miasto"]
["PL","Polska","28","WARMIŃSKO-MAZURSKIE","2811","nidzicki","2811045","Nidzica - obszar wiejski"]
["PL","Polska","28","WARMIŃSKO-MAZURSKIE","2812","nowomiejski","2812011","Nowe Miasto Lubawskie - gmina miejska"]
["PL","Polska","28","WARMIŃSKO-MAZURSKIE","2812","nowomiejski","2812022","Biskupiec - gmina wiejska"]
["PL","Polska","28","WARMIŃSKO-MAZURSKIE","2812","nowomiejski","2812032","Grodziczno - gmina wiejska"]
["PL","Polska","28","WARMIŃSKO-MAZURSKIE","2812","nowomiejski","2812042","Kurzętnik - gmina wiejska"]
["PL","Polska","28","WARMIŃSKO-MAZURSKIE","2812","nowomiejski","2812052","Bratian - gmina wiejska"]
["PL","Polska","28","WARMIŃSKO-MAZURSKIE","2813","olecki","2813032","Kowale Oleckie - gmina wiejska"]
["PL","Polska","28","WARMIŃSKO-MAZURSKIE","2813","olecki","2813044","Olecko - miasto"]
["PL","Polska","28","WARMIŃSKO-MAZURSKIE","2813","olecki","2813045","Olecko - obszar wiejski"]
["PL","Polska","28","WARMIŃSKO-MAZURSKIE","2813","olecki","2813052","Świętajno - gmina wiejska"]
["PL","Polska","28","WARMIŃSKO-MAZURSKIE","2813","olecki","2813062","Wieliczki - gmina wiejska"]
["PL","Polska","28","WARMIŃSKO-MAZURSKIE","2814","olsztyński","2814014","Barczewo - miasto"]
["PL","Polska","28","WARMIŃSKO-MAZURSKIE","2814","olsztyński","2814015","Barczewo - obszar wiejski"]
["PL","Polska","28","WARMIŃSKO-MAZURSKIE","2814","olsztyński","2814024","Biskupiec - miasto"]
["PL","Polska","28","WARMIŃSKO-MAZURSKIE","2814","olsztyński","2814025","Biskupiec - obszar wiejski"]
["PL","Polska","28","WARMIŃSKO-MAZURSKIE","2814","olsztyński","2814034","Dobre Miasto - miasto"]
["PL","Polska","28","WARMIŃSKO-MAZURSKIE","2814","olsztyński","2814035","Dobre Miasto - obszar wiejski"]
["PL","Polska","28","WARMIŃSKO-MAZURSKIE","2814","olsztyński","2814042","Dywity - gmina wiejska"]
["PL","Polska","28","WARMIŃSKO-MAZURSKIE","2814","olsztyński","2814052","Gietrzwałd - gmina wiejska"]
["PL","Polska","28","WARMIŃSKO-MAZURSKIE","2814","olsztyński","2814064","Jeziorany - miasto"]
["PL","Polska","28","WARMIŃSKO-MAZURSKIE","2814","olsztyński","2814065","Jeziorany - obszar wiejski"]
["PL","Polska","28","WARMIŃSKO-MAZURSKIE","2814","olsztyński","2814072","Jonkowo - gmina wiejska"]
["PL","Polska","28","WARMIŃSKO-MAZURSKIE","2814","olsztyński","2814082","Kolno - gmina wiejska"]
["PL","Polska","28","WARMIŃSKO-MAZURSKIE","2814","olsztyński","2814094","Olsztynek - miasto"]
["PL","Polska","28","WARMIŃSKO-MAZURSKIE","2814","olsztyński","2814095","Olsztynek - obszar wiejski"]
["PL","Polska","28","WARMIŃSKO-MAZURSKIE","2814","olsztyński","2814102","Purda - gmina wiejska"]
["PL","Polska","28","WARMIŃSKO-MAZURSKIE","2814","olsztyński","2814112","Stawiguda - gmina wiejska"]
["PL","Polska","28","WARMIŃSKO-MAZURSKIE","2814","olsztyński","2814122","Świątki - gmina wiejska"]
["PL","Polska","28","WARMIŃSKO-MAZURSKIE","2815","ostródzki","2815011","Ostróda - gmina miejska"]
["PL","Polska","28","WARMIŃSKO-MAZURSKIE","2815","ostródzki","2815022","Dąbrówno - gmina wiejska"]
["PL","Polska","28","WARMIŃSKO-MAZURSKIE","2815","ostródzki","2815032","Grunwald - gmina wiejska"]
["PL","Polska","28","WARMIŃSKO-MAZURSKIE","2815","ostródzki","2815042","Łukta - gmina wiejska"]
["PL","Polska","28","WARMIŃSKO-MAZURSKIE","2815","ostródzki","2815052","Małdyty - gmina wiejska"]
["PL","Polska","28","WARMIŃSKO-MAZURSKIE","2815","ostródzki","2815064","Miłakowo - miasto"]
["PL","Polska","28","WARMIŃSKO-MAZURSKIE","2815","ostródzki","2815065","Miłakowo - obszar wiejski"]
["PL","Polska","28","WARMIŃSKO-MAZURSKIE","2815","ostródzki","2815074","Miłomłyn - miasto"]
["PL","Polska","28","WARMIŃSKO-MAZURSKIE","2815","ostródzki","2815075","Miłomłyn - obszar wiejski"]
["PL","Polska","28","WARMIŃSKO-MAZURSKIE","2815","ostródzki","2815084","Morąg - miasto"]
["PL","Polska","28","WARMIŃSKO-MAZURSKIE","2815","ostródzki","2815085","Morąg - obszar wiejski"]
["PL","Polska","28","WARMIŃSKO-MAZURSKIE","2815","ostródzki","2815092","Ostróda - gmina wiejska"]
["PL","Polska","28","WARMIŃSKO-MAZURSKIE","2816","piski","2816014","Biała Piska - miasto"]
["PL","Polska","28","WARMIŃSKO-MAZURSKIE","2816","piski","2816015","Biała Piska - obszar wiejski"]
["PL","Polska","28","WARMIŃSKO-MAZURSKIE","2816","piski","2816024","Orzysz - miasto"]
["PL","Polska","28","WARMIŃSKO-MAZURSKIE","2816","piski","2816025","Orzysz - obszar wiejski"]
["PL","Polska","28","WARMIŃSKO-MAZURSKIE","2816","piski","2816034","Pisz - miasto"]
["PL","Polska","28","WARMIŃSKO-MAZURSKIE","2816","piski","2816035","Pisz - obszar wiejski"]
["PL","Polska","28","WARMIŃSKO-MAZURSKIE","2816","piski","2816044","Ruciane-Nida - miasto"]
["PL","Polska","28","WARMIŃSKO-MAZURSKIE","2816","piski","2816045","Ruciane-Nida - obszar wiejski"]
["PL","Polska","28","WARMIŃSKO-MAZURSKIE","2817","szczycieński","2817011","Szczytno - gmina miejska"]
["PL","Polska","28","WARMIŃSKO-MAZURSKIE","2817","szczycieński","2817022","Dźwierzuty - gmina wiejska"]
["PL","Polska","28","WARMIŃSKO-MAZURSKIE","2817","szczycieński","2817032","Jedwabno - gmina wiejska"]
["PL","Polska","28","WARMIŃSKO-MAZURSKIE","2817","szczycieński","2817044","Pasym - miasto"]
["PL","Polska","28","WARMIŃSKO-MAZURSKIE","2817","szczycieński","2817045","Pasym - obszar wiejski"]
["PL","Polska","28","WARMIŃSKO-MAZURSKIE","2817","szczycieński","2817052","Rozogi - gmina wiejska"]
["PL","Polska","28","WARMIŃSKO-MAZURSKIE","2817","szczycieński","2817062","Szczytno - gmina wiejska"]
["PL","Polska","28","WARMIŃSKO-MAZURSKIE","2817","szczycieński","2817072","Świętajno - gmina wiejska"]
["PL","Polska","28","WARMIŃSKO-MAZURSKIE","2817","szczycieński",2817084,"Wielbark - miasto"]
["PL","Polska","28","WARMIŃSKO-MAZURSKIE","2817","szczycieński",2817085,"Wielbark - obszar wiejski"]
["PL","Polska","28","WARMIŃSKO-MAZURSKIE","2818","gołdapski","2818012","Banie Mazurskie - gmina wiejska"]
["PL","Polska","28","WARMIŃSKO-MAZURSKIE","2818","gołdapski","2818022","Dubeninki - gmina wiejska"]
["PL","Polska","28","WARMIŃSKO-MAZURSKIE","2818","gołdapski","2818034","Gołdap - miasto"]
["PL","Polska","28","WARMIŃSKO-MAZURSKIE","2818","gołdapski","2818035","Gołdap - obszar wiejski"]
["PL","Polska","28","WARMIŃSKO-MAZURSKIE","2819","węgorzewski","2819012","Budry - gmina wiejska"]
["PL","Polska","28","WARMIŃSKO-MAZURSKIE","2819","węgorzewski","2819022","Pozezdrze - gmina wiejska"]
["PL","Polska","28","WARMIŃSKO-MAZURSKIE","2819","węgorzewski","2819034","Węgorzewo - miasto"]
["PL","Polska","28","WARMIŃSKO-MAZURSKIE","2819","węgorzewski","2819035","Węgorzewo - obszar wiejski"]
["PL","Polska","28","WARMIŃSKO-MAZURSKIE","2861","Elbląg","2861011","Elbląg - gmina miejska"]
["PL","Polska","28","WARMIŃSKO-MAZURSKIE","2862","Olsztyn","2862011","Olsztyn - gmina miejska"]
["PL","Polska","30","WIELKOPOLSKIE","3001","chodzieski","3001011","Chodzież - gmina miejska"]
["PL","Polska","30","WIELKOPOLSKIE","3001","chodzieski",3001024,"Budzyń - miasto"]
["PL","Polska","30","WIELKOPOLSKIE","3001","chodzieski",3001025,"Budzyń - obszar wiejski"]
["PL","Polska","30","WIELKOPOLSKIE","3001","chodzieski","3001032","Chodzież - gmina wiejska"]
["PL","Polska","30","WIELKOPOLSKIE","3001","chodzieski","3001044","Margonin - miasto"]
["PL","Polska","30","WIELKOPOLSKIE","3001","chodzieski","3001045","Margonin - obszar wiejski"]
["PL","Polska","30","WIELKOPOLSKIE","3001","chodzieski","3001054","Szamocin - miasto"]
["PL","Polska","30","WIELKOPOLSKIE","3001","chodzieski","3001055","Szamocin - obszar wiejski"]
["PL","Polska","30","WIELKOPOLSKIE","3002","czarnkowsko-trzcianecki","3002011","Czarnków - gmina miejska"]
["PL","Polska","30","WIELKOPOLSKIE","3002","czarnkowsko-trzcianecki","3002022","Czarnków - gmina wiejska"]
["PL","Polska","30","WIELKOPOLSKIE","3002","czarnkowsko-trzcianecki","3002032","Drawsko - gmina wiejska"]
["PL","Polska","30","WIELKOPOLSKIE","3002","czarnkowsko-trzcianecki","3002044","Krzyż Wielkopolski - miasto"]
["PL","Polska","30","WIELKOPOLSKIE","3002","czarnkowsko-trzcianecki","3002045","Krzyż Wielkopolski - obszar wiejski"]
["PL","Polska","30","WIELKOPOLSKIE","3002","czarnkowsko-trzcianecki","3002052","Lubasz - gmina wiejska"]
["PL","Polska","30","WIELKOPOLSKIE","3002","czarnkowsko-trzcianecki","3002062","Połajewo - gmina wiejska"]
["PL","Polska","30","WIELKOPOLSKIE","3002","czarnkowsko-trzcianecki","3002074","Trzcianka - miasto"]
["PL","Polska","30","WIELKOPOLSKIE","3002","czarnkowsko-trzcianecki","3002075","Trzcianka - obszar wiejski"]
["PL","Polska","30","WIELKOPOLSKIE","3002","czarnkowsko-trzcianecki","3002084","Wieleń - miasto"]
["PL","Polska","30","WIELKOPOLSKIE","3002","czarnkowsko-trzcianecki","3002085","Wieleń - obszar wiejski"]
["PL","Polska","30","WIELKOPOLSKIE","3003","gnieźnieński","3003011","Gniezno - gmina miejska"]
["PL","Polska","30","WIELKOPOLSKIE","3003","gnieźnieński","3003024","Czerniejewo - miasto"]
["PL","Polska","30","WIELKOPOLSKIE","3003","gnieźnieński","3003025","Czerniejewo - obszar wiejski"]
["PL","Polska","30","WIELKOPOLSKIE","3003","gnieźnieński","3003032","Gniezno - gmina wiejska"]
["PL","Polska","30","WIELKOPOLSKIE","3003","gnieźnieński","3003042","Kiszkowo - gmina wiejska"]
["PL","Polska","30","WIELKOPOLSKIE","3003","gnieźnieński","3003054","Kłecko - miasto"]
["PL","Polska","30","WIELKOPOLSKIE","3003","gnieźnieński","3003055","Kłecko - obszar wiejski"]
["PL","Polska","30","WIELKOPOLSKIE","3003","gnieźnieński","3003062","Łubowo - gmina wiejska"]
["PL","Polska","30","WIELKOPOLSKIE","3003","gnieźnieński","3003072","Mieleszyn - gmina wiejska"]
["PL","Polska","30","WIELKOPOLSKIE","3003","gnieźnieński","3003082","Niechanowo - gmina wiejska"]
["PL","Polska","30","WIELKOPOLSKIE","3003","gnieźnieński","3003094","Trzemeszno - miasto"]
["PL","Polska","30","WIELKOPOLSKIE","3003","gnieźnieński","3003095","Trzemeszno - obszar wiejski"]
["PL","Polska","30","WIELKOPOLSKIE","3003","gnieźnieński","3003104","Witkowo - miasto"]
["PL","Polska","30","WIELKOPOLSKIE","3003","gnieźnieński","3003105","Witkowo - obszar wiejski"]
["PL","Polska","30","WIELKOPOLSKIE","3004","gostyński","3004014","Borek Wielkopolski - miasto"]
["PL","Polska","30","WIELKOPOLSKIE","3004","gostyński","3004015","Borek Wielkopolski - obszar wiejski"]
["PL","Polska","30","WIELKOPOLSKIE","3004","gostyński","3004024","Gostyń - miasto"]
["PL","Polska","30","WIELKOPOLSKIE","3004","gostyński","3004025","Gostyń - obszar wiejski"]
["PL","Polska","30","WIELKOPOLSKIE","3004","gostyński","3004034","Krobia - miasto"]
["PL","Polska","30","WIELKOPOLSKIE","3004","gostyński","3004035","Krobia - obszar wiejski"]
["PL","Polska","30","WIELKOPOLSKIE","3004","gostyński","3004042","Pępowo - gmina wiejska"]
["PL","Polska","30","WIELKOPOLSKIE","3004","gostyński","3004052","Piaski - gmina wiejska"]
["PL","Polska","30","WIELKOPOLSKIE","3004","gostyński","3004064","Pogorzela - miasto"]
["PL","Polska","30","WIELKOPOLSKIE","3004","gostyński","3004065","Pogorzela - obszar wiejski"]
["PL","Polska","30","WIELKOPOLSKIE","3004","gostyński","3004074","Poniec - miasto"]
["PL","Polska","30","WIELKOPOLSKIE","3004","gostyński","3004075","Poniec - obszar wiejski"]
["PL","Polska","30","WIELKOPOLSKIE","3005","grodziski","3005012","Granowo - gmina wiejska"]
["PL","Polska","30","WIELKOPOLSKIE","3005","grodziski","3005024","Grodzisk Wielkopolski - miasto"]
["PL","Polska","30","WIELKOPOLSKIE","3005","grodziski","3005025","Grodzisk Wielkopolski - obszar wiejski"]
["PL","Polska","30","WIELKOPOLSKIE","3005","grodziski","3005032","Kamieniec - gmina wiejska"]
["PL","Polska","30","WIELKOPOLSKIE","3005","grodziski","3005044","Rakoniewice - miasto"]
["PL","Polska","30","WIELKOPOLSKIE","3005","grodziski","3005045","Rakoniewice - obszar wiejski"]
["PL","Polska","30","WIELKOPOLSKIE","3005","grodziski","3005054","Wielichowo - miasto"]
["PL","Polska","30","WIELKOPOLSKIE","3005","grodziski","3005055","Wielichowo - obszar wiejski"]
["PL","Polska","30","WIELKOPOLSKIE","3006","jarociński","3006014","Jaraczewo - miasto"]
["PL","Polska","30","WIELKOPOLSKIE","3006","jarociński","3006015","Jaraczewo - obszar wiejski"]
["PL","Polska","30","WIELKOPOLSKIE","3006","jarociński","3006024","Jarocin - miasto"]
["PL","Polska","30","WIELKOPOLSKIE","3006","jarociński","3006025","Jarocin - obszar wiejski"]
["PL","Polska","30","WIELKOPOLSKIE","3006","jarociński","3006032","Kotlin - gmina wiejska"]
["PL","Polska","30","WIELKOPOLSKIE","3006","jarociński","3006044","Żerków - miasto"]
["PL","Polska","30","WIELKOPOLSKIE","3006","jarociński","3006045","Żerków - obszar wiejski"]
["PL","Polska","30","WIELKOPOLSKIE","3007","kaliski","3007012","Blizanów - gmina wiejska"]
["PL","Polska","30","WIELKOPOLSKIE","3007","kaliski","3007022","Brzeziny - gmina wiejska"]
["PL","Polska","30","WIELKOPOLSKIE","3007","kaliski","3007032","Ceków-Kolonia - gmina wiejska"]
["PL","Polska","30","WIELKOPOLSKIE","3007","kaliski","3007042","Godziesze Wielkie - gmina wiejska"]
["PL","Polska","30","WIELKOPOLSKIE","3007","kaliski",3007054,"Koźminek - miasto"]
["PL","Polska","30","WIELKOPOLSKIE","3007","kaliski",3007055,"Koźminek - obszar wiejski"]
["PL","Polska","30","WIELKOPOLSKIE","3007","kaliski","3007062","Lisków - gmina wiejska"]
["PL","Polska","30","WIELKOPOLSKIE","3007","kaliski","3007072","Mycielin - gmina wiejska"]
["PL","Polska","30","WIELKOPOLSKIE","3007","kaliski","3007084","Opatówek - miasto"]
["PL","Polska","30","WIELKOPOLSKIE","3007","kaliski","3007085","Opatówek - obszar wiejski"]
["PL","Polska","30","WIELKOPOLSKIE","3007","kaliski","3007094","Stawiszyn - miasto"]
["PL","Polska","30","WIELKOPOLSKIE","3007","kaliski","3007095","Stawiszyn - obszar wiejski"]
["PL","Polska","30","WIELKOPOLSKIE","3007","kaliski","3007102","Szczytniki - gmina wiejska"]
["PL","Polska","30","WIELKOPOLSKIE","3007","kaliski","3007112","Żelazków - gmina wiejska"]
["PL","Polska","30","WIELKOPOLSKIE","3008","kępiński","3008012","Baranów - gmina wiejska"]
["PL","Polska","30","WIELKOPOLSKIE","3008","kępiński","3008022","Bralin - gmina wiejska"]
["PL","Polska","30","WIELKOPOLSKIE","3008","kępiński","3008034","Kępno - miasto"]
["PL","Polska","30","WIELKOPOLSKIE","3008","kępiński","3008035","Kępno - obszar wiejski"]
["PL","Polska","30","WIELKOPOLSKIE","3008","kępiński","3008042","Łęka Opatowska - gmina wiejska"]
["PL","Polska","30","WIELKOPOLSKIE","3008","kępiński","3008052","Perzów - gmina wiejska"]
["PL","Polska","30","WIELKOPOLSKIE","3008","kępiński","3008064","Rychtal - miasto"]
["PL","Polska","30","WIELKOPOLSKIE","3008","kępiński","3008065","Rychtal - obszar wiejski"]
["PL","Polska","30","WIELKOPOLSKIE","3008","kępiński","3008072","Trzcinica - gmina wiejska"]
["PL","Polska","30","WIELKOPOLSKIE","3009","kolski","3009011","Koło - gmina miejska"]
["PL","Polska","30","WIELKOPOLSKIE","3009","kolski","3009022","Babiak - gmina wiejska"]
["PL","Polska","30","WIELKOPOLSKIE","3009","kolski","3009032","Chodów - gmina wiejska"]
["PL","Polska","30","WIELKOPOLSKIE","3009","kolski","3009044","Dąbie - miasto"]
["PL","Polska","30","WIELKOPOLSKIE","3009","kolski","3009045","Dąbie - obszar wiejski"]
["PL","Polska","30","WIELKOPOLSKIE","3009","kolski","3009052","Grzegorzew - gmina wiejska"]
["PL","Polska","30","WIELKOPOLSKIE","3009","kolski","3009064","Kłodawa - miasto"]
["PL","Polska","30","WIELKOPOLSKIE","3009","kolski","3009065","Kłodawa - obszar wiejski"]
["PL","Polska","30","WIELKOPOLSKIE","3009","kolski","3009072","Koło - gmina wiejska"]
["PL","Polska","30","WIELKOPOLSKIE","3009","kolski","3009082","Kościelec - gmina wiejska"]
["PL","Polska","30","WIELKOPOLSKIE","3009","kolski","3009092","Olszówka - gmina wiejska"]
["PL","Polska","30","WIELKOPOLSKIE","3009","kolski","3009102","Osiek Mały - gmina wiejska"]
["PL","Polska","30","WIELKOPOLSKIE","3009","kolski","3009114","Przedecz - miasto"]
["PL","Polska","30","WIELKOPOLSKIE","3009","kolski","3009115","Przedecz - obszar wiejski"]
["PL","Polska","30","WIELKOPOLSKIE","3010","koniński","3010014","Golina - miasto"]
["PL","Polska","30","WIELKOPOLSKIE","3010","koniński","3010015","Golina - obszar wiejski"]
["PL","Polska","30","WIELKOPOLSKIE","3010","koniński","3010022","Grodziec - gmina wiejska"]
["PL","Polska","30","WIELKOPOLSKIE","3010","koniński","3010032","Kazimierz Biskupi - gmina wiejska"]
["PL","Polska","30","WIELKOPOLSKIE","3010","koniński","3010044","Kleczew - miasto"]
["PL","Polska","30","WIELKOPOLSKIE","3010","koniński","3010045","Kleczew - obszar wiejski"]
["PL","Polska","30","WIELKOPOLSKIE","3010","koniński","3010052","Kramsk - gmina wiejska"]
["PL","Polska","30","WIELKOPOLSKIE","3010","koniński","3010062","Krzymów - gmina wiejska"]
["PL","Polska","30","WIELKOPOLSKIE","3010","koniński","3010074","Rychwał - miasto"]
["PL","Polska","30","WIELKOPOLSKIE","3010","koniński","3010075","Rychwał - obszar wiejski"]
["PL","Polska","30","WIELKOPOLSKIE","3010","koniński","3010082","Rzgów - gmina wiejska"]
["PL","Polska","30","WIELKOPOLSKIE","3010","koniński","3010092","Skulsk - gmina wiejska"]
["PL","Polska","30","WIELKOPOLSKIE","3010","koniński","3010104","Sompolno - miasto"]
["PL","Polska","30","WIELKOPOLSKIE","3010","koniński","3010105","Sompolno - obszar wiejski"]
["PL","Polska","30","WIELKOPOLSKIE","3010","koniński","3010112","Stare Miasto - gmina wiejska"]
["PL","Polska","30","WIELKOPOLSKIE","3010","koniński","3010124","Ślesin - miasto"]
["PL","Polska","30","WIELKOPOLSKIE","3010","koniński","3010125","Ślesin - obszar wiejski"]
["PL","Polska","30","WIELKOPOLSKIE","3010","koniński","3010132","Wierzbinek - gmina wiejska"]
["PL","Polska","30","WIELKOPOLSKIE","3010","koniński","3010142","Wilczyn - gmina wiejska"]
["PL","Polska","30","WIELKOPOLSKIE","3011","kościański","3011011","Kościan - gmina miejska"]
["PL","Polska","30","WIELKOPOLSKIE","3011","kościański","3011024","Czempiń - miasto"]
["PL","Polska","30","WIELKOPOLSKIE","3011","kościański","3011025","Czempiń - obszar wiejski"]
["PL","Polska","30","WIELKOPOLSKIE","3011","kościański","3011032","Kościan - gmina wiejska"]
["PL","Polska","30","WIELKOPOLSKIE","3011","kościański","3011044","Krzywiń - miasto"]
["PL","Polska","30","WIELKOPOLSKIE","3011","kościański","3011045","Krzywiń - obszar wiejski"]
["PL","Polska","30","WIELKOPOLSKIE","3011","kościański","3011054","Śmigiel - miasto"]
["PL","Polska","30","WIELKOPOLSKIE","3011","kościański","3011055","Śmigiel - obszar wiejski"]
["PL","Polska","30","WIELKOPOLSKIE","3012","krotoszyński","3012011","Sulmierzyce - gmina miejska"]
["PL","Polska","30","WIELKOPOLSKIE","3012","krotoszyński","3012024","Kobylin - miasto"]
["PL","Polska","30","WIELKOPOLSKIE","3012","krotoszyński","3012025","Kobylin - obszar wiejski"]
["PL","Polska","30","WIELKOPOLSKIE","3012","krotoszyński","3012034","Koźmin Wielkopolski - miasto"]
["PL","Polska","30","WIELKOPOLSKIE","3012","krotoszyński","3012035","Koźmin Wielkopolski - obszar wiejski"]
["PL","Polska","30","WIELKOPOLSKIE","3012","krotoszyński","3012044","Krotoszyn - miasto"]
["PL","Polska","30","WIELKOPOLSKIE","3012","krotoszyński","3012045","Krotoszyn - obszar wiejski"]
["PL","Polska","30","WIELKOPOLSKIE","3012","krotoszyński","3012052","Rozdrażew - gmina wiejska"]
["PL","Polska","30","WIELKOPOLSKIE","3012","krotoszyński","3012064","Zduny - miasto"]
["PL","Polska","30","WIELKOPOLSKIE","3012","krotoszyński","3012065","Zduny - obszar wiejski"]
["PL","Polska","30","WIELKOPOLSKIE","3013","leszczyński","3013012","Krzemieniewo - gmina wiejska"]
["PL","Polska","30","WIELKOPOLSKIE","3013","leszczyński","3013022","Lipno - gmina wiejska"]
["PL","Polska","30","WIELKOPOLSKIE","3013","leszczyński","3013034","Osieczna - miasto"]
["PL","Polska","30","WIELKOPOLSKIE","3013","leszczyński","3013035","Osieczna - obszar wiejski"]
["PL","Polska","30","WIELKOPOLSKIE","3013","leszczyński","3013044","Rydzyna - miasto"]
["PL","Polska","30","WIELKOPOLSKIE","3013","leszczyński","3013045","Rydzyna - obszar wiejski"]
["PL","Polska","30","WIELKOPOLSKIE","3013","leszczyński","3013052","Święciechowa - gmina wiejska"]
["PL","Polska","30","WIELKOPOLSKIE","3013","leszczyński","3013062","Wijewo - gmina wiejska"]
["PL","Polska","30","WIELKOPOLSKIE","3013","leszczyński","3013072","Włoszakowice - gmina wiejska"]
["PL","Polska","30","WIELKOPOLSKIE","3014","międzychodzki","3014012","Chrzypsko Wielkie - gmina wiejska"]
["PL","Polska","30","WIELKOPOLSKIE","3014","międzychodzki","3014022","Kwilcz - gmina wiejska"]
["PL","Polska","30","WIELKOPOLSKIE","3014","międzychodzki","3014034","Międzychód - miasto"]
["PL","Polska","30","WIELKOPOLSKIE","3014","międzychodzki","3014035","Międzychód - obszar wiejski"]
["PL","Polska","30","WIELKOPOLSKIE","3014","międzychodzki","3014044","Sieraków - miasto"]
["PL","Polska","30","WIELKOPOLSKIE","3014","międzychodzki","3014045","Sieraków - obszar wiejski"]
["PL","Polska","30","WIELKOPOLSKIE","3015","nowotomyski","3015012","Kuślin - gmina wiejska"]
["PL","Polska","30","WIELKOPOLSKIE","3015","nowotomyski","3015024","Lwówek - miasto"]
["PL","Polska","30","WIELKOPOLSKIE","3015","nowotomyski","3015025","Lwówek - obszar wiejski"]
["PL","Polska","30","WIELKOPOLSKIE","3015","nowotomyski","3015032","Miedzichowo - gmina wiejska"]
["PL","Polska","30","WIELKOPOLSKIE","3015","nowotomyski","3015044","Nowy Tomyśl - miasto"]
["PL","Polska","30","WIELKOPOLSKIE","3015","nowotomyski","3015045","Nowy Tomyśl - obszar wiejski"]
["PL","Polska","30","WIELKOPOLSKIE","3015","nowotomyski","3015054","Opalenica - miasto"]
["PL","Polska","30","WIELKOPOLSKIE","3015","nowotomyski","3015055","Opalenica - obszar wiejski"]
["PL","Polska","30","WIELKOPOLSKIE","3015","nowotomyski","3015064","Zbąszyń - miasto"]
["PL","Polska","30","WIELKOPOLSKIE","3015","nowotomyski","3015065","Zbąszyń - obszar wiejski"]
["PL","Polska","30","WIELKOPOLSKIE","3016","obornicki","3016014","Oborniki - miasto"]
["PL","Polska","30","WIELKOPOLSKIE","3016","obornicki","3016015","Oborniki - obszar wiejski"]
["PL","Polska","30","WIELKOPOLSKIE","3016","obornicki","3016024","Rogoźno - miasto"]
["PL","Polska","30","WIELKOPOLSKIE","3016","obornicki","3016025","Rogoźno - obszar wiejski"]
["PL","Polska","30","WIELKOPOLSKIE","3016","obornicki","3016032","Ryczywół - gmina wiejska"]
["PL","Polska","30","WIELKOPOLSKIE","3017","ostrowski","3017011","Ostrów Wielkopolski - gmina miejska"]
["PL","Polska","30","WIELKOPOLSKIE","3017","ostrowski","3017024","Nowe Skalmierzyce - miasto"]
["PL","Polska","30","WIELKOPOLSKIE","3017","ostrowski","3017025","Nowe Skalmierzyce - obszar wiejski"]
["PL","Polska","30","WIELKOPOLSKIE","3017","ostrowski","3017034","Odolanów - miasto"]
["PL","Polska","30","WIELKOPOLSKIE","3017","ostrowski","3017035","Odolanów - obszar wiejski"]
["PL","Polska","30","WIELKOPOLSKIE","3017","ostrowski","3017042","Ostrów Wielkopolski - gmina wiejska"]
["PL","Polska","30","WIELKOPOLSKIE","3017","ostrowski","3017052","Przygodzice - gmina wiejska"]
["PL","Polska","30","WIELKOPOLSKIE","3017","ostrowski","3017064","Raszków - miasto"]
["PL","Polska","30","WIELKOPOLSKIE","3017","ostrowski","3017065","Raszków - obszar wiejski"]
["PL","Polska","30","WIELKOPOLSKIE","3017","ostrowski","3017072","Sieroszewice - gmina wiejska"]
["PL","Polska","30","WIELKOPOLSKIE","3017","ostrowski","3017082","Sośnie - gmina wiejska"]
["PL","Polska","30","WIELKOPOLSKIE","3018","ostrzeszowski","3018012","Czajków - gmina wiejska"]
["PL","Polska","30","WIELKOPOLSKIE","3018","ostrzeszowski","3018022","Doruchów - gmina wiejska"]
["PL","Polska","30","WIELKOPOLSKIE","3018","ostrzeszowski","3018034","Grabów nad Prosną - miasto"]
["PL","Polska","30","WIELKOPOLSKIE","3018","ostrzeszowski","3018035","Grabów nad Prosną - obszar wiejski"]
["PL","Polska","30","WIELKOPOLSKIE","3018","ostrzeszowski","3018042","Kobyla Góra - gmina wiejska"]
["PL","Polska","30","WIELKOPOLSKIE","3018","ostrzeszowski","3018052","Kraszewice - gmina wiejska"]
["PL","Polska","30","WIELKOPOLSKIE","3018","ostrzeszowski","3018064","Mikstat - miasto"]
["PL","Polska","30","WIELKOPOLSKIE","3018","ostrzeszowski","3018065","Mikstat - obszar wiejski"]
["PL","Polska","30","WIELKOPOLSKIE","3018","ostrzeszowski","3018074","Ostrzeszów - miasto"]
["PL","Polska","30","WIELKOPOLSKIE","3018","ostrzeszowski","3018075","Ostrzeszów - obszar wiejski"]
["PL","Polska","30","WIELKOPOLSKIE","3019","pilski","3019011","Piła - gmina miejska"]
["PL","Polska","30","WIELKOPOLSKIE","3019","pilski","3019022","Białośliwie - gmina wiejska"]
["PL","Polska","30","WIELKOPOLSKIE","3019","pilski",3019034,"Kaczory - miasto"]
["PL","Polska","30","WIELKOPOLSKIE","3019","pilski",3019035,"Kaczory - obszar wiejski"]
["PL","Polska","30","WIELKOPOLSKIE","3019","pilski","3019044","Łobżenica - miasto"]
["PL","Polska","30","WIELKOPOLSKIE","3019","pilski","3019045","Łobżenica - obszar wiejski"]
["PL","Polska","30","WIELKOPOLSKIE","3019","pilski",3019054,"Miasteczko Krajeńskie - miasto"]
["PL","Polska","30","WIELKOPOLSKIE","3019","pilski",3019055,"Miasteczko Krajeńskie - obszar wiejski"]
["PL","Polska","30","WIELKOPOLSKIE","3019","pilski","3019062","Szydłowo - gmina wiejska"]
["PL","Polska","30","WIELKOPOLSKIE","3019","pilski","3019074","Ujście - miasto"]
["PL","Polska","30","WIELKOPOLSKIE","3019","pilski","3019075","Ujście - obszar wiejski"]
["PL","Polska","30","WIELKOPOLSKIE","3019","pilski","3019084","Wyrzysk - miasto"]
["PL","Polska","30","WIELKOPOLSKIE","3019","pilski","3019085","Wyrzysk - obszar wiejski"]
["PL","Polska","30","WIELKOPOLSKIE","3019","pilski","3019094","Wysoka - miasto"]
["PL","Polska","30","WIELKOPOLSKIE","3019","pilski","3019095","Wysoka - obszar wiejski"]
["PL","Polska","30","WIELKOPOLSKIE","3020","pleszewski","3020014","Chocz - miasto"]
["PL","Polska","30","WIELKOPOLSKIE","3020","pleszewski","3020015","Chocz - obszar wiejski"]
["PL","Polska","30","WIELKOPOLSKIE","3020","pleszewski","3020022","Czermin - gmina wiejska"]
["PL","Polska","30","WIELKOPOLSKIE","3020","pleszewski","3020034","Dobrzyca - miasto"]
["PL","Polska","30","WIELKOPOLSKIE","3020","pleszewski","3020035","Dobrzyca - obszar wiejski"]
["PL","Polska","30","WIELKOPOLSKIE","3020","pleszewski","3020042","Gizałki - gmina wiejska"]
["PL","Polska","30","WIELKOPOLSKIE","3020","pleszewski","3020052","Gołuchów - gmina wiejska"]
["PL","Polska","30","WIELKOPOLSKIE","3020","pleszewski","3020064","Pleszew - miasto"]
["PL","Polska","30","WIELKOPOLSKIE","3020","pleszewski","3020065","Pleszew - obszar wiejski"]
["PL","Polska","30","WIELKOPOLSKIE","3021","poznański","3021011","Luboń - gmina miejska"]
["PL","Polska","30","WIELKOPOLSKIE","3021","poznański","3021021","Puszczykowo - gmina miejska"]
["PL","Polska","30","WIELKOPOLSKIE","3021","poznański","3021034","Buk - miasto"]
["PL","Polska","30","WIELKOPOLSKIE","3021","poznański","3021035","Buk - obszar wiejski"]
["PL","Polska","30","WIELKOPOLSKIE","3021","poznański","3021042","Czerwonak - gmina wiejska"]
["PL","Polska","30","WIELKOPOLSKIE","3021","poznański","3021052","Dopiewo - gmina wiejska"]
["PL","Polska","30","WIELKOPOLSKIE","3021","poznański","3021062","Kleszczewo - gmina wiejska"]
["PL","Polska","30","WIELKOPOLSKIE","3021","poznański","3021072","Komorniki - gmina wiejska"]
["PL","Polska","30","WIELKOPOLSKIE","3021","poznański","3021084","Kostrzyn - miasto"]
["PL","Polska","30","WIELKOPOLSKIE","3021","poznański","3021085","Kostrzyn - obszar wiejski"]
["PL","Polska","30","WIELKOPOLSKIE","3021","poznański","3021094","Kórnik - miasto"]
["PL","Polska","30","WIELKOPOLSKIE","3021","poznański","3021095","Kórnik - obszar wiejski"]
["PL","Polska","30","WIELKOPOLSKIE","3021","poznański","3021104","Mosina - miasto"]
["PL","Polska","30","WIELKOPOLSKIE","3021","poznański","3021105","Mosina - obszar wiejski"]
["PL","Polska","30","WIELKOPOLSKIE","3021","poznański","3021114","Murowana Goślina - miasto"]
["PL","Polska","30","WIELKOPOLSKIE","3021","poznański","3021115","Murowana Goślina - obszar wiejski"]
["PL","Polska","30","WIELKOPOLSKIE","3021","poznański","3021124","Pobiedziska - miasto"]
["PL","Polska","30","WIELKOPOLSKIE","3021","poznański","3021125","Pobiedziska - obszar wiejski"]
["PL","Polska","30","WIELKOPOLSKIE","3021","poznański","3021132","Rokietnica - gmina wiejska"]
["PL","Polska","30","WIELKOPOLSKIE","3021","poznański","3021144","Stęszew - miasto"]
["PL","Polska","30","WIELKOPOLSKIE","3021","poznański","3021145","Stęszew - obszar wiejski"]
["PL","Polska","30","WIELKOPOLSKIE","3021","poznański","3021152","Suchy Las - gmina wiejska"]
["PL","Polska","30","WIELKOPOLSKIE","3021","poznański","3021164","Swarzędz - miasto"]
["PL","Polska","30","WIELKOPOLSKIE","3021","poznański","3021165","Swarzędz - obszar wiejski"]
["PL","Polska","30","WIELKOPOLSKIE","3021","poznański","3021172","Tarnowo Podgórne - gmina wiejska"]
["PL","Polska","30","WIELKOPOLSKIE","3022","rawicki","3022014","Bojanowo - miasto"]
["PL","Polska","30","WIELKOPOLSKIE","3022","rawicki","3022015","Bojanowo - obszar wiejski"]
["PL","Polska","30","WIELKOPOLSKIE","3022","rawicki","3022024","Jutrosin - miasto"]
["PL","Polska","30","WIELKOPOLSKIE","3022","rawicki","3022025","Jutrosin - obszar wiejski"]
["PL","Polska","30","WIELKOPOLSKIE","3022","rawicki","3022034","Miejska Górka - miasto"]
["PL","Polska","30","WIELKOPOLSKIE","3022","rawicki","3022035","Miejska Górka - obszar wiejski"]
["PL","Polska","30","WIELKOPOLSKIE","3022","rawicki","3022042","Pakosław - gmina wiejska"]
["PL","Polska","30","WIELKOPOLSKIE","3022","rawicki","3022054","Rawicz - miasto"]
["PL","Polska","30","WIELKOPOLSKIE","3022","rawicki","3022055","Rawicz - obszar wiejski"]
["PL","Polska","30","WIELKOPOLSKIE","3023","słupecki","3023011","Słupca - gmina miejska"]
["PL","Polska","30","WIELKOPOLSKIE","3023","słupecki","3023022","Lądek - gmina wiejska"]
["PL","Polska","30","WIELKOPOLSKIE","3023","słupecki","3023032","Orchowo - gmina wiejska"]
["PL","Polska","30","WIELKOPOLSKIE","3023","słupecki","3023042","Ostrowite - gmina wiejska"]
["PL","Polska","30","WIELKOPOLSKIE","3023","słupecki","3023052","Powidz - gmina wiejska"]
["PL","Polska","30","WIELKOPOLSKIE","3023","słupecki","3023062","Słupca - gmina wiejska"]
["PL","Polska","30","WIELKOPOLSKIE","3023","słupecki","3023072","Strzałkowo - gmina wiejska"]
["PL","Polska","30","WIELKOPOLSKIE","3023","słupecki","3023084","Zagórów - miasto"]
["PL","Polska","30","WIELKOPOLSKIE","3023","słupecki","3023085","Zagórów - obszar wiejski"]
["PL","Polska","30","WIELKOPOLSKIE","3024","szamotulski","3024011","Obrzycko - gmina miejska"]
["PL","Polska","30","WIELKOPOLSKIE","3024","szamotulski","3024022","Duszniki - gmina wiejska"]
["PL","Polska","30","WIELKOPOLSKIE","3024","szamotulski","3024032","Kaźmierz - gmina wiejska"]
["PL","Polska","30","WIELKOPOLSKIE","3024","szamotulski","3024042","Obrzycko - gmina wiejska"]
["PL","Polska","30","WIELKOPOLSKIE","3024","szamotulski","3024054","Ostroróg - miasto"]
["PL","Polska","30","WIELKOPOLSKIE","3024","szamotulski","3024055","Ostroróg - obszar wiejski"]
["PL","Polska","30","WIELKOPOLSKIE","3024","szamotulski","3024064","Pniewy - miasto"]
["PL","Polska","30","WIELKOPOLSKIE","3024","szamotulski","3024065","Pniewy - obszar wiejski"]
["PL","Polska","30","WIELKOPOLSKIE","3024","szamotulski","3024074","Szamotuły - miasto"]
["PL","Polska","30","WIELKOPOLSKIE","3024","szamotulski","3024075","Szamotuły - obszar wiejski"]
["PL","Polska","30","WIELKOPOLSKIE","3024","szamotulski","3024084","Wronki - miasto"]
["PL","Polska","30","WIELKOPOLSKIE","3024","szamotulski","3024085","Wronki - obszar wiejski"]
["PL","Polska","30","WIELKOPOLSKIE","3025","średzki","3025012","Dominowo - gmina wiejska"]
["PL","Polska","30","WIELKOPOLSKIE","3025","średzki","3025022","Krzykosy - gmina wiejska"]
["PL","Polska","30","WIELKOPOLSKIE","3025","średzki","3025032","Nowe Miasto nad Wartą - gmina wiejska"]
["PL","Polska","30","WIELKOPOLSKIE","3025","średzki","3025044","Środa Wielkopolska - miasto"]
["PL","Polska","30","WIELKOPOLSKIE","3025","średzki","3025045","Środa Wielkopolska - obszar wiejski"]
["PL","Polska","30","WIELKOPOLSKIE","3025","średzki","3025054","Zaniemyśl - miasto"]
["PL","Polska","30","WIELKOPOLSKIE","3025","średzki","3025055","Zaniemyśl - obszar wiejski"]
["PL","Polska","30","WIELKOPOLSKIE","3026","śremski","3026012","Brodnica - gmina wiejska"]
["PL","Polska","30","WIELKOPOLSKIE","3026","śremski","3026024","Dolsk - miasto"]
["PL","Polska","30","WIELKOPOLSKIE","3026","śremski","3026025","Dolsk - obszar wiejski"]
["PL","Polska","30","WIELKOPOLSKIE","3026","śremski","3026034","Książ Wielkopolski - miasto"]
["PL","Polska","30","WIELKOPOLSKIE","3026","śremski","3026035","Książ Wielkopolski - obszar wiejski"]
["PL","Polska","30","WIELKOPOLSKIE","3026","śremski","3026044","Śrem - miasto"]
["PL","Polska","30","WIELKOPOLSKIE","3026","śremski","3026045","Śrem - obszar wiejski"]
["PL","Polska","30","WIELKOPOLSKIE","3027","turecki","3027011","Turek - gmina miejska"]
["PL","Polska","30","WIELKOPOLSKIE","3027","turecki","3027022","Brudzew - gmina wiejska"]
["PL","Polska","30","WIELKOPOLSKIE","3027","turecki","3027034","Dobra - miasto"]
["PL","Polska","30","WIELKOPOLSKIE","3027","turecki","3027035","Dobra - obszar wiejski"]
["PL","Polska","30","WIELKOPOLSKIE","3027","turecki","3027042","Kawęczyn - gmina wiejska"]
["PL","Polska","30","WIELKOPOLSKIE","3027","turecki","3027052","Malanów - gmina wiejska"]
["PL","Polska","30","WIELKOPOLSKIE","3027","turecki","3027062","Przykona - gmina wiejska"]
["PL","Polska","30","WIELKOPOLSKIE","3027","turecki","3027074","Tuliszków - miasto"]
["PL","Polska","30","WIELKOPOLSKIE","3027","turecki","3027075","Tuliszków - obszar wiejski"]
["PL","Polska","30","WIELKOPOLSKIE","3027","turecki","3027082","Turek - gmina wiejska"]
["PL","Polska","30","WIELKOPOLSKIE","3027","turecki","3027092","Władysławów - gmina wiejska"]
["PL","Polska","30","WIELKOPOLSKIE","3028","wągrowiecki","3028011","Wągrowiec - gmina miejska"]
["PL","Polska","30","WIELKOPOLSKIE","3028","wągrowiecki","3028022","Damasławek - gmina wiejska"]
["PL","Polska","30","WIELKOPOLSKIE","3028","wągrowiecki","3028034","Gołańcz - miasto"]
["PL","Polska","30","WIELKOPOLSKIE","3028","wągrowiecki","3028035","Gołańcz - obszar wiejski"]
["PL","Polska","30","WIELKOPOLSKIE","3028","wągrowiecki","3028044","Mieścisko - miasto"]
["PL","Polska","30","WIELKOPOLSKIE","3028","wągrowiecki","3028045","Mieścisko - obszar wiejski"]
["PL","Polska","30","WIELKOPOLSKIE","3028","wągrowiecki","3028054","Skoki - miasto"]
["PL","Polska","30","WIELKOPOLSKIE","3028","wągrowiecki","3028055","Skoki - obszar wiejski"]
["PL","Polska","30","WIELKOPOLSKIE","3028","wągrowiecki","3028062","Wapno - gmina wiejska"]
["PL","Polska","30","WIELKOPOLSKIE","3028","wągrowiecki","3028072","Wągrowiec - gmina wiejska"]
["PL","Polska","30","WIELKOPOLSKIE","3029","wolsztyński","3029012","Przemęt - gmina wiejska"]
["PL","Polska","30","WIELKOPOLSKIE","3029","wolsztyński","3029022","Siedlec - gmina wiejska"]
["PL","Polska","30","WIELKOPOLSKIE","3029","wolsztyński","3029034","Wolsztyn - miasto"]
["PL","Polska","30","WIELKOPOLSKIE","3029","wolsztyński","3029035","Wolsztyn - obszar wiejski"]
["PL","Polska","30","WIELKOPOLSKIE","3030","wrzesiński","3030012","Kołaczkowo - gmina wiejska"]
["PL","Polska","30","WIELKOPOLSKIE","3030","wrzesiński","3030024","Miłosław - miasto"]
["PL","Polska","30","WIELKOPOLSKIE","3030","wrzesiński","3030025","Miłosław - obszar wiejski"]
["PL","Polska","30","WIELKOPOLSKIE","3030","wrzesiński","3030034","Nekla - miasto"]
["PL","Polska","30","WIELKOPOLSKIE","3030","wrzesiński","3030035","Nekla - obszar wiejski"]
["PL","Polska","30","WIELKOPOLSKIE","3030","wrzesiński","3030044","Pyzdry - miasto"]
["PL","Polska","30","WIELKOPOLSKIE","3030","wrzesiński","3030045","Pyzdry - obszar wiejski"]
["PL","Polska","30","WIELKOPOLSKIE","3030","wrzesiński","3030054","Września - miasto"]
["PL","Polska","30","WIELKOPOLSKIE","3030","wrzesiński","3030055","Września - obszar wiejski"]
["PL","Polska","30","WIELKOPOLSKIE","3031","złotowski","3031011","Złotów - gmina miejska"]
["PL","Polska","30","WIELKOPOLSKIE","3031","złotowski","3031024","Jastrowie - miasto"]
["PL","Polska","30","WIELKOPOLSKIE","3031","złotowski","3031025","Jastrowie - obszar wiejski"]
["PL","Polska","30","WIELKOPOLSKIE","3031","złotowski","3031034","Krajenka - miasto"]
["PL","Polska","30","WIELKOPOLSKIE","3031","złotowski","3031035","Krajenka - obszar wiejski"]
["PL","Polska","30","WIELKOPOLSKIE","3031","złotowski","3031042","Lipka - gmina wiejska"]
["PL","Polska","30","WIELKOPOLSKIE","3031","złotowski","3031054","Okonek - miasto"]
["PL","Polska","30","WIELKOPOLSKIE","3031","złotowski","3031055","Okonek - obszar wiejski"]
["PL","Polska","30","WIELKOPOLSKIE","3031","złotowski","3031062","Tarnówka - gmina wiejska"]
["PL","Polska","30","WIELKOPOLSKIE","3031","złotowski","3031072","Zakrzewo - gmina wiejska"]
["PL","Polska","30","WIELKOPOLSKIE","3031","złotowski","3031082","Złotów - gmina wiejska"]
["PL","Polska","30","WIELKOPOLSKIE","3061","Kalisz","3061011","Kalisz - gmina miejska"]
["PL","Polska","30","WIELKOPOLSKIE","3062","Konin","3062011","Konin - gmina miejska"]
["PL","Polska","30","WIELKOPOLSKIE","3063","Leszno","3063011","Leszno - gmina miejska"]
["PL","Polska","30","WIELKOPOLSKIE","3064","Poznań","3064011","Poznań - gmina miejska"]
["PL","Polska","32","ZACHODNIOPOMORSKIE","3201","białogardzki","3201011","Białogard - gmina miejska"]
["PL","Polska","32","ZACHODNIOPOMORSKIE","3201","białogardzki","3201022","Białogard - gmina wiejska"]
["PL","Polska","32","ZACHODNIOPOMORSKIE","3201","białogardzki","3201034","Karlino - miasto"]
["PL","Polska","32","ZACHODNIOPOMORSKIE","3201","białogardzki","3201035","Karlino - obszar wiejski"]
["PL","Polska","32","ZACHODNIOPOMORSKIE","3201","białogardzki","3201044","Tychowo - miasto"]
["PL","Polska","32","ZACHODNIOPOMORSKIE","3201","białogardzki","3201045","Tychowo - obszar wiejski"]
["PL","Polska","32","ZACHODNIOPOMORSKIE","3202","choszczeński","3202012","Bierzwnik - gmina wiejska"]
["PL","Polska","32","ZACHODNIOPOMORSKIE","3202","choszczeński","3202024","Choszczno - miasto"]
["PL","Polska","32","ZACHODNIOPOMORSKIE","3202","choszczeński","3202025","Choszczno - obszar wiejski"]
["PL","Polska","32","ZACHODNIOPOMORSKIE","3202","choszczeński","3202034","Drawno - miasto"]
["PL","Polska","32","ZACHODNIOPOMORSKIE","3202","choszczeński","3202035","Drawno - obszar wiejski"]
["PL","Polska","32","ZACHODNIOPOMORSKIE","3202","choszczeński","3202042","Krzęcin - gmina wiejska"]
["PL","Polska","32","ZACHODNIOPOMORSKIE","3202","choszczeński","3202054","Pełczyce - miasto"]
["PL","Polska","32","ZACHODNIOPOMORSKIE","3202","choszczeński","3202055","Pełczyce - obszar wiejski"]
["PL","Polska","32","ZACHODNIOPOMORSKIE","3202","choszczeński","3202064","Recz - miasto"]
["PL","Polska","32","ZACHODNIOPOMORSKIE","3202","choszczeński","3202065","Recz - obszar wiejski"]
["PL","Polska","32","ZACHODNIOPOMORSKIE","3203","drawski","3203014","Czaplinek - miasto"]
["PL","Polska","32","ZACHODNIOPOMORSKIE","3203","drawski","3203015","Czaplinek - obszar wiejski"]
["PL","Polska","32","ZACHODNIOPOMORSKIE","3203","drawski","3203024","Drawsko Pomorskie - miasto"]
["PL","Polska","32","ZACHODNIOPOMORSKIE","3203","drawski","3203025","Drawsko Pomorskie - obszar wiejski"]
["PL","Polska","32","ZACHODNIOPOMORSKIE","3203","drawski","3203034","Kalisz Pomorski - miasto"]
["PL","Polska","32","ZACHODNIOPOMORSKIE","3203","drawski","3203035","Kalisz Pomorski - obszar wiejski"]
["PL","Polska","32","ZACHODNIOPOMORSKIE","3203","drawski","3203052","Wierzchowo - gmina wiejska"]
["PL","Polska","32","ZACHODNIOPOMORSKIE","3203","drawski","3203064","Złocieniec - miasto"]
["PL","Polska","32","ZACHODNIOPOMORSKIE","3203","drawski","3203065","Złocieniec - obszar wiejski"]
["PL","Polska","32","ZACHODNIOPOMORSKIE","3204","goleniowski","3204024","Goleniów - miasto"]
["PL","Polska","32","ZACHODNIOPOMORSKIE","3204","goleniowski","3204025","Goleniów - obszar wiejski"]
["PL","Polska","32","ZACHODNIOPOMORSKIE","3204","goleniowski","3204034","Maszewo - miasto"]
["PL","Polska","32","ZACHODNIOPOMORSKIE","3204","goleniowski","3204035","Maszewo - obszar wiejski"]
["PL","Polska","32","ZACHODNIOPOMORSKIE","3204","goleniowski","3204044","Nowogard - miasto"]
["PL","Polska","32","ZACHODNIOPOMORSKIE","3204","goleniowski","3204045","Nowogard - obszar wiejski"]
["PL","Polska","32","ZACHODNIOPOMORSKIE","3204","goleniowski","3204052","Osina - gmina wiejska"]
["PL","Polska","32","ZACHODNIOPOMORSKIE","3204","goleniowski","3204062","Przybiernów - gmina wiejska"]
["PL","Polska","32","ZACHODNIOPOMORSKIE","3204","goleniowski","3204074","Stepnica - miasto"]
["PL","Polska","32","ZACHODNIOPOMORSKIE","3204","goleniowski","3204075","Stepnica - obszar wiejski"]
["PL","Polska","32","ZACHODNIOPOMORSKIE","3205","gryficki","3205012","Brojce - gmina wiejska"]
["PL","Polska","32","ZACHODNIOPOMORSKIE","3205","gryficki","3205024","Gryfice - miasto"]
["PL","Polska","32","ZACHODNIOPOMORSKIE","3205","gryficki","3205025","Gryfice - obszar wiejski"]
["PL","Polska","32","ZACHODNIOPOMORSKIE","3205","gryficki","3205032","Karnice - gmina wiejska"]
["PL","Polska","32","ZACHODNIOPOMORSKIE","3205","gryficki","3205044","Płoty - miasto"]
["PL","Polska","32","ZACHODNIOPOMORSKIE","3205","gryficki","3205045","Płoty - obszar wiejski"]
["PL","Polska","32","ZACHODNIOPOMORSKIE","3205","gryficki","3205072","Rewal - gmina wiejska"]
["PL","Polska","32","ZACHODNIOPOMORSKIE","3205","gryficki","3205084","Trzebiatów - miasto"]
["PL","Polska","32","ZACHODNIOPOMORSKIE","3205","gryficki","3205085","Trzebiatów - obszar wiejski"]
["PL","Polska","32","ZACHODNIOPOMORSKIE","3206","gryfiński","3206012","Banie - gmina wiejska"]
["PL","Polska","32","ZACHODNIOPOMORSKIE","3206","gryfiński","3206024","Cedynia - miasto"]
["PL","Polska","32","ZACHODNIOPOMORSKIE","3206","gryfiński","3206025","Cedynia - obszar wiejski"]
["PL","Polska","32","ZACHODNIOPOMORSKIE","3206","gryfiński","3206034","Chojna - miasto"]
["PL","Polska","32","ZACHODNIOPOMORSKIE","3206","gryfiński","3206035","Chojna - obszar wiejski"]
["PL","Polska","32","ZACHODNIOPOMORSKIE","3206","gryfiński","3206044","Gryfino - miasto"]
["PL","Polska","32","ZACHODNIOPOMORSKIE","3206","gryfiński","3206045","Gryfino - obszar wiejski"]
["PL","Polska","32","ZACHODNIOPOMORSKIE","3206","gryfiński","3206054","Mieszkowice - miasto"]
["PL","Polska","32","ZACHODNIOPOMORSKIE","3206","gryfiński","3206055","Mieszkowice - obszar wiejski"]
["PL","Polska","32","ZACHODNIOPOMORSKIE","3206","gryfiński","3206064","Moryń - miasto"]
["PL","Polska","32","ZACHODNIOPOMORSKIE","3206","gryfiński","3206065","Moryń - obszar wiejski"]
["PL","Polska","32","ZACHODNIOPOMORSKIE","3206","gryfiński","3206072","Stare Czarnowo - gmina wiejska"]
["PL","Polska","32","ZACHODNIOPOMORSKIE","3206","gryfiński","3206084","Trzcińsko-Zdrój - miasto"]
["PL","Polska","32","ZACHODNIOPOMORSKIE","3206","gryfiński","3206085","Trzcińsko-Zdrój - obszar wiejski"]
["PL","Polska","32","ZACHODNIOPOMORSKIE","3206","gryfiński","3206092","Widuchowa - gmina wiejska"]
["PL","Polska","32","ZACHODNIOPOMORSKIE","3207","kamieński","3207014","Dziwnów - miasto"]
["PL","Polska","32","ZACHODNIOPOMORSKIE","3207","kamieński","3207015","Dziwnów - obszar wiejski"]
["PL","Polska","32","ZACHODNIOPOMORSKIE","3207","kamieński","3207024","Golczewo - miasto"]
["PL","Polska","32","ZACHODNIOPOMORSKIE","3207","kamieński","3207025","Golczewo - obszar wiejski"]
["PL","Polska","32","ZACHODNIOPOMORSKIE","3207","kamieński","3207034","Kamień Pomorski - miasto"]
["PL","Polska","32","ZACHODNIOPOMORSKIE","3207","kamieński","3207035","Kamień Pomorski - obszar wiejski"]
["PL","Polska","32","ZACHODNIOPOMORSKIE","3207","kamieński","3207044","Międzyzdroje - miasto"]
["PL","Polska","32","ZACHODNIOPOMORSKIE","3207","kamieński","3207045","Międzyzdroje - obszar wiejski"]
["PL","Polska","32","ZACHODNIOPOMORSKIE","3207","kamieński","3207052","Świerzno - gmina wiejska"]
["PL","Polska","32","ZACHODNIOPOMORSKIE","3207","kamieński","3207064","Wolin - miasto"]
["PL","Polska","32","ZACHODNIOPOMORSKIE","3207","kamieński","3207065","Wolin - obszar wiejski"]
["PL","Polska","32","ZACHODNIOPOMORSKIE","3208","kołobrzeski","3208011","Kołobrzeg - gmina miejska"]
["PL","Polska","32","ZACHODNIOPOMORSKIE","3208","kołobrzeski","3208022","Dygowo - gmina wiejska"]
["PL","Polska","32","ZACHODNIOPOMORSKIE","3208","kołobrzeski","3208034","Gościno - miasto"]
["PL","Polska","32","ZACHODNIOPOMORSKIE","3208","kołobrzeski","3208035","Gościno - obszar wiejski"]
["PL","Polska","32","ZACHODNIOPOMORSKIE","3208","kołobrzeski","3208042","Kołobrzeg - gmina wiejska"]
["PL","Polska","32","ZACHODNIOPOMORSKIE","3208","kołobrzeski","3208052","Rymań - gmina wiejska"]
["PL","Polska","32","ZACHODNIOPOMORSKIE","3208","kołobrzeski","3208062","Siemyśl - gmina wiejska"]
["PL","Polska","32","ZACHODNIOPOMORSKIE","3208","kołobrzeski","3208072","Ustronie Morskie - gmina wiejska"]
["PL","Polska","32","ZACHODNIOPOMORSKIE","3209","koszaliński","3209012","Będzino - gmina wiejska"]
["PL","Polska","32","ZACHODNIOPOMORSKIE","3209","koszaliński","3209022","Biesiekierz - gmina wiejska"]
["PL","Polska","32","ZACHODNIOPOMORSKIE","3209","koszaliński","3209034","Bobolice - miasto"]
["PL","Polska","32","ZACHODNIOPOMORSKIE","3209","koszaliński","3209035","Bobolice - obszar wiejski"]
["PL","Polska","32","ZACHODNIOPOMORSKIE","3209","koszaliński","3209042","Manowo - gmina wiejska"]
["PL","Polska","32","ZACHODNIOPOMORSKIE","3209","koszaliński","3209054","Mielno - miasto"]
["PL","Polska","32","ZACHODNIOPOMORSKIE","3209","koszaliński","3209055","Mielno - obszar wiejski"]
["PL","Polska","32","ZACHODNIOPOMORSKIE","3209","koszaliński","3209064","Polanów - miasto"]
["PL","Polska","32","ZACHODNIOPOMORSKIE","3209","koszaliński","3209065","Polanów - obszar wiejski"]
["PL","Polska","32","ZACHODNIOPOMORSKIE","3209","koszaliński","3209074","Sianów - miasto"]
["PL","Polska","32","ZACHODNIOPOMORSKIE","3209","koszaliński","3209075","Sianów - obszar wiejski"]
["PL","Polska","32","ZACHODNIOPOMORSKIE","3209","koszaliński","3209082","Świeszyno - gmina wiejska"]
["PL","Polska","32","ZACHODNIOPOMORSKIE","3210","myśliborski","3210014","Barlinek - miasto"]
["PL","Polska","32","ZACHODNIOPOMORSKIE","3210","myśliborski","3210015","Barlinek - obszar wiejski"]
["PL","Polska","32","ZACHODNIOPOMORSKIE","3210","myśliborski","3210022","Boleszkowice - gmina wiejska"]
["PL","Polska","32","ZACHODNIOPOMORSKIE","3210","myśliborski","3210034","Dębno - miasto"]
["PL","Polska","32","ZACHODNIOPOMORSKIE","3210","myśliborski","3210035","Dębno - obszar wiejski"]
["PL","Polska","32","ZACHODNIOPOMORSKIE","3210","myśliborski","3210044","Myślibórz - miasto"]
["PL","Polska","32","ZACHODNIOPOMORSKIE","3210","myśliborski","3210045","Myślibórz - obszar wiejski"]
["PL","Polska","32","ZACHODNIOPOMORSKIE","3210","myśliborski","3210052","Nowogródek Pomorski - gmina wiejska"]
["PL","Polska","32","ZACHODNIOPOMORSKIE","3211","policki","3211012","Dobra (Szczecińska) - gmina wiejska"]
["PL","Polska","32","ZACHODNIOPOMORSKIE","3211","policki","3211022","Kołbaskowo - gmina wiejska"]
["PL","Polska","32","ZACHODNIOPOMORSKIE","3211","policki","3211034","Nowe Warpno - miasto"]
["PL","Polska","32","ZACHODNIOPOMORSKIE","3211","policki","3211035","Nowe Warpno - obszar wiejski"]
["PL","Polska","32","ZACHODNIOPOMORSKIE","3211","policki","3211044","Police - miasto"]
["PL","Polska","32","ZACHODNIOPOMORSKIE","3211","policki","3211045","Police - obszar wiejski"]
["PL","Polska","32","ZACHODNIOPOMORSKIE","3212","pyrzycki","3212012","Bielice - gmina wiejska"]
["PL","Polska","32","ZACHODNIOPOMORSKIE","3212","pyrzycki","3212022","Kozielice - gmina wiejska"]
["PL","Polska","32","ZACHODNIOPOMORSKIE","3212","pyrzycki","3212034","Lipiany - miasto"]
["PL","Polska","32","ZACHODNIOPOMORSKIE","3212","pyrzycki","3212035","Lipiany - obszar wiejski"]
["PL","Polska","32","ZACHODNIOPOMORSKIE","3212","pyrzycki","3212042","Przelewice - gmina wiejska"]
["PL","Polska","32","ZACHODNIOPOMORSKIE","3212","pyrzycki","3212054","Pyrzyce - miasto"]
["PL","Polska","32","ZACHODNIOPOMORSKIE","3212","pyrzycki","3212055","Pyrzyce - obszar wiejski"]
["PL","Polska","32","ZACHODNIOPOMORSKIE","3212","pyrzycki","3212062","Warnice - gmina wiejska"]
["PL","Polska","32","ZACHODNIOPOMORSKIE","3213","sławieński","3213011","Darłowo - gmina miejska"]
["PL","Polska","32","ZACHODNIOPOMORSKIE","3213","sławieński","3213021","Sławno - gmina miejska"]
["PL","Polska","32","ZACHODNIOPOMORSKIE","3213","sławieński","3213032","Darłowo - gmina wiejska"]
["PL","Polska","32","ZACHODNIOPOMORSKIE","3213","sławieński","3213042","Malechowo - gmina wiejska"]
["PL","Polska","32","ZACHODNIOPOMORSKIE","3213","sławieński","3213052","Postomino - gmina wiejska"]
["PL","Polska","32","ZACHODNIOPOMORSKIE","3213","sławieński","3213062","Sławno - gmina wiejska"]
["PL","Polska","32","ZACHODNIOPOMORSKIE","3214","stargardzki","3214011","Stargard - gmina miejska"]
["PL","Polska","32","ZACHODNIOPOMORSKIE","3214","stargardzki","3214024","Chociwel - miasto"]
["PL","Polska","32","ZACHODNIOPOMORSKIE","3214","stargardzki","3214025","Chociwel - obszar wiejski"]
["PL","Polska","32","ZACHODNIOPOMORSKIE","3214","stargardzki","3214034","Dobrzany - miasto"]
["PL","Polska","32","ZACHODNIOPOMORSKIE","3214","stargardzki","3214035","Dobrzany - obszar wiejski"]
["PL","Polska","32","ZACHODNIOPOMORSKIE","3214","stargardzki","3214042","Dolice - gmina wiejska"]
["PL","Polska","32","ZACHODNIOPOMORSKIE","3214","stargardzki","3214054","Ińsko - miasto"]
["PL","Polska","32","ZACHODNIOPOMORSKIE","3214","stargardzki","3214055","Ińsko - obszar wiejski"]
["PL","Polska","32","ZACHODNIOPOMORSKIE","3214","stargardzki","3214062","Kobylanka - gmina wiejska"]
["PL","Polska","32","ZACHODNIOPOMORSKIE","3214","stargardzki","3214082","Marianowo - gmina wiejska"]
["PL","Polska","32","ZACHODNIOPOMORSKIE","3214","stargardzki","3214092","Stara Dąbrowa - gmina wiejska"]
["PL","Polska","32","ZACHODNIOPOMORSKIE","3214","stargardzki","3214102","Stargard - gmina wiejska"]
["PL","Polska","32","ZACHODNIOPOMORSKIE","3214","stargardzki","3214114","Suchań - miasto"]
["PL","Polska","32","ZACHODNIOPOMORSKIE","3214","stargardzki","3214115","Suchań - obszar wiejski"]
["PL","Polska","32","ZACHODNIOPOMORSKIE","3215","szczecinecki","3215011","Szczecinek - gmina miejska"]
["PL","Polska","32","ZACHODNIOPOMORSKIE","3215","szczecinecki","3215024","Barwice - miasto"]
["PL","Polska","32","ZACHODNIOPOMORSKIE","3215","szczecinecki","3215025","Barwice - obszar wiejski"]
["PL","Polska","32","ZACHODNIOPOMORSKIE","3215","szczecinecki","3215034","Biały Bór - miasto"]
["PL","Polska","32","ZACHODNIOPOMORSKIE","3215","szczecinecki","3215035","Biały Bór - obszar wiejski"]
["PL","Polska","32","ZACHODNIOPOMORSKIE","3215","szczecinecki","3215044","Borne Sulinowo - miasto"]
["PL","Polska","32","ZACHODNIOPOMORSKIE","3215","szczecinecki","3215045","Borne Sulinowo - obszar wiejski"]
["PL","Polska","32","ZACHODNIOPOMORSKIE","3215","szczecinecki","3215052","Grzmiąca - gmina wiejska"]
["PL","Polska","32","ZACHODNIOPOMORSKIE","3215","szczecinecki","3215062","Szczecinek - gmina wiejska"]
["PL","Polska","32","ZACHODNIOPOMORSKIE","3216","świdwiński","3216011","Świdwin - gmina miejska"]
["PL","Polska","32","ZACHODNIOPOMORSKIE","3216","świdwiński","3216022","Brzeżno - gmina wiejska"]
["PL","Polska","32","ZACHODNIOPOMORSKIE","3216","świdwiński","3216034","Połczyn-Zdrój - miasto"]
["PL","Polska","32","ZACHODNIOPOMORSKIE","3216","świdwiński","3216035","Połczyn-Zdrój - obszar wiejski"]
["PL","Polska","32","ZACHODNIOPOMORSKIE","3216","świdwiński","3216042","Rąbino - gmina wiejska"]
["PL","Polska","32","ZACHODNIOPOMORSKIE","3216","świdwiński","3216052","Sławoborze - gmina wiejska"]
["PL","Polska","32","ZACHODNIOPOMORSKIE","3216","świdwiński","3216062","Świdwin - gmina wiejska"]
["PL","Polska","32","ZACHODNIOPOMORSKIE","3217","wałecki","3217011","Wałcz - gmina miejska"]
["PL","Polska","32","ZACHODNIOPOMORSKIE","3217","wałecki","3217024","Człopa - miasto"]
["PL","Polska","32","ZACHODNIOPOMORSKIE","3217","wałecki","3217025","Człopa - obszar wiejski"]
["PL","Polska","32","ZACHODNIOPOMORSKIE","3217","wałecki","3217034","Mirosławiec - miasto"]
["PL","Polska","32","ZACHODNIOPOMORSKIE","3217","wałecki","3217035","Mirosławiec - obszar wiejski"]
["PL","Polska","32","ZACHODNIOPOMORSKIE","3217","wałecki","3217044","Tuczno - miasto"]
["PL","Polska","32","ZACHODNIOPOMORSKIE","3217","wałecki","3217045","Tuczno - obszar wiejski"]
["PL","Polska","32","ZACHODNIOPOMORSKIE","3217","wałecki","3217052","Wałcz - gmina wiejska"]
["PL","Polska","32","ZACHODNIOPOMORSKIE","3218","łobeski","3218014","Dobra - miasto"]
["PL","Polska","32","ZACHODNIOPOMORSKIE","3218","łobeski","3218015","Dobra - obszar wiejski"]
["PL","Polska","32","ZACHODNIOPOMORSKIE","3218","łobeski","3218024","Łobez - miasto"]
["PL","Polska","32","ZACHODNIOPOMORSKIE","3218","łobeski","3218025","Łobez - obszar wiejski"]
["PL","Polska","32","ZACHODNIOPOMORSKIE","3218","łobeski","3218032","Radowo Małe - gmina wiejska"]
["PL","Polska","32","ZACHODNIOPOMORSKIE","3218","łobeski","3218044","Resko - miasto"]
["PL","Polska","32","ZACHODNIOPOMORSKIE","3218","łobeski","3218045","Resko - obszar wiejski"]
["PL","Polska","32","ZACHODNIOPOMORSKIE","3218","łobeski","3218054","Węgorzyno - miasto"]
["PL","Polska","32","ZACHODNIOPOMORSKIE","3218","łobeski","3218055","Węgorzyno - obszar wiejski"]
["PL","Polska","32","ZACHODNIOPOMORSKIE","3261","Koszalin","3261011","Koszalin - gmina miejska"]
["PL","Polska","32","ZACHODNIOPOMORSKIE","3262","Szczecin","3262011","Szczecin - gmina miejska",{"$f":"RIGHT(#REF!)","v":{"$error":"#REF!"}}]
["PL","Polska","32","ZACHODNIOPOMORSKIE","3263","Świnoujście","3263011","Świnoujście - gmina miejska",{"$f":"RIGHT(G3233)","v":""}]
[]
[null,null,null,null,null,null,null,null,{"$f":"RIGHT(G3234)","v":""}]
[null,null,null,null,null,null,null,null,""]
[null,null,null,null,null,null,null,null,""]
[null,null,null,null,null,null,null,null,""]
[null,null,null,null,null,null,null,null,""]
[null,null,null,null,null,null,null,null,""]
[null,null,null,null,null,null,null,null,""]
[null,null,null,null,null,null,null,null,""]
[null,null,null,null,null,null,null,null,""]
[null,null,null,null,null,null,null,null,""]
[null,null,null,null,null,null,null,null,""]
[null,null,null,null,null,null,null,null,""]
[null,null,null,null,null,null,null,null,""]
[null,null,null,null,null,null,null,null,""]
[null,null,null,null,null,null,null,null,""]
[null,null,null,null,null,null,null,null,""]
[null,null,null,null,null,null,null,null,""]
[null,null,null,null,null,null,null,null,""]
[null,null,null,null,null,null,null,null,""]
[null,null,null,null,null,null,null,null,""]
[null,null,null,null,null,null,null,null,""]
[null,null,null,null,null,null,null,null,""]
[null,null,null,null,null,null,null,null,""]
[null,null,null,null,null,null,null,null,""]
[null,null,null,null,null,null,null,null,""]
[null,null,null,null,null,null,null,null,""]
[null,null,null,null,null,null,null,null,""]
[null,null,null,null,null,null,null,null,""]
[null,null,null,null,null,null,null,null,""]
[null,null,null,null,null,null,null,null,""]
[null,null,null,null,null,null,null,null,""]
[null,null,null,null,null,null,null,null,""]
[null,null,null,null,null,null,null,null,""]
[null,null,null,null,null,null,null,null,""]
[null,null,null,null,null,null,null,null,""]
[null,null,null,null,null,null,null,null,""]
[null,null,null,null,null,null,null,null,""]
[null,null,null,null,null,null,null,null,""]
[null,null,null,null,null,null,null,null,""]
[null,null,null,null,null,null,null,null,""]
[null,null,null,null,null,null,null,null,""]
[null,null,null,null,null,null,null,null,""]
[null,null,null,null,null,null,null,null,""]
[null,null,null,null,null,null,null,null,""]
[null,null,null,null,null,null,null,null,""]
[null,null,null,null,null,null,null,null,""]
[null,null,null,null,null,null,null,null,""]
[null,null,null,null,null,null,null,null,""]
[null,null,null,null,null,null,null,null,""]
[null,null,null,null,null,null,null,null,""]
[null,null,null,null,null,null,null,null,""]
[null,null,null,null,null,null,null,null,""]
[null,null,null,null,null,null,null,null,""]
[null,null,null,null,null,null,null,null,""]
[null,null,null,null,null,null,null,null,""]
[null,null,null,null,null,null,null,null,""]
[null,null,null,null,null,null,null,null,""]
[null,null,null,null,null,null,null,null,""]
[null,null,null,null,null,null,null,null,""]
[null,null,null,null,null,null,null,null,""]
[null,null,null,null,null,null,null,null,""]
[null,null,null,null,null,null,null,null,""]
[null,null,null,null,null,null,null,null,{"$f":"RIGHT(G3296)","v":""}]
[null,null,null,null,null,null,null,null,""]
[null,null,null,null,null,null,null,null,""]
[null,null,null,null,null,null,null,null,""]
[null,null,null,null,null,null,null,null,""]
[null,null,null,null,null,null,null,null,""]
[null,null,null,null,null,null,null,null,""]
[null,null,null,null,null,null,null,null,""]
[null,null,null,null,null,null,null,null,""]
[null,null,null,null,null,null,null,null,""]
[null,null,null,null,null,null,null,null,""]
[null,null,null,null,null,null,null,null,""]
[null,null,null,null,null,null,null,null,""]
[null,null,null,null,null,null,null,null,""]
[null,null,null,null,null,null,null,null,""]
[null,null,null,null,null,null,null,null,""]
[null,null,null,null,null,null,null,null,""]
[null,null,null,null,null,null,null,null,""]
[null,null,null,null,null,null,null,null,""]
[null,null,null,null,null,null,null,null,""]
[null,null,null,null,null,null,null,null,""]
[null,null,null,null,null,null,null,null,""]
[null,null,null,null,null,null,null,null,""]
[null,null,null,null,null,null,null,null,""]
[null,null,null,null,null,null,null,null,""]
[null,null,null,null,null,null,null,null,""]
[null,null,null,null,null,null,null,null,""]
[null,null,null,null,null,null,null,null,""]
[null,null,null,null,null,null,null,null,""]
[null,null,null,null,null,null,null,null,""]
[null,null,null,null,null,null,null,null,""]
[null,null,null,null,null,null,null,null,""]
[null,null,null,null,null,null,null,null,""]
[null,null,null,null,null,null,null,null,""]
[null,null,null,null,null,null,null,null,""]
[null,null,null,null,null,null,null,null,""]
[null,null,null,null,null,null,null,null,""]
[null,null,null,null,null,null,null,null,""]
[null,null,null,null,null,null,null,null,""]
[null,null,null,null,null,null,null,null,""]
[null,null,null,null,null,null,null,null,""]
[null,null,null,null,null,null,null,null,""]
[null,null,null,null,null,null,null,null,""]
[null,null,null,null,null,null,null,null,""]
[null,null,null,null,null,null,null,null,""]
[null,null,null,null,null,null,null,null,""]
[null,null,null,null,null,null,null,null,""]
[null,null,null,null,null,null,null,null,""]
[null,null,null,null,null,null,null,null,""]
[null,null,null,null,null,null,null,null,""]
[null,null,null,null,null,null,null,null,""]
[null,null,null,null,null,null,null,null,""]
[null,null,null,null,null,null,null,null,""]
[null,null,null,null,null,null,null,null,""]
[null,null,null,null,null,null,null,null,""]
[null,null,null,null,null,null,null,null,""]
[null,null,null,null,null,null,null,null,""]
[null,null,null,null,null,null,null,null,""]
[null,null,null,null,null,null,null,null,""]
[null,null,null,null,null,null,null,null,""]
[null,null,null,null,null,null,null,null,""]
[null,null,null,null,null,null,null,null,""]
[null,null,null,null,null,null,null,null,""]
[null,null,null,null,null,null,null,null,""]
[null,null,null,null,null,null,null,null,{"$f":"RIGHT(G3360)","v":""}]
[null,null,null,null,null,null,null,null,""]
[null,null,null,null,null,null,null,null,""]
[null,null,null,null,null,null,null,null,""]
[null,null,null,null,null,null,null,null,""]
[null,null,null,null,null,null,null,null,""]
[null,null,null,null,null,null,null,null,""]
[null,null,null,null,null,null,null,null,""]
[null,null,null,null,null,null,null,null,""]
[null,null,null,null,null,null,null,null,""]
[null,null,null,null,null,null,null,null,""]
[null,null,null,null,null,null,null,null,""]
[null,null,null,null,null,null,null,null,""]
[null,null,null,null,null,null,null,null,""]
[null,null,null,null,null,null,null,null,""]
[null,null,null,null,null,null,null,null,""]
[null,null,null,null,null,null,null,null,""]
[null,null,null,null,null,null,null,null,""]
[null,null,null,null,null,null,null,null,""]
[null,null,null,null,null,null,null,null,""]
[null,null,null,null,null,null,null,null,""]
[null,null,null,null,null,null,null,null,""]
[null,null,null,null,null,null,null,null,""]
[null,null,null,null,null,null,null,null,""]
[null,null,null,null,null,null,null,null,""]
[null,null,null,null,null,null,null,null,""]
[null,null,null,null,null,null,null,null,""]
[null,null,null,null,null,null,null,null,""]
[null,null,null,null,null,null,null,null,""]
[null,null,null,null,null,null,null,null,""]
[null,null,null,null,null,null,null,null,""]

{"sheet":"G","index":2,"n_rows":70,"n_cols":34,"rows_kept":70,"cut":false,"hidden":true,"merged":[[6,29,6,32],[7,32,9,32],[6,18,6,28],[37,0,39,0],[40,0,42,0],[11,14,11,16],[11,18,11,27],[11,29,11,31],[7,17,9,17],[7,28,9,28],[7,16,9,16],[7,14,9,14],[7,31,9,31],[7,23,9,23],[8,24,9,24],[8,25,9,25],[2,9,2,11],[4,0,4,11],[6,3,10,3],[6,4,6,13],[7,4,7,11],[6,0,11,0],[6,1,11,1],[6,2,11,2],[8,5,9,5],[8,4,9,4],[8,11,9,11],[7,12,9,12],[8,8,9,8],[8,7,9,7],[8,6,9,6],[7,13,9,13],[67,1,69,1],[28,1,30,1],[31,1,33,1],[34,1,36,1],[37,1,39,1],[40,1,42,1],[46,1,48,1],[52,1,54,1],[58,1,60,1],[55,1,57,1],[49,1,51,1],[61,1,63,1],[64,1,66,1],[7,22,9,22],[7,29,9,29],[7,30,9,30],[19,0,21,0],[7,24,7,27],[7,15,9,15],[7,18,9,18],[7,19,9,19],[7,20,9,20],[11,4,11,12],[8,26,9,26],[8,27,9,27],[7,21,9,21],[61,0,63,0],[13,1,15,1],[19,1,21,1],[22,1,24,1],[25,1,27,1],[43,1,45,1],[16,1,18,1],[58,0,60,0],[28,0,30,0],[31,0,33,0],[13,0,15,0],[16,0,18,0],[43,0,45,0],[46,0,48,0],[49,0,51,0],[22,0,24,0],[25,0,27,0],[34,0,36,0],[55,0,57,0],[6,14,6,17],[8,9,9,9],[8,10,9,10],[52,0,54,0]]}
[]
[]
[]
[]
[{"$f":"\"Zbiorcze zestawienie danych dotyczących gruntów\nwg stanu na dzień 1 stycznia \"&Start!G9","v":"Zbiorcze zestawienie danych dotyczących gruntów\nwg stanu na dzień 1 stycznia 2026"}]
[]
["Oznaczenie grupy rejestrowej","Nazwa grupy rejestrowej","Rodzaj jednostki \nterytorialnej","Powierzchnia ogólna \ngruntów","1. Grunty rolne",null,null,null,null,null,null,null,null,null,"2. Grunty leśne oraz zadrzewione i zakrzewione",null,null,null,"3. Grunty zabudowane i zurbanizowane",null,null,null,null,null,null,null,null,null,null,"4. Grunty pod wodami",null,null,null,"5. Tereny różne"]
[null,null,null,null,"Użytki rolne",null,null,null,null,null,null,null,"Nieużytki","Razem","lasy","grunty zadrzewione \ni zakrzewione","grunty \npod \nrowami","Razem","tereny mieszkaniowe","tereny przemysłowe","inne tereny zabudowane","zurbanizowane \ntereny niezabud. \nlub w trakcie zabudowy","tereny rekreacyjno-wypoczynkowe","użytki kopalne","Tereny komunikacyjne",null,null,null,"Razem","morskimi wewnętrznymi","powierzchniowymi płynącymi","powierzchniowymi stojącymi","Razem"]
[null,null,null,null,"grunty orne","łąki trwałe","pastwiska trwałe","sady","grunty rolne zabudowane","grunty zadrzewione \ni zakrzewione na użytkach rolnych","grunty \npod stawami","grunty \npod rowami",null,null,null,null,null,null,null,null,null,null,null,null,"drogi","tereny kolejowe","inne tereny komunikacyjne","grunty przezn. pod budowę dróg pub. lub linii kolejowych"]
[]
[null,null,null,null,"R","Ł","Ps","S","Br","Lzr","Wsr","W","N","(kol. 5-13)","Ls","Lz","W","(kol. 15-17)","B","Ba","Bi","Bp","Bz","K","dr","Tk","Ti","Tp","(kol. 19-28)","Wm","Wp","Ws","(kol. 30-32)","Tr"]
[null,null,null,"w ha","w ha",null,null,null,null,null,null,null,null,"w ha","w ha",null,null,"w ha","w ha",null,null,null,null,null,null,null,null,null,"w ha","w ha",null,null,"w ha","w ha"]
["1","2","3","4","5","6","7","8","9","10","11","12","13","14","15","16","17","18","19","20","21","22","23","24","25","26","27","28","29","30","31","32","33","34"]
["1","Skarb Państwa, jeżeli nie występuje w zbiegu \nz użytkownikami wieczystymi","M",{"$f":"SUM(N14,R14,AC14,AG14,AH14)","v":0},null,null,null,null,null,null,null,null,null,{"$f":"SUM(E14,F14,G14,H14,I14,J14,K14,L14,M14)","v":0},null,null,null,{"$f":"SUM(O14:Q14)","v":0},null,null,null,null,null,null,null,null,null,null,{"$f":"SUM(S14:AB14)","v":0},null,null,null,{"$f":"SUM(AD14:AF14)","v":0}]
[null,null,"W",{"$f":"SUM(N15,R15,AC15,AG15,AH15)","v":0},null,null,null,null,null,null,null,null,null,{"$f":"SUM(E15,F15,G15,H15,I15,J15,K15,L15,M15)","v":0},null,null,null,{"$f":"SUM(O15:Q15)","v":0},null,null,null,null,null,null,null,null,null,null,{"$f":"SUM(S15:AB15)","v":0},null,null,null,{"$f":"SUM(AD15:AF15)","v":0}]
[null,null,"Razem",{"$f":"SUM(D14:D15)","v":0},{"$f":"SUM(E14:E15)","v":0},0,0,0,0,0,0,0,0,0,0,{"$f":"SUM(P14:P15)","v":0},0,0,0,0,0,{"$f":"SUM(V14:V15)","v":0},{"$f":"SUM(W14:W15)","v":0},0,0,0,0,0,0,0,0,0,0,0]
["2","Skarb Państwa, jeżeli występuje w zbiegu \nz użytkownikami wieczystymi","M",{"$f":"SUM(N17,R17,AC17,AG17,AH17)","v":0},null,null,null,null,null,null,null,null,null,{"$f":"SUM(E17,F17,G17,H17,I17,J17,K17,L17,M17)","v":0},null,null,null,{"$f":"SUM(O17:Q17)","v":0},null,null,null,null,null,null,null,null,null,null,{"$f":"SUM(S17:AB17)","v":0},null,null,null,{"$f":"SUM(AD17:AF17)","v":0}]
[null,null,"W",{"$f":"SUM(N18,R18,AC18,AG18,AH18)","v":0},null,null,null,null,null,null,null,null,null,{"$f":"SUM(E18,F18,G18,H18,I18,J18,K18,L18,M18)","v":0},null,null,null,{"$f":"SUM(O18:Q18)","v":0},null,null,null,null,null,null,null,null,null,null,{"$f":"SUM(S18:AB18)","v":0},null,null,null,{"$f":"SUM(AD18:AF18)","v":0}]
[null,null,"Razem",{"$f":"SUM(D17:D18)","v":0},{"$f":"SUM(E17:E18)","v":0},0,0,0,0,0,{"$f":"SUM(K17:K18)","v":0},{"$f":"SUM(L17:L18)","v":0},0,0,0,0,0,0,0,0,0,0,0,0,0,0,0,0,0,0,0,0,0,{"$f":"SUM(AH17:AH18)","v":0}]
[3,"Jednoosobowe spółki Skarbu Państwa, \nprzedsiębiorstwa państwowe i inne państwowe osoby prawne","M",{"$f":"SUM(N20,R20,AC20,AG20,AH20)","v":0},null,null,null,null,null,null,null,null,null,{"$f":"SUM(E20:M20)","v":0},null,null,null,{"$f":"SUM(O20:Q20)","v":0},null,null,null,null,null,null,null,null,null,null,{"$f":"SUM(S20:AB20)","v":0},null,null,null,{"$f":"SUM(AD20:AF20)","v":0}]
[null,null,"W",{"$f":"SUM(N21,R21,AC21,AG21,AH21)","v":0},null,null,null,null,null,null,null,null,null,{"$f":"SUM(E21:M21)","v":0},null,null,null,{"$f":"SUM(O21:Q21)","v":0},null,null,null,null,null,null,null,null,null,null,{"$f":"SUM(S21:AB21)","v":0},null,null,null,{"$f":"SUM(AD21:AF21)","v":0}]
[null,null,"Razem",{"$f":"SUM(D20:D21)","v":0},0,0,0,0,{"$f":"SUM(I20:I21)","v":0},{"$f":"SUM(J20:J21)","v":0},{"$f":"SUM(K20:K21)","v":0},{"$f":"SUM(L20:L21)","v":0},{"$f":"SUM(M20:M21)","v":0},0,0,0,0,0,0,0,0,0,0,0,0,0,0,0,0,0,0,0,0,0]
["4","Gminy, związki międzygminne lub metropolitalne, \njeżeli nie występują w zbiegu z użytkownikami wieczystymi","M",{"$f":"SUM(N23,R23,AC23,AG23,AH23)","v":0},null,null,null,null,null,null,null,null,null,{"$f":"SUM(E23,F23,G23,H23,I23,J23,K23,L23,M23)","v":0},null,null,null,{"$f":"SUM(O23:Q23)","v":0},null,null,null,null,null,null,null,null,null,null,{"$f":"SUM(S23:AB23)","v":0},null,null,null,{"$f":"SUM(AD23:AF23)","v":0}]
[null,null,"W",0,null,null,null,null,null,null,null,null,null,{"$f":"SUM(E24,F24,G24,H24,I24,J24,K24,L24,M24)","v":0},null,null,null,{"$f":"SUM(O24:Q24)","v":0},null,null,null,null,null,null,null,null,null,null,{"$f":"SUM(S24:AB24)","v":0},null,null,null,{"$f":"SUM(AD24:AF24)","v":0}]
[null,null,"Razem",{"$f":"SUM(D23:D24)","v":0},{"$f":"SUM(E23:E24)","v":0},0,0,0,{"$f":"SUM(I23:I24)","v":0},{"$f":"SUM(J23:J24)","v":0},{"$f":"SUM(K23:K24)","v":0},{"$f":"SUM(L23:L24)","v":0},{"$f":"SUM(M23:M24)","v":0},0,0,0,0,0,0,0,0,0,0,0,0,0,0,0,0,0,0,0,0,0]
["5","Gminy, związki międzygminne lub metropolitalne, \njeżeli występują w zbiegu z użytkownikami wieczystymi","M",{"$f":"SUM(N26,R26,AC26,AG26,AH26)","v":0},null,null,null,null,null,null,null,null,null,{"$f":"SUM(E26,F26,G26,H26,I26,J26,K26,L26,M26)","v":0},null,null,null,{"$f":"SUM(O26:Q26)","v":0},null,null,null,null,null,null,null,null,null,null,{"$f":"SUM(S26:AB26)","v":0},null,null,null,{"$f":"SUM(AD26:AF26)","v":0}]
[null,null,"W",0,null,null,null,null,null,null,null,null,null,{"$f":"SUM(E27,F27,G27,H27,I27,J27,K27,L27,M27)","v":0},null,null,null,{"$f":"SUM(O27:Q27)","v":0},null,null,null,null,null,null,null,null,null,null,{"$f":"SUM(S27:AB27)","v":0},null,null,null,{"$f":"SUM(AD27:AF27)","v":0}]
[null,null,"Razem",{"$f":"SUM(D26:D27)","v":0},{"$f":"SUM(E26:E27)","v":0},0,0,0,0,0,{"$f":"SUM(K26:K27)","v":0},{"$f":"SUM(L26:L27)","v":0},0,0,0,0,0,0,0,0,0,0,0,0,0,0,0,0,0,0,0,0,0,0]
["6"," Jednoosobowe spółki jednostek samorządu terytorialnego  i inne osoby prawne, których organami założycielskimi są  organy samorządu terytorialnego","M",{"$f":"SUM(N29,R29,AC29,AG29,AH29)","v":0},null,null,null,null,null,null,null,null,null,{"$f":"SUM(E29,F29,G29,H29,I29,J29,K29,L29,M29)","v":0},null,null,null,{"$f":"SUM(O29:Q29)","v":0},null,null,null,null,null,null,null,null,null,null,{"$f":"SUM(S29:AB29)","v":0},null,null,null,{"$f":"SUM(AD29:AF29)","v":0}]
[null,null,"W",0,null,null,null,null,null,null,null,null,null,{"$f":"SUM(E30,F30,G30,H30,I30,J30,K30,L30,M30)","v":0},null,null,null,{"$f":"SUM(O30:Q30)","v":0},null,null,null,null,null,null,null,null,null,null,{"$f":"SUM(S30:AB30)","v":0},null,null,null,{"$f":"SUM(AD30:AF30)","v":0}]
[null,null,"Razem",{"$f":"SUM(D29:D30)","v":0},{"$f":"SUM(E29:E30)","v":0},0,0,0,0,0,{"$f":"SUM(K29:K30)","v":0},{"$f":"SUM(L29:L30)","v":0},0,0,0,0,0,0,0,0,0,0,0,0,0,0,0,0,0,0,0,0,0,0]
["7","Osoby fizyczne","M",{"$f":"SUM(N32,R32,AC32,AG32,AH32)","v":0},null,null,null,null,null,null,null,null,null,{"$f":"SUM(E32,F32,G32,H32,I32,J32,K32,L32,M32)","v":0},null,null,null,{"$f":"SUM(O32:Q32)","v":0},null,null,null,null,null,null,null,null,null,null,{"$f":"SUM(S32:AB32)","v":0},null,null,null,{"$f":"SUM(AD32:AF32)","v":0}]
[null,null,"W",0,null,null,null,null,null,null,null,null,null,{"$f":"SUM(E33,F33,G33,H33,I33,J33,K33,L33,M33)","v":0},null,null,null,{"$f":"SUM(O33:Q33)","v":0},null,null,null,null,null,null,null,null,null,null,{"$f":"SUM(S33:AB33)","v":0},null,null,null,{"$f":"SUM(AD33:AF33)","v":0}]
[null,null,"Razem",{"$f":"SUM(D32:D33)","v":0},{"$f":"SUM(E32:E33)","v":0},0,0,0,{"$f":"SUM(I32:I33)","v":0},{"$f":"SUM(J32:J33)","v":0},{"$f":"SUM(K32:K33)","v":0},{"$f":"SUM(L32:L33)","v":0},{"$f":"SUM(M32:M33)","v":0},0,0,0,0,0,0,0,0,0,0,0,0,0,0,0,0,0,0,0,0,0]
["8","Spółdzielnie","M",{"$f":"SUM(N35,R35,AC35,AG35,AH35)","v":0},null,null,null,null,null,null,null,null,null,{"$f":"SUM(E35,F35,G35,H35,I35,J35,K35,L35,M35)","v":0},null,null,null,{"$f":"SUM(O35:Q35)","v":0},null,null,null,null,null,null,null,null,null,null,{"$f":"SUM(S35:AB35)","v":0},null,null,null,{"$f":"SUM(AD35:AF35)","v":0}]
[null,null,"W",0,null,null,null,null,null,null,null,null,null,{"$f":"SUM(E36,F36,G36,H36,I36,J36,K36,L36,M36)","v":0},null,null,null,{"$f":"SUM(O36:Q36)","v":0},null,null,null,null,null,null,null,null,null,null,{"$f":"SUM(S36:AB36)","v":0},null,null,null,{"$f":"SUM(AD36:AF36)","v":0}]
[null,null,"Razem",0,{"$f":"SUM(E35:E36)","v":0},0,0,0,0,0,{"$f":"SUM(K35:K36)","v":0},{"$f":"SUM(L35:L36)","v":0},0,0,0,0,0,0,0,0,0,0,0,0,0,0,0,0,0,0,0,0,0,0]
[9,"Kościoły i związki wyznaniowe","M",{"$f":"SUM(N38,R38,AC38,AG38,AH38)","v":0},null,null,null,null,null,null,null,null,null,{"$f":"SUM(E38:M38)","v":0},null,null,null,{"$f":"SUM(O38:Q38)","v":0},null,null,null,null,null,null,null,null,null,null,{"$f":"SUM(S38:AB38)","v":0},null,null,null,{"$f":"SUM(AD38:AF38)","v":0}]
[null,null,"W",0,null,null,null,null,null,null,null,null,null,{"$f":"SUM(E39:M39)","v":0},null,null,null,{"$f":"SUM(O39:Q39)","v":0},null,null,null,null,null,null,null,null,null,null,{"$f":"SUM(S39:AB39)","v":0},null,null,null,{"$f":"SUM(AD39:AF39)","v":0}]
[null,null,"Razem",{"$f":"SUM(D38:D39)","v":0},{"$f":"SUM(E38:E39)","v":0},0,0,0,{"$f":"SUM(I38:I39)","v":0},{"$f":"SUM(J38:J39)","v":0},{"$f":"SUM(K38:K39)","v":0},{"$f":"SUM(L38:L39)","v":0},{"$f":"SUM(M38:M39)","v":0},0,0,0,0,0,0,0,0,0,0,0,0,0,0,0,0,0,0,0,0,0]
[10,"Wspólnoty gruntowe","M",{"$f":"SUM(N41,R41,AC41,AG41,AH41)","v":0},null,null,null,null,null,null,null,null,null,{"$f":"SUM(E41:M41)","v":0},null,null,null,{"$f":"SUM(O41:Q41)","v":0},null,null,null,null,null,null,null,null,null,null,{"$f":"SUM(S41:AB41)","v":0},null,null,null,{"$f":"SUM(AD41:AF41)","v":0}]
[null,null,"W",0,null,null,null,null,null,null,null,null,null,{"$f":"SUM(E42:M42)","v":0},null,null,null,{"$f":"SUM(O42:Q42)","v":0},null,null,null,null,null,null,null,null,null,null,{"$f":"SUM(S42:AB42)","v":0},null,null,null,{"$f":"SUM(AD42:AF42)","v":0}]
[null,null,"Razem",{"$f":"SUM(D41:D42)","v":0},{"$f":"SUM(E41:E42)","v":0},0,0,0,{"$f":"SUM(I41:I42)","v":0},{"$f":"SUM(J41:J42)","v":0},{"$f":"SUM(K41:K42)","v":0},{"$f":"SUM(L41:L42)","v":0},{"$f":"SUM(M41:M42)","v":0},0,0,0,0,0,0,0,0,0,0,0,0,0,0,0,0,0,0,0,0,0]
["11","Powiaty i związki powiatów, \njeżeli nie występują w zbiegu z użytkownikami wieczystymi","M",{"$f":"SUM(N44,R44,AC44,AG44,AH44)","v":0},null,null,null,null,null,null,null,null,null,{"$f":"SUM(E44,F44,G44,H44,I44,J44,K44,L44,M44)","v":0},null,null,null,{"$f":"SUM(O44:Q44)","v":0},null,null,null,null,null,null,null,null,null,null,{"$f":"SUM(S44:AB44)","v":0},null,null,null,{"$f":"SUM(AD44:AF44)","v":0}]
[null,null,"W",0,null,null,null,null,null,null,null,null,null,{"$f":"SUM(E45,F45,G45,H45,I45,J45,K45,L45,M45)","v":0},null,null,null,{"$f":"SUM(O45:Q45)","v":0},null,null,null,null,null,null,null,null,null,null,{"$f":"SUM(S45:AB45)","v":0},null,null,null,{"$f":"SUM(AD45:AF45)","v":0}]
[null,null,"Razem",0,{"$f":"SUM(E44:E45)","v":0},0,0,0,0,0,{"$f":"SUM(K44:K45)","v":0},{"$f":"SUM(L44:L45)","v":0},0,0,0,0,0,0,0,0,0,0,0,0,0,0,0,0,0,0,0,0,0,0]
["12","Powiaty i związki powiatów, \njeżeli występują w zbiegu z użytkownikami wieczystymi","M",{"$f":"SUM(N47,R47,AC47,AG47,AH47)","v":0},null,null,null,null,null,null,null,null,null,{"$f":"SUM(E47,F47,G47,H47,I47,J47,K47,L47,M47)","v":0},null,null,null,{"$f":"SUM(O47:Q47)","v":0},null,null,null,null,null,null,null,null,null,null,{"$f":"SUM(S47:AB47)","v":0},null,null,null,{"$f":"SUM(AD47:AF47)","v":0}]
[null,null,"W",0,null,null,null,null,null,null,null,null,null,{"$f":"SUM(E48,F48,G48,H48,I48,J48,K48,L48,M48)","v":0},null,null,null,{"$f":"SUM(O48:Q48)","v":0},null,null,null,null,null,null,null,null,null,null,{"$f":"SUM(S48:AB48)","v":0},null,null,null,{"$f":"SUM(AD48:AF48)","v":0}]
[null,null,"Razem",{"$f":"SUM(D47:D48)","v":0},{"$f":"SUM(E47:E48)","v":0},0,0,0,0,0,{"$f":"SUM(K47:K48)","v":0},{"$f":"SUM(L47:L48)","v":0},0,0,0,0,0,0,0,0,0,0,0,0,0,0,0,0,0,0,0,0,0,0]
["13","Województwa, \njeżeli nie występują w zbiegu z użytkownikami wieczystymi","M",{"$f":"SUM(N50,R50,AC50,AG50,AH50)","v":0},null,null,null,null,null,null,null,null,null,{"$f":"SUM(E50,F50,G50,H50,I50,J50,K50,L50,M50)","v":0},null,null,null,{"$f":"SUM(O50:Q50)","v":0},null,null,null,null,null,null,null,null,null,null,{"$f":"SUM(S50:AB50)","v":0},null,null,null,{"$f":"SUM(AD50:AF50)","v":0}]
[null,null,"W",0,null,null,null,null,null,null,null,null,null,{"$f":"SUM(E51,F51,G51,H51,I51,J51,K51,L51,M51)","v":0},null,null,null,{"$f":"SUM(O51:Q51)","v":0},null,null,null,null,null,null,null,null,null,null,{"$f":"SUM(S51:AB51)","v":0},null,null,null,{"$f":"SUM(AD51:AF51)","v":0}]
[null,null,"Razem",{"$f":"SUM(D50:D51)","v":0},{"$f":"SUM(E50:E51)","v":0},0,0,0,0,0,{"$f":"SUM(K50:K51)","v":0},{"$f":"SUM(L50:L51)","v":0},0,0,0,0,0,0,0,0,0,0,0,0,0,0,0,0,0,0,0,0,0,0]
["14","Województwa, \njeżeli występują w zbiegu z użytkownikami wieczystymi","M",{"$f":"SUM(N53,R53,AC53,AG53,AH53)","v":0},null,null,null,null,null,null,null,null,null,{"$f":"SUM(E53,F53,G53,H53,I53,J53,K53,L53,M53)","v":0},null,null,null,{"$f":"SUM(O53:Q53)","v":0},null,null,null,null,null,null,null,null,null,null,{"$f":"SUM(S53:AB53)","v":0},null,null,null,{"$f":"SUM(AD53:AF53)","v":0}]
[null,null,"W",0,null,null,null,null,null,null,null,null,null,{"$f":"SUM(E54,F54,G54,H54,I54,J54,K54,L54,M54)","v":0},null,null,null,{"$f":"SUM(O54:Q54)","v":0},null,null,null,null,null,null,null,null,null,null,{"$f":"SUM(S54:AB54)","v":0},null,null,null,{"$f":"SUM(AD54:AF54)","v":0}]
[null,null,"Razem",0,{"$f":"SUM(E53:E54)","v":0},0,0,0,0,0,{"$f":"SUM(K53:K54)","v":0},{"$f":"SUM(L53:L54)","v":0},0,0,0,0,0,0,0,0,0,0,0,0,0,0,0,0,0,0,0,0,0,0]
["15","Spółki prawa handlowego ","M",{"$f":"SUM(N56,R56,AC56,AG56,AH56)","v":0},null,null,null,null,null,null,null,null,null,{"$f":"SUM(E56,F56,G56,H56,I56,J56,K56,L56,M56)","v":0},null,null,null,{"$f":"SUM(O56:Q56)","v":0},null,null,null,null,null,null,null,null,null,null,{"$f":"SUM(S56:AB56)","v":0},null,null,null,{"$f":"SUM(AD56:AF56)","v":0}]
[null,null,"W",0,null,null,null,null,null,null,null,null,null,{"$f":"SUM(E57,F57,G57,H57,I57,J57,K57,L57,M57)","v":0},null,null,null,{"$f":"SUM(O57:Q57)","v":0},null,null,null,null,null,null,null,null,null,null,{"$f":"SUM(S57:AB57)","v":0},null,null,null,{"$f":"SUM(AD57:AF57)","v":0}]
[null,null,"Razem",{"$f":"SUM(D56:D57)","v":0},{"$f":"SUM(E56:E57)","v":0},0,0,0,0,0,0,0,0,0,0,0,{"$f":"SUM(Q56:Q57)","v":0},0,0,0,0,0,0,0,0,0,0,0,0,0,0,0,0,0]
["16","Inne podmioty ewidencyjne \nniewymienione w grupach rejestrowych 1-15","M",{"$f":"SUM(N59,R59,AC59,AG59,AH59)","v":0},null,null,null,null,null,null,null,null,null,{"$f":"SUM(E59,F59,G59,H59,I59,J59,K59,L59,M59)","v":0},null,null,null,{"$f":"SUM(O59:Q59)","v":0},null,null,null,null,null,null,null,null,null,null,{"$f":"SUM(S59:AB59)","v":0},null,null,null,{"$f":"SUM(AD59:AF59)","v":0}]
[null,null,"W",0,null,null,null,null,null,null,null,null,null,{"$f":"SUM(E60,F60,G60,H60,I60,J60,K60,L60,M60)","v":0},null,null,null,{"$f":"SUM(O60:Q60)","v":0},null,null,null,null,null,null,null,null,null,null,{"$f":"SUM(S60:AB60)","v":0},null,null,null,{"$f":"SUM(AD60:AF60)","v":0}]
[null,null,"Razem",{"$f":"SUM(D59:D60)","v":0},{"$f":"SUM(E59:E60)","v":0},0,0,0,0,0,{"$f":"SUM(K59:K60)","v":0},{"$f":"SUM(L59:L60)","v":0},{"$f":"SUM(M59:M60)","v":0},0,0,0,0,0,0,0,0,0,0,0,0,0,0,0,0,0,0,0,0,0]
["Razem grupy 1~16","Powierzchnia ewidencyjna","M",{"$f":"SUM(N62,R62,AC62,AG62,AH62)","v":0},{"$f":"SUM(E14,E17,E20,E23,E26,E29,E32,E35,E38,E41,E44,E47,E50,E53,E56,E59)","v":0},{"$f":"SUM(F14,F17,F20,F23,F26,F29,F32,F35,F38,F41,F44,F47,F50,F53,F56,F59)","v":0},0,{"$f":"SUM(H14,H17,H20,H23,H26,H29,H32,H35,H38,H41,H44,H47,H50,H53,H56,H59)","v":0},0,0,0,0,0,{"$f":"SUM(E62:M62)","v":0},{"$f":"SUM(O14,O17,O20,O23,O26,O29,O32,O35,O38,O41,O44,O47,O50,O53,O56,O59)","v":0},{"$f":"SUM(P14,P17,P20,P23,P26,P29,P32,P35,P38,P41,P44,P47,P50,P53,P56,P59)","v":0},0,{"$f":"SUM(O62:Q62)","v":0},{"$f":"SUM(S14,S17,S20,S23,S26,S29,S32,S35,S38,S41,S44,S47,S50,S53,S56,S59)","v":0},{"$f":"SUM(T14,T17,T20,T23,T26,T29,T32,T35,T38,T41,T44,T47,T50,T53,T56,T59)","v":0},0,0,0,0,0,0,{"$f":"SUM(AA14,AA17,AA20,AA23,AA26,AA29,AA32,AA35,AA38,AA41,AA44,AA47,AA50,AA53,AA56,AA59)","v":0},0,{"$f":"SUM(S62:AB62)","v":0},{"$f":"SUM(AD14,AD17,AD20,AD23,AD26,AD29,AD32,AD35,AD38,AD41,AD44,AD47,AD50,AD53,AD56,AD59)","v":0},{"$f":"SUM(AE14,AE17,AE20,AE23,AE26,AE29,AE32,AE35,AE38,AE41,AE44,AE47,AE50,AE53,AE56,AE59)","v":0},0,{"$f":"SUM(AD62:AF62)","v":0},{"$f":"SUM(AH14,AH17,AH20,AH23,AH26,AH29,AH32,AH35,AH38,AH41,AH44,AH47,AH50,AH53,AH56,AH59)","v":0}]
[null,null,"W",{"$f":"SUM(N63,R63,AC63,AG63,AH63)","v":0},{"$f":"SUM(E15,E18,E21,E24,E27,E30,E33,E36,E39,E42,E45,E48,E51,E54,E57,E60)","v":0},{"$f":"SUM(F15,F18,F21,F24,F27,F30,F33,F36,F39,F42,F45,F48,F51,F54,F57,F60)","v":0},0,0,0,0,0,0,0,{"$f":"SUM(E63:M63)","v":0},{"$f":"SUM(O15,O18,O21,O24,O27,O30,O33,O36,O39,O42,O45,O48,O51,O54,O57,O60)","v":0},{"$f":"SUM(P15,P18,P21,P24,P27,P30,P33,P36,P39,P42,P45,P48,P51,P54,P57,P60)","v":0},{"$f":"SUM(Q15,Q18,Q21,Q24,Q27,Q30,Q33,Q36,Q39,Q42,Q45,Q48,Q51,Q54,Q57,Q60)","v":0},{"$f":"SUM(O63:Q63)","v":0},{"$f":"SUM(S15,S18,S21,S24,S27,S30,S33,S36,S39,S42,S45,S48,S51,S54,S57,S60)","v":0},{"$f":"SUM(T15,T18,T21,T24,T27,T30,T33,T36,T39,T42,T45,T48,T51,T54,T57,T60)","v":0},0,0,0,0,0,0,0,0,{"$f":"SUM(S63:AB63)","v":0},{"$f":"SUM(AD15,AD18,AD21,AD24,AD27,AD30,AD33,AD36,AD39,AD42,AD45,AD48,AD51,AD54,AD57,AD60)","v":0},{"$f":"SUM(AE15,AE18,AE21,AE24,AE27,AE30,AE33,AE36,AE39,AE42,AE45,AE48,AE51,AE54,AE57,AE60)","v":0},0,{"$f":"SUM(AD63:AF63)","v":0},{"$f":"SUM(AH15,AH18,AH21,AH24,AH27,AH30,AH33,AH36,AH39,AH42,AH45,AH48,AH51,AH54,AH57,AH60)","v":0}]
[null,null,"Razem",{"$f":"SUM(D62:D63)","v":0},0,0,0,0,0,0,0,0,0,0,0,0,0,0,0,0,0,0,0,0,0,0,0,0,0,0,0,0,0,0]
[null,"Powierzchnia wyrównawcza","M",{"$f":"D68-D62","v":0}]
[null,null,"W",{"$f":"D69-D63","v":0}]
[null,null,"Razem",{"$f":"SUM(D65:D66)","v":0}]
[null,"Powierzchnia geodezyjna","M",{"$f":"SUM(N68,R68,AC68,AG68,AH68)","v":0},null,null,null,null,null,null,null,null,null,{"$f":"SUM(E68:M68)","v":0},null,null,null,{"$f":"SUM(O68:Q68)","v":0},null,null,null,null,null,null,null,null,null,null,{"$f":"SUM(S68:AB68)","v":0},null,null,null,{"$f":"SUM(AD68:AF68)","v":0}]
[null,null,"W",{"$f":"SUM(N69,R69,AC69,AG69,AH69)","v":0},null,null,null,null,null,null,null,null,null,{"$f":"SUM(E69:M69)","v":0},null,null,null,{"$f":"SUM(O69:Q69)","v":0},null,null,null,null,null,null,null,null,null,null,{"$f":"SUM(S69:AB69)","v":0},null,null,null,{"$f":"SUM(AD69:AF69)","v":0}]
[null,null,"Razem",{"$f":"SUM(D68:D69)","v":0},{"$f":"SUM(E68:E69)","v":0},0,0,0,0,0,0,0,0,0,0,0,0,0,0,0,0,0,{"$f":"SUM(W68:W69)","v":0},0,0,0,0,0,0,0,0,0,{"$f":"SUM(AG68:AG69)","v":0},0]

{"sheet":"U","index":3,"n_rows":29,"n_cols":37,"rows_kept":29,"cut":false,"hidden":true,"merged":[[3,1,3,10],[26,0,26,1],[6,1,8,1],[6,36,8,36],[4,0,4,12],[6,0,8,0],[6,2,8,2],[7,20,7,26],[7,13,7,19],[7,3,7,12],[6,28,8,28],[6,3,6,27],[6,29,7,35]]}
[]
[]
[]
[null,"!UWAGA: poniższe zestawienie nie podlega uzupełnieniu w roku 2026"]
[{"$f":"\"Wykaz użytków rolnych oraz lasów \nz podziałem na klasy bonitacyjne oraz grupy rejestrowe\nwg stanu na dzień 1 stycznia \"&Start!G9","v":"Wykaz użytków rolnych oraz lasów \nz podziałem na klasy bonitacyjne oraz grupy rejestrowe\nwg stanu na dzień 1 stycznia 2026"}]
[]
["Oznaczenie grupy rejestrowej","Nazwa grupy rejestrowej","SUMA w ha","1. Grunty rolne",null,null,null,null,null,null,null,null,null,null,null,null,null,null,null,null,null,null,null,null,null,null,null,null,"Razem użytki rolne ","2. Lasy",null,null,null,null,null,null,"Razem lasy"]
[null,null,null,"Grunty orne",null,null,null,null,null,null,null,null,null,"Łąki",null,null,null,null,null,null,"Pastwiska",null,null,null,null,null,null,"Nieużytki"]
[null,null,null,"RI","RII","RIIIa","RIIIb","RIVa","RIVb","RV","RVI","RVIz","Razem\n(kol. 4-12)","ŁI","ŁII","ŁIII","ŁIV","ŁV","ŁVI","Razem\n(kol. 14-19)","PsI","PsII","PsIII","PsIV","PsV","PsVI","Razem\n(kol. 21-26)","N",null,"LsI","LsII","LsIII","LsIV","LsV","LsVI","Ls\n(art. 20 ust. 3b ustawy Pgik)"]
[1,null,3,4,5,6,7,8,9,10,11,12,13,14,15,16,17,18,19,20,21,22,23,24,25,26,27,28,29,30,31,32,33,34,35,36,37]
[1,"Skarb Państwa, jeżeli nie występuje w zbiegu \nz użytkownikami wieczystymi",{"$f":"AC11+AK11","v":0},null,null,null,null,null,null,null,null,null,{"$f":"SUM(D11:L11)","v":0},null,null,null,null,null,null,{"$f":"SUM(N11:S11)","v":0},null,null,null,null,null,null,{"$f":"SUM(U11:Z11)","v":0},null,{"$f":"SUM(M11,T11,AA11,AB11)","v":0},null,null,null,null,null,null,null,{"$f":"SUM(AD11:AJ11)","v":0}]
[2,"Skarb Państwa, jeżeli występuje w zbiegu z użytkownikami wieczystymi",{"$f":"AC12+AK12","v":0},null,null,null,null,null,null,null,null,null,{"$f":"SUM(D12:L12)","v":0},null,null,null,null,null,null,{"$f":"SUM(N12:S12)","v":0},null,null,null,null,null,null,{"$f":"SUM(U12:Z12)","v":0},null,{"$f":"SUM(M12,T12,AA12,AB12)","v":0},null,null,null,null,null,null,null,{"$f":"SUM(AD12:AJ12)","v":0}]
[3,"Jednoosobowe spółki Skarbu Państwa, przedsiębiorstwa \npaństwowe i inne państwowe osoby prawne",{"$f":"AC13+AK13","v":0},null,null,null,null,null,null,null,null,null,0,null,null,null,null,null,null,0,null,null,null,null,null,null,0,null,0,null,null,null,null,null,null,null,0]
[4,"Gminy, związki międzygminne lub metropolitalne, \njeżeli  nie występują w zbiegu z użytkownikami wieczystymi",0,null,null,null,null,null,null,null,null,null,0,null,null,null,null,null,null,0,null,null,null,null,null,null,0,null,0,null,null,null,null,null,null,null,0]
[5,"Gminy, związki międzygminne lub metropolitalne, \njeżeli występują w zbiegu z użytkownikami wieczystymi",0,null,null,null,null,null,null,null,null,null,0,null,null,null,null,null,null,0,null,null,null,null,null,null,0,null,0,null,null,null,null,null,null,null,0]
[6," Jednoosobowe spółki jednostek samorządu terytorialnego  i inne osoby prawne, których organami założycielskimi są  organy samorządu terytorialnego",0,null,null,null,null,null,null,null,null,null,0,null,null,null,null,null,null,0,null,null,null,null,null,null,0,null,0,null,null,null,null,null,null,null,0]
[7,"Osoby fizyczne",0,null,null,null,null,null,null,null,null,null,0,null,null,null,null,null,null,0,null,null,null,null,null,null,0,null,0,null,null,null,null,null,null,null,0]
[8,"Spółdzielnie",0,null,null,null,null,null,null,null,null,null,0,null,null,null,null,null,null,0,null,null,null,null,null,null,0,null,0,null,null,null,null,null,null,null,0]
[9,"Kościoły i związki wyznaniowe",0,null,null,null,null,null,null,null,null,null,0,null,null,null,null,null,null,0,null,null,null,null,null,null,0,null,0,null,null,null,null,null,null,null,0]
[10,"Wspólnoty gruntowe",0,null,null,null,null,null,null,null,null,null,0,null,null,null,null,null,null,0,null,null,null,null,null,null,0,null,0,null,null,null,null,null,null,null,0]
[11,"Powiaty i związki powiatów, \njeżeli nie występują w zbiegu z użytkownikami wieczystymi",0,null,null,null,null,null,null,null,null,null,0,null,null,null,null,null,null,0,null,null,null,null,null,null,0,null,0,null,null,null,null,null,null,null,0]
[12,"Powiaty i związki powiatów, \njeżeli występują w zbiegu z użytkownikami wieczystymi",0,null,null,null,null,null,null,null,null,null,0,null,null,null,null,null,null,0,null,null,null,null,null,null,0,null,0,null,null,null,null,null,null,null,0]
[13,"Województwa, \njeżeli nie występują w zbiegu z użytkownikami wieczystymi",0,null,null,null,null,null,null,null,null,null,0,null,null,null,null,null,null,0,null,null,null,null,null,null,0,null,0,null,null,null,null,null,null,null,0]
[14,"Województwa, \njeżeli występują w zbiegu z użytkownikami wieczystymi",0,null,null,null,null,null,null,null,null,null,0,null,null,null,null,null,null,0,null,null,null,null,null,null,0,null,0,null,null,null,null,null,null,null,0]
[15,"Spółki prawa handlowego ",0,null,null,null,null,null,null,null,null,null,0,null,null,null,null,null,null,0,null,null,null,null,null,null,0,null,0,null,null,null,null,null,null,null,0]
[16,"Inne podmioty ewidencyjne \nniewymienione w grupach rejestrowych 1-15",0,null,null,null,null,null,null,null,null,null,0,null,null,null,null,null,null,0,null,null,null,null,null,null,0,null,0,null,null,null,null,null,null,null,0]
["Razem\ngrupy 1-16",null,{"$f":"SUM(C11:C26)","v":0},{"$f":"SUM(D11:D26)","v":0},{"$f":"SUM(E11:E26)","v":0},0,0,0,0,{"$f":"SUM(J11:J26)","v":0},0,0,0,0,0,0,0,0,0,0,0,0,0,0,0,0,0,0,0,0,0,0,0,0,0,0,{"$f":"SUM(AK11:AK26)","v":0}]
[null,null,{"$f":"AC27+AK27","v":0}]
[null,null,{"$f":"C27-C28","v":0}]

{"sheet":"B","index":4,"n_rows":63,"n_cols":16,"rows_kept":63,"cut":false,"hidden":true,"merged":[[6,3,7,3],[6,4,7,4],[4,0,4,14],[6,15,8,15],[8,5,8,14],[6,0,8,0],[62,0,62,4],[6,2,8,2],[6,5,6,14],[10,0,12,0],[13,0,15,0],[19,0,21,0],[16,0,18,0],[25,0,27,0],[22,0,24,0],[31,0,33,0],[28,0,30,0],[8,3,8,4],[40,0,42,0],[34,0,36,0],[37,0,39,0],[43,0,45,0],[25,1,27,1],[6,1,8,1],[28,1,30,1],[31,1,33,1],[34,1,36,1],[16,1,18,1],[13,1,15,1],[10,1,12,1],[19,1,21,1],[22,1,24,1],[37,1,39,1],[58,0,60,1],[43,1,45,1],[46,1,48,1],[49,1,51,1],[52,1,54,1],[55,1,57,1],[40,1,42,1],[55,0,57,0],[49,0,51,0],[46,0,48,0],[52,0,54,0]]}
[]
[]
[]
[]
[{"$f":"\"Zbiorcze zestawienie danych dotyczących budynków\nwg stanu na dzień 1 stycznia \"&Start!G9","v":"Zbiorcze zestawienie danych dotyczących budynków\nwg stanu na dzień 1 stycznia 2026"}]
[]
["Grupa rejestrowa","Nazwa","Rodzaj jednostki terytorialnej","Budynki w nieruchomości gruntowej","Budynki stanowiące samodzielną nieruchomość","Rodzaj budynku",null,null,null,null,null,null,null,null,null,"Suma kontrolna*"]
[null,null,null,null,null,"mieszkalny","produkcyjny, usługowy \ni gospodarczy","transportu \ni łączności","oświaty, nauki \ni kultury \noraz sportu","szpitala \ni inne budynki opieki zdrowotnej ","biurowy","handlowo- usługowy","przemysłowy","zbiornik, silos \ni budynek magazynowy","niemieszkalny"]
[null,null,null,"liczba budynków",null,"liczba budynków"]
[1,2,3,4,5,6,7,8,9,10,11,12,13,14,15,{"$f":"O10+1","v":16}]
["1","Skarb Państwa, jeżeli nie występuje w zbiegu \nz użytkownikami wieczystymi","M",null,null,null,null,null,null,null,null,null,null,null,null,{"$f":"D11+E11-F11-G11-H11-I11-J11-K11-L11-M11-N11-O11","v":0}]
[null,null,"W",null,null,null,null,null,null,null,null,null,null,null,null,0]
[null,null,"Razem",{"$f":"SUM(D11,D12)","v":0},{"$f":"SUM(E11,E12)","v":0},0,0,{"$f":"SUM(H11,H12)","v":0},0,0,0,{"$f":"SUM(L11,L12)","v":0},0,0,0,0]
["2","Skarb Państwa, jeżeli występuje w zbiegu \nz użytkownikami wieczystymi","M",null,null,null,null,null,null,null,null,null,null,null,null,0]
[null,null,"W",null,null,null,null,null,null,null,null,null,null,null,null,0]
[null,null,"Razem",{"$f":"SUM(D14,D15)","v":0},0,0,0,0,0,0,0,{"$f":"SUM(L14,L15)","v":0},0,0,0,0]
[3,"Jednoosobowe spółki Skarbu Państwa, \nprzedsiębiorstwa państwowe i inne państwowe osoby prawne","M",null,null,null,null,null,null,null,null,null,null,null,null,0]
[null,null,"W",null,null,null,null,null,null,null,null,null,null,null,null,0]
[null,null,"Razem",{"$f":"D17+D18","v":0},{"$f":"E17+E18","v":0},0,0,0,0,0,0,{"$f":"L17+L18","v":0},0,0,0,0]
["4","Gminy, związki międzygminne lub metropolitalne, \njeżeli nie występują w zbiegu z użytkownikami wieczystymi","M",null,null,null,null,null,null,null,null,null,null,null,null,0]
[null,null,"W",null,null,null,null,null,null,null,null,null,null,null,null,0]
[null,null,"Razem",{"$f":"D20+D21","v":0},{"$f":"E20+E21","v":0},0,0,0,0,0,0,{"$f":"L20+L21","v":0},0,0,0,0]
["5","Gminy, związki międzygminne lub metropolitalne, \njeżeli występują w zbiegu z użytkownikami wieczystymi","M",null,null,null,null,null,null,null,null,null,null,null,null,0]
[null,null,"W",null,null,null,null,null,null,null,null,null,null,null,null,0]
[null,null,"Razem",{"$f":"D23+D24","v":0},{"$f":"E23+E24","v":0},0,0,0,0,0,0,{"$f":"L23+L24","v":0},0,0,0,0]
["6"," Jednoosobowe spółki jednostek samorządu terytorialnego  i inne osoby prawne, których organami założycielskimi są  organy samorządu terytorialnego","M",null,null,null,null,null,null,null,null,null,null,null,null,0]
[null,null,"W",null,null,null,null,null,null,null,null,null,null,null,null,0]
[null,null,"Razem",{"$f":"D26+D27","v":0},{"$f":"E26+E27","v":0},0,0,0,0,0,0,{"$f":"L26+L27","v":0},0,0,0,0]
["7","Osoby fizyczne","M",null,null,null,null,null,null,null,null,null,null,null,null,0]
[null,null,"W",null,null,null,null,null,null,null,null,null,null,null,null,0]
[null,null,"Razem",{"$f":"D29+D30","v":0},{"$f":"E29+E30","v":0},0,0,0,0,0,0,{"$f":"L29+L30","v":0},0,0,0,0]
["8","Spółdzielnie","M",null,null,null,null,null,null,null,null,null,null,null,null,0]
[null,null,"W",null,null,null,null,null,null,null,null,null,null,null,null,0]
[null,null,"Razem",{"$f":"D32+D33","v":0},{"$f":"E32+E33","v":0},0,0,0,0,0,0,{"$f":"L32+L33","v":0},0,0,0,0]
[9,"Kościoły i związki wyznaniowe","M",null,null,null,null,null,null,null,null,null,null,null,null,0]
[null,null,"W",null,null,null,null,null,null,null,null,null,null,null,null,0]
[null,null,"Razem",{"$f":"D35+D36","v":0},{"$f":"E35+E36","v":0},0,0,0,0,0,0,{"$f":"L35+L36","v":0},0,0,0,0]
[10,"Wspólnoty gruntowe","M",null,null,null,null,null,null,null,null,null,null,null,null,0]
[null,null,"W",null,null,null,null,null,null,null,null,null,null,null,null,0]
[null,null,"Razem",{"$f":"D38+D39","v":0},{"$f":"E38+E39","v":0},0,0,0,0,0,0,{"$f":"L38+L39","v":0},0,0,0,0]
["11","Powiaty i związki powiatów, \njeżeli nie występują w zbiegu z użytkownikami wieczystymi","M",null,null,null,null,null,null,null,null,null,null,null,null,0]
[null,null,"W",null,null,null,null,null,null,null,null,null,null,null,null,0]
[null,null,"Razem",{"$f":"D41+D42","v":0},{"$f":"E41+E42","v":0},0,0,0,0,0,0,{"$f":"L41+L42","v":0},0,0,0,{"$f":"D43+E43-F43-G43-H43-I43-J43-K43-L43-M43-N43-O43","v":0}]
["12","Powiaty i związki powiatów, \njeżeli występują w zbiegu z użytkownikami wieczystymi","M",null,null,null,null,null,null,null,null,null,null,null,null,0]
[null,null,"W",null,null,null,null,null,null,null,null,null,null,null,null,0]
[null,null,"Razem",{"$f":"D44+D45","v":0},{"$f":"E44+E45","v":0},0,0,0,0,0,0,{"$f":"L44+L45","v":0},0,0,0,0]
["13","Województwa, \njeżeli nie występują w zbiegu z użytkownikami wieczystymi","M",null,null,null,null,null,null,null,null,null,null,null,null,0]
[null,null,"W",null,null,null,null,null,null,null,null,null,null,null,null,0]
[null,null,"Razem",{"$f":"D47+D48","v":0},{"$f":"E47+E48","v":0},0,0,0,0,0,0,{"$f":"L47+L48","v":0},0,0,0,0]
["14","Województwa, \njeżeli występują w zbiegu z użytkownikami wieczystymi","M",null,null,null,null,null,null,null,null,null,null,null,null,0]
[null,null,"W",null,null,null,null,null,null,null,null,null,null,null,null,0]
[null,null,"Razem",{"$f":"D50+D51","v":0},{"$f":"E50+E51","v":0},0,0,0,0,0,0,{"$f":"L50+L51","v":0},0,0,0,0]
["15","Spółki prawa handlowego ","M",null,null,null,null,null,null,null,null,null,null,null,null,0]
[null,null,"W",null,null,null,null,null,null,null,null,null,null,null,null,0]
[null,null,"Razem",{"$f":"D53+D54","v":0},{"$f":"E53+E54","v":0},0,0,0,0,0,0,{"$f":"L53+L54","v":0},0,0,0,0]
["16","Inne podmioty ewidencyjne \nniewymienione w grupach rejestrowych 1-15","M",null,null,null,null,null,null,null,null,null,null,null,null,0]
[null,null,"W",null,null,null,null,null,null,null,null,null,null,null,null,0]
[null,null,"Razem",{"$f":"D56+D57","v":0},{"$f":"E56+E57","v":0},0,0,0,0,0,0,{"$f":"L56+L57","v":0},0,0,0,0]
["Razem budynki",null,"M",{"$f":"D11+D14+D17+D20+D23+D26+D29+D32+D35+D38+D41+D44+D47+D50+D53+D56","v":0},0,0,0,0,0,{"$f":"J11+J14+J17+J20+J23+J26+J29+J32+J35+J38+J41+J44+J47+J50+J53+J56","v":0},0,{"$f":"L11+L14+L17+L20+L23+L26+L29+L32+L35+L38+L41+L44+L47+L50+L53+L56","v":0},0,{"$f":"N11+N14+N17+N20+N23+N26+N29+N32+N35+N38+N41+N44+N47+N50+N53+N56","v":0},{"$f":"O11+O14+O17+O20+O23+O26+O29+O32+O35+O38+O41+O44+O47+O50+O53+O56","v":0},0]
[null,null,"W",0,0,0,0,0,0,{"$f":"J12+J15+J18+J21+J24+J27+J30+J33+J36+J39+J42+J45+J48+J51+J54+J57","v":0},0,{"$f":"L12+L15+L18+L21+L24+L27+L30+L33+L36+L39+L42+L45+L48+L51+L54+L57","v":0},0,{"$f":"N12+N15+N18+N21+N24+N27+N30+N33+N36+N39+N42+N45+N48+N51+N54+N57","v":0},{"$f":"O12+O15+O18+O21+O24+O27+O30+O33+O36+O39+O42+O45+O48+O51+O54+O57","v":0},0]
[null,null,"Razem",{"$f":"D59+D60","v":0},{"$f":"E59+E60","v":0},0,0,0,0,0,0,{"$f":"L59+L60","v":0},0,0,0,0]
[]
["* - poprawna wartość sumy kontrolnej wynosi 0"]

{"sheet":"L","index":5,"n_rows":61,"n_cols":5,"rows_kept":61,"cut":false,"hidden":true,"merged":[[2,0,4,4],[0,8,0,10],[1,8,1,10],[2,8,2,10],[49,0,51,0],[46,0,48,0],[43,0,45,0],[37,0,39,0],[31,0,33,0],[40,0,42,0],[28,0,30,0],[34,0,36,0],[25,0,27,0],[55,1,57,1],[6,0,8,0],[8,3,8,4],[6,3,6,4],[6,2,8,2],[22,0,24,0],[16,0,18,0],[19,0,21,0],[13,0,15,0],[10,0,12,0],[10,1,12,1],[52,0,54,0],[55,0,57,0],[58,0,60,1],[6,1,8,1],[13,1,15,1],[16,1,18,1],[19,1,21,1],[22,1,24,1],[25,1,27,1],[28,1,30,1],[31,1,33,1],[34,1,36,1],[37,1,39,1],[40,1,42,1],[43,1,45,1],[46,1,48,1],[49,1,51,1],[52,1,54,1]]}
[]
[]
[{"$f":"\"Zbiorcze zestawienie danych dotyczących lokali\nwg stanu na dzień 1 stycznia \"&Start!G9","v":"Zbiorcze zestawienie danych dotyczących lokali\nwg stanu na dzień 1 stycznia 2026"}]
[]
[]
[]
["Grupa rejestrowa","Nazwa","Rodzaj jednostki terytorialnej","Rodzaj lokalu"]
[null,null,null,"mieszkalny","niemieszkalny"]
[null,null,null,"liczba lokali"]
[1,2,"3","4","5"]
["1","Skarb Państwa, jeżeli nie występuje w zbiegu \nz użytkownikami wieczystymi","M"]
[null,null,"W"]
[null,null,"Razem",{"$f":"SUM(D11,D12)","v":0},{"$f":"SUM(E11,E12)","v":0}]
["2","Skarb Państwa, jeżeli występuje w zbiegu \nz użytkownikami wieczystymi","M"]
[null,null,"W"]
[null,null,"Razem",{"$f":"SUM(D14,D15)","v":0},{"$f":"SUM(E14,E15)","v":0}]
[3,"Jednoosobowe spółki Skarbu Państwa, \nprzedsiębiorstwa państwowe i inne państwowe osoby prawne","M"]
[null,null,"W"]
[null,null,"Razem",{"$f":"D17+D18","v":0},{"$f":"E17+E18","v":0}]
["4","Gminy, związki międzygminne lub metropolitalne, \njeżeli nie występują w zbiegu z użytkownikami wieczystymi","M"]
[null,null,"W"]
[null,null,"Razem",{"$f":"D20+D21","v":0},{"$f":"E20+E21","v":0}]
["5","Gminy, związki międzygminne lub metropolitalne, \njeżeli występują w zbiegu z użytkownikami wieczystymi","M"]
[null,null,"W"]
[null,null,"Razem",{"$f":"D23+D24","v":0},{"$f":"E23+E24","v":0}]
["6"," Jednoosobowe spółki jednostek samorządu terytorialnego  i inne osoby prawne, których organami założycielskimi są  organy samorządu terytorialnego","M"]
[null,null,"W"]
[null,null,"Razem",{"$f":"D26+D27","v":0},{"$f":"E26+E27","v":0}]
["7","Osoby fizyczne","M"]
[null,null,"W"]
[null,null,"Razem",{"$f":"D29+D30","v":0},{"$f":"E29+E30","v":0}]
["8","Spółdzielnie","M"]
[null,null,"W"]
[null,null,"Razem",{"$f":"D32+D33","v":0},{"$f":"E32+E33","v":0}]
[9,"Kościoły i związki wyznaniowe","M"]
[null,null,"W"]
[null,null,"Razem",{"$f":"D35+D36","v":0},{"$f":"E35+E36","v":0}]
[10,"Wspólnoty gruntowe","M"]
[null,null,"W"]
[null,null,"Razem",{"$f":"D38+D39","v":0},{"$f":"E38+E39","v":0}]
["11","Powiaty i związki powiatów, \njeżeli nie występują w zbiegu z użytkownikami wieczystymi","M"]
[null,null,"W"]
[null,null,"Razem",{"$f":"D41+D42","v":0},{"$f":"E41+E42","v":0}]
["12","Powiaty i związki powiatów, \njeżeli występują w zbiegu z użytkownikami wieczystymi","M"]
[null,null,"W"]
[null,null,"Razem",{"$f":"D44+D45","v":0},{"$f":"E44+E45","v":0}]
["13","Województwa, \njeżeli nie występują w zbiegu z użytkownikami wieczystymi","M"]
[null,null,"W"]
[null,null,"Razem",{"$f":"D47+D48","v":0},{"$f":"E47+E48","v":0}]
["14","Województwa, \njeżeli występują w zbiegu z użytkownikami wieczystymi","M"]
[null,null,"W"]
[null,null,"Razem",{"$f":"D50+D51","v":0},{"$f":"E50+E51","v":0}]
["15","Spółki prawa handlowego ","M"]
[null,null,"W"]
[null,null,"Razem",{"$f":"D53+D54","v":0},{"$f":"E53+E54","v":0}]
["16","Inne podmioty ewidencyjne \nniewymienione w grupach rejestrowych 1-15","M"]
[null,null,"W"]
[null,null,"Razem",{"$f":"D56+D57","v":0},{"$f":"E56+E57","v":0}]
["Razem lokale",null,"M",{"$f":"D11+D14+D17+D20+D23+D26+D29+D32+D35+D38+D41+D44+D47+D50+D53+D56","v":0},{"$f":"E11+E14+E17+E20+E23+E26+E29+E32+E35+E38+E41+E44+E47+E50+E53+E56","v":0}]
[null,null,"W",{"$f":"D12+D15+D18+D21+D24+D27+D30+D33+D36+D39+D42+D45+D48+D51+D54+D57","v":0},{"$f":"E12+E15+E18+E21+E24+E27+E30+E33+E36+E39+E42+E45+E48+E51+E54+E57","v":0}]
[null,null,"Razem",{"$f":"D59+D60","v":0},{"$f":"E59+E60","v":0}]